Workbook

Sheet PARÂMETROS
C2: Obs: as células brancas podem ser editadas, as cinzas não.
C3: LIMITES DA TITULAÇÃO | F3: TITULADO (ÁCIDO) | J3: TITULANTE (BÁSICO) | N3: VOL. DE EQUIV. (mL) | Q3: Kw=
C4: pH (mín.) | D4: pH (máx.) | N4: =DGET('pH e Vb'!AV7:AW148,1,'pH e Vb'!AX8:AX9) ->  | Q4: =10^(-14) -> 1e-14
C5: 1 | D5: 12 | F5: K1a= | G5: K2a= | H5: K3a= | J5: K1b= | K5: K2b= | L5: K3b=
F6: ='BANCO DE DADOS COMPLETA'!P8 -> 7.11E-03 | G6: ='BANCO DE DADOS COMPLETA'!Q8 -> 6.32E-08 | H6: ='BANCO DE DADOS COMPLETA'!R8 -> 4.47E-13 | J6: ='BANCO DE DADOS COMPLETA'!P10 -> 1.00E-13 | K6: ='BANCO DE DADOS COMPLETA'!Q10 -> 0.00E+00 | L6: ='BANCO DE DADOS COMPLETA'!R10 -> 0.00E+00
C7: INCREMENTO DE pH
C8: 0.2
C10: Ca(mol.L-1)= | D10: Va(mL)=
C11: 0.2 | D11: 50
C13: Cb(mol.L-1)=
C14: 0.5
C41: Rafael de Carvalho Maia - UnB - Rafaelmaia@gmx.com

Sheet pH e Vb
AQ2: Achando Vb
C3: [H+] | D3: [OH-] | E3: AA1 | F3: AA1 | G3: AA2 | H3: AA1 | I3: AA2 | J3: AA3 | K3: AB1 | L3: AB1 | M3: AB2 | N3: AB1 | O3: AB2 | P3: AB3 | Q3: FI | R3: FI | S3: FI | T3: FI | U3: FI | V3: FI | W3: FI | X3: FI | Y3: FI | Z3: Vb | AA3: Vb | AB3: Vb | AC3: Vb | AD3: Vb | AE3: Vb | AF3: Vb | AG3: Vb | AH3: Vb | AI3: E() | AJ3: N() | AK3: RET NOX1 | AL3: RET PRIM1 | AM3: RET NOX1 | AN3: RET PRIM1 | AO3: MULT PRIM | AP3: Vb | AQ3: pH | AR3: Vb
C4: =10^(-AQ4) -> 2.00E-10 | D4: =PARÂMETROS!$Q$4/C4 -> 5.01E-05 | E4: =PARÂMETROS!$F$6/($C4+PARÂMETROS!$F$6) -> 1.00E+00 | F4: =$C4*PARÂMETROS!$F$6/($C4^2+$C4*PARÂMETROS!$F$6+PARÂMETROS!$F$6*PARÂMETROS!$G$6) -> 3.15E-03 | G4: =PARÂMETROS!$F$6*PARÂMETROS!$G$6/($C4^2+$C4*PARÂMETROS!$F$6+PARÂMETROS!$F$6*PARÂMETROS!$G$6) -> 9.97E-01 | H4: =(PARÂMETROS!$F$6*$C4^2)/($C4^3+PARÂMETROS!$F$6*$C4^2+PARÂMETROS!$F$6*PARÂMETROS!$G$6*$C4+PARÂMETROS!$F$6*PARÂMETROS!$G$6*PARÂMETROS!$H$6) -> 3.14E-03 | I4: =(PARÂMETROS!$F$6*PARÂMETROS!$G$6*$C4)/($C4^3+PARÂMETROS!$F$6*$C4^2+PARÂMETROS!$F$6*PARÂMETROS!$G$6*$C4+PARÂMETROS!$F$6*PARÂMETROS!$G$6*PARÂMETROS!$H$6) -> 9.95E-01 | J4: =(PARÂMETROS!$F$6*PARÂMETROS!$G$6*PARÂMETROS!$H$6)/($C4^3+PARÂMETROS!$F$6*$C4^2+PARÂMETROS!$F$6*PARÂMETROS!$G$6*$C4+PARÂMETROS!$F$6*PARÂMETROS!$G$6*PARÂMETROS!$H$6) -> 2.23E-03 | K4: =$C4/($C4+PARÂMETROS!$J$6) -> 9.99E-01 | L4: =$C4*PARÂMETROS!$J$6/($C4^2+$C4*PARÂMETROS!$J$6+PARÂMETROS!$J$6*PARÂMETROS!$K$6) -> 5.01E-04 | M4: =$C4^2/($C4^2+$C4*PARÂMETROS!$J$6+PARÂMETROS!$J$6*PARÂMETROS!$K$6) -> 9.99E-01 | N4: =(PARÂMETROS!$K$6*PARÂMETROS!$J$6*$C4)/($C4^3+PARÂMETROS!$J$6*$C4^2+PARÂMETROS!$J$6*PARÂMETROS!$K$6*$C4+PARÂMETROS!$J$6*PARÂMETROS!$K$6*PARÂMETROS!$L$6) -> 0.00E+00 | O4: =(PARÂMETROS!$J$6*$C4^2)/($C4^3+PARÂMETROS!$J$6*$C4^2+PARÂMETROS!$J$6*PARÂMETROS!$K$6*$C4+PARÂMETROS!$J$6*PARÂMETROS!$K$6*PARÂMETROS!$L$6) -> 5.01E-04 | P4: =($C4^3)/($C4^3+PARÂMETROS!$J$6*$C4^2+PARÂMETROS!$J$6*PARÂMETROS!$K$6*$C4+PARÂMETROS!$J$6*PARÂMETROS!$K$6*PARÂMETROS!$L$6) -> 9.99E-01 | Q4: =IF(PARÂMETROS!$J$6<PARÂMETROS!$F$6,(E4-(C4-D4)/PARÂMETROS!$C$11)/(K4+(C4-D4)/PARÂMETROS!$C$14),(K4+(C4-D4)/PARÂMETROS!$C$14)/(E4-(C4-D4)/PARÂMETROS!$C$11)) -> 1.00E+00 | R4: =IF(PARÂMETROS!$J$6<PARÂMETROS!$F$6,(E4-(C4-D4)/PARÂMETROS!$C$11)/(L4+2*M4+(C4-D4)/PARÂMETROS!$C$14),(L4+2*M4+(C4-D4)/PARÂMETROS!$C$14)/(E4-(C4-D4)/PARÂMETROS!$C$11)) -> 5.00E-01 | S4: =IF(PARÂMETROS!$J$6<PARÂMETROS!$F$6, (E4-(C4-D4)/PARÂMETROS!$C$11)/(N4+2*O4+3*P4+(C4-D4)/PARÂMETROS!$C$14),(N4+2*O4+3*P4+(C4-D4)/PARÂMETROS!$C$14)/ (E4-(C4-D4)/PARÂMETROS!$C$11)) -> 3.33E-01 | T4: =IF(PARÂMETROS!$J$6<PARÂMETROS!$F$6,(F4+2*G4-(C4-D4)/PARÂMETROS!$C$11)/(K4+(C4-D4)/PARÂMETROS!$C$14),(K4+(C4-D4)/PARÂMETROS!$C$14)/(F4+2*G4-(C4-D4)/PARÂMETROS!$C$11)) -> 2.00E+00 | U4: =IF(PARÂMETROS!$J$6<PARÂMETROS!$F$6,(F4+2*G4-(C4-D4)/PARÂMETROS!$C$11)/(L4+2*M4+(C4-D4)/PARÂMETROS!$C$14),(L4+2*M4+(C4-D4)/PARÂMETROS!$C$14)/(F4+2*G4-(C4-D4)/PARÂMETROS!$C$11)) -> 9.99E-01 | V4: =IF(PARÂMETROS!$J$6<PARÂMETROS!$F$6,(F4+2*G4-(C4-D4)/PARÂMETROS!$C$11)/(N4+2*O4+3*P4+(C4-D4)/PARÂMETROS!$C$14),(N4+2*O4+3*P4+(C4-D4)/PARÂMETROS!$C$14)/(F4+2*G4-(C4-D4)/PARÂMETROS!$C$11)) -> 6.66E-01 | W4: =IF(PARÂMETROS!$J$6<PARÂMETROS!$F$6,(H4+2*I4+3*J4-(C4-D4)/PARÂMETROS!$C$11)/(K4+(C4-D4)/PARÂMETROS!$C$14),(K4+(C4-D4)/PARÂMETROS!$C$14)/(H4+2*I4+3*J4-(C4-D4)/PARÂMETROS!$C$11)) -> 2.00E+00 | X4: =IF(PARÂMETROS!$J$6<PARÂMETROS!$F$6,(H4+2*I4+3*J4-(C4-D4)/PARÂMETROS!$C$11)/(L4+2*M4+(C4-D4)/PARÂMETROS!$C$14),(L4+2*M4+(C4-D4)/PARÂMETROS!$C$14)/(H4+2*I4+3*J4-(C4-D4)/PARÂMETROS!$C$11)) -> 1.00E+00 | Y4: =IF(PARÂMETROS!$J$6<PARÂMETROS!$F$6,(H4+2*I4+3*J4-(C4-D4)/PARÂMETROS!$C$11)/(N4+2*O4+3*P4+(C4-D4)/PARÂMETROS!$C$14),(N4+2*O4+3*P4+(C4-D4)/PARÂMETROS!$C$14)/(H4+2*I4+3*J4-(C4-D4)/PARÂMETROS!$C$11)) -> 6.67E-01 | Z4: =Q4*PARÂMETROS!$C$11*PARÂMETROS!$D$11/PARÂMETROS!$C$14 -> 20.02 | AA4: =R4*PARÂMETROS!$C$11*PARÂMETROS!$D$11/PARÂMETROS!$C$14 -> 10.01 | AB4: =S4*PARÂMETROS!$C$11*PARÂMETROS!$D$11/PARÂMETROS!$C$14 -> 6.67 | AC4: =T4*PARÂMETROS!$C$11*PARÂMETROS!$D$11/PARÂMETROS!$C$14 -> 39.97 | AD4: =U4*PARÂMETROS!$C$11*PARÂMETROS!$D$11/PARÂMETROS!$C$14 -> 19.98 | AE4: =V4*PARÂMETROS!$C$11*PARÂMETROS!$D$11/PARÂMETROS!$C$14 -> 13.32 | AF4: =W4*PARÂMETROS!$C$11*PARÂMETROS!$D$11/PARÂMETROS!$C$14 -> 40.01 | AG4: =X4*PARÂMETROS!$C$11*PARÂMETROS!$D$11/PARÂMETROS!$C$14 -> 20.00 | AH4: =Y4*PARÂMETROS!$C$11*PARÂMETROS!$D$11/PARÂMETROS!$C$14 -> 13.33 | AI4: =AND(AQ4+PARÂMETROS!$C$8>=PARÂMETROS!$C$5,AQ4+PARÂMETROS!$C$8<=PARÂMETROS!$D$5) -> TRUE | AJ4: =N(AI4) -> 1 | AK4: =VLOOKUP('BANCO DE DADOS COMPLETA'!$N$8,'BANCO DE DADOS COMPLETA'!$A$7:$L$249,3)*-1 -> 3 | AL4: =IF(AK4=1,3,IF(AK4=2,5,IF(AK4=3,7,3))) -> 7 | AM4: =VLOOKUP('BANCO DE DADOS COMPLETA'!$N$10,'BANCO DE DADOS COMPLETA'!$A$7:$L$249,3)*-1 -> 1 | AN4: =IF(AM4=1,11,IF(AM4=2,13,IF(AM4=3,17,11))) -> 11 | AO4: =AN4*AL4 -> 77 | AP4: =IF(AO4=33,Z4,IF(AO4=39,AA4,IF(AO4=51,AB4,IF(AO4=55,AC4,IF(AO4=65,AD4,IF(AO4=85,AE4,IF(AO4=77,AF4,IF(AO4=91,AG4,IF(AO4=119,AH4))))))))) -> 40.01 | AQ4: 9.70 | AR4: =IF(AP4>=-1,IF(AJ4=1,AP4,"LIMITE"),"LIMITE") -> 40.01
B6: Pontos da Curva | E6: MONPROT | F6: DIPROT | H6: TRIPROT | K6: MONBASE | L6: DIBASE | N6: TRIBASE | Q6: MPMB | R6: MPDB | S6: MPTB | T6: DPMB | U6: DPDB | V6: DPTB | W6: TPMB | X6: TPDB | Y6: TPTB | Z6: MPMB | AA6: MPDB | AB6: MPTB | AC6: DPMB | AD6: DPDB | AE6: DPTB | AF6: TPMB | AG6: TPDB | AH6: TPTB | AI6: Engines da obtenção do Volume da Base | AQ6: Pontos da Curva | AS6: Derivadas
B7: pH | C7: [H+] | D7: [OH-] | E7: AA1 | F7: AA1 | G7: AA2 | H7: AA1 | I7: AA2 | J7: AA3 | K7: AB1 | L7: AB1 | M7: AB2 | N7: AB1 | O7: AB2 | P7: AB3 | Q7: FI | R7: FI | S7: FI | T7: FI | U7: FI | V7: FI | W7: FI | X7: FI | Y7: FI | Z7: Vb | AA7: Vb | AB7: Vb | AC7: Vb | AD7: Vb | AE7: Vb | AF7: Vb | AG7: Vb | AH7: Vb | AI7: E() | AJ7: N() | AK7: RET NOX1 | AL7: RET PRIM1 | AM7: RET NOX1 | AN7: RET PRIM1 | AO7: MULT PRIM | AP7: Vb | AQ7: Vb | AR7: pH | AS7: Deriv 1 | AT7: Deriv 2 | AU7: MAX | AV7: VOL DE EQUIV. | AW7: Cond VolEquiv | AX7: =BDEXTRAIR
B8: 1.46 | C8: =10^(-B8) -> 3.43E-02 | D8: =PARÂMETROS!$Q$4/C8 -> 2.91E-13 | E8: =PARÂMETROS!$F$6/($C8+PARÂMETROS!$F$6) -> 1.72E-01 | F8: =$C8*PARÂMETROS!$F$6/($C8^2+$C8*PARÂMETROS!$F$6+PARÂMETROS!$F$6*PARÂMETROS!$G$6) -> 1.72E-01 | G8: =PARÂMETROS!$F$6*PARÂMETROS!$G$6/($C8^2+$C8*PARÂMETROS!$F$6+PARÂMETROS!$F$6*PARÂMETROS!$G$6) -> 3.16E-07 | H8: =(PARÂMETROS!$F$6*$C8^2)/($C8^3+PARÂMETROS!$F$6*$C8^2+PARÂMETROS!$F$6*PARÂMETROS!$G$6*$C8+PARÂMETROS!$F$6*PARÂMETROS!$G$6*PARÂMETROS!$H$6) -> 1.72E-01 | I8: =(PARÂMETROS!$F$6*PARÂMETROS!$G$6*$C8)/($C8^3+PARÂMETROS!$F$6*$C8^2+PARÂMETROS!$F$6*PARÂMETROS!$G$6*$C8+PARÂMETROS!$F$6*PARÂMETROS!$G$6*PARÂMETROS!$H$6) -> 3.16E-07 | J8: =(PARÂMETROS!$F$6*PARÂMETROS!$G$6*PARÂMETROS!$H$6)/($C8^3+PARÂMETROS!$F$6*$C8^2+PARÂMETROS!$F$6*PARÂMETROS!$G$6*$C8+PARÂMETROS!$F$6*PARÂMETROS!$G$6*PARÂMETROS!$H$6) -> 4.11E-18 | K8: =$C8/($C8+PARÂMETROS!$J$6) -> 1.00E+00 | L8: =$C8*PARÂMETROS!$J$6/($C8^2+$C8*PARÂMETROS!$J$6+PARÂMETROS!$J$6*PARÂMETROS!$K$6) -> 2.91E-12 | M8: =$C8^2/($C8^2+$C8*PARÂMETROS!$J$6+PARÂMETROS!$J$6*PARÂMETROS!$K$6) -> 1.00E+00 | N8: =(PARÂMETROS!$K$6*PARÂMETROS!$J$6*$C8)/($C8^3+PARÂMETROS!$J$6*$C8^2+PARÂMETROS!$J$6*PARÂMETROS!$K$6*$C8+PARÂMETROS!$J$6*PARÂMETROS!$K$6*PARÂMETROS!$L$6) -> 0.00E+00 | O8: =(PARÂMETROS!$J$6*$C8^2)/($C8^3+PARÂMETROS!$J$6*$C8^2+PARÂMETROS!$J$6*PARÂMETROS!$K$6*$C8+PARÂMETROS!$J$6*PARÂMETROS!$K$6*PARÂMETROS!$L$6) -> 2.91E-12 | P8: =($C8^3)/($C8^3+PARÂMETROS!$J$6*$C8^2+PARÂMETROS!$J$6*PARÂMETROS!$K$6*$C8+PARÂMETROS!$J$6*PARÂMETROS!$K$6*PARÂMETROS!$L$6) -> 1.00E+00 | Q8: =IF(PARÂMETROS!$J$6<PARÂMETROS!$F$6,(E8-(C8-D8)/PARÂMETROS!$C$11)/(K8+(C8-D8)/PARÂMETROS!$C$14),(K8+(C8-D8)/PARÂMETROS!$C$14)/(E8-(C8-D8)/PARÂMETROS!$C$11)) -> -1.98E-05 | R8: =IF(PARÂMETROS!$J$6<PARÂMETROS!$F$6,(E8-(C8-D8)/PARÂMETROS!$C$11)/(L8+2*M8+(C8-D8)/PARÂMETROS!$C$14),(L8+2*M8+(C8-D8)/PARÂMETROS!$C$14)/(E8-(C8-D8)/PARÂMETROS!$C$11)) -> -1.03E-05 | S8: =IF(PARÂMETROS!$J$6<PARÂMETROS!$F$6, (E8-(C8-D8)/PARÂMETROS!$C$11)/(N8+2*O8+3*P8+(C8-D8)/PARÂMETROS!$C$14),(N8+2*O8+3*P8+(C8-D8)/PARÂMETROS!$C$14)/ (E8-(C8-D8)/PARÂMETROS!$C$11)) -> -6.91E-06 | T8: =IF(PARÂMETROS!$J$6<PARÂMETROS!$F$6,(F8+2*G8-(C8-D8)/PARÂMETROS!$C$11)/(K8+(C8-D8)/PARÂMETROS!$C$14),(K8+(C8-D8)/PARÂMETROS!$C$14)/(F8+2*G8-(C8-D8)/PARÂMETROS!$C$11)) -> -1.93E-05 | U8: =IF(PARÂMETROS!$J$6<PARÂMETROS!$F$6,(F8+2*G8-(C8-D8)/PARÂMETROS!$C$11)/(L8+2*M8+(C8-D8)/PARÂMETROS!$C$14),(L8+2*M8+(C8-D8)/PARÂMETROS!$C$14)/(F8+2*G8-(C8-D8)/PARÂMETROS!$C$11)) -> -9.97E-06 | V8: =IF(PARÂMETROS!$J$6<PARÂMETROS!$F$6,(F8+2*G8-(C8-D8)/PARÂMETROS!$C$11)/(N8+2*O8+3*P8+(C8-D8)/PARÂMETROS!$C$14),(N8+2*O8+3*P8+(C8-D8)/PARÂMETROS!$C$14)/(F8+2*G8-(C8-D8)/PARÂMETROS!$C$11)) -> -6.72E-06 | W8: =IF(PARÂMETROS!$J$6<PARÂMETROS!$F$6,(H8+2*I8+3*J8-(C8-D8)/PARÂMETROS!$C$11)/(K8+(C8-D8)/PARÂMETROS!$C$14),(K8+(C8-D8)/PARÂMETROS!$C$14)/(H8+2*I8+3*J8-(C8-D8)/PARÂMETROS!$C$11)) -> -1.93E-05 | X8: =IF(PARÂMETROS!$J$6<PARÂMETROS!$F$6,(H8+2*I8+3*J8-(C8-D8)/PARÂMETROS!$C$11)/(L8+2*M8+(C8-D8)/PARÂMETROS!$C$14),(L8+2*M8+(C8-D8)/PARÂMETROS!$C$14)/(H8+2*I8+3*J8-(C8-D8)/PARÂMETROS!$C$11)) -> -9.97E-06 | Y8: =IF(PARÂMETROS!$J$6<PARÂMETROS!$F$6,(H8+2*I8+3*J8-(C8-D8)/PARÂMETROS!$C$11)/(N8+2*O8+3*P8+(C8-D8)/PARÂMETROS!$C$14),(N8+2*O8+3*P8+(C8-D8)/PARÂMETROS!$C$14)/(H8+2*I8+3*J8-(C8-D8)/PARÂMETROS!$C$11)) -> -6.72E-06 | Z8: =Q8*PARÂMETROS!$C$11*PARÂMETROS!$D$11/PARÂMETROS!$C$14 -> -0.00 | AA8: =R8*PARÂMETROS!$C$11*PARÂMETROS!$D$11/PARÂMETROS!$C$14 -> -0.00 | AB8: =S8*PARÂMETROS!$C$11*PARÂMETROS!$D$11/PARÂMETROS!$C$14 -> -0.00 | AC8: =T8*PARÂMETROS!$C$11*PARÂMETROS!$D$11/PARÂMETROS!$C$14 -> -0.00 | AD8: =U8*PARÂMETROS!$C$11*PARÂMETROS!$D$11/PARÂMETROS!$C$14 -> -0.00 | AE8: =V8*PARÂMETROS!$C$11*PARÂMETROS!$D$11/PARÂMETROS!$C$14 -> -0.00 | AF8: =W8*PARÂMETROS!$C$11*PARÂMETROS!$D$11/PARÂMETROS!$C$14 -> -0.00 | AG8: =X8*PARÂMETROS!$C$11*PARÂMETROS!$D$11/PARÂMETROS!$C$14 -> -0.00 | AH8: =Y8*PARÂMETROS!$C$11*PARÂMETROS!$D$11/PARÂMETROS!$C$14 -> -0.00 | AI8: =AND(B8+PARÂMETROS!$C$8>=PARÂMETROS!$C$5,B8+PARÂMETROS!$C$8<=PARÂMETROS!$D$5) -> TRUE | AJ8: =N(AI8) -> 1 | AK8: =VLOOKUP('BANCO DE DADOS COMPLETA'!$N$8,'BANCO DE DADOS COMPLETA'!$A$7:$L$249,3)*-1 -> 3 | AL8: =IF(AK8=1,3,IF(AK8=2,5,IF(AK8=3,7,3))) -> 7 | AM8: =VLOOKUP('BANCO DE DADOS COMPLETA'!$N$10,'BANCO DE DADOS COMPLETA'!$A$7:$L$249,3)*-1 -> 1 | AN8: =IF(AM8=1,11,IF(AM8=2,13,IF(AM8=3,17,11))) -> 11 | AO8: =AN8*AL8 -> 77 | AP8: =IF(AO8=33,Z8,IF(AO8=39,AA8,IF(AO8=51,AB8,IF(AO8=55,AC8,IF(AO8=65,AD8,IF(AO8=85,AE8,IF(AO8=77,AF8,IF(AO8=91,AG8,IF(AO8=119,AH8))))))))) -> -0.00 | AQ8: =IF(AP8>=-0.1,IF(AJ8=1,AP8,"LIMITE"),"LIMITE") -> -0.00 | AR8: =IF(AJ8=1,B8,"LIMITE") -> 1.46 | AS8: - | AT8: - | AU8: - | AV8: NADA | AW8: - | AX8: Cond VolEquiv
B9: =B8+PARÂMETROS!$C$8 -> 1.66 | C9: =10^(-B9) -> 2.17E-02 | D9: =PARÂMETROS!$Q$4/C9 -> 4.62E-13 | E9: =PARÂMETROS!$F$6/($C9+PARÂMETROS!$F$6) -> 2.47E-01 | F9: =$C9*PARÂMETROS!$F$6/($C9^2+$C9*PARÂMETROS!$F$6+PARÂMETROS!$F$6*PARÂMETROS!$G$6) -> 2.47E-01 | G9: =PARÂMETROS!$F$6*PARÂMETROS!$G$6/($C9^2+$C9*PARÂMETROS!$F$6+PARÂMETROS!$F$6*PARÂMETROS!$G$6) -> 7.22E-07 | H9: =(PARÂMETROS!$F$6*$C9^2)/($C9^3+PARÂMETROS!$F$6*$C9^2+PARÂMETROS!$F$6*PARÂMETROS!$G$6*$C9+PARÂMETROS!$F$6*PARÂMETROS!$G$6*PARÂMETROS!$H$6) -> 2.47E-01 | I9: =(PARÂMETROS!$F$6*PARÂMETROS!$G$6*$C9)/($C9^3+PARÂMETROS!$F$6*$C9^2+PARÂMETROS!$F$6*PARÂMETROS!$G$6*$C9+PARÂMETROS!$F$6*PARÂMETROS!$G$6*PARÂMETROS!$H$6) -> 7.22E-07 | J9: =(PARÂMETROS!$F$6*PARÂMETROS!$G$6*PARÂMETROS!$H$6)/($C9^3+PARÂMETROS!$F$6*$C9^2+PARÂMETROS!$F$6*PARÂMETROS!$G$6*$C9+PARÂMETROS!$F$6*PARÂMETROS!$G$6*PARÂMETROS!$H$6) -> 1.49E-17 | K9: =$C9/($C9+PARÂMETROS!$J$6) -> 1.00E+00 | L9: =$C9*PARÂMETROS!$J$6/($C9^2+$C9*PARÂMETROS!$J$6+PARÂMETROS!$J$6*PARÂMETROS!$K$6) -> 4.62E-12 | M9: =$C9^2/($C9^2+$C9*PARÂMETROS!$J$6+PARÂMETROS!$J$6*PARÂMETROS!$K$6) -> 1.00E+00 | N9: =(PARÂMETROS!$K$6*PARÂMETROS!$J$6*$C9)/($C9^3+PARÂMETROS!$J$6*$C9^2+PARÂMETROS!$J$6*PARÂMETROS!$K$6*$C9+PARÂMETROS!$J$6*PARÂMETROS!$K$6*PARÂMETROS!$L$6) -> 0.00E+00 | O9: =(PARÂMETROS!$J$6*$C9^2)/($C9^3+PARÂMETROS!$J$6*$C9^2+PARÂMETROS!$J$6*PARÂMETROS!$K$6*$C9+PARÂMETROS!$J$6*PARÂMETROS!$K$6*PARÂMETROS!$L$6) -> 4.62E-12 | P9: =($C9^3)/($C9^3+PARÂMETROS!$J$6*$C9^2+PARÂMETROS!$J$6*PARÂMETROS!$K$6*$C9+PARÂMETROS!$J$6*PARÂMETROS!$K$6*PARÂMETROS!$L$6) -> 1.00E+00 | Q9: =IF(PARÂMETROS!$J$6<PARÂMETROS!$F$6,(E9-(C9-D9)/PARÂMETROS!$C$11)/(K9+(C9-D9)/PARÂMETROS!$C$14),(K9+(C9-D9)/PARÂMETROS!$C$14)/(E9-(C9-D9)/PARÂMETROS!$C$11)) -> 1.33E-01 | R9: =IF(PARÂMETROS!$J$6<PARÂMETROS!$F$6,(E9-(C9-D9)/PARÂMETROS!$C$11)/(L9+2*M9+(C9-D9)/PARÂMETROS!$C$14),(L9+2*M9+(C9-D9)/PARÂMETROS!$C$14)/(E9-(C9-D9)/PARÂMETROS!$C$11)) -> 6.80E-02 | S9: =IF(PARÂMETROS!$J$6<PARÂMETROS!$F$6, (E9-(C9-D9)/PARÂMETROS!$C$11)/(N9+2*O9+3*P9+(C9-D9)/PARÂMETROS!$C$14),(N9+2*O9+3*P9+(C9-D9)/PARÂMETROS!$C$14)/ (E9-(C9-D9)/PARÂMETROS!$C$11)) -> 4.56E-02 | T9: =IF(PARÂMETROS!$J$6<PARÂMETROS!$F$6,(F9+2*G9-(C9-D9)/PARÂMETROS!$C$11)/(K9+(C9-D9)/PARÂMETROS!$C$14),(K9+(C9-D9)/PARÂMETROS!$C$14)/(F9+2*G9-(C9-D9)/PARÂMETROS!$C$11)) -> 1.33E-01 | U9: =IF(PARÂMETROS!$J$6<PARÂMETROS!$F$6,(F9+2*G9-(C9-D9)/PARÂMETROS!$C$11)/(L9+2*M9+(C9-D9)/PARÂMETROS!$C$14),(L9+2*M9+(C9-D9)/PARÂMETROS!$C$14)/(F9+2*G9-(C9-D9)/PARÂMETROS!$C$11)) -> 6.80E-02 | V9: =IF(PARÂMETROS!$J$6<PARÂMETROS!$F$6,(F9+2*G9-(C9-D9)/PARÂMETROS!$C$11)/(N9+2*O9+3*P9+(C9-D9)/PARÂMETROS!$C$14),(N9+2*O9+3*P9+(C9-D9)/PARÂMETROS!$C$14)/(F9+2*G9-(C9-D9)/PARÂMETROS!$C$11)) -> 4.56E-02 | W9: =IF(PARÂMETROS!$J$6<PARÂMETROS!$F$6,(H9+2*I9+3*J9-(C9-D9)/PARÂMETROS!$C$11)/(K9+(C9-D9)/PARÂMETROS!$C$14),(K9+(C9-D9)/PARÂMETROS!$C$14)/(H9+2*I9+3*J9-(C9-D9)/PARÂMETROS!$C$11)) -> 1.33E-01 | X9: =IF(PARÂMETROS!$J$6<PARÂMETROS!$F$6,(H9+2*I9+3*J9-(C9-D9)/PARÂMETROS!$C$11)/(L9+2*M9+(C9-D9)/PARÂMETROS!$C$14),(L9+2*M9+(C9-D9)/PARÂMETROS!$C$14)/(H9+2*I9+3*J9-(C9-D9)/PARÂMETROS!$C$11)) -> 6.80E-02 | Y9: =IF(PARÂMETROS!$J$6<PARÂMETROS!$F$6,(H9+2*I9+3*J9-(C9-D9)/PARÂMETROS!$C$11)/(N9+2*O9+3*P9+(C9-D9)/PARÂMETROS!$C$14),(N9+2*O9+3*P9+(C9-D9)/PARÂMETROS!$C$14)/(H9+2*I9+3*J9-(C9-D9)/PARÂMETROS!$C$11)) -> 4.56E-02 | Z9: =Q9*PARÂMETROS!$C$11*PARÂMETROS!$D$11/PARÂMETROS!$C$14 -> 2.66 | AA9: =R9*PARÂMETROS!$C$11*PARÂMETROS!$D$11/PARÂMETROS!$C$14 -> 1.36 | AB9: =S9*PARÂMETROS!$C$11*PARÂMETROS!$D$11/PARÂMETROS!$C$14 -> 0.91 | AC9: =T9*PARÂMETROS!$C$11*PARÂMETROS!$D$11/PARÂMETROS!$C$14 -> 2.66 | AD9: =U9*PARÂMETROS!$C$11*PARÂMETROS!$D$11/PARÂMETROS!$C$14 -> 1.36 | AE9: =V9*PARÂMETROS!$C$11*PARÂMETROS!$D$11/PARÂMETROS!$C$14 -> 0.91 | AF9: =W9*PARÂMETROS!$C$11*PARÂMETROS!$D$11/PARÂMETROS!$C$14 -> 2.66 | AG9: =X9*PARÂMETROS!$C$11*PARÂMETROS!$D$11/PARÂMETROS!$C$14 -> 1.36 | AH9: =Y9*PARÂMETROS!$C$11*PARÂMETROS!$D$11/PARÂMETROS!$C$14 -> 0.91 | AI9: =AND(B9+PARÂMETROS!$C$8>=PARÂMETROS!$C$5,B9+PARÂMETROS!$C$8<=PARÂMETROS!$D$5) -> TRUE | AJ9: 1 | AK9: =VLOOKUP('BANCO DE DADOS COMPLETA'!$N$8,'BANCO DE DADOS COMPLETA'!$A$7:$L$249,3)*-1 -> 3 | AL9: 7 | AM9: =VLOOKUP('BANCO DE DADOS COMPLETA'!$N$10,'BANCO DE DADOS COMPLETA'!$A$7:$L$249,3)*-1 -> 1 | AN9: 11 | AO9: 77 | AP9: 2.66 | AQ9: =IF(AP9>=0,IF(AJ9=1,AP9,"LIMITE"),"LIMITE") -> 2.66 | AR9: 1.664 | AS9: =IF(AQ8="LIMITE","LIMITE",(AR9-AR8)/(AQ9-AQ8)) -> 0.08 | AT9: - | AU9: =IF(AT8>0,IF(AT10<0,AQ9,"NADA"),"NADA") -> 2.66 | AV9: NADA | AW9: - | AX9: 1
B10: =B9+PARÂMETROS!$C$8 -> 1.86 | C10: 1.37E-02 | D10: =PARÂMETROS!$Q$4/C10 -> 7.32E-13 | E10: =PARÂMETROS!$F$6/($C10+PARÂMETROS!$F$6) -> 3.42E-01 | F10: =$C10*PARÂMETROS!$F$6/($C10^2+$C10*PARÂMETROS!$F$6+PARÂMETROS!$F$6*PARÂMETROS!$G$6) -> 3.42E-01 | G10: =PARÂMETROS!$F$6*PARÂMETROS!$G$6/($C10^2+$C10*PARÂMETROS!$F$6+PARÂMETROS!$F$6*PARÂMETROS!$G$6) -> 1.58E-06 | H10: =(PARÂMETROS!$F$6*$C10^2)/($C10^3+PARÂMETROS!$F$6*$C10^2+PARÂMETROS!$F$6*PARÂMETROS!$G$6*$C10+PARÂMETROS!$F$6*PARÂMETROS!$G$6*PARÂMETROS!$H$6) -> 3.42E-01 | I10: =(PARÂMETROS!$F$6*PARÂMETROS!$G$6*$C10)/($C10^3+PARÂMETROS!$F$6*$C10^2+PARÂMETROS!$F$6*PARÂMETROS!$G$6*$C10+PARÂMETROS!$F$6*PARÂMETROS!$G$6*PARÂMETROS!$H$6) -> 1.58E-06 | J10: =(PARÂMETROS!$F$6*PARÂMETROS!$G$6*PARÂMETROS!$H$6)/($C10^3+PARÂMETROS!$F$6*$C10^2+PARÂMETROS!$F$6*PARÂMETROS!$G$6*$C10+PARÂMETROS!$F$6*PARÂMETROS!$G$6*PARÂMETROS!$H$6) -> 5.18E-17 | K10: =$C10/($C10+PARÂMETROS!$J$6) -> 1.00E+00 | L10: =$C10*PARÂMETROS!$J$6/($C10^2+$C10*PARÂMETROS!$J$6+PARÂMETROS!$J$6*PARÂMETROS!$K$6) -> 7.32E-12 | M10: =$C10^2/($C10^2+$C10*PARÂMETROS!$J$6+PARÂMETROS!$J$6*PARÂMETROS!$K$6) -> 1.00E+00 | N10: =(PARÂMETROS!$K$6*PARÂMETROS!$J$6*$C10)/($C10^3+PARÂMETROS!$J$6*$C10^2+PARÂMETROS!$J$6*PARÂMETROS!$K$6*$C10+PARÂMETROS!$J$6*PARÂMETROS!$K$6*PARÂMETROS!$L$6) -> 0.00E+00 | O10: =(PARÂMETROS!$J$6*$C10^2)/($C10^3+PARÂMETROS!$J$6*$C10^2+PARÂMETROS!$J$6*PARÂMETROS!$K$6*$C10+PARÂMETROS!$J$6*PARÂMETROS!$K$6*PARÂMETROS!$L$6) -> 7.32E-12 | P10: =($C10^3)/($C10^3+PARÂMETROS!$J$6*$C10^2+PARÂMETROS!$J$6*PARÂMETROS!$K$6*$C10+PARÂMETROS!$J$6*PARÂMETROS!$K$6*PARÂMETROS!$L$6) -> 1.00E+00 | Q10: =IF(PARÂMETROS!$J$6<PARÂMETROS!$F$6,(E10-(C10-D10)/PARÂMETROS!$C$11)/(K10+(C10-D10)/PARÂMETROS!$C$14),(K10+(C10-D10)/PARÂMETROS!$C$14)/(E10-(C10-D10)/PARÂMETROS!$C$11)) -> 2.67E-01 | R10: =IF(PARÂMETROS!$J$6<PARÂMETROS!$F$6,(E10-(C10-D10)/PARÂMETROS!$C$11)/(L10+2*M10+(C10-D10)/PARÂMETROS!$C$14),(L10+2*M10+(C10-D10)/PARÂMETROS!$C$14)/(E10-(C10-D10)/PARÂMETROS!$C$11)) -> 1.35E-01 | S10: =IF(PARÂMETROS!$J$6<PARÂMETROS!$F$6, (E10-(C10-D10)/PARÂMETROS!$C$11)/(N10+2*O10+3*P10+(C10-D10)/PARÂMETROS!$C$14),(N10+2*O10+3*P10+(C10-D10)/PARÂMETROS!$C$14)/ (E10-(C10-D10)/PARÂMETROS!$C$11)) -> 9.05E-02 | T10: =IF(PARÂMETROS!$J$6<PARÂMETROS!$F$6,(F10+2*G10-(C10-D10)/PARÂMETROS!$C$11)/(K10+(C10-D10)/PARÂMETROS!$C$14),(K10+(C10-D10)/PARÂMETROS!$C$14)/(F10+2*G10-(C10-D10)/PARÂMETROS!$C$11)) -> 2.67E-01 | U10: =IF(PARÂMETROS!$J$6<PARÂMETROS!$F$6,(F10+2*G10-(C10-D10)/PARÂMETROS!$C$11)/(L10+2*M10+(C10-D10)/PARÂMETROS!$C$14),(L10+2*M10+(C10-D10)/PARÂMETROS!$C$14)/(F10+2*G10-(C10-D10)/PARÂMETROS!$C$11)) -> 1.35E-01 | V10: =IF(PARÂMETROS!$J$6<PARÂMETROS!$F$6,(F10+2*G10-(C10-D10)/PARÂMETROS!$C$11)/(N10+2*O10+3*P10+(C10-D10)/PARÂMETROS!$C$14),(N10+2*O10+3*P10+(C10-D10)/PARÂMETROS!$C$14)/(F10+2*G10-(C10-D10)/PARÂMETROS!$C$11)) -> 9.05E-02 | W10: =IF(PARÂMETROS!$J$6<PARÂMETROS!$F$6,(H10+2*I10+3*J10-(C10-D10)/PARÂMETROS!$C$11)/(K10+(C10-D10)/PARÂMETROS!$C$14),(K10+(C10-D10)/PARÂMETROS!$C$14)/(H10+2*I10+3*J10-(C10-D10)/PARÂMETROS!$C$11)) -> 2.67E-01 | X10: =IF(PARÂMETROS!$J$6<PARÂMETROS!$F$6,(H10+2*I10+3*J10-(C10-D10)/PARÂMETROS!$C$11)/(L10+2*M10+(C10-D10)/PARÂMETROS!$C$14),(L10+2*M10+(C10-D10)/PARÂMETROS!$C$14)/(H10+2*I10+3*J10-(C10-D10)/PARÂMETROS!$C$11)) -> 1.35E-01 | Y10: =IF(PARÂMETROS!$J$6<PARÂMETROS!$F$6,(H10+2*I10+3*J10-(C10-D10)/PARÂMETROS!$C$11)/(N10+2*O10+3*P10+(C10-D10)/PARÂMETROS!$C$14),(N10+2*O10+3*P10+(C10-D10)/PARÂMETROS!$C$14)/(H10+2*I10+3*J10-(C10-D10)/PARÂMETROS!$C$11)) -> 9.05E-02 | Z10: =Q10*PARÂMETROS!$C$11*PARÂMETROS!$D$11/PARÂMETROS!$C$14 -> 5.33 | AA10: =R10*PARÂMETROS!$C$11*PARÂMETROS!$D$11/PARÂMETROS!$C$14 -> 2.70 | AB10: =S10*PARÂMETROS!$C$11*PARÂMETROS!$D$11/PARÂMETROS!$C$14 -> 1.81 | AC10: =T10*PARÂMETROS!$C$11*PARÂMETROS!$D$11/PARÂMETROS!$C$14 -> 5.33 | AD10: =U10*PARÂMETROS!$C$11*PARÂMETROS!$D$11/PARÂMETROS!$C$14 -> 2.70 | AE10: =V10*PARÂMETROS!$C$11*PARÂMETROS!$D$11/PARÂMETROS!$C$14 -> 1.81 | AF10: =W10*PARÂMETROS!$C$11*PARÂMETROS!$D$11/PARÂMETROS!$C$14 -> 5.33 | AG10: =X10*PARÂMETROS!$C$11*PARÂMETROS!$D$11/PARÂMETROS!$C$14 -> 2.70 | AH10: =Y10*PARÂMETROS!$C$11*PARÂMETROS!$D$11/PARÂMETROS!$C$14 -> 1.81 | AI10: =AND(B10+PARÂMETROS!$C$8>=PARÂMETROS!$C$5,B10+PARÂMETROS!$C$8<=PARÂMETROS!$D$5) -> TRUE | AJ10: 1 | AK10: =VLOOKUP('BANCO DE DADOS COMPLETA'!$N$8,'BANCO DE DADOS COMPLETA'!$A$7:$L$249,3)*-1 -> 3 | AL10: 7 | AM10: =VLOOKUP('BANCO DE DADOS COMPLETA'!$N$10,'BANCO DE DADOS COMPLETA'!$A$7:$L$249,3)*-1 -> 1 | AN10: 11 | AO10: 77 | AP10: 5.33 | AQ10: =IF(AP10>=0,IF(AJ10=1,AP10,"LIMITE"),"LIMITE") -> 5.33 | AR10: 1.86 | AS10: =IF(AQ9="LIMITE","LIMITE",(AR10-AR9)/(AQ10-AQ9)) -> 0.07 | AT10: =IF(AS9="LIMITE","LIMITE",(AS10-AS9)/(AQ9-AQ8)) -> -0.00 | AU10: =IF(AT9>0,IF(AT11<0,AQ10,"NADA"),"NADA") -> 5.33 | AV10: =IF(AU9="NADA","NADA",IF(AU10="NADA","NADA",AVERAGE(AU10,AU9))) -> 3.997875783 | AW10: =IF(AV10="NADA",0,1) -> 1
B11: =B10+PARÂMETROS!$C$8 -> 2.06 | C11: =10^(-B11) -> 8.62E-03 | D11: =PARÂMETROS!$Q$4/C11 -> 1.16E-12 | E11: =PARÂMETROS!$F$6/($C11+PARÂMETROS!$F$6) -> 4.52E-01 | F11: =$C11*PARÂMETROS!$F$6/($C11^2+$C11*PARÂMETROS!$F$6+PARÂMETROS!$F$6*PARÂMETROS!$G$6) -> 4.52E-01 | G11: =PARÂMETROS!$F$6*PARÂMETROS!$G$6/($C11^2+$C11*PARÂMETROS!$F$6+PARÂMETROS!$F$6*PARÂMETROS!$G$6) -> 3.31E-06 | H11: =(PARÂMETROS!$F$6*$C11^2)/($C11^3+PARÂMETROS!$F$6*$C11^2+PARÂMETROS!$F$6*PARÂMETROS!$G$6*$C11+PARÂMETROS!$F$6*PARÂMETROS!$G$6*PARÂMETROS!$H$6) -> 4.52E-01 | I11: =(PARÂMETROS!$F$6*PARÂMETROS!$G$6*$C11)/($C11^3+PARÂMETROS!$F$6*$C11^2+PARÂMETROS!$F$6*PARÂMETROS!$G$6*$C11+PARÂMETROS!$F$6*PARÂMETROS!$G$6*PARÂMETROS!$H$6) -> 3.31E-06 | J11: =(PARÂMETROS!$F$6*PARÂMETROS!$G$6*PARÂMETROS!$H$6)/($C11^3+PARÂMETROS!$F$6*$C11^2+PARÂMETROS!$F$6*PARÂMETROS!$G$6*$C11+PARÂMETROS!$F$6*PARÂMETROS!$G$6*PARÂMETROS!$H$6) -> 1.72E-16 | K11: =$C11/($C11+PARÂMETROS!$J$6) -> 1.00E+00 | L11: =$C11*PARÂMETROS!$J$6/($C11^2+$C11*PARÂMETROS!$J$6+PARÂMETROS!$J$6*PARÂMETROS!$K$6) -> 1.16E-11 | M11: =$C11^2/($C11^2+$C11*PARÂMETROS!$J$6+PARÂMETROS!$J$6*PARÂMETROS!$K$6) -> 1.00E+00 | N11: =(PARÂMETROS!$K$6*PARÂMETROS!$J$6*$C11)/($C11^3+PARÂMETROS!$J$6*$C11^2+PARÂMETROS!$J$6*PARÂMETROS!$K$6*$C11+PARÂMETROS!$J$6*PARÂMETROS!$K$6*PARÂMETROS!$L$6) -> 0.00E+00 | O11: =(PARÂMETROS!$J$6*$C11^2)/($C11^3+PARÂMETROS!$J$6*$C11^2+PARÂMETROS!$J$6*PARÂMETROS!$K$6*$C11+PARÂMETROS!$J$6*PARÂMETROS!$K$6*PARÂMETROS!$L$6) -> 1.16E-11 | P11: =($C11^3)/($C11^3+PARÂMETROS!$J$6*$C11^2+PARÂMETROS!$J$6*PARÂMETROS!$K$6*$C11+PARÂMETROS!$J$6*PARÂMETROS!$K$6*PARÂMETROS!$L$6) -> 1.00E+00 | Q11: =IF(PARÂMETROS!$J$6<PARÂMETROS!$F$6,(E11-(C11-D11)/PARÂMETROS!$C$11)/(K11+(C11-D11)/PARÂMETROS!$C$14),(K11+(C11-D11)/PARÂMETROS!$C$14)/(E11-(C11-D11)/PARÂMETROS!$C$11)) -> 4.02E-01 | R11: =IF(PARÂMETROS!$J$6<PARÂMETROS!$F$6,(E11-(C11-D11)/PARÂMETROS!$C$11)/(L11+2*M11+(C11-D11)/PARÂMETROS!$C$14),(L11+2*M11+(C11-D11)/PARÂMETROS!$C$14)/(E11-(C11-D11)/PARÂMETROS!$C$11)) -> 2.03E-01 | S11: =IF(PARÂMETROS!$J$6<PARÂMETROS!$F$6, (E11-(C11-D11)/PARÂMETROS!$C$11)/(N11+2*O11+3*P11+(C11-D11)/PARÂMETROS!$C$14),(N11+2*O11+3*P11+(C11-D11)/PARÂMETROS!$C$14)/ (E11-(C11-D11)/PARÂMETROS!$C$11)) -> 1.36E-01 | T11: =IF(PARÂMETROS!$J$6<PARÂMETROS!$F$6,(F11+2*G11-(C11-D11)/PARÂMETROS!$C$11)/(K11+(C11-D11)/PARÂMETROS!$C$14),(K11+(C11-D11)/PARÂMETROS!$C$14)/(F11+2*G11-(C11-D11)/PARÂMETROS!$C$11)) -> 4.02E-01 | U11: =IF(PARÂMETROS!$J$6<PARÂMETROS!$F$6,(F11+2*G11-(C11-D11)/PARÂMETROS!$C$11)/(L11+2*M11+(C11-D11)/PARÂMETROS!$C$14),(L11+2*M11+(C11-D11)/PARÂMETROS!$C$14)/(F11+2*G11-(C11-D11)/PARÂMETROS!$C$11)) -> 2.03E-01 | V11: =IF(PARÂMETROS!$J$6<PARÂMETROS!$F$6,(F11+2*G11-(C11-D11)/PARÂMETROS!$C$11)/(N11+2*O11+3*P11+(C11-D11)/PARÂMETROS!$C$14),(N11+2*O11+3*P11+(C11-D11)/PARÂMETROS!$C$14)/(F11+2*G11-(C11-D11)/PARÂMETROS!$C$11)) -> 1.36E-01 | W11: =IF(PARÂMETROS!$J$6<PARÂMETROS!$F$6,(H11+2*I11+3*J11-(C11-D11)/PARÂMETROS!$C$11)/(K11+(C11-D11)/PARÂMETROS!$C$14),(K11+(C11-D11)/PARÂMETROS!$C$14)/(H11+2*I11+3*J11-(C11-D11)/PARÂMETROS!$C$11)) -> 4.02E-01 | X11: =IF(PARÂMETROS!$J$6<PARÂMETROS!$F$6,(H11+2*I11+3*J11-(C11-D11)/PARÂMETROS!$C$11)/(L11+2*M11+(C11-D11)/PARÂMETROS!$C$14),(L11+2*M11+(C11-D11)/PARÂMETROS!$C$14)/(H11+2*I11+3*J11-(C11-D11)/PARÂMETROS!$C$11)) -> 2.03E-01 | Y11: =IF(PARÂMETROS!$J$6<PARÂMETROS!$F$6,(H11+2*I11+3*J11-(C11-D11)/PARÂMETROS!$C$11)/(N11+2*O11+3*P11+(C11-D11)/PARÂMETROS!$C$14),(N11+2*O11+3*P11+(C11-D11)/PARÂMETROS!$C$14)/(H11+2*I11+3*J11-(C11-D11)/PARÂMETROS!$C$11)) -> 1.36E-01 | Z11: =Q11*PARÂMETROS!$C$11*PARÂMETROS!$D$11/PARÂMETROS!$C$14 -> 8.04 | AA11: =R11*PARÂMETROS!$C$11*PARÂMETROS!$D$11/PARÂMETROS!$C$14 -> 4.05 | AB11: =S11*PARÂMETROS!$C$11*PARÂMETROS!$D$11/PARÂMETROS!$C$14 -> 2.71 | AC11: =T11*PARÂMETROS!$C$11*PARÂMETROS!$D$11/PARÂMETROS!$C$14 -> 8.04 | AD11: =U11*PARÂMETROS!$C$11*PARÂMETROS!$D$11/PARÂMETROS!$C$14 -> 4.05 | AE11: =V11*PARÂMETROS!$C$11*PARÂMETROS!$D$11/PARÂMETROS!$C$14 -> 2.71 | AF11: =W11*PARÂMETROS!$C$11*PARÂMETROS!$D$11/PARÂMETROS!$C$14 -> 8.04 | AG11: =X11*PARÂMETROS!$C$11*PARÂMETROS!$D$11/PARÂMETROS!$C$14 -> 4.05 | AH11: =Y11*PARÂMETROS!$C$11*PARÂMETROS!$D$11/PARÂMETROS!$C$14 -> 2.71 | AI11: =AND(B11+PARÂMETROS!$C$8>=PARÂMETROS!$C$5,B11+PARÂMETROS!$C$8<=PARÂMETROS!$D$5) -> TRUE | AJ11: =N(AI11) -> 1 | AK11: =VLOOKUP('BANCO DE DADOS COMPLETA'!$N$8,'BANCO DE DADOS COMPLETA'!$A$7:$L$249,3)*-1 -> 3 | AL11: =IF(AK11=1,3,IF(AK11=2,5,IF(AK11=3,7,3))) -> 7 | AM11: =VLOOKUP('BANCO DE DADOS COMPLETA'!$N$10,'BANCO DE DADOS COMPLETA'!$A$7:$L$249,3)*-1 -> 1 | AN11: =IF(AM11=1,11,IF(AM11=2,13,IF(AM11=3,17,11))) -> 11 | AO11: =AN11*AL11 -> 77 | AP11: =IF(AO11=33,Z11,IF(AO11=39,AA11,IF(AO11=51,AB11,IF(AO11=55,AC11,IF(AO11=65,AD11,IF(AO11=85,AE11,IF(AO11=77,AF11,IF(AO11=91,AG11,IF(AO11=119,AH11))))))))) -> 8.04 | AQ11: =IF(AP11>=0,IF(AJ11=1,AP11,"LIMITE"),"LIMITE") -> 8.04 | AR11: =IF(AJ11=1,B11,"LIMITE") -> 2.06 | AS11: =IF(AQ10="LIMITE","LIMITE",(AR11-AR10)/(AQ11-AQ10)) -> 0.07 | AT11: =IF(AS10="LIMITE","LIMITE",(AS11-AS10)/(AQ10-AQ9)) -> -0.00 | AU11: =IF(AT10>0,IF(AT12<0,AQ11,"NADA"),"NADA") -> NADA | AV11: NADA | AW11: 0
B12: =B11+PARÂMETROS!$C$8 -> 2.26 | C12: =10^(-B12) -> 5.44E-03 | D12: =PARÂMETROS!$Q$4/C12 -> 1.84E-12 | E12: =PARÂMETROS!$F$6/($C12+PARÂMETROS!$F$6) -> 5.67E-01 | F12: =$C12*PARÂMETROS!$F$6/($C12^2+$C12*PARÂMETROS!$F$6+PARÂMETROS!$F$6*PARÂMETROS!$G$6) -> 5.67E-01 | G12: =PARÂMETROS!$F$6*PARÂMETROS!$G$6/($C12^2+$C12*PARÂMETROS!$F$6+PARÂMETROS!$F$6*PARÂMETROS!$G$6) -> 6.59E-06 | H12: =(PARÂMETROS!$F$6*$C12^2)/($C12^3+PARÂMETROS!$F$6*$C12^2+PARÂMETROS!$F$6*PARÂMETROS!$G$6*$C12+PARÂMETROS!$F$6*PARÂMETROS!$G$6*PARÂMETROS!$H$6) -> 5.67E-01 | I12: =(PARÂMETROS!$F$6*PARÂMETROS!$G$6*$C12)/($C12^3+PARÂMETROS!$F$6*$C12^2+PARÂMETROS!$F$6*PARÂMETROS!$G$6*$C12+PARÂMETROS!$F$6*PARÂMETROS!$G$6*PARÂMETROS!$H$6) -> 6.59E-06 | J12: =(PARÂMETROS!$F$6*PARÂMETROS!$G$6*PARÂMETROS!$H$6)/($C12^3+PARÂMETROS!$F$6*$C12^2+PARÂMETROS!$F$6*PARÂMETROS!$G$6*$C12+PARÂMETROS!$F$6*PARÂMETROS!$G$6*PARÂMETROS!$H$6) -> 5.41E-16 | K12: =$C12/($C12+PARÂMETROS!$J$6) -> 1.00E+00 | L12: =$C12*PARÂMETROS!$J$6/($C12^2+$C12*PARÂMETROS!$J$6+PARÂMETROS!$J$6*PARÂMETROS!$K$6) -> 1.84E-11 | M12: =$C12^2/($C12^2+$C12*PARÂMETROS!$J$6+PARÂMETROS!$J$6*PARÂMETROS!$K$6) -> 1.00E+00 | N12: =(PARÂMETROS!$K$6*PARÂMETROS!$J$6*$C12)/($C12^3+PARÂMETROS!$J$6*$C12^2+PARÂMETROS!$J$6*PARÂMETROS!$K$6*$C12+PARÂMETROS!$J$6*PARÂMETROS!$K$6*PARÂMETROS!$L$6) -> 0.00E+00 | O12: =(PARÂMETROS!$J$6*$C12^2)/($C12^3+PARÂMETROS!$J$6*$C12^2+PARÂMETROS!$J$6*PARÂMETROS!$K$6*$C12+PARÂMETROS!$J$6*PARÂMETROS!$K$6*PARÂMETROS!$L$6) -> 1.84E-11 | P12: =($C12^3)/($C12^3+PARÂMETROS!$J$6*$C12^2+PARÂMETROS!$J$6*PARÂMETROS!$K$6*$C12+PARÂMETROS!$J$6*PARÂMETROS!$K$6*PARÂMETROS!$L$6) -> 1.00E+00 | Q12: =IF(PARÂMETROS!$J$6<PARÂMETROS!$F$6,(E12-(C12-D12)/PARÂMETROS!$C$11)/(K12+(C12-D12)/PARÂMETROS!$C$14),(K12+(C12-D12)/PARÂMETROS!$C$14)/(E12-(C12-D12)/PARÂMETROS!$C$11)) -> 5.34E-01 | R12: =IF(PARÂMETROS!$J$6<PARÂMETROS!$F$6,(E12-(C12-D12)/PARÂMETROS!$C$11)/(L12+2*M12+(C12-D12)/PARÂMETROS!$C$14),(L12+2*M12+(C12-D12)/PARÂMETROS!$C$14)/(E12-(C12-D12)/PARÂMETROS!$C$11)) -> 2.68E-01 | S12: =IF(PARÂMETROS!$J$6<PARÂMETROS!$F$6, (E12-(C12-D12)/PARÂMETROS!$C$11)/(N12+2*O12+3*P12+(C12-D12)/PARÂMETROS!$C$14),(N12+2*O12+3*P12+(C12-D12)/PARÂMETROS!$C$14)/ (E12-(C12-D12)/PARÂMETROS!$C$11)) -> 1.79E-01 | T12: =IF(PARÂMETROS!$J$6<PARÂMETROS!$F$6,(F12+2*G12-(C12-D12)/PARÂMETROS!$C$11)/(K12+(C12-D12)/PARÂMETROS!$C$14),(K12+(C12-D12)/PARÂMETROS!$C$14)/(F12+2*G12-(C12-D12)/PARÂMETROS!$C$11)) -> 5.34E-01 | U12: =IF(PARÂMETROS!$J$6<PARÂMETROS!$F$6,(F12+2*G12-(C12-D12)/PARÂMETROS!$C$11)/(L12+2*M12+(C12-D12)/PARÂMETROS!$C$14),(L12+2*M12+(C12-D12)/PARÂMETROS!$C$14)/(F12+2*G12-(C12-D12)/PARÂMETROS!$C$11)) -> 2.68E-01 | V12: =IF(PARÂMETROS!$J$6<PARÂMETROS!$F$6,(F12+2*G12-(C12-D12)/PARÂMETROS!$C$11)/(N12+2*O12+3*P12+(C12-D12)/PARÂMETROS!$C$14),(N12+2*O12+3*P12+(C12-D12)/PARÂMETROS!$C$14)/(F12+2*G12-(C12-D12)/PARÂMETROS!$C$11)) -> 1.79E-01 | W12: =IF(PARÂMETROS!$J$6<PARÂMETROS!$F$6,(H12+2*I12+3*J12-(C12-D12)/PARÂMETROS!$C$11)/(K12+(C12-D12)/PARÂMETROS!$C$14),(K12+(C12-D12)/PARÂMETROS!$C$14)/(H12+2*I12+3*J12-(C12-D12)/PARÂMETROS!$C$11)) -> 5.34E-01 | X12: =IF(PARÂMETROS!$J$6<PARÂMETROS!$F$6,(H12+2*I12+3*J12-(C12-D12)/PARÂMETROS!$C$11)/(L12+2*M12+(C12-D12)/PARÂMETROS!$C$14),(L12+2*M12+(C12-D12)/PARÂMETROS!$C$14)/(H12+2*I12+3*J12-(C12-D12)/PARÂMETROS!$C$11)) -> 2.68E-01 | Y12: =IF(PARÂMETROS!$J$6<PARÂMETROS!$F$6,(H12+2*I12+3*J12-(C12-D12)/PARÂMETROS!$C$11)/(N12+2*O12+3*P12+(C12-D12)/PARÂMETROS!$C$14),(N12+2*O12+3*P12+(C12-D12)/PARÂMETROS!$C$14)/(H12+2*I12+3*J12-(C12-D12)/PARÂMETROS!$C$11)) -> 1.79E-01 | Z12: =Q12*PARÂMETROS!$C$11*PARÂMETROS!$D$11/PARÂMETROS!$C$14 -> 10.67 | AA12: =R12*PARÂMETROS!$C$11*PARÂMETROS!$D$11/PARÂMETROS!$C$14 -> 5.36 | AB12: =S12*PARÂMETROS!$C$11*PARÂMETROS!$D$11/PARÂMETROS!$C$14 -> 3.58 | AC12: =T12*PARÂMETROS!$C$11*PARÂMETROS!$D$11/PARÂMETROS!$C$14 -> 10.67 | AD12: =U12*PARÂMETROS!$C$11*PARÂMETROS!$D$11/PARÂMETROS!$C$14 -> 5.36 | AE12: =V12*PARÂMETROS!$C$11*PARÂMETROS!$D$11/PARÂMETROS!$C$14 -> 3.58 | AF12: =W12*PARÂMETROS!$C$11*PARÂMETROS!$D$11/PARÂMETROS!$C$14 -> 10.67 | AG12: =X12*PARÂMETROS!$C$11*PARÂMETROS!$D$11/PARÂMETROS!$C$14 -> 5.36 | AH12: =Y12*PARÂMETROS!$C$11*PARÂMETROS!$D$11/PARÂMETROS!$C$14 -> 3.58 | AI12: =AND(B12+PARÂMETROS!$C$8>=PARÂMETROS!$C$5,B12+PARÂMETROS!$C$8<=PARÂMETROS!$D$5) -> TRUE | AJ12: =N(AI12) -> 1 | AK12: =VLOOKUP('BANCO DE DADOS COMPLETA'!$N$8,'BANCO DE DADOS COMPLETA'!$A$7:$L$249,3)*-1 -> 3 | AL12: =IF(AK12=1,3,IF(AK12=2,5,IF(AK12=3,7,3))) -> 7 | AM12: =VLOOKUP('BANCO DE DADOS COMPLETA'!$N$10,'BANCO DE DADOS COMPLETA'!$A$7:$L$249,3)*-1 -> 1 | AN12: =IF(AM12=1,11,IF(AM12=2,13,IF(AM12=3,17,11))) -> 11 | AO12: =AN12*AL12 -> 77 | AP12: =IF(AO12=33,Z12,IF(AO12=39,AA12,IF(AO12=51,AB12,IF(AO12=55,AC12,IF(AO12=65,AD12,IF(AO12=85,AE12,IF(AO12=77,AF12,IF(AO12=91,AG12,IF(AO12=119,AH12))))))))) -> 10.67 | AQ12: =IF(AP12>=0,IF(AJ12=1,AP12,"LIMITE"),"LIMITE") -> 10.67 | AR12: =IF(AJ12=1,B12,"LIMITE") -> 2.26 | AS12: =IF(AQ11="LIMITE","LIMITE",(AR12-AR11)/(AQ12-AQ11)) -> 0.08 | AT12: =IF(AS11="LIMITE","LIMITE",(AS12-AS11)/(AQ11-AQ10)) -> 0.00 | AU12: NADA | AV12: NADA | AW12: 0
B13: =B12+PARÂMETROS!$C$8 -> 2.46 | C13: =10^(-B13) -> 3.43E-03 | D13: =PARÂMETROS!$Q$4/C13 -> 2.91E-12 | E13: =PARÂMETROS!$F$6/($C13+PARÂMETROS!$F$6) -> 6.74E-01 | F13: =$C13*PARÂMETROS!$F$6/($C13^2+$C13*PARÂMETROS!$F$6+PARÂMETROS!$F$6*PARÂMETROS!$G$6) -> 6.74E-01 | G13: =PARÂMETROS!$F$6*PARÂMETROS!$G$6/($C13^2+$C13*PARÂMETROS!$F$6+PARÂMETROS!$F$6*PARÂMETROS!$G$6) -> 1.24E-05 | H13: =(PARÂMETROS!$F$6*$C13^2)/($C13^3+PARÂMETROS!$F$6*$C13^2+PARÂMETROS!$F$6*PARÂMETROS!$G$6*$C13+PARÂMETROS!$F$6*PARÂMETROS!$G$6*PARÂMETROS!$H$6) -> 6.74E-01 | I13: =(PARÂMETROS!$F$6*PARÂMETROS!$G$6*$C13)/($C13^3+PARÂMETROS!$F$6*$C13^2+PARÂMETROS!$F$6*PARÂMETROS!$G$6*$C13+PARÂMETROS!$F$6*PARÂMETROS!$G$6*PARÂMETROS!$H$6) -> 1.24E-05 | J13: =(PARÂMETROS!$F$6*PARÂMETROS!$G$6*PARÂMETROS!$H$6)/($C13^3+PARÂMETROS!$F$6*$C13^2+PARÂMETROS!$F$6*PARÂMETROS!$G$6*$C13+PARÂMETROS!$F$6*PARÂMETROS!$G$6*PARÂMETROS!$H$6) -> 1.62E-15 | K13: =$C13/($C13+PARÂMETROS!$J$6) -> 1.00E+00 | L13: =$C13*PARÂMETROS!$J$6/($C13^2+$C13*PARÂMETROS!$J$6+PARÂMETROS!$J$6*PARÂMETROS!$K$6) -> 2.91E-11 | M13: =$C13^2/($C13^2+$C13*PARÂMETROS!$J$6+PARÂMETROS!$J$6*PARÂMETROS!$K$6) -> 1.00E+00 | N13: =(PARÂMETROS!$K$6*PARÂMETROS!$J$6*$C13)/($C13^3+PARÂMETROS!$J$6*$C13^2+PARÂMETROS!$J$6*PARÂMETROS!$K$6*$C13+PARÂMETROS!$J$6*PARÂMETROS!$K$6*PARÂMETROS!$L$6) -> 0.00E+00 | O13: =(PARÂMETROS!$J$6*$C13^2)/($C13^3+PARÂMETROS!$J$6*$C13^2+PARÂMETROS!$J$6*PARÂMETROS!$K$6*$C13+PARÂMETROS!$J$6*PARÂMETROS!$K$6*PARÂMETROS!$L$6) -> 2.91E-11 | P13: =($C13^3)/($C13^3+PARÂMETROS!$J$6*$C13^2+PARÂMETROS!$J$6*PARÂMETROS!$K$6*$C13+PARÂMETROS!$J$6*PARÂMETROS!$K$6*PARÂMETROS!$L$6) -> 1.00E+00 | Q13: =IF(PARÂMETROS!$J$6<PARÂMETROS!$F$6,(E13-(C13-D13)/PARÂMETROS!$C$11)/(K13+(C13-D13)/PARÂMETROS!$C$14),(K13+(C13-D13)/PARÂMETROS!$C$14)/(E13-(C13-D13)/PARÂMETROS!$C$11)) -> 6.53E-01 | R13: =IF(PARÂMETROS!$J$6<PARÂMETROS!$F$6,(E13-(C13-D13)/PARÂMETROS!$C$11)/(L13+2*M13+(C13-D13)/PARÂMETROS!$C$14),(L13+2*M13+(C13-D13)/PARÂMETROS!$C$14)/(E13-(C13-D13)/PARÂMETROS!$C$11)) -> 3.28E-01 | S13: =IF(PARÂMETROS!$J$6<PARÂMETROS!$F$6, (E13-(C13-D13)/PARÂMETROS!$C$11)/(N13+2*O13+3*P13+(C13-D13)/PARÂMETROS!$C$14),(N13+2*O13+3*P13+(C13-D13)/PARÂMETROS!$C$14)/ (E13-(C13-D13)/PARÂMETROS!$C$11)) -> 2.19E-01 | T13: =IF(PARÂMETROS!$J$6<PARÂMETROS!$F$6,(F13+2*G13-(C13-D13)/PARÂMETROS!$C$11)/(K13+(C13-D13)/PARÂMETROS!$C$14),(K13+(C13-D13)/PARÂMETROS!$C$14)/(F13+2*G13-(C13-D13)/PARÂMETROS!$C$11)) -> 6.53E-01 | U13: =IF(PARÂMETROS!$J$6<PARÂMETROS!$F$6,(F13+2*G13-(C13-D13)/PARÂMETROS!$C$11)/(L13+2*M13+(C13-D13)/PARÂMETROS!$C$14),(L13+2*M13+(C13-D13)/PARÂMETROS!$C$14)/(F13+2*G13-(C13-D13)/PARÂMETROS!$C$11)) -> 3.28E-01 | V13: =IF(PARÂMETROS!$J$6<PARÂMETROS!$F$6,(F13+2*G13-(C13-D13)/PARÂMETROS!$C$11)/(N13+2*O13+3*P13+(C13-D13)/PARÂMETROS!$C$14),(N13+2*O13+3*P13+(C13-D13)/PARÂMETROS!$C$14)/(F13+2*G13-(C13-D13)/PARÂMETROS!$C$11)) -> 2.19E-01 | W13: =IF(PARÂMETROS!$J$6<PARÂMETROS!$F$6,(H13+2*I13+3*J13-(C13-D13)/PARÂMETROS!$C$11)/(K13+(C13-D13)/PARÂMETROS!$C$14),(K13+(C13-D13)/PARÂMETROS!$C$14)/(H13+2*I13+3*J13-(C13-D13)/PARÂMETROS!$C$11)) -> 6.53E-01 | X13: =IF(PARÂMETROS!$J$6<PARÂMETROS!$F$6,(H13+2*I13+3*J13-(C13-D13)/PARÂMETROS!$C$11)/(L13+2*M13+(C13-D13)/PARÂMETROS!$C$14),(L13+2*M13+(C13-D13)/PARÂMETROS!$C$14)/(H13+2*I13+3*J13-(C13-D13)/PARÂMETROS!$C$11)) -> 3.28E-01 | Y13: =IF(PARÂMETROS!$J$6<PARÂMETROS!$F$6,(H13+2*I13+3*J13-(C13-D13)/PARÂMETROS!$C$11)/(N13+2*O13+3*P13+(C13-D13)/PARÂMETROS!$C$14),(N13+2*O13+3*P13+(C13-D13)/PARÂMETROS!$C$14)/(H13+2*I13+3*J13-(C13-D13)/PARÂMETROS!$C$11)) -> 2.19E-01 | Z13: =Q13*PARÂMETROS!$C$11*PARÂMETROS!$D$11/PARÂMETROS!$C$14 -> 13.06 | AA13: =R13*PARÂMETROS!$C$11*PARÂMETROS!$D$11/PARÂMETROS!$C$14 -> 6.55 | AB13: =S13*PARÂMETROS!$C$11*PARÂMETROS!$D$11/PARÂMETROS!$C$14 -> 4.37 | AC13: =T13*PARÂMETROS!$C$11*PARÂMETROS!$D$11/PARÂMETROS!$C$14 -> 13.06 | AD13: =U13*PARÂMETROS!$C$11*PARÂMETROS!$D$11/PARÂMETROS!$C$14 -> 6.55 | AE13: =V13*PARÂMETROS!$C$11*PARÂMETROS!$D$11/PARÂMETROS!$C$14 -> 4.37 | AF13: =W13*PARÂMETROS!$C$11*PARÂMETROS!$D$11/PARÂMETROS!$C$14 -> 13.06 | AG13: =X13*PARÂMETROS!$C$11*PARÂMETROS!$D$11/PARÂMETROS!$C$14 -> 6.55 | AH13: =Y13*PARÂMETROS!$C$11*PARÂMETROS!$D$11/PARÂMETROS!$C$14 -> 4.37 | AI13: =AND(B13+PARÂMETROS!$C$8>=PARÂMETROS!$C$5,B13+PARÂMETROS!$C$8<=PARÂMETROS!$D$5) -> TRUE | AJ13: =N(AI13) -> 1 | AK13: =VLOOKUP('BANCO DE DADOS COMPLETA'!$N$8,'BANCO DE DADOS COMPLETA'!$A$7:$L$249,3)*-1 -> 3 | AL13: =IF(AK13=1,3,IF(AK13=2,5,IF(AK13=3,7,3))) -> 7 | AM13: =VLOOKUP('BANCO DE DADOS COMPLETA'!$N$10,'BANCO DE DADOS COMPLETA'!$A$7:$L$249,3)*-1 -> 1 | AN13: =IF(AM13=1,11,IF(AM13=2,13,IF(AM13=3,17,11))) -> 11 | AO13: =AN13*AL13 -> 77 | AP13: =IF(AO13=33,Z13,IF(AO13=39,AA13,IF(AO13=51,AB13,IF(AO13=55,AC13,IF(AO13=65,AD13,IF(AO13=85,AE13,IF(AO13=77,AF13,IF(AO13=91,AG13,IF(AO13=119,AH13))))))))) -> 13.06 | AQ13: =IF(AP13>=0,IF(AJ13=1,AP13,"LIMITE"),"LIMITE") -> 13.06 | AR13: =IF(AJ13=1,B13,"LIMITE") -> 2.46 | AS13: =IF(AQ12="LIMITE","LIMITE",(AR13-AR12)/(AQ13-AQ12)) -> 0.08 | AT13: =IF(AS12="LIMITE","LIMITE",(AS13-AS12)/(AQ12-AQ11)) -> 0.00 | AU13: NADA | AV13: NADA | AW13: 0
B14: =B13+PARÂMETROS!$C$8 -> 2.66 | C14: 2.17E-03 | D14: =PARÂMETROS!$Q$4/C14 -> 4.62E-12 | E14: =PARÂMETROS!$F$6/($C14+PARÂMETROS!$F$6) -> 7.67E-01 | F14: =$C14*PARÂMETROS!$F$6/($C14^2+$C14*PARÂMETROS!$F$6+PARÂMETROS!$F$6*PARÂMETROS!$G$6) -> 7.67E-01 | G14: =PARÂMETROS!$F$6*PARÂMETROS!$G$6/($C14^2+$C14*PARÂMETROS!$F$6+PARÂMETROS!$F$6*PARÂMETROS!$G$6) -> 2.24E-05 | H14: =(PARÂMETROS!$F$6*$C14^2)/($C14^3+PARÂMETROS!$F$6*$C14^2+PARÂMETROS!$F$6*PARÂMETROS!$G$6*$C14+PARÂMETROS!$F$6*PARÂMETROS!$G$6*PARÂMETROS!$H$6) -> 7.67E-01 | I14: =(PARÂMETROS!$F$6*PARÂMETROS!$G$6*$C14)/($C14^3+PARÂMETROS!$F$6*$C14^2+PARÂMETROS!$F$6*PARÂMETROS!$G$6*$C14+PARÂMETROS!$F$6*PARÂMETROS!$G$6*PARÂMETROS!$H$6) -> 2.24E-05 | J14: =(PARÂMETROS!$F$6*PARÂMETROS!$G$6*PARÂMETROS!$H$6)/($C14^3+PARÂMETROS!$F$6*$C14^2+PARÂMETROS!$F$6*PARÂMETROS!$G$6*$C14+PARÂMETROS!$F$6*PARÂMETROS!$G$6*PARÂMETROS!$H$6) -> 4.62E-15 | K14: =$C14/($C14+PARÂMETROS!$J$6) -> 1.00E+00 | L14: =$C14*PARÂMETROS!$J$6/($C14^2+$C14*PARÂMETROS!$J$6+PARÂMETROS!$J$6*PARÂMETROS!$K$6) -> 4.62E-11 | M14: =$C14^2/($C14^2+$C14*PARÂMETROS!$J$6+PARÂMETROS!$J$6*PARÂMETROS!$K$6) -> 1.00E+00 | N14: =(PARÂMETROS!$K$6*PARÂMETROS!$J$6*$C14)/($C14^3+PARÂMETROS!$J$6*$C14^2+PARÂMETROS!$J$6*PARÂMETROS!$K$6*$C14+PARÂMETROS!$J$6*PARÂMETROS!$K$6*PARÂMETROS!$L$6) -> 0.00E+00 | O14: =(PARÂMETROS!$J$6*$C14^2)/($C14^3+PARÂMETROS!$J$6*$C14^2+PARÂMETROS!$J$6*PARÂMETROS!$K$6*$C14+PARÂMETROS!$J$6*PARÂMETROS!$K$6*PARÂMETROS!$L$6) -> 4.62E-11 | P14: =($C14^3)/($C14^3+PARÂMETROS!$J$6*$C14^2+PARÂMETROS!$J$6*PARÂMETROS!$K$6*$C14+PARÂMETROS!$J$6*PARÂMETROS!$K$6*PARÂMETROS!$L$6) -> 1.00E+00 | Q14: =IF(PARÂMETROS!$J$6<PARÂMETROS!$F$6,(E14-(C14-D14)/PARÂMETROS!$C$11)/(K14+(C14-D14)/PARÂMETROS!$C$14),(K14+(C14-D14)/PARÂMETROS!$C$14)/(E14-(C14-D14)/PARÂMETROS!$C$11)) -> 7.52E-01 | R14: =IF(PARÂMETROS!$J$6<PARÂMETROS!$F$6,(E14-(C14-D14)/PARÂMETROS!$C$11)/(L14+2*M14+(C14-D14)/PARÂMETROS!$C$14),(L14+2*M14+(C14-D14)/PARÂMETROS!$C$14)/(E14-(C14-D14)/PARÂMETROS!$C$11)) -> 3.77E-01 | S14: =IF(PARÂMETROS!$J$6<PARÂMETROS!$F$6, (E14-(C14-D14)/PARÂMETROS!$C$11)/(N14+2*O14+3*P14+(C14-D14)/PARÂMETROS!$C$14),(N14+2*O14+3*P14+(C14-D14)/PARÂMETROS!$C$14)/ (E14-(C14-D14)/PARÂMETROS!$C$11)) -> 2.52E-01 | T14: =IF(PARÂMETROS!$J$6<PARÂMETROS!$F$6,(F14+2*G14-(C14-D14)/PARÂMETROS!$C$11)/(K14+(C14-D14)/PARÂMETROS!$C$14),(K14+(C14-D14)/PARÂMETROS!$C$14)/(F14+2*G14-(C14-D14)/PARÂMETROS!$C$11)) -> 7.52E-01 | U14: =IF(PARÂMETROS!$J$6<PARÂMETROS!$F$6,(F14+2*G14-(C14-D14)/PARÂMETROS!$C$11)/(L14+2*M14+(C14-D14)/PARÂMETROS!$C$14),(L14+2*M14+(C14-D14)/PARÂMETROS!$C$14)/(F14+2*G14-(C14-D14)/PARÂMETROS!$C$11)) -> 3.77E-01 | V14: =IF(PARÂMETROS!$J$6<PARÂMETROS!$F$6,(F14+2*G14-(C14-D14)/PARÂMETROS!$C$11)/(N14+2*O14+3*P14+(C14-D14)/PARÂMETROS!$C$14),(N14+2*O14+3*P14+(C14-D14)/PARÂMETROS!$C$14)/(F14+2*G14-(C14-D14)/PARÂMETROS!$C$11)) -> 2.52E-01 | W14: =IF(PARÂMETROS!$J$6<PARÂMETROS!$F$6,(H14+2*I14+3*J14-(C14-D14)/PARÂMETROS!$C$11)/(K14+(C14-D14)/PARÂMETROS!$C$14),(K14+(C14-D14)/PARÂMETROS!$C$14)/(H14+2*I14+3*J14-(C14-D14)/PARÂMETROS!$C$11)) -> 7.52E-01 | X14: =IF(PARÂMETROS!$J$6<PARÂMETROS!$F$6,(H14+2*I14+3*J14-(C14-D14)/PARÂMETROS!$C$11)/(L14+2*M14+(C14-D14)/PARÂMETROS!$C$14),(L14+2*M14+(C14-D14)/PARÂMETROS!$C$14)/(H14+2*I14+3*J14-(C14-D14)/PARÂMETROS!$C$11)) -> 3.77E-01 | Y14: =IF(PARÂMETROS!$J$6<PARÂMETROS!$F$6,(H14+2*I14+3*J14-(C14-D14)/PARÂMETROS!$C$11)/(N14+2*O14+3*P14+(C14-D14)/PARÂMETROS!$C$14),(N14+2*O14+3*P14+(C14-D14)/PARÂMETROS!$C$14)/(H14+2*I14+3*J14-(C14-D14)/PARÂMETROS!$C$11)) -> 2.52E-01 | Z14: =Q14*PARÂMETROS!$C$11*PARÂMETROS!$D$11/PARÂMETROS!$C$14 -> 15.05 | AA14: =R14*PARÂMETROS!$C$11*PARÂMETROS!$D$11/PARÂMETROS!$C$14 -> 7.54 | AB14: =S14*PARÂMETROS!$C$11*PARÂMETROS!$D$11/PARÂMETROS!$C$14 -> 5.03 | AC14: =T14*PARÂMETROS!$C$11*PARÂMETROS!$D$11/PARÂMETROS!$C$14 -> 15.05 | AD14: =U14*PARÂMETROS!$C$11*PARÂMETROS!$D$11/PARÂMETROS!$C$14 -> 7.54 | AE14: =V14*PARÂMETROS!$C$11*PARÂMETROS!$D$11/PARÂMETROS!$C$14 -> 5.03 | AF14: =W14*PARÂMETROS!$C$11*PARÂMETROS!$D$11/PARÂMETROS!$C$14 -> 15.05 | AG14: =X14*PARÂMETROS!$C$11*PARÂMETROS!$D$11/PARÂMETROS!$C$14 -> 7.54 | AH14: =Y14*PARÂMETROS!$C$11*PARÂMETROS!$D$11/PARÂMETROS!$C$14 -> 5.03 | AI14: =AND(B14+PARÂMETROS!$C$8>=PARÂMETROS!$C$5,B14+PARÂMETROS!$C$8<=PARÂMETROS!$D$5) -> TRUE | AJ14: 1 | AK14: =VLOOKUP('BANCO DE DADOS COMPLETA'!$N$8,'BANCO DE DADOS COMPLETA'!$A$7:$L$249,3)*-1 -> 3 | AL14: 7 | AM14: =VLOOKUP('BANCO DE DADOS COMPLETA'!$N$10,'BANCO DE DADOS COMPLETA'!$A$7:$L$249,3)*-1 -> 1 | AN14: 11 | AO14: 77 | AP14: 15.05 | AQ14: 15.05 | AR14: 2.66 | AS14: 0.10 | AT14: 0.01 | AU14: NADA | AV14: NADA | AW14: 0
B15: =B14+PARÂMETROS!$C$8 -> 2.86 | C15: 1.37E-03 | D15: =PARÂMETROS!$Q$4/C15 -> 7.32E-12 | E15: =PARÂMETROS!$F$6/($C15+PARÂMETROS!$F$6) -> 8.39E-01 | F15: =$C15*PARÂMETROS!$F$6/($C15^2+$C15*PARÂMETROS!$F$6+PARÂMETROS!$F$6*PARÂMETROS!$G$6) -> 8.39E-01 | G15: =PARÂMETROS!$F$6*PARÂMETROS!$G$6/($C15^2+$C15*PARÂMETROS!$F$6+PARÂMETROS!$F$6*PARÂMETROS!$G$6) -> 3.88E-05 | H15: =(PARÂMETROS!$F$6*$C15^2)/($C15^3+PARÂMETROS!$F$6*$C15^2+PARÂMETROS!$F$6*PARÂMETROS!$G$6*$C15+PARÂMETROS!$F$6*PARÂMETROS!$G$6*PARÂMETROS!$H$6) -> 8.39E-01 | I15: =(PARÂMETROS!$F$6*PARÂMETROS!$G$6*$C15)/($C15^3+PARÂMETROS!$F$6*$C15^2+PARÂMETROS!$F$6*PARÂMETROS!$G$6*$C15+PARÂMETROS!$F$6*PARÂMETROS!$G$6*PARÂMETROS!$H$6) -> 3.88E-05 | J15: =(PARÂMETROS!$F$6*PARÂMETROS!$G$6*PARÂMETROS!$H$6)/($C15^3+PARÂMETROS!$F$6*$C15^2+PARÂMETROS!$F$6*PARÂMETROS!$G$6*$C15+PARÂMETROS!$F$6*PARÂMETROS!$G$6*PARÂMETROS!$H$6) -> 1.27E-14 | K15: =$C15/($C15+PARÂMETROS!$J$6) -> 1.00E+00 | L15: =$C15*PARÂMETROS!$J$6/($C15^2+$C15*PARÂMETROS!$J$6+PARÂMETROS!$J$6*PARÂMETROS!$K$6) -> 7.32E-11 | M15: =$C15^2/($C15^2+$C15*PARÂMETROS!$J$6+PARÂMETROS!$J$6*PARÂMETROS!$K$6) -> 1.00E+00 | N15: =(PARÂMETROS!$K$6*PARÂMETROS!$J$6*$C15)/($C15^3+PARÂMETROS!$J$6*$C15^2+PARÂMETROS!$J$6*PARÂMETROS!$K$6*$C15+PARÂMETROS!$J$6*PARÂMETROS!$K$6*PARÂMETROS!$L$6) -> 0.00E+00 | O15: =(PARÂMETROS!$J$6*$C15^2)/($C15^3+PARÂMETROS!$J$6*$C15^2+PARÂMETROS!$J$6*PARÂMETROS!$K$6*$C15+PARÂMETROS!$J$6*PARÂMETROS!$K$6*PARÂMETROS!$L$6) -> 7.32E-11 | P15: =($C15^3)/($C15^3+PARÂMETROS!$J$6*$C15^2+PARÂMETROS!$J$6*PARÂMETROS!$K$6*$C15+PARÂMETROS!$J$6*PARÂMETROS!$K$6*PARÂMETROS!$L$6) -> 1.00E+00 | Q15: =IF(PARÂMETROS!$J$6<PARÂMETROS!$F$6,(E15-(C15-D15)/PARÂMETROS!$C$11)/(K15+(C15-D15)/PARÂMETROS!$C$14),(K15+(C15-D15)/PARÂMETROS!$C$14)/(E15-(C15-D15)/PARÂMETROS!$C$11)) -> 8.30E-01 | R15: =IF(PARÂMETROS!$J$6<PARÂMETROS!$F$6,(E15-(C15-D15)/PARÂMETROS!$C$11)/(L15+2*M15+(C15-D15)/PARÂMETROS!$C$14),(L15+2*M15+(C15-D15)/PARÂMETROS!$C$14)/(E15-(C15-D15)/PARÂMETROS!$C$11)) -> 4.15E-01 | S15: =IF(PARÂMETROS!$J$6<PARÂMETROS!$F$6, (E15-(C15-D15)/PARÂMETROS!$C$11)/(N15+2*O15+3*P15+(C15-D15)/PARÂMETROS!$C$14),(N15+2*O15+3*P15+(C15-D15)/PARÂMETROS!$C$14)/ (E15-(C15-D15)/PARÂMETROS!$C$11)) -> 2.77E-01 | T15: =IF(PARÂMETROS!$J$6<PARÂMETROS!$F$6,(F15+2*G15-(C15-D15)/PARÂMETROS!$C$11)/(K15+(C15-D15)/PARÂMETROS!$C$14),(K15+(C15-D15)/PARÂMETROS!$C$14)/(F15+2*G15-(C15-D15)/PARÂMETROS!$C$11)) -> 8.30E-01 | U15: =IF(PARÂMETROS!$J$6<PARÂMETROS!$F$6,(F15+2*G15-(C15-D15)/PARÂMETROS!$C$11)/(L15+2*M15+(C15-D15)/PARÂMETROS!$C$14),(L15+2*M15+(C15-D15)/PARÂMETROS!$C$14)/(F15+2*G15-(C15-D15)/PARÂMETROS!$C$11)) -> 4.15E-01 | V15: =IF(PARÂMETROS!$J$6<PARÂMETROS!$F$6,(F15+2*G15-(C15-D15)/PARÂMETROS!$C$11)/(N15+2*O15+3*P15+(C15-D15)/PARÂMETROS!$C$14),(N15+2*O15+3*P15+(C15-D15)/PARÂMETROS!$C$14)/(F15+2*G15-(C15-D15)/PARÂMETROS!$C$11)) -> 2.77E-01 | W15: =IF(PARÂMETROS!$J$6<PARÂMETROS!$F$6,(H15+2*I15+3*J15-(C15-D15)/PARÂMETROS!$C$11)/(K15+(C15-D15)/PARÂMETROS!$C$14),(K15+(C15-D15)/PARÂMETROS!$C$14)/(H15+2*I15+3*J15-(C15-D15)/PARÂMETROS!$C$11)) -> 8.30E-01 | X15: =IF(PARÂMETROS!$J$6<PARÂMETROS!$F$6,(H15+2*I15+3*J15-(C15-D15)/PARÂMETROS!$C$11)/(L15+2*M15+(C15-D15)/PARÂMETROS!$C$14),(L15+2*M15+(C15-D15)/PARÂMETROS!$C$14)/(H15+2*I15+3*J15-(C15-D15)/PARÂMETROS!$C$11)) -> 4.15E-01 | Y15: =IF(PARÂMETROS!$J$6<PARÂMETROS!$F$6,(H15+2*I15+3*J15-(C15-D15)/PARÂMETROS!$C$11)/(N15+2*O15+3*P15+(C15-D15)/PARÂMETROS!$C$14),(N15+2*O15+3*P15+(C15-D15)/PARÂMETROS!$C$14)/(H15+2*I15+3*J15-(C15-D15)/PARÂMETROS!$C$11)) -> 2.77E-01 | Z15: =Q15*PARÂMETROS!$C$11*PARÂMETROS!$D$11/PARÂMETROS!$C$14 -> 16.59 | AA15: =R15*PARÂMETROS!$C$11*PARÂMETROS!$D$11/PARÂMETROS!$C$14 -> 8.31 | AB15: =S15*PARÂMETROS!$C$11*PARÂMETROS!$D$11/PARÂMETROS!$C$14 -> 5.54 | AC15: =T15*PARÂMETROS!$C$11*PARÂMETROS!$D$11/PARÂMETROS!$C$14 -> 16.60 | AD15: =U15*PARÂMETROS!$C$11*PARÂMETROS!$D$11/PARÂMETROS!$C$14 -> 8.31 | AE15: =V15*PARÂMETROS!$C$11*PARÂMETROS!$D$11/PARÂMETROS!$C$14 -> 5.54 | AF15: =W15*PARÂMETROS!$C$11*PARÂMETROS!$D$11/PARÂMETROS!$C$14 -> 16.60 | AG15: =X15*PARÂMETROS!$C$11*PARÂMETROS!$D$11/PARÂMETROS!$C$14 -> 8.31 | AH15: =Y15*PARÂMETROS!$C$11*PARÂMETROS!$D$11/PARÂMETROS!$C$14 -> 5.54 | AI15: =AND(B15+PARÂMETROS!$C$8>=PARÂMETROS!$C$5,B15+PARÂMETROS!$C$8<=PARÂMETROS!$D$5) -> TRUE | AJ15: 1 | AK15: =VLOOKUP('BANCO DE DADOS COMPLETA'!$N$8,'BANCO DE DADOS COMPLETA'!$A$7:$L$249,3)*-1 -> 3 | AL15: 7 | AM15: =VLOOKUP('BANCO DE DADOS COMPLETA'!$N$10,'BANCO DE DADOS COMPLETA'!$A$7:$L$249,3)*-1 -> 1 | AN15: 11 | AO15: 77 | AP15: 16.60 | AQ15: 16.60 | AR15: 2.86 | AS15: 0.13 | AT15: 0.01 | AU15: NADA | AV15: NADA | AW15: =IF(AV15="NADA",0,1) -> 0
B16: =B15+PARÂMETROS!$C$8 -> 3.06 | C16: 8.62E-04 | D16: =PARÂMETROS!$Q$4/C16 -> 1.16E-11 | E16: =PARÂMETROS!$F$6/($C16+PARÂMETROS!$F$6) -> 8.92E-01 | F16: =$C16*PARÂMETROS!$F$6/($C16^2+$C16*PARÂMETROS!$F$6+PARÂMETROS!$F$6*PARÂMETROS!$G$6) -> 8.92E-01 | G16: =PARÂMETROS!$F$6*PARÂMETROS!$G$6/($C16^2+$C16*PARÂMETROS!$F$6+PARÂMETROS!$F$6*PARÂMETROS!$G$6) -> 6.54E-05 | H16: =(PARÂMETROS!$F$6*$C16^2)/($C16^3+PARÂMETROS!$F$6*$C16^2+PARÂMETROS!$F$6*PARÂMETROS!$G$6*$C16+PARÂMETROS!$F$6*PARÂMETROS!$G$6*PARÂMETROS!$H$6) -> 8.92E-01 | I16: =(PARÂMETROS!$F$6*PARÂMETROS!$G$6*$C16)/($C16^3+PARÂMETROS!$F$6*$C16^2+PARÂMETROS!$F$6*PARÂMETROS!$G$6*$C16+PARÂMETROS!$F$6*PARÂMETROS!$G$6*PARÂMETROS!$H$6) -> 6.54E-05 | J16: =(PARÂMETROS!$F$6*PARÂMETROS!$G$6*PARÂMETROS!$H$6)/($C16^3+PARÂMETROS!$F$6*$C16^2+PARÂMETROS!$F$6*PARÂMETROS!$G$6*$C16+PARÂMETROS!$F$6*PARÂMETROS!$G$6*PARÂMETROS!$H$6) -> 3.39E-14 | K16: =$C16/($C16+PARÂMETROS!$J$6) -> 1.00E+00 | L16: =$C16*PARÂMETROS!$J$6/($C16^2+$C16*PARÂMETROS!$J$6+PARÂMETROS!$J$6*PARÂMETROS!$K$6) -> 1.16E-10 | M16: =$C16^2/($C16^2+$C16*PARÂMETROS!$J$6+PARÂMETROS!$J$6*PARÂMETROS!$K$6) -> 1.00E+00 | N16: =(PARÂMETROS!$K$6*PARÂMETROS!$J$6*$C16)/($C16^3+PARÂMETROS!$J$6*$C16^2+PARÂMETROS!$J$6*PARÂMETROS!$K$6*$C16+PARÂMETROS!$J$6*PARÂMETROS!$K$6*PARÂMETROS!$L$6) -> 0.00E+00 | O16: =(PARÂMETROS!$J$6*$C16^2)/($C16^3+PARÂMETROS!$J$6*$C16^2+PARÂMETROS!$J$6*PARÂMETROS!$K$6*$C16+PARÂMETROS!$J$6*PARÂMETROS!$K$6*PARÂMETROS!$L$6) -> 1.16E-10 | P16: =($C16^3)/($C16^3+PARÂMETROS!$J$6*$C16^2+PARÂMETROS!$J$6*PARÂMETROS!$K$6*$C16+PARÂMETROS!$J$6*PARÂMETROS!$K$6*PARÂMETROS!$L$6) -> 1.00E+00 | Q16: =IF(PARÂMETROS!$J$6<PARÂMETROS!$F$6,(E16-(C16-D16)/PARÂMETROS!$C$11)/(K16+(C16-D16)/PARÂMETROS!$C$14),(K16+(C16-D16)/PARÂMETROS!$C$14)/(E16-(C16-D16)/PARÂMETROS!$C$11)) -> 8.86E-01 | R16: =IF(PARÂMETROS!$J$6<PARÂMETROS!$F$6,(E16-(C16-D16)/PARÂMETROS!$C$11)/(L16+2*M16+(C16-D16)/PARÂMETROS!$C$14),(L16+2*M16+(C16-D16)/PARÂMETROS!$C$14)/(E16-(C16-D16)/PARÂMETROS!$C$11)) -> 4.43E-01 | S16: =IF(PARÂMETROS!$J$6<PARÂMETROS!$F$6, (E16-(C16-D16)/PARÂMETROS!$C$11)/(N16+2*O16+3*P16+(C16-D16)/PARÂMETROS!$C$14),(N16+2*O16+3*P16+(C16-D16)/PARÂMETROS!$C$14)/ (E16-(C16-D16)/PARÂMETROS!$C$11)) -> 2.96E-01 | T16: =IF(PARÂMETROS!$J$6<PARÂMETROS!$F$6,(F16+2*G16-(C16-D16)/PARÂMETROS!$C$11)/(K16+(C16-D16)/PARÂMETROS!$C$14),(K16+(C16-D16)/PARÂMETROS!$C$14)/(F16+2*G16-(C16-D16)/PARÂMETROS!$C$11)) -> 8.86E-01 | U16: =IF(PARÂMETROS!$J$6<PARÂMETROS!$F$6,(F16+2*G16-(C16-D16)/PARÂMETROS!$C$11)/(L16+2*M16+(C16-D16)/PARÂMETROS!$C$14),(L16+2*M16+(C16-D16)/PARÂMETROS!$C$14)/(F16+2*G16-(C16-D16)/PARÂMETROS!$C$11)) -> 4.43E-01 | V16: =IF(PARÂMETROS!$J$6<PARÂMETROS!$F$6,(F16+2*G16-(C16-D16)/PARÂMETROS!$C$11)/(N16+2*O16+3*P16+(C16-D16)/PARÂMETROS!$C$14),(N16+2*O16+3*P16+(C16-D16)/PARÂMETROS!$C$14)/(F16+2*G16-(C16-D16)/PARÂMETROS!$C$11)) -> 2.96E-01 | W16: =IF(PARÂMETROS!$J$6<PARÂMETROS!$F$6,(H16+2*I16+3*J16-(C16-D16)/PARÂMETROS!$C$11)/(K16+(C16-D16)/PARÂMETROS!$C$14),(K16+(C16-D16)/PARÂMETROS!$C$14)/(H16+2*I16+3*J16-(C16-D16)/PARÂMETROS!$C$11)) -> 8.86E-01 | X16: =IF(PARÂMETROS!$J$6<PARÂMETROS!$F$6,(H16+2*I16+3*J16-(C16-D16)/PARÂMETROS!$C$11)/(L16+2*M16+(C16-D16)/PARÂMETROS!$C$14),(L16+2*M16+(C16-D16)/PARÂMETROS!$C$14)/(H16+2*I16+3*J16-(C16-D16)/PARÂMETROS!$C$11)) -> 4.43E-01 | Y16: =IF(PARÂMETROS!$J$6<PARÂMETROS!$F$6,(H16+2*I16+3*J16-(C16-D16)/PARÂMETROS!$C$11)/(N16+2*O16+3*P16+(C16-D16)/PARÂMETROS!$C$14),(N16+2*O16+3*P16+(C16-D16)/PARÂMETROS!$C$14)/(H16+2*I16+3*J16-(C16-D16)/PARÂMETROS!$C$11)) -> 2.96E-01 | Z16: =Q16*PARÂMETROS!$C$11*PARÂMETROS!$D$11/PARÂMETROS!$C$14 -> 17.72 | AA16: =R16*PARÂMETROS!$C$11*PARÂMETROS!$D$11/PARÂMETROS!$C$14 -> 8.87 | AB16: =S16*PARÂMETROS!$C$11*PARÂMETROS!$D$11/PARÂMETROS!$C$14 -> 5.91 | AC16: =T16*PARÂMETROS!$C$11*PARÂMETROS!$D$11/PARÂMETROS!$C$14 -> 17.72 | AD16: =U16*PARÂMETROS!$C$11*PARÂMETROS!$D$11/PARÂMETROS!$C$14 -> 8.87 | AE16: =V16*PARÂMETROS!$C$11*PARÂMETROS!$D$11/PARÂMETROS!$C$14 -> 5.91 | AF16: =W16*PARÂMETROS!$C$11*PARÂMETROS!$D$11/PARÂMETROS!$C$14 -> 17.72 | AG16: =X16*PARÂMETROS!$C$11*PARÂMETROS!$D$11/PARÂMETROS!$C$14 -> 8.87 | AH16: =Y16*PARÂMETROS!$C$11*PARÂMETROS!$D$11/PARÂMETROS!$C$14 -> 5.91 | AI16: =AND(B16+PARÂMETROS!$C$8>=PARÂMETROS!$C$5,B16+PARÂMETROS!$C$8<=PARÂMETROS!$D$5) -> TRUE | AJ16: 1 | AK16: =VLOOKUP('BANCO DE DADOS COMPLETA'!$N$8,'BANCO DE DADOS COMPLETA'!$A$7:$L$249,3)*-1 -> 3 | AL16: 7 | AM16: =VLOOKUP('BANCO DE DADOS COMPLETA'!$N$10,'BANCO DE DADOS COMPLETA'!$A$7:$L$249,3)*-1 -> 1 | AN16: 11 | AO16: 77 | AP16: 17.72 | AQ16: 17.72 | AR16: 3.06 | AS16: 0.18 | AT16: 0.03 | AU16: NADA | AV16: NADA | AW16: 0
B17: =B16+PARÂMETROS!$C$8 -> 3.26 | C17: 5.44E-04 | D17: =PARÂMETROS!$Q$4/C17 -> 1.84E-11 | E17: =PARÂMETROS!$F$6/($C17+PARÂMETROS!$F$6) -> 9.29E-01 | F17: =$C17*PARÂMETROS!$F$6/($C17^2+$C17*PARÂMETROS!$F$6+PARÂMETROS!$F$6*PARÂMETROS!$G$6) -> 9.29E-01 | G17: =PARÂMETROS!$F$6*PARÂMETROS!$G$6/($C17^2+$C17*PARÂMETROS!$F$6+PARÂMETROS!$F$6*PARÂMETROS!$G$6) -> 1.08E-04 | H17: =(PARÂMETROS!$F$6*$C17^2)/($C17^3+PARÂMETROS!$F$6*$C17^2+PARÂMETROS!$F$6*PARÂMETROS!$G$6*$C17+PARÂMETROS!$F$6*PARÂMETROS!$G$6*PARÂMETROS!$H$6) -> 9.29E-01 | I17: =(PARÂMETROS!$F$6*PARÂMETROS!$G$6*$C17)/($C17^3+PARÂMETROS!$F$6*$C17^2+PARÂMETROS!$F$6*PARÂMETROS!$G$6*$C17+PARÂMETROS!$F$6*PARÂMETROS!$G$6*PARÂMETROS!$H$6) -> 1.08E-04 | J17: =(PARÂMETROS!$F$6*PARÂMETROS!$G$6*PARÂMETROS!$H$6)/($C17^3+PARÂMETROS!$F$6*$C17^2+PARÂMETROS!$F$6*PARÂMETROS!$G$6*$C17+PARÂMETROS!$F$6*PARÂMETROS!$G$6*PARÂMETROS!$H$6) -> 8.86E-14 | K17: =$C17/($C17+PARÂMETROS!$J$6) -> 1.00E+00 | L17: =$C17*PARÂMETROS!$J$6/($C17^2+$C17*PARÂMETROS!$J$6+PARÂMETROS!$J$6*PARÂMETROS!$K$6) -> 1.84E-10 | M17: =$C17^2/($C17^2+$C17*PARÂMETROS!$J$6+PARÂMETROS!$J$6*PARÂMETROS!$K$6) -> 1.00E+00 | N17: =(PARÂMETROS!$K$6*PARÂMETROS!$J$6*$C17)/($C17^3+PARÂMETROS!$J$6*$C17^2+PARÂMETROS!$J$6*PARÂMETROS!$K$6*$C17+PARÂMETROS!$J$6*PARÂMETROS!$K$6*PARÂMETROS!$L$6) -> 0.00E+00 | O17: =(PARÂMETROS!$J$6*$C17^2)/($C17^3+PARÂMETROS!$J$6*$C17^2+PARÂMETROS!$J$6*PARÂMETROS!$K$6*$C17+PARÂMETROS!$J$6*PARÂMETROS!$K$6*PARÂMETROS!$L$6) -> 1.84E-10 | P17: =($C17^3)/($C17^3+PARÂMETROS!$J$6*$C17^2+PARÂMETROS!$J$6*PARÂMETROS!$K$6*$C17+PARÂMETROS!$J$6*PARÂMETROS!$K$6*PARÂMETROS!$L$6) -> 1.00E+00 | Q17: =IF(PARÂMETROS!$J$6<PARÂMETROS!$F$6,(E17-(C17-D17)/PARÂMETROS!$C$11)/(K17+(C17-D17)/PARÂMETROS!$C$14),(K17+(C17-D17)/PARÂMETROS!$C$14)/(E17-(C17-D17)/PARÂMETROS!$C$11)) -> 9.25E-01 | R17: =IF(PARÂMETROS!$J$6<PARÂMETROS!$F$6,(E17-(C17-D17)/PARÂMETROS!$C$11)/(L17+2*M17+(C17-D17)/PARÂMETROS!$C$14),(L17+2*M17+(C17-D17)/PARÂMETROS!$C$14)/(E17-(C17-D17)/PARÂMETROS!$C$11)) -> 4.63E-01 | S17: =IF(PARÂMETROS!$J$6<PARÂMETROS!$F$6, (E17-(C17-D17)/PARÂMETROS!$C$11)/(N17+2*O17+3*P17+(C17-D17)/PARÂMETROS!$C$14),(N17+2*O17+3*P17+(C17-D17)/PARÂMETROS!$C$14)/ (E17-(C17-D17)/PARÂMETROS!$C$11)) -> 3.09E-01 | T17: =IF(PARÂMETROS!$J$6<PARÂMETROS!$F$6,(F17+2*G17-(C17-D17)/PARÂMETROS!$C$11)/(K17+(C17-D17)/PARÂMETROS!$C$14),(K17+(C17-D17)/PARÂMETROS!$C$14)/(F17+2*G17-(C17-D17)/PARÂMETROS!$C$11)) -> 9.25E-01 | U17: =IF(PARÂMETROS!$J$6<PARÂMETROS!$F$6,(F17+2*G17-(C17-D17)/PARÂMETROS!$C$11)/(L17+2*M17+(C17-D17)/PARÂMETROS!$C$14),(L17+2*M17+(C17-D17)/PARÂMETROS!$C$14)/(F17+2*G17-(C17-D17)/PARÂMETROS!$C$11)) -> 4.63E-01 | V17: =IF(PARÂMETROS!$J$6<PARÂMETROS!$F$6,(F17+2*G17-(C17-D17)/PARÂMETROS!$C$11)/(N17+2*O17+3*P17+(C17-D17)/PARÂMETROS!$C$14),(N17+2*O17+3*P17+(C17-D17)/PARÂMETROS!$C$14)/(F17+2*G17-(C17-D17)/PARÂMETROS!$C$11)) -> 3.09E-01 | W17: =IF(PARÂMETROS!$J$6<PARÂMETROS!$F$6,(H17+2*I17+3*J17-(C17-D17)/PARÂMETROS!$C$11)/(K17+(C17-D17)/PARÂMETROS!$C$14),(K17+(C17-D17)/PARÂMETROS!$C$14)/(H17+2*I17+3*J17-(C17-D17)/PARÂMETROS!$C$11)) -> 9.25E-01 | X17: =IF(PARÂMETROS!$J$6<PARÂMETROS!$F$6,(H17+2*I17+3*J17-(C17-D17)/PARÂMETROS!$C$11)/(L17+2*M17+(C17-D17)/PARÂMETROS!$C$14),(L17+2*M17+(C17-D17)/PARÂMETROS!$C$14)/(H17+2*I17+3*J17-(C17-D17)/PARÂMETROS!$C$11)) -> 4.63E-01 | Y17: =IF(PARÂMETROS!$J$6<PARÂMETROS!$F$6,(H17+2*I17+3*J17-(C17-D17)/PARÂMETROS!$C$11)/(N17+2*O17+3*P17+(C17-D17)/PARÂMETROS!$C$14),(N17+2*O17+3*P17+(C17-D17)/PARÂMETROS!$C$14)/(H17+2*I17+3*J17-(C17-D17)/PARÂMETROS!$C$11)) -> 3.09E-01 | Z17: =Q17*PARÂMETROS!$C$11*PARÂMETROS!$D$11/PARÂMETROS!$C$14 -> 18.50 | AA17: =R17*PARÂMETROS!$C$11*PARÂMETROS!$D$11/PARÂMETROS!$C$14 -> 9.26 | AB17: =S17*PARÂMETROS!$C$11*PARÂMETROS!$D$11/PARÂMETROS!$C$14 -> 6.17 | AC17: =T17*PARÂMETROS!$C$11*PARÂMETROS!$D$11/PARÂMETROS!$C$14 -> 18.51 | AD17: =U17*PARÂMETROS!$C$11*PARÂMETROS!$D$11/PARÂMETROS!$C$14 -> 9.26 | AE17: =V17*PARÂMETROS!$C$11*PARÂMETROS!$D$11/PARÂMETROS!$C$14 -> 6.17 | AF17: =W17*PARÂMETROS!$C$11*PARÂMETROS!$D$11/PARÂMETROS!$C$14 -> 18.51 | AG17: =X17*PARÂMETROS!$C$11*PARÂMETROS!$D$11/PARÂMETROS!$C$14 -> 9.26 | AH17: =Y17*PARÂMETROS!$C$11*PARÂMETROS!$D$11/PARÂMETROS!$C$14 -> 6.17 | AI17: =AND(B17+PARÂMETROS!$C$8>=PARÂMETROS!$C$5,B17+PARÂMETROS!$C$8<=PARÂMETROS!$D$5) -> TRUE | AJ17: 1 | AK17: =VLOOKUP('BANCO DE DADOS COMPLETA'!$N$8,'BANCO DE DADOS COMPLETA'!$A$7:$L$249,3)*-1 -> 3 | AL17: 7 | AM17: =VLOOKUP('BANCO DE DADOS COMPLETA'!$N$10,'BANCO DE DADOS COMPLETA'!$A$7:$L$249,3)*-1 -> 1 | AN17: 11 | AO17: 77 | AP17: 18.51 | AQ17: 18.51 | AR17: 3.26 | AS17: 0.25 | AT17: 0.07 | AU17: NADA | AV17: NADA | AW17: 0
B18: =B17+PARÂMETROS!$C$8 -> 3.46 | C18: 3.43E-04 | D18: =PARÂMETROS!$Q$4/C18 -> 2.91E-11 | E18: =PARÂMETROS!$F$6/($C18+PARÂMETROS!$F$6) -> 9.54E-01 | F18: =$C18*PARÂMETROS!$F$6/($C18^2+$C18*PARÂMETROS!$F$6+PARÂMETROS!$F$6*PARÂMETROS!$G$6) -> 9.54E-01 | G18: =PARÂMETROS!$F$6*PARÂMETROS!$G$6/($C18^2+$C18*PARÂMETROS!$F$6+PARÂMETROS!$F$6*PARÂMETROS!$G$6) -> 1.76E-04 | H18: =(PARÂMETROS!$F$6*$C18^2)/($C18^3+PARÂMETROS!$F$6*$C18^2+PARÂMETROS!$F$6*PARÂMETROS!$G$6*$C18+PARÂMETROS!$F$6*PARÂMETROS!$G$6*PARÂMETROS!$H$6) -> 9.54E-01 | I18: =(PARÂMETROS!$F$6*PARÂMETROS!$G$6*$C18)/($C18^3+PARÂMETROS!$F$6*$C18^2+PARÂMETROS!$F$6*PARÂMETROS!$G$6*$C18+PARÂMETROS!$F$6*PARÂMETROS!$G$6*PARÂMETROS!$H$6) -> 1.76E-04 | J18: =(PARÂMETROS!$F$6*PARÂMETROS!$G$6*PARÂMETROS!$H$6)/($C18^3+PARÂMETROS!$F$6*$C18^2+PARÂMETROS!$F$6*PARÂMETROS!$G$6*$C18+PARÂMETROS!$F$6*PARÂMETROS!$G$6*PARÂMETROS!$H$6) -> 2.29E-13 | K18: =$C18/($C18+PARÂMETROS!$J$6) -> 1.00E+00 | L18: =$C18*PARÂMETROS!$J$6/($C18^2+$C18*PARÂMETROS!$J$6+PARÂMETROS!$J$6*PARÂMETROS!$K$6) -> 2.91E-10 | M18: =$C18^2/($C18^2+$C18*PARÂMETROS!$J$6+PARÂMETROS!$J$6*PARÂMETROS!$K$6) -> 1.00E+00 | N18: =(PARÂMETROS!$K$6*PARÂMETROS!$J$6*$C18)/($C18^3+PARÂMETROS!$J$6*$C18^2+PARÂMETROS!$J$6*PARÂMETROS!$K$6*$C18+PARÂMETROS!$J$6*PARÂMETROS!$K$6*PARÂMETROS!$L$6) -> 0.00E+00 | O18: =(PARÂMETROS!$J$6*$C18^2)/($C18^3+PARÂMETROS!$J$6*$C18^2+PARÂMETROS!$J$6*PARÂMETROS!$K$6*$C18+PARÂMETROS!$J$6*PARÂMETROS!$K$6*PARÂMETROS!$L$6) -> 2.91E-10 | P18: =($C18^3)/($C18^3+PARÂMETROS!$J$6*$C18^2+PARÂMETROS!$J$6*PARÂMETROS!$K$6*$C18+PARÂMETROS!$J$6*PARÂMETROS!$K$6*PARÂMETROS!$L$6) -> 1.00E+00 | Q18: =IF(PARÂMETROS!$J$6<PARÂMETROS!$F$6,(E18-(C18-D18)/PARÂMETROS!$C$11)/(K18+(C18-D18)/PARÂMETROS!$C$14),(K18+(C18-D18)/PARÂMETROS!$C$14)/(E18-(C18-D18)/PARÂMETROS!$C$11)) -> 9.52E-01 | R18: =IF(PARÂMETROS!$J$6<PARÂMETROS!$F$6,(E18-(C18-D18)/PARÂMETROS!$C$11)/(L18+2*M18+(C18-D18)/PARÂMETROS!$C$14),(L18+2*M18+(C18-D18)/PARÂMETROS!$C$14)/(E18-(C18-D18)/PARÂMETROS!$C$11)) -> 4.76E-01 | S18: =IF(PARÂMETROS!$J$6<PARÂMETROS!$F$6, (E18-(C18-D18)/PARÂMETROS!$C$11)/(N18+2*O18+3*P18+(C18-D18)/PARÂMETROS!$C$14),(N18+2*O18+3*P18+(C18-D18)/PARÂMETROS!$C$14)/ (E18-(C18-D18)/PARÂMETROS!$C$11)) -> 3.17E-01 | T18: =IF(PARÂMETROS!$J$6<PARÂMETROS!$F$6,(F18+2*G18-(C18-D18)/PARÂMETROS!$C$11)/(K18+(C18-D18)/PARÂMETROS!$C$14),(K18+(C18-D18)/PARÂMETROS!$C$14)/(F18+2*G18-(C18-D18)/PARÂMETROS!$C$11)) -> 9.52E-01 | U18: =IF(PARÂMETROS!$J$6<PARÂMETROS!$F$6,(F18+2*G18-(C18-D18)/PARÂMETROS!$C$11)/(L18+2*M18+(C18-D18)/PARÂMETROS!$C$14),(L18+2*M18+(C18-D18)/PARÂMETROS!$C$14)/(F18+2*G18-(C18-D18)/PARÂMETROS!$C$11)) -> 4.76E-01 | V18: =IF(PARÂMETROS!$J$6<PARÂMETROS!$F$6,(F18+2*G18-(C18-D18)/PARÂMETROS!$C$11)/(N18+2*O18+3*P18+(C18-D18)/PARÂMETROS!$C$14),(N18+2*O18+3*P18+(C18-D18)/PARÂMETROS!$C$14)/(F18+2*G18-(C18-D18)/PARÂMETROS!$C$11)) -> 3.17E-01 | W18: =IF(PARÂMETROS!$J$6<PARÂMETROS!$F$6,(H18+2*I18+3*J18-(C18-D18)/PARÂMETROS!$C$11)/(K18+(C18-D18)/PARÂMETROS!$C$14),(K18+(C18-D18)/PARÂMETROS!$C$14)/(H18+2*I18+3*J18-(C18-D18)/PARÂMETROS!$C$11)) -> 9.52E-01 | X18: =IF(PARÂMETROS!$J$6<PARÂMETROS!$F$6,(H18+2*I18+3*J18-(C18-D18)/PARÂMETROS!$C$11)/(L18+2*M18+(C18-D18)/PARÂMETROS!$C$14),(L18+2*M18+(C18-D18)/PARÂMETROS!$C$14)/(H18+2*I18+3*J18-(C18-D18)/PARÂMETROS!$C$11)) -> 4.76E-01 | Y18: =IF(PARÂMETROS!$J$6<PARÂMETROS!$F$6,(H18+2*I18+3*J18-(C18-D18)/PARÂMETROS!$C$11)/(N18+2*O18+3*P18+(C18-D18)/PARÂMETROS!$C$14),(N18+2*O18+3*P18+(C18-D18)/PARÂMETROS!$C$14)/(H18+2*I18+3*J18-(C18-D18)/PARÂMETROS!$C$11)) -> 3.17E-01 | Z18: =Q18*PARÂMETROS!$C$11*PARÂMETROS!$D$11/PARÂMETROS!$C$14 -> 19.03 | AA18: =R18*PARÂMETROS!$C$11*PARÂMETROS!$D$11/PARÂMETROS!$C$14 -> 9.52 | AB18: =S18*PARÂMETROS!$C$11*PARÂMETROS!$D$11/PARÂMETROS!$C$14 -> 6.35 | AC18: =T18*PARÂMETROS!$C$11*PARÂMETROS!$D$11/PARÂMETROS!$C$14 -> 19.04 | AD18: =U18*PARÂMETROS!$C$11*PARÂMETROS!$D$11/PARÂMETROS!$C$14 -> 9.52 | AE18: =V18*PARÂMETROS!$C$11*PARÂMETROS!$D$11/PARÂMETROS!$C$14 -> 6.35 | AF18: =W18*PARÂMETROS!$C$11*PARÂMETROS!$D$11/PARÂMETROS!$C$14 -> 19.04 | AG18: =X18*PARÂMETROS!$C$11*PARÂMETROS!$D$11/PARÂMETROS!$C$14 -> 9.52 | AH18: =Y18*PARÂMETROS!$C$11*PARÂMETROS!$D$11/PARÂMETROS!$C$14 -> 6.35 | AI18: =AND(B18+PARÂMETROS!$C$8>=PARÂMETROS!$C$5,B18+PARÂMETROS!$C$8<=PARÂMETROS!$D$5) -> TRUE | AJ18: 1 | AK18: =VLOOKUP('BANCO DE DADOS COMPLETA'!$N$8,'BANCO DE DADOS COMPLETA'!$A$7:$L$249,3)*-1 -> 3 | AL18: 7 | AM18: =VLOOKUP('BANCO DE DADOS COMPLETA'!$N$10,'BANCO DE DADOS COMPLETA'!$A$7:$L$249,3)*-1 -> 1 | AN18: 11 | AO18: 77 | AP18: 19.04 | AQ18: 19.04 | AR18: 3.46 | AS18: 0.38 | AT18: 0.16 | AU18: NADA | AV18: NADA | AW18: 0
B19: =B18+PARÂMETROS!$C$8 -> 3.66 | C19: 2.17E-04 | D19: =PARÂMETROS!$Q$4/C19 -> 4.62E-11 | E19: =PARÂMETROS!$F$6/($C19+PARÂMETROS!$F$6) -> 9.70E-01 | F19: =$C19*PARÂMETROS!$F$6/($C19^2+$C19*PARÂMETROS!$F$6+PARÂMETROS!$F$6*PARÂMETROS!$G$6) -> 9.70E-01 | G19: =PARÂMETROS!$F$6*PARÂMETROS!$G$6/($C19^2+$C19*PARÂMETROS!$F$6+PARÂMETROS!$F$6*PARÂMETROS!$G$6) -> 2.83E-04 | H19: =(PARÂMETROS!$F$6*$C19^2)/($C19^3+PARÂMETROS!$F$6*$C19^2+PARÂMETROS!$F$6*PARÂMETROS!$G$6*$C19+PARÂMETROS!$F$6*PARÂMETROS!$G$6*PARÂMETROS!$H$6) -> 9.70E-01 | I19: =(PARÂMETROS!$F$6*PARÂMETROS!$G$6*$C19)/($C19^3+PARÂMETROS!$F$6*$C19^2+PARÂMETROS!$F$6*PARÂMETROS!$G$6*$C19+PARÂMETROS!$F$6*PARÂMETROS!$G$6*PARÂMETROS!$H$6) -> 2.83E-04 | J19: =(PARÂMETROS!$F$6*PARÂMETROS!$G$6*PARÂMETROS!$H$6)/($C19^3+PARÂMETROS!$F$6*$C19^2+PARÂMETROS!$F$6*PARÂMETROS!$G$6*$C19+PARÂMETROS!$F$6*PARÂMETROS!$G$6*PARÂMETROS!$H$6) -> 5.84E-13 | K19: =$C19/($C19+PARÂMETROS!$J$6) -> 1.00E+00 | L19: =$C19*PARÂMETROS!$J$6/($C19^2+$C19*PARÂMETROS!$J$6+PARÂMETROS!$J$6*PARÂMETROS!$K$6) -> 4.62E-10 | M19: =$C19^2/($C19^2+$C19*PARÂMETROS!$J$6+PARÂMETROS!$J$6*PARÂMETROS!$K$6) -> 1.00E+00 | N19: =(PARÂMETROS!$K$6*PARÂMETROS!$J$6*$C19)/($C19^3+PARÂMETROS!$J$6*$C19^2+PARÂMETROS!$J$6*PARÂMETROS!$K$6*$C19+PARÂMETROS!$J$6*PARÂMETROS!$K$6*PARÂMETROS!$L$6) -> 0.00E+00 | O19: =(PARÂMETROS!$J$6*$C19^2)/($C19^3+PARÂMETROS!$J$6*$C19^2+PARÂMETROS!$J$6*PARÂMETROS!$K$6*$C19+PARÂMETROS!$J$6*PARÂMETROS!$K$6*PARÂMETROS!$L$6) -> 4.62E-10 | P19: =($C19^3)/($C19^3+PARÂMETROS!$J$6*$C19^2+PARÂMETROS!$J$6*PARÂMETROS!$K$6*$C19+PARÂMETROS!$J$6*PARÂMETROS!$K$6*PARÂMETROS!$L$6) -> 1.00E+00 | Q19: =IF(PARÂMETROS!$J$6<PARÂMETROS!$F$6,(E19-(C19-D19)/PARÂMETROS!$C$11)/(K19+(C19-D19)/PARÂMETROS!$C$14),(K19+(C19-D19)/PARÂMETROS!$C$14)/(E19-(C19-D19)/PARÂMETROS!$C$11)) -> 9.69E-01 | R19: =IF(PARÂMETROS!$J$6<PARÂMETROS!$F$6,(E19-(C19-D19)/PARÂMETROS!$C$11)/(L19+2*M19+(C19-D19)/PARÂMETROS!$C$14),(L19+2*M19+(C19-D19)/PARÂMETROS!$C$14)/(E19-(C19-D19)/PARÂMETROS!$C$11)) -> 4.85E-01 | S19: =IF(PARÂMETROS!$J$6<PARÂMETROS!$F$6, (E19-(C19-D19)/PARÂMETROS!$C$11)/(N19+2*O19+3*P19+(C19-D19)/PARÂMETROS!$C$14),(N19+2*O19+3*P19+(C19-D19)/PARÂMETROS!$C$14)/ (E19-(C19-D19)/PARÂMETROS!$C$11)) -> 3.23E-01 | T19: =IF(PARÂMETROS!$J$6<PARÂMETROS!$F$6,(F19+2*G19-(C19-D19)/PARÂMETROS!$C$11)/(K19+(C19-D19)/PARÂMETROS!$C$14),(K19+(C19-D19)/PARÂMETROS!$C$14)/(F19+2*G19-(C19-D19)/PARÂMETROS!$C$11)) -> 9.69E-01 | U19: =IF(PARÂMETROS!$J$6<PARÂMETROS!$F$6,(F19+2*G19-(C19-D19)/PARÂMETROS!$C$11)/(L19+2*M19+(C19-D19)/PARÂMETROS!$C$14),(L19+2*M19+(C19-D19)/PARÂMETROS!$C$14)/(F19+2*G19-(C19-D19)/PARÂMETROS!$C$11)) -> 4.85E-01 | V19: =IF(PARÂMETROS!$J$6<PARÂMETROS!$F$6,(F19+2*G19-(C19-D19)/PARÂMETROS!$C$11)/(N19+2*O19+3*P19+(C19-D19)/PARÂMETROS!$C$14),(N19+2*O19+3*P19+(C19-D19)/PARÂMETROS!$C$14)/(F19+2*G19-(C19-D19)/PARÂMETROS!$C$11)) -> 3.23E-01 | W19: =IF(PARÂMETROS!$J$6<PARÂMETROS!$F$6,(H19+2*I19+3*J19-(C19-D19)/PARÂMETROS!$C$11)/(K19+(C19-D19)/PARÂMETROS!$C$14),(K19+(C19-D19)/PARÂMETROS!$C$14)/(H19+2*I19+3*J19-(C19-D19)/PARÂMETROS!$C$11)) -> 9.69E-01 | X19: =IF(PARÂMETROS!$J$6<PARÂMETROS!$F$6,(H19+2*I19+3*J19-(C19-D19)/PARÂMETROS!$C$11)/(L19+2*M19+(C19-D19)/PARÂMETROS!$C$14),(L19+2*M19+(C19-D19)/PARÂMETROS!$C$14)/(H19+2*I19+3*J19-(C19-D19)/PARÂMETROS!$C$11)) -> 4.85E-01 | Y19: =IF(PARÂMETROS!$J$6<PARÂMETROS!$F$6,(H19+2*I19+3*J19-(C19-D19)/PARÂMETROS!$C$11)/(N19+2*O19+3*P19+(C19-D19)/PARÂMETROS!$C$14),(N19+2*O19+3*P19+(C19-D19)/PARÂMETROS!$C$14)/(H19+2*I19+3*J19-(C19-D19)/PARÂMETROS!$C$11)) -> 3.23E-01 | Z19: =Q19*PARÂMETROS!$C$11*PARÂMETROS!$D$11/PARÂMETROS!$C$14 -> 19.38 | AA19: =R19*PARÂMETROS!$C$11*PARÂMETROS!$D$11/PARÂMETROS!$C$14 -> 9.69 | AB19: =S19*PARÂMETROS!$C$11*PARÂMETROS!$D$11/PARÂMETROS!$C$14 -> 6.46 | AC19: =T19*PARÂMETROS!$C$11*PARÂMETROS!$D$11/PARÂMETROS!$C$14 -> 19.38 | AD19: =U19*PARÂMETROS!$C$11*PARÂMETROS!$D$11/PARÂMETROS!$C$14 -> 9.69 | AE19: =V19*PARÂMETROS!$C$11*PARÂMETROS!$D$11/PARÂMETROS!$C$14 -> 6.46 | AF19: =W19*PARÂMETROS!$C$11*PARÂMETROS!$D$11/PARÂMETROS!$C$14 -> 19.38 | AG19: =X19*PARÂMETROS!$C$11*PARÂMETROS!$D$11/PARÂMETROS!$C$14 -> 9.69 | AH19: =Y19*PARÂMETROS!$C$11*PARÂMETROS!$D$11/PARÂMETROS!$C$14 -> 6.46 | AI19: =AND(B19+PARÂMETROS!$C$8>=PARÂMETROS!$C$5,B19+PARÂMETROS!$C$8<=PARÂMETROS!$D$5) -> TRUE | AJ19: 1 | AK19: =VLOOKUP('BANCO DE DADOS COMPLETA'!$N$8,'BANCO DE DADOS COMPLETA'!$A$7:$L$249,3)*-1 -> 3 | AL19: 7 | AM19: =VLOOKUP('BANCO DE DADOS COMPLETA'!$N$10,'BANCO DE DADOS COMPLETA'!$A$7:$L$249,3)*-1 -> 1 | AN19: 11 | AO19: 77 | AP19: 19.38 | AQ19: 19.38 | AR19: 3.66 | AS19: 0.57 | AT19: 0.37 | AU19: NADA | AV19: NADA | AW19: 0
B20: =B19+PARÂMETROS!$C$8 -> 3.86 | C20: 1.37E-04 | D20: =PARÂMETROS!$Q$4/C20 -> 7.32E-11 | E20: =PARÂMETROS!$F$6/($C20+PARÂMETROS!$F$6) -> 9.81E-01 | F20: =$C20*PARÂMETROS!$F$6/($C20^2+$C20*PARÂMETROS!$F$6+PARÂMETROS!$F$6*PARÂMETROS!$G$6) -> 9.81E-01 | G20: =PARÂMETROS!$F$6*PARÂMETROS!$G$6/($C20^2+$C20*PARÂMETROS!$F$6+PARÂMETROS!$F$6*PARÂMETROS!$G$6) -> 4.54E-04 | H20: =(PARÂMETROS!$F$6*$C20^2)/($C20^3+PARÂMETROS!$F$6*$C20^2+PARÂMETROS!$F$6*PARÂMETROS!$G$6*$C20+PARÂMETROS!$F$6*PARÂMETROS!$G$6*PARÂMETROS!$H$6) -> 9.81E-01 | I20: =(PARÂMETROS!$F$6*PARÂMETROS!$G$6*$C20)/($C20^3+PARÂMETROS!$F$6*$C20^2+PARÂMETROS!$F$6*PARÂMETROS!$G$6*$C20+PARÂMETROS!$F$6*PARÂMETROS!$G$6*PARÂMETROS!$H$6) -> 4.54E-04 | J20: =(PARÂMETROS!$F$6*PARÂMETROS!$G$6*PARÂMETROS!$H$6)/($C20^3+PARÂMETROS!$F$6*$C20^2+PARÂMETROS!$F$6*PARÂMETROS!$G$6*$C20+PARÂMETROS!$F$6*PARÂMETROS!$G$6*PARÂMETROS!$H$6) -> 1.48E-12 | K20: =$C20/($C20+PARÂMETROS!$J$6) -> 1.00E+00 | L20: =$C20*PARÂMETROS!$J$6/($C20^2+$C20*PARÂMETROS!$J$6+PARÂMETROS!$J$6*PARÂMETROS!$K$6) -> 7.32E-10 | M20: =$C20^2/($C20^2+$C20*PARÂMETROS!$J$6+PARÂMETROS!$J$6*PARÂMETROS!$K$6) -> 1.00E+00 | N20: =(PARÂMETROS!$K$6*PARÂMETROS!$J$6*$C20)/($C20^3+PARÂMETROS!$J$6*$C20^2+PARÂMETROS!$J$6*PARÂMETROS!$K$6*$C20+PARÂMETROS!$J$6*PARÂMETROS!$K$6*PARÂMETROS!$L$6) -> 0.00E+00 | O20: =(PARÂMETROS!$J$6*$C20^2)/($C20^3+PARÂMETROS!$J$6*$C20^2+PARÂMETROS!$J$6*PARÂMETROS!$K$6*$C20+PARÂMETROS!$J$6*PARÂMETROS!$K$6*PARÂMETROS!$L$6) -> 7.32E-10 | P20: =($C20^3)/($C20^3+PARÂMETROS!$J$6*$C20^2+PARÂMETROS!$J$6*PARÂMETROS!$K$6*$C20+PARÂMETROS!$J$6*PARÂMETROS!$K$6*PARÂMETROS!$L$6) -> 1.00E+00 | Q20: =IF(PARÂMETROS!$J$6<PARÂMETROS!$F$6,(E20-(C20-D20)/PARÂMETROS!$C$11)/(K20+(C20-D20)/PARÂMETROS!$C$14),(K20+(C20-D20)/PARÂMETROS!$C$14)/(E20-(C20-D20)/PARÂMETROS!$C$11)) -> 9.80E-01 | R20: =IF(PARÂMETROS!$J$6<PARÂMETROS!$F$6,(E20-(C20-D20)/PARÂMETROS!$C$11)/(L20+2*M20+(C20-D20)/PARÂMETROS!$C$14),(L20+2*M20+(C20-D20)/PARÂMETROS!$C$14)/(E20-(C20-D20)/PARÂMETROS!$C$11)) -> 4.90E-01 | S20: =IF(PARÂMETROS!$J$6<PARÂMETROS!$F$6, (E20-(C20-D20)/PARÂMETROS!$C$11)/(N20+2*O20+3*P20+(C20-D20)/PARÂMETROS!$C$14),(N20+2*O20+3*P20+(C20-D20)/PARÂMETROS!$C$14)/ (E20-(C20-D20)/PARÂMETROS!$C$11)) -> 3.27E-01 | T20: =IF(PARÂMETROS!$J$6<PARÂMETROS!$F$6,(F20+2*G20-(C20-D20)/PARÂMETROS!$C$11)/(K20+(C20-D20)/PARÂMETROS!$C$14),(K20+(C20-D20)/PARÂMETROS!$C$14)/(F20+2*G20-(C20-D20)/PARÂMETROS!$C$11)) -> 9.81E-01 | U20: =IF(PARÂMETROS!$J$6<PARÂMETROS!$F$6,(F20+2*G20-(C20-D20)/PARÂMETROS!$C$11)/(L20+2*M20+(C20-D20)/PARÂMETROS!$C$14),(L20+2*M20+(C20-D20)/PARÂMETROS!$C$14)/(F20+2*G20-(C20-D20)/PARÂMETROS!$C$11)) -> 4.90E-01 | V20: =IF(PARÂMETROS!$J$6<PARÂMETROS!$F$6,(F20+2*G20-(C20-D20)/PARÂMETROS!$C$11)/(N20+2*O20+3*P20+(C20-D20)/PARÂMETROS!$C$14),(N20+2*O20+3*P20+(C20-D20)/PARÂMETROS!$C$14)/(F20+2*G20-(C20-D20)/PARÂMETROS!$C$11)) -> 3.27E-01 | W20: =IF(PARÂMETROS!$J$6<PARÂMETROS!$F$6,(H20+2*I20+3*J20-(C20-D20)/PARÂMETROS!$C$11)/(K20+(C20-D20)/PARÂMETROS!$C$14),(K20+(C20-D20)/PARÂMETROS!$C$14)/(H20+2*I20+3*J20-(C20-D20)/PARÂMETROS!$C$11)) -> 9.81E-01 | X20: =IF(PARÂMETROS!$J$6<PARÂMETROS!$F$6,(H20+2*I20+3*J20-(C20-D20)/PARÂMETROS!$C$11)/(L20+2*M20+(C20-D20)/PARÂMETROS!$C$14),(L20+2*M20+(C20-D20)/PARÂMETROS!$C$14)/(H20+2*I20+3*J20-(C20-D20)/PARÂMETROS!$C$11)) -> 4.90E-01 | Y20: =IF(PARÂMETROS!$J$6<PARÂMETROS!$F$6,(H20+2*I20+3*J20-(C20-D20)/PARÂMETROS!$C$11)/(N20+2*O20+3*P20+(C20-D20)/PARÂMETROS!$C$14),(N20+2*O20+3*P20+(C20-D20)/PARÂMETROS!$C$14)/(H20+2*I20+3*J20-(C20-D20)/PARÂMETROS!$C$11)) -> 3.27E-01 | Z20: =Q20*PARÂMETROS!$C$11*PARÂMETROS!$D$11/PARÂMETROS!$C$14 -> 19.60 | AA20: =R20*PARÂMETROS!$C$11*PARÂMETROS!$D$11/PARÂMETROS!$C$14 -> 9.80 | AB20: =S20*PARÂMETROS!$C$11*PARÂMETROS!$D$11/PARÂMETROS!$C$14 -> 6.54 | AC20: =T20*PARÂMETROS!$C$11*PARÂMETROS!$D$11/PARÂMETROS!$C$14 -> 19.61 | AD20: =U20*PARÂMETROS!$C$11*PARÂMETROS!$D$11/PARÂMETROS!$C$14 -> 9.81 | AE20: =V20*PARÂMETROS!$C$11*PARÂMETROS!$D$11/PARÂMETROS!$C$14 -> 6.54 | AF20: =W20*PARÂMETROS!$C$11*PARÂMETROS!$D$11/PARÂMETROS!$C$14 -> 19.61 | AG20: =X20*PARÂMETROS!$C$11*PARÂMETROS!$D$11/PARÂMETROS!$C$14 -> 9.81 | AH20: =Y20*PARÂMETROS!$C$11*PARÂMETROS!$D$11/PARÂMETROS!$C$14 -> 6.54 | AI20: =AND(B20+PARÂMETROS!$C$8>=PARÂMETROS!$C$5,B20+PARÂMETROS!$C$8<=PARÂMETROS!$D$5) -> TRUE | AJ20: 1 | AK20: =VLOOKUP('BANCO DE DADOS COMPLETA'!$N$8,'BANCO DE DADOS COMPLETA'!$A$7:$L$249,3)*-1 -> 3 | AL20: 7 | AM20: =VLOOKUP('BANCO DE DADOS COMPLETA'!$N$10,'BANCO DE DADOS COMPLETA'!$A$7:$L$249,3)*-1 -> 1 | AN20: 11 | AO20: 77 | AP20: =IF(AO20=33,Z20,IF(AO20=39,AA20,IF(AO20=51,AB20,IF(AO20=55,AC20,IF(AO20=65,AD20,IF(AO20=85,AE20,IF(AO20=77,AF20,IF(AO20=91,AG20,IF(AO20=119,AH20))))))))) -> 19.61 | AQ20: 19.61 | AR20: 3.86 | AS20: 0.88 | AT20: 0.87 | AU20: NADA | AV20: NADA | AW20: 0
B21: =B20+PARÂMETROS!$C$8 -> 4.06 | C21: 8.62E-05 | D21: =PARÂMETROS!$Q$4/C21 -> 1.16E-10 | E21: =PARÂMETROS!$F$6/($C21+PARÂMETROS!$F$6) -> 9.88E-01 | F21: =$C21*PARÂMETROS!$F$6/($C21^2+$C21*PARÂMETROS!$F$6+PARÂMETROS!$F$6*PARÂMETROS!$G$6) -> 9.87E-01 | G21: =PARÂMETROS!$F$6*PARÂMETROS!$G$6/($C21^2+$C21*PARÂMETROS!$F$6+PARÂMETROS!$F$6*PARÂMETROS!$G$6) -> 7.24E-04 | H21: =(PARÂMETROS!$F$6*$C21^2)/($C21^3+PARÂMETROS!$F$6*$C21^2+PARÂMETROS!$F$6*PARÂMETROS!$G$6*$C21+PARÂMETROS!$F$6*PARÂMETROS!$G$6*PARÂMETROS!$H$6) -> 9.87E-01 | I21: =(PARÂMETROS!$F$6*PARÂMETROS!$G$6*$C21)/($C21^3+PARÂMETROS!$F$6*$C21^2+PARÂMETROS!$F$6*PARÂMETROS!$G$6*$C21+PARÂMETROS!$F$6*PARÂMETROS!$G$6*PARÂMETROS!$H$6) -> 7.24E-04 | J21: =(PARÂMETROS!$F$6*PARÂMETROS!$G$6*PARÂMETROS!$H$6)/($C21^3+PARÂMETROS!$F$6*$C21^2+PARÂMETROS!$F$6*PARÂMETROS!$G$6*$C21+PARÂMETROS!$F$6*PARÂMETROS!$G$6*PARÂMETROS!$H$6) -> 3.75E-12 | K21: =$C21/($C21+PARÂMETROS!$J$6) -> 1.00E+00 | L21: =$C21*PARÂMETROS!$J$6/($C21^2+$C21*PARÂMETROS!$J$6+PARÂMETROS!$J$6*PARÂMETROS!$K$6) -> 1.16E-09 | M21: =$C21^2/($C21^2+$C21*PARÂMETROS!$J$6+PARÂMETROS!$J$6*PARÂMETROS!$K$6) -> 1.00E+00 | N21: =(PARÂMETROS!$K$6*PARÂMETROS!$J$6*$C21)/($C21^3+PARÂMETROS!$J$6*$C21^2+PARÂMETROS!$J$6*PARÂMETROS!$K$6*$C21+PARÂMETROS!$J$6*PARÂMETROS!$K$6*PARÂMETROS!$L$6) -> 0.00E+00 | O21: =(PARÂMETROS!$J$6*$C21^2)/($C21^3+PARÂMETROS!$J$6*$C21^2+PARÂMETROS!$J$6*PARÂMETROS!$K$6*$C21+PARÂMETROS!$J$6*PARÂMETROS!$K$6*PARÂMETROS!$L$6) -> 1.16E-09 | P21: =($C21^3)/($C21^3+PARÂMETROS!$J$6*$C21^2+PARÂMETROS!$J$6*PARÂMETROS!$K$6*$C21+PARÂMETROS!$J$6*PARÂMETROS!$K$6*PARÂMETROS!$L$6) -> 1.00E+00 | Q21: =IF(PARÂMETROS!$J$6<PARÂMETROS!$F$6,(E21-(C21-D21)/PARÂMETROS!$C$11)/(K21+(C21-D21)/PARÂMETROS!$C$14),(K21+(C21-D21)/PARÂMETROS!$C$14)/(E21-(C21-D21)/PARÂMETROS!$C$11)) -> 9.87E-01 | R21: =IF(PARÂMETROS!$J$6<PARÂMETROS!$F$6,(E21-(C21-D21)/PARÂMETROS!$C$11)/(L21+2*M21+(C21-D21)/PARÂMETROS!$C$14),(L21+2*M21+(C21-D21)/PARÂMETROS!$C$14)/(E21-(C21-D21)/PARÂMETROS!$C$11)) -> 4.94E-01 | S21: =IF(PARÂMETROS!$J$6<PARÂMETROS!$F$6, (E21-(C21-D21)/PARÂMETROS!$C$11)/(N21+2*O21+3*P21+(C21-D21)/PARÂMETROS!$C$14),(N21+2*O21+3*P21+(C21-D21)/PARÂMETROS!$C$14)/ (E21-(C21-D21)/PARÂMETROS!$C$11)) -> 3.29E-01 | T21: =IF(PARÂMETROS!$J$6<PARÂMETROS!$F$6,(F21+2*G21-(C21-D21)/PARÂMETROS!$C$11)/(K21+(C21-D21)/PARÂMETROS!$C$14),(K21+(C21-D21)/PARÂMETROS!$C$14)/(F21+2*G21-(C21-D21)/PARÂMETROS!$C$11)) -> 9.88E-01 | U21: =IF(PARÂMETROS!$J$6<PARÂMETROS!$F$6,(F21+2*G21-(C21-D21)/PARÂMETROS!$C$11)/(L21+2*M21+(C21-D21)/PARÂMETROS!$C$14),(L21+2*M21+(C21-D21)/PARÂMETROS!$C$14)/(F21+2*G21-(C21-D21)/PARÂMETROS!$C$11)) -> 4.94E-01 | V21: =IF(PARÂMETROS!$J$6<PARÂMETROS!$F$6,(F21+2*G21-(C21-D21)/PARÂMETROS!$C$11)/(N21+2*O21+3*P21+(C21-D21)/PARÂMETROS!$C$14),(N21+2*O21+3*P21+(C21-D21)/PARÂMETROS!$C$14)/(F21+2*G21-(C21-D21)/PARÂMETROS!$C$11)) -> 3.29E-01 | W21: =IF(PARÂMETROS!$J$6<PARÂMETROS!$F$6,(H21+2*I21+3*J21-(C21-D21)/PARÂMETROS!$C$11)/(K21+(C21-D21)/PARÂMETROS!$C$14),(K21+(C21-D21)/PARÂMETROS!$C$14)/(H21+2*I21+3*J21-(C21-D21)/PARÂMETROS!$C$11)) -> 9.88E-01 | X21: =IF(PARÂMETROS!$J$6<PARÂMETROS!$F$6,(H21+2*I21+3*J21-(C21-D21)/PARÂMETROS!$C$11)/(L21+2*M21+(C21-D21)/PARÂMETROS!$C$14),(L21+2*M21+(C21-D21)/PARÂMETROS!$C$14)/(H21+2*I21+3*J21-(C21-D21)/PARÂMETROS!$C$11)) -> 4.94E-01 | Y21: =IF(PARÂMETROS!$J$6<PARÂMETROS!$F$6,(H21+2*I21+3*J21-(C21-D21)/PARÂMETROS!$C$11)/(N21+2*O21+3*P21+(C21-D21)/PARÂMETROS!$C$14),(N21+2*O21+3*P21+(C21-D21)/PARÂMETROS!$C$14)/(H21+2*I21+3*J21-(C21-D21)/PARÂMETROS!$C$11)) -> 3.29E-01 | Z21: =Q21*PARÂMETROS!$C$11*PARÂMETROS!$D$11/PARÂMETROS!$C$14 -> 19.75 | AA21: =R21*PARÂMETROS!$C$11*PARÂMETROS!$D$11/PARÂMETROS!$C$14 -> 9.88 | AB21: =S21*PARÂMETROS!$C$11*PARÂMETROS!$D$11/PARÂMETROS!$C$14 -> 6.58 | AC21: =T21*PARÂMETROS!$C$11*PARÂMETROS!$D$11/PARÂMETROS!$C$14 -> 19.76 | AD21: =U21*PARÂMETROS!$C$11*PARÂMETROS!$D$11/PARÂMETROS!$C$14 -> 9.88 | AE21: =V21*PARÂMETROS!$C$11*PARÂMETROS!$D$11/PARÂMETROS!$C$14 -> 6.59 | AF21: =W21*PARÂMETROS!$C$11*PARÂMETROS!$D$11/PARÂMETROS!$C$14 -> 19.76 | AG21: =X21*PARÂMETROS!$C$11*PARÂMETROS!$D$11/PARÂMETROS!$C$14 -> 9.88 | AH21: =Y21*PARÂMETROS!$C$11*PARÂMETROS!$D$11/PARÂMETROS!$C$14 -> 6.59 | AI21: =AND(B21+PARÂMETROS!$C$8>=PARÂMETROS!$C$5,B21+PARÂMETROS!$C$8<=PARÂMETROS!$D$5) -> TRUE | AJ21: 1 | AK21: =VLOOKUP('BANCO DE DADOS COMPLETA'!$N$8,'BANCO DE DADOS COMPLETA'!$A$7:$L$249,3)*-1 -> 3 | AL21: 7 | AM21: =VLOOKUP('BANCO DE DADOS COMPLETA'!$N$10,'BANCO DE DADOS COMPLETA'!$A$7:$L$249,3)*-1 -> 1 | AN21: 11 | AO21: 77 | AP21: 19.76 | AQ21: 19.76 | AR21: 4.06 | AS21: 1.33 | AT21: 2.01 | AU21: NADA | AV21: NADA | AW21: 0
B22: =B21+PARÂMETROS!$C$8 -> 4.26 | C22: 5.44E-05 | D22: =PARÂMETROS!$Q$4/C22 -> 1.84E-10 | E22: =PARÂMETROS!$F$6/($C22+PARÂMETROS!$F$6) -> 9.92E-01 | F22: =$C22*PARÂMETROS!$F$6/($C22^2+$C22*PARÂMETROS!$F$6+PARÂMETROS!$F$6*PARÂMETROS!$G$6) -> 9.91E-01 | G22: =PARÂMETROS!$F$6*PARÂMETROS!$G$6/($C22^2+$C22*PARÂMETROS!$F$6+PARÂMETROS!$F$6*PARÂMETROS!$G$6) -> 1.15E-03 | H22: =(PARÂMETROS!$F$6*$C22^2)/($C22^3+PARÂMETROS!$F$6*$C22^2+PARÂMETROS!$F$6*PARÂMETROS!$G$6*$C22+PARÂMETROS!$F$6*PARÂMETROS!$G$6*PARÂMETROS!$H$6) -> 9.91E-01 | I22: =(PARÂMETROS!$F$6*PARÂMETROS!$G$6*$C22)/($C22^3+PARÂMETROS!$F$6*$C22^2+PARÂMETROS!$F$6*PARÂMETROS!$G$6*$C22+PARÂMETROS!$F$6*PARÂMETROS!$G$6*PARÂMETROS!$H$6) -> 1.15E-03 | J22: =(PARÂMETROS!$F$6*PARÂMETROS!$G$6*PARÂMETROS!$H$6)/($C22^3+PARÂMETROS!$F$6*$C22^2+PARÂMETROS!$F$6*PARÂMETROS!$G$6*$C22+PARÂMETROS!$F$6*PARÂMETROS!$G$6*PARÂMETROS!$H$6) -> 9.46E-12 | K22: =$C22/($C22+PARÂMETROS!$J$6) -> 1.00E+00 | L22: =$C22*PARÂMETROS!$J$6/($C22^2+$C22*PARÂMETROS!$J$6+PARÂMETROS!$J$6*PARÂMETROS!$K$6) -> 1.84E-09 | M22: =$C22^2/($C22^2+$C22*PARÂMETROS!$J$6+PARÂMETROS!$J$6*PARÂMETROS!$K$6) -> 1.00E+00 | N22: =(PARÂMETROS!$K$6*PARÂMETROS!$J$6*$C22)/($C22^3+PARÂMETROS!$J$6*$C22^2+PARÂMETROS!$J$6*PARÂMETROS!$K$6*$C22+PARÂMETROS!$J$6*PARÂMETROS!$K$6*PARÂMETROS!$L$6) -> 0.00E+00 | O22: =(PARÂMETROS!$J$6*$C22^2)/($C22^3+PARÂMETROS!$J$6*$C22^2+PARÂMETROS!$J$6*PARÂMETROS!$K$6*$C22+PARÂMETROS!$J$6*PARÂMETROS!$K$6*PARÂMETROS!$L$6) -> 1.84E-09 | P22: =($C22^3)/($C22^3+PARÂMETROS!$J$6*$C22^2+PARÂMETROS!$J$6*PARÂMETROS!$K$6*$C22+PARÂMETROS!$J$6*PARÂMETROS!$K$6*PARÂMETROS!$L$6) -> 1.00E+00 | Q22: =IF(PARÂMETROS!$J$6<PARÂMETROS!$F$6,(E22-(C22-D22)/PARÂMETROS!$C$11)/(K22+(C22-D22)/PARÂMETROS!$C$14),(K22+(C22-D22)/PARÂMETROS!$C$14)/(E22-(C22-D22)/PARÂMETROS!$C$11)) -> 9.92E-01 | R22: =IF(PARÂMETROS!$J$6<PARÂMETROS!$F$6,(E22-(C22-D22)/PARÂMETROS!$C$11)/(L22+2*M22+(C22-D22)/PARÂMETROS!$C$14),(L22+2*M22+(C22-D22)/PARÂMETROS!$C$14)/(E22-(C22-D22)/PARÂMETROS!$C$11)) -> 4.96E-01 | S22: =IF(PARÂMETROS!$J$6<PARÂMETROS!$F$6, (E22-(C22-D22)/PARÂMETROS!$C$11)/(N22+2*O22+3*P22+(C22-D22)/PARÂMETROS!$C$14),(N22+2*O22+3*P22+(C22-D22)/PARÂMETROS!$C$14)/ (E22-(C22-D22)/PARÂMETROS!$C$11)) -> 3.31E-01 | T22: =IF(PARÂMETROS!$J$6<PARÂMETROS!$F$6,(F22+2*G22-(C22-D22)/PARÂMETROS!$C$11)/(K22+(C22-D22)/PARÂMETROS!$C$14),(K22+(C22-D22)/PARÂMETROS!$C$14)/(F22+2*G22-(C22-D22)/PARÂMETROS!$C$11)) -> 9.93E-01 | U22: =IF(PARÂMETROS!$J$6<PARÂMETROS!$F$6,(F22+2*G22-(C22-D22)/PARÂMETROS!$C$11)/(L22+2*M22+(C22-D22)/PARÂMETROS!$C$14),(L22+2*M22+(C22-D22)/PARÂMETROS!$C$14)/(F22+2*G22-(C22-D22)/PARÂMETROS!$C$11)) -> 4.97E-01 | V22: =IF(PARÂMETROS!$J$6<PARÂMETROS!$F$6,(F22+2*G22-(C22-D22)/PARÂMETROS!$C$11)/(N22+2*O22+3*P22+(C22-D22)/PARÂMETROS!$C$14),(N22+2*O22+3*P22+(C22-D22)/PARÂMETROS!$C$14)/(F22+2*G22-(C22-D22)/PARÂMETROS!$C$11)) -> 3.31E-01 | W22: =IF(PARÂMETROS!$J$6<PARÂMETROS!$F$6,(H22+2*I22+3*J22-(C22-D22)/PARÂMETROS!$C$11)/(K22+(C22-D22)/PARÂMETROS!$C$14),(K22+(C22-D22)/PARÂMETROS!$C$14)/(H22+2*I22+3*J22-(C22-D22)/PARÂMETROS!$C$11)) -> 9.93E-01 | X22: =IF(PARÂMETROS!$J$6<PARÂMETROS!$F$6,(H22+2*I22+3*J22-(C22-D22)/PARÂMETROS!$C$11)/(L22+2*M22+(C22-D22)/PARÂMETROS!$C$14),(L22+2*M22+(C22-D22)/PARÂMETROS!$C$14)/(H22+2*I22+3*J22-(C22-D22)/PARÂMETROS!$C$11)) -> 4.97E-01 | Y22: =IF(PARÂMETROS!$J$6<PARÂMETROS!$F$6,(H22+2*I22+3*J22-(C22-D22)/PARÂMETROS!$C$11)/(N22+2*O22+3*P22+(C22-D22)/PARÂMETROS!$C$14),(N22+2*O22+3*P22+(C22-D22)/PARÂMETROS!$C$14)/(H22+2*I22+3*J22-(C22-D22)/PARÂMETROS!$C$11)) -> 3.31E-01 | Z22: =Q22*PARÂMETROS!$C$11*PARÂMETROS!$D$11/PARÂMETROS!$C$14 -> 19.84 | AA22: =R22*PARÂMETROS!$C$11*PARÂMETROS!$D$11/PARÂMETROS!$C$14 -> 9.92 | AB22: =S22*PARÂMETROS!$C$11*PARÂMETROS!$D$11/PARÂMETROS!$C$14 -> 6.61 | AC22: =T22*PARÂMETROS!$C$11*PARÂMETROS!$D$11/PARÂMETROS!$C$14 -> 19.86 | AD22: =U22*PARÂMETROS!$C$11*PARÂMETROS!$D$11/PARÂMETROS!$C$14 -> 9.93 | AE22: =V22*PARÂMETROS!$C$11*PARÂMETROS!$D$11/PARÂMETROS!$C$14 -> 6.62 | AF22: =W22*PARÂMETROS!$C$11*PARÂMETROS!$D$11/PARÂMETROS!$C$14 -> 19.86 | AG22: =X22*PARÂMETROS!$C$11*PARÂMETROS!$D$11/PARÂMETROS!$C$14 -> 9.93 | AH22: =Y22*PARÂMETROS!$C$11*PARÂMETROS!$D$11/PARÂMETROS!$C$14 -> 6.62 | AI22: =AND(B22+PARÂMETROS!$C$8>=PARÂMETROS!$C$5,B22+PARÂMETROS!$C$8<=PARÂMETROS!$D$5) -> TRUE | AJ22: 1 | AK22: =VLOOKUP('BANCO DE DADOS COMPLETA'!$N$8,'BANCO DE DADOS COMPLETA'!$A$7:$L$249,3)*-1 -> 3 | AL22: 7 | AM22: =VLOOKUP('BANCO DE DADOS COMPLETA'!$N$10,'BANCO DE DADOS COMPLETA'!$A$7:$L$249,3)*-1 -> 1 | AN22: 11 | AO22: 77 | AP22: 19.86 | AQ22: 19.86 | AR22: 4.26 | AS22: 1.99 | AT22: 4.34 | AU22: NADA | AV22: NADA | AW22: 0
B23: =B22+PARÂMETROS!$C$8 -> 4.46 | C23: 3.43E-05 | D23: =PARÂMETROS!$Q$4/C23 -> 2.91E-10 | E23: =PARÂMETROS!$F$6/($C23+PARÂMETROS!$F$6) -> 9.95E-01 | F23: =$C23*PARÂMETROS!$F$6/($C23^2+$C23*PARÂMETROS!$F$6+PARÂMETROS!$F$6*PARÂMETROS!$G$6) -> 9.93E-01 | G23: =PARÂMETROS!$F$6*PARÂMETROS!$G$6/($C23^2+$C23*PARÂMETROS!$F$6+PARÂMETROS!$F$6*PARÂMETROS!$G$6) -> 1.83E-03 | H23: =(PARÂMETROS!$F$6*$C23^2)/($C23^3+PARÂMETROS!$F$6*$C23^2+PARÂMETROS!$F$6*PARÂMETROS!$G$6*$C23+PARÂMETROS!$F$6*PARÂMETROS!$G$6*PARÂMETROS!$H$6) -> 9.93E-01 | I23: =(PARÂMETROS!$F$6*PARÂMETROS!$G$6*$C23)/($C23^3+PARÂMETROS!$F$6*$C23^2+PARÂMETROS!$F$6*PARÂMETROS!$G$6*$C23+PARÂMETROS!$F$6*PARÂMETROS!$G$6*PARÂMETROS!$H$6) -> 1.83E-03 | J23: =(PARÂMETROS!$F$6*PARÂMETROS!$G$6*PARÂMETROS!$H$6)/($C23^3+PARÂMETROS!$F$6*$C23^2+PARÂMETROS!$F$6*PARÂMETROS!$G$6*$C23+PARÂMETROS!$F$6*PARÂMETROS!$G$6*PARÂMETROS!$H$6) -> 2.38E-11 | K23: =$C23/($C23+PARÂMETROS!$J$6) -> 1.00E+00 | L23: =$C23*PARÂMETROS!$J$6/($C23^2+$C23*PARÂMETROS!$J$6+PARÂMETROS!$J$6*PARÂMETROS!$K$6) -> 2.91E-09 | M23: =$C23^2/($C23^2+$C23*PARÂMETROS!$J$6+PARÂMETROS!$J$6*PARÂMETROS!$K$6) -> 1.00E+00 | N23: =(PARÂMETROS!$K$6*PARÂMETROS!$J$6*$C23)/($C23^3+PARÂMETROS!$J$6*$C23^2+PARÂMETROS!$J$6*PARÂMETROS!$K$6*$C23+PARÂMETROS!$J$6*PARÂMETROS!$K$6*PARÂMETROS!$L$6) -> 0.00E+00 | O23: =(PARÂMETROS!$J$6*$C23^2)/($C23^3+PARÂMETROS!$J$6*$C23^2+PARÂMETROS!$J$6*PARÂMETROS!$K$6*$C23+PARÂMETROS!$J$6*PARÂMETROS!$K$6*PARÂMETROS!$L$6) -> 2.91E-09 | P23: =($C23^3)/($C23^3+PARÂMETROS!$J$6*$C23^2+PARÂMETROS!$J$6*PARÂMETROS!$K$6*$C23+PARÂMETROS!$J$6*PARÂMETROS!$K$6*PARÂMETROS!$L$6) -> 1.00E+00 | Q23: =IF(PARÂMETROS!$J$6<PARÂMETROS!$F$6,(E23-(C23-D23)/PARÂMETROS!$C$11)/(K23+(C23-D23)/PARÂMETROS!$C$14),(K23+(C23-D23)/PARÂMETROS!$C$14)/(E23-(C23-D23)/PARÂMETROS!$C$11)) -> 9.95E-01 | R23: =IF(PARÂMETROS!$J$6<PARÂMETROS!$F$6,(E23-(C23-D23)/PARÂMETROS!$C$11)/(L23+2*M23+(C23-D23)/PARÂMETROS!$C$14),(L23+2*M23+(C23-D23)/PARÂMETROS!$C$14)/(E23-(C23-D23)/PARÂMETROS!$C$11)) -> 4.97E-01 | S23: =IF(PARÂMETROS!$J$6<PARÂMETROS!$F$6, (E23-(C23-D23)/PARÂMETROS!$C$11)/(N23+2*O23+3*P23+(C23-D23)/PARÂMETROS!$C$14),(N23+2*O23+3*P23+(C23-D23)/PARÂMETROS!$C$14)/ (E23-(C23-D23)/PARÂMETROS!$C$11)) -> 3.32E-01 | T23: =IF(PARÂMETROS!$J$6<PARÂMETROS!$F$6,(F23+2*G23-(C23-D23)/PARÂMETROS!$C$11)/(K23+(C23-D23)/PARÂMETROS!$C$14),(K23+(C23-D23)/PARÂMETROS!$C$14)/(F23+2*G23-(C23-D23)/PARÂMETROS!$C$11)) -> 9.97E-01 | U23: =IF(PARÂMETROS!$J$6<PARÂMETROS!$F$6,(F23+2*G23-(C23-D23)/PARÂMETROS!$C$11)/(L23+2*M23+(C23-D23)/PARÂMETROS!$C$14),(L23+2*M23+(C23-D23)/PARÂMETROS!$C$14)/(F23+2*G23-(C23-D23)/PARÂMETROS!$C$11)) -> 4.98E-01 | V23: =IF(PARÂMETROS!$J$6<PARÂMETROS!$F$6,(F23+2*G23-(C23-D23)/PARÂMETROS!$C$11)/(N23+2*O23+3*P23+(C23-D23)/PARÂMETROS!$C$14),(N23+2*O23+3*P23+(C23-D23)/PARÂMETROS!$C$14)/(F23+2*G23-(C23-D23)/PARÂMETROS!$C$11)) -> 3.32E-01 | W23: =IF(PARÂMETROS!$J$6<PARÂMETROS!$F$6,(H23+2*I23+3*J23-(C23-D23)/PARÂMETROS!$C$11)/(K23+(C23-D23)/PARÂMETROS!$C$14),(K23+(C23-D23)/PARÂMETROS!$C$14)/(H23+2*I23+3*J23-(C23-D23)/PARÂMETROS!$C$11)) -> 9.97E-01 | X23: =IF(PARÂMETROS!$J$6<PARÂMETROS!$F$6,(H23+2*I23+3*J23-(C23-D23)/PARÂMETROS!$C$11)/(L23+2*M23+(C23-D23)/PARÂMETROS!$C$14),(L23+2*M23+(C23-D23)/PARÂMETROS!$C$14)/(H23+2*I23+3*J23-(C23-D23)/PARÂMETROS!$C$11)) -> 4.98E-01 | Y23: =IF(PARÂMETROS!$J$6<PARÂMETROS!$F$6,(H23+2*I23+3*J23-(C23-D23)/PARÂMETROS!$C$11)/(N23+2*O23+3*P23+(C23-D23)/PARÂMETROS!$C$14),(N23+2*O23+3*P23+(C23-D23)/PARÂMETROS!$C$14)/(H23+2*I23+3*J23-(C23-D23)/PARÂMETROS!$C$11)) -> 3.32E-01 | Z23: =Q23*PARÂMETROS!$C$11*PARÂMETROS!$D$11/PARÂMETROS!$C$14 -> 19.90 | AA23: =R23*PARÂMETROS!$C$11*PARÂMETROS!$D$11/PARÂMETROS!$C$14 -> 9.95 | AB23: =S23*PARÂMETROS!$C$11*PARÂMETROS!$D$11/PARÂMETROS!$C$14 -> 6.63 | AC23: =T23*PARÂMETROS!$C$11*PARÂMETROS!$D$11/PARÂMETROS!$C$14 -> 19.94 | AD23: =U23*PARÂMETROS!$C$11*PARÂMETROS!$D$11/PARÂMETROS!$C$14 -> 9.97 | AE23: =V23*PARÂMETROS!$C$11*PARÂMETROS!$D$11/PARÂMETROS!$C$14 -> 6.65 | AF23: =W23*PARÂMETROS!$C$11*PARÂMETROS!$D$11/PARÂMETROS!$C$14 -> 19.94 | AG23: =X23*PARÂMETROS!$C$11*PARÂMETROS!$D$11/PARÂMETROS!$C$14 -> 9.97 | AH23: =Y23*PARÂMETROS!$C$11*PARÂMETROS!$D$11/PARÂMETROS!$C$14 -> 6.65 | AI23: =AND(B23+PARÂMETROS!$C$8>=PARÂMETROS!$C$5,B23+PARÂMETROS!$C$8<=PARÂMETROS!$D$5) -> TRUE | AJ23: 1 | AK23: =VLOOKUP('BANCO DE DADOS COMPLETA'!$N$8,'BANCO DE DADOS COMPLETA'!$A$7:$L$249,3)*-1 -> 3 | AL23: 7 | AM23: =VLOOKUP('BANCO DE DADOS COMPLETA'!$N$10,'BANCO DE DADOS COMPLETA'!$A$7:$L$249,3)*-1 -> 1 | AN23: 11 | AO23: 77 | AP23: 19.94 | AQ23: 19.94 | AR23: 4.46 | AS23: 2.77 | AT23: 7.82 | AU23: NADA | AV23: NADA | AW23: 0
B24: =B23+PARÂMETROS!$C$8 -> 4.66 | C24: 2.17E-05 | D24: =PARÂMETROS!$Q$4/C24 -> 4.62E-10 | E24: =PARÂMETROS!$F$6/($C24+PARÂMETROS!$F$6) -> 9.97E-01 | F24: =$C24*PARÂMETROS!$F$6/($C24^2+$C24*PARÂMETROS!$F$6+PARÂMETROS!$F$6*PARÂMETROS!$G$6) -> 9.94E-01 | G24: =PARÂMETROS!$F$6*PARÂMETROS!$G$6/($C24^2+$C24*PARÂMETROS!$F$6+PARÂMETROS!$F$6*PARÂMETROS!$G$6) -> 2.90E-03 | H24: =(PARÂMETROS!$F$6*$C24^2)/($C24^3+PARÂMETROS!$F$6*$C24^2+PARÂMETROS!$F$6*PARÂMETROS!$G$6*$C24+PARÂMETROS!$F$6*PARÂMETROS!$G$6*PARÂMETROS!$H$6) -> 9.94E-01 | I24: =(PARÂMETROS!$F$6*PARÂMETROS!$G$6*$C24)/($C24^3+PARÂMETROS!$F$6*$C24^2+PARÂMETROS!$F$6*PARÂMETROS!$G$6*$C24+PARÂMETROS!$F$6*PARÂMETROS!$G$6*PARÂMETROS!$H$6) -> 2.90E-03 | J24: =(PARÂMETROS!$F$6*PARÂMETROS!$G$6*PARÂMETROS!$H$6)/($C24^3+PARÂMETROS!$F$6*$C24^2+PARÂMETROS!$F$6*PARÂMETROS!$G$6*$C24+PARÂMETROS!$F$6*PARÂMETROS!$G$6*PARÂMETROS!$H$6) -> 5.99E-11 | K24: =$C24/($C24+PARÂMETROS!$J$6) -> 1.00E+00 | L24: =$C24*PARÂMETROS!$J$6/($C24^2+$C24*PARÂMETROS!$J$6+PARÂMETROS!$J$6*PARÂMETROS!$K$6) -> 4.62E-09 | M24: =$C24^2/($C24^2+$C24*PARÂMETROS!$J$6+PARÂMETROS!$J$6*PARÂMETROS!$K$6) -> 1.00E+00 | N24: =(PARÂMETROS!$K$6*PARÂMETROS!$J$6*$C24)/($C24^3+PARÂMETROS!$J$6*$C24^2+PARÂMETROS!$J$6*PARÂMETROS!$K$6*$C24+PARÂMETROS!$J$6*PARÂMETROS!$K$6*PARÂMETROS!$L$6) -> 0.00E+00 | O24: =(PARÂMETROS!$J$6*$C24^2)/($C24^3+PARÂMETROS!$J$6*$C24^2+PARÂMETROS!$J$6*PARÂMETROS!$K$6*$C24+PARÂMETROS!$J$6*PARÂMETROS!$K$6*PARÂMETROS!$L$6) -> 4.62E-09 | P24: =($C24^3)/($C24^3+PARÂMETROS!$J$6*$C24^2+PARÂMETROS!$J$6*PARÂMETROS!$K$6*$C24+PARÂMETROS!$J$6*PARÂMETROS!$K$6*PARÂMETROS!$L$6) -> 1.00E+00 | Q24: =IF(PARÂMETROS!$J$6<PARÂMETROS!$F$6,(E24-(C24-D24)/PARÂMETROS!$C$11)/(K24+(C24-D24)/PARÂMETROS!$C$14),(K24+(C24-D24)/PARÂMETROS!$C$14)/(E24-(C24-D24)/PARÂMETROS!$C$11)) -> 9.97E-01 | R24: =IF(PARÂMETROS!$J$6<PARÂMETROS!$F$6,(E24-(C24-D24)/PARÂMETROS!$C$11)/(L24+2*M24+(C24-D24)/PARÂMETROS!$C$14),(L24+2*M24+(C24-D24)/PARÂMETROS!$C$14)/(E24-(C24-D24)/PARÂMETROS!$C$11)) -> 4.98E-01 | S24: =IF(PARÂMETROS!$J$6<PARÂMETROS!$F$6, (E24-(C24-D24)/PARÂMETROS!$C$11)/(N24+2*O24+3*P24+(C24-D24)/PARÂMETROS!$C$14),(N24+2*O24+3*P24+(C24-D24)/PARÂMETROS!$C$14)/ (E24-(C24-D24)/PARÂMETROS!$C$11)) -> 3.32E-01 | T24: =IF(PARÂMETROS!$J$6<PARÂMETROS!$F$6,(F24+2*G24-(C24-D24)/PARÂMETROS!$C$11)/(K24+(C24-D24)/PARÂMETROS!$C$14),(K24+(C24-D24)/PARÂMETROS!$C$14)/(F24+2*G24-(C24-D24)/PARÂMETROS!$C$11)) -> 1.00E+00 | U24: =IF(PARÂMETROS!$J$6<PARÂMETROS!$F$6,(F24+2*G24-(C24-D24)/PARÂMETROS!$C$11)/(L24+2*M24+(C24-D24)/PARÂMETROS!$C$14),(L24+2*M24+(C24-D24)/PARÂMETROS!$C$14)/(F24+2*G24-(C24-D24)/PARÂMETROS!$C$11)) -> 5.00E-01 | V24: =IF(PARÂMETROS!$J$6<PARÂMETROS!$F$6,(F24+2*G24-(C24-D24)/PARÂMETROS!$C$11)/(N24+2*O24+3*P24+(C24-D24)/PARÂMETROS!$C$14),(N24+2*O24+3*P24+(C24-D24)/PARÂMETROS!$C$14)/(F24+2*G24-(C24-D24)/PARÂMETROS!$C$11)) -> 3.33E-01 | W24: =IF(PARÂMETROS!$J$6<PARÂMETROS!$F$6,(H24+2*I24+3*J24-(C24-D24)/PARÂMETROS!$C$11)/(K24+(C24-D24)/PARÂMETROS!$C$14),(K24+(C24-D24)/PARÂMETROS!$C$14)/(H24+2*I24+3*J24-(C24-D24)/PARÂMETROS!$C$11)) -> 1.00E+00 | X24: =IF(PARÂMETROS!$J$6<PARÂMETROS!$F$6,(H24+2*I24+3*J24-(C24-D24)/PARÂMETROS!$C$11)/(L24+2*M24+(C24-D24)/PARÂMETROS!$C$14),(L24+2*M24+(C24-D24)/PARÂMETROS!$C$14)/(H24+2*I24+3*J24-(C24-D24)/PARÂMETROS!$C$11)) -> 5.00E-01 | Y24: =IF(PARÂMETROS!$J$6<PARÂMETROS!$F$6,(H24+2*I24+3*J24-(C24-D24)/PARÂMETROS!$C$11)/(N24+2*O24+3*P24+(C24-D24)/PARÂMETROS!$C$14),(N24+2*O24+3*P24+(C24-D24)/PARÂMETROS!$C$14)/(H24+2*I24+3*J24-(C24-D24)/PARÂMETROS!$C$11)) -> 3.33E-01 | Z24: =Q24*PARÂMETROS!$C$11*PARÂMETROS!$D$11/PARÂMETROS!$C$14 -> 19.94 | AA24: =R24*PARÂMETROS!$C$11*PARÂMETROS!$D$11/PARÂMETROS!$C$14 -> 9.97 | AB24: =S24*PARÂMETROS!$C$11*PARÂMETROS!$D$11/PARÂMETROS!$C$14 -> 6.65 | AC24: =T24*PARÂMETROS!$C$11*PARÂMETROS!$D$11/PARÂMETROS!$C$14 -> 19.99 | AD24: =U24*PARÂMETROS!$C$11*PARÂMETROS!$D$11/PARÂMETROS!$C$14 -> 10.00 | AE24: =V24*PARÂMETROS!$C$11*PARÂMETROS!$D$11/PARÂMETROS!$C$14 -> 6.67 | AF24: =W24*PARÂMETROS!$C$11*PARÂMETROS!$D$11/PARÂMETROS!$C$14 -> 19.99 | AG24: =X24*PARÂMETROS!$C$11*PARÂMETROS!$D$11/PARÂMETROS!$C$14 -> 10.00 | AH24: =Y24*PARÂMETROS!$C$11*PARÂMETROS!$D$11/PARÂMETROS!$C$14 -> 6.67 | AI24: =AND(B24+PARÂMETROS!$C$8>=PARÂMETROS!$C$5,B24+PARÂMETROS!$C$8<=PARÂMETROS!$D$5) -> TRUE | AJ24: 1 | AK24: =VLOOKUP('BANCO DE DADOS COMPLETA'!$N$8,'BANCO DE DADOS COMPLETA'!$A$7:$L$249,3)*-1 -> 3 | AL24: 7 | AM24: =VLOOKUP('BANCO DE DADOS COMPLETA'!$N$10,'BANCO DE DADOS COMPLETA'!$A$7:$L$249,3)*-1 -> 1 | AN24: 11 | AO24: 77 | AP24: 19.99 | AQ24: 19.99 | AR24: 4.66 | AS24: 3.42 | AT24: 8.90 | AU24: =IF(AT23>0,IF(AT25<0,AQ24,"NADA"),"NADA") -> NADA | AV24: NADA | AW24: 0
B25: =B24+PARÂMETROS!$C$8 -> 4.86 | C25: 1.37E-05 | D25: =PARÂMETROS!$Q$4/C25 -> 7.32E-10 | E25: =PARÂMETROS!$F$6/($C25+PARÂMETROS!$F$6) -> 9.98E-01 | F25: =$C25*PARÂMETROS!$F$6/($C25^2+$C25*PARÂMETROS!$F$6+PARÂMETROS!$F$6*PARÂMETROS!$G$6) -> 9.93E-01 | G25: =PARÂMETROS!$F$6*PARÂMETROS!$G$6/($C25^2+$C25*PARÂMETROS!$F$6+PARÂMETROS!$F$6*PARÂMETROS!$G$6) -> 4.60E-03 | H25: =(PARÂMETROS!$F$6*$C25^2)/($C25^3+PARÂMETROS!$F$6*$C25^2+PARÂMETROS!$F$6*PARÂMETROS!$G$6*$C25+PARÂMETROS!$F$6*PARÂMETROS!$G$6*PARÂMETROS!$H$6) -> 9.93E-01 | I25: =(PARÂMETROS!$F$6*PARÂMETROS!$G$6*$C25)/($C25^3+PARÂMETROS!$F$6*$C25^2+PARÂMETROS!$F$6*PARÂMETROS!$G$6*$C25+PARÂMETROS!$F$6*PARÂMETROS!$G$6*PARÂMETROS!$H$6) -> 4.60E-03 | J25: =(PARÂMETROS!$F$6*PARÂMETROS!$G$6*PARÂMETROS!$H$6)/($C25^3+PARÂMETROS!$F$6*$C25^2+PARÂMETROS!$F$6*PARÂMETROS!$G$6*$C25+PARÂMETROS!$F$6*PARÂMETROS!$G$6*PARÂMETROS!$H$6) -> 1.50E-10 | K25: =$C25/($C25+PARÂMETROS!$J$6) -> 1.00E+00 | L25: =$C25*PARÂMETROS!$J$6/($C25^2+$C25*PARÂMETROS!$J$6+PARÂMETROS!$J$6*PARÂMETROS!$K$6) -> 7.32E-09 | M25: =$C25^2/($C25^2+$C25*PARÂMETROS!$J$6+PARÂMETROS!$J$6*PARÂMETROS!$K$6) -> 1.00E+00 | N25: =(PARÂMETROS!$K$6*PARÂMETROS!$J$6*$C25)/($C25^3+PARÂMETROS!$J$6*$C25^2+PARÂMETROS!$J$6*PARÂMETROS!$K$6*$C25+PARÂMETROS!$J$6*PARÂMETROS!$K$6*PARÂMETROS!$L$6) -> 0.00E+00 | O25: =(PARÂMETROS!$J$6*$C25^2)/($C25^3+PARÂMETROS!$J$6*$C25^2+PARÂMETROS!$J$6*PARÂMETROS!$K$6*$C25+PARÂMETROS!$J$6*PARÂMETROS!$K$6*PARÂMETROS!$L$6) -> 7.32E-09 | P25: =($C25^3)/($C25^3+PARÂMETROS!$J$6*$C25^2+PARÂMETROS!$J$6*PARÂMETROS!$K$6*$C25+PARÂMETROS!$J$6*PARÂMETROS!$K$6*PARÂMETROS!$L$6) -> 1.00E+00 | Q25: =IF(PARÂMETROS!$J$6<PARÂMETROS!$F$6,(E25-(C25-D25)/PARÂMETROS!$C$11)/(K25+(C25-D25)/PARÂMETROS!$C$14),(K25+(C25-D25)/PARÂMETROS!$C$14)/(E25-(C25-D25)/PARÂMETROS!$C$11)) -> 9.98E-01 | R25: =IF(PARÂMETROS!$J$6<PARÂMETROS!$F$6,(E25-(C25-D25)/PARÂMETROS!$C$11)/(L25+2*M25+(C25-D25)/PARÂMETROS!$C$14),(L25+2*M25+(C25-D25)/PARÂMETROS!$C$14)/(E25-(C25-D25)/PARÂMETROS!$C$11)) -> 4.99E-01 | S25: =IF(PARÂMETROS!$J$6<PARÂMETROS!$F$6, (E25-(C25-D25)/PARÂMETROS!$C$11)/(N25+2*O25+3*P25+(C25-D25)/PARÂMETROS!$C$14),(N25+2*O25+3*P25+(C25-D25)/PARÂMETROS!$C$14)/ (E25-(C25-D25)/PARÂMETROS!$C$11)) -> 3.33E-01 | T25: =IF(PARÂMETROS!$J$6<PARÂMETROS!$F$6,(F25+2*G25-(C25-D25)/PARÂMETROS!$C$11)/(K25+(C25-D25)/PARÂMETROS!$C$14),(K25+(C25-D25)/PARÂMETROS!$C$14)/(F25+2*G25-(C25-D25)/PARÂMETROS!$C$11)) -> 1.00E+00 | U25: =IF(PARÂMETROS!$J$6<PARÂMETROS!$F$6,(F25+2*G25-(C25-D25)/PARÂMETROS!$C$11)/(L25+2*M25+(C25-D25)/PARÂMETROS!$C$14),(L25+2*M25+(C25-D25)/PARÂMETROS!$C$14)/(F25+2*G25-(C25-D25)/PARÂMETROS!$C$11)) -> 5.01E-01 | V25: =IF(PARÂMETROS!$J$6<PARÂMETROS!$F$6,(F25+2*G25-(C25-D25)/PARÂMETROS!$C$11)/(N25+2*O25+3*P25+(C25-D25)/PARÂMETROS!$C$14),(N25+2*O25+3*P25+(C25-D25)/PARÂMETROS!$C$14)/(F25+2*G25-(C25-D25)/PARÂMETROS!$C$11)) -> 3.34E-01 | W25: =IF(PARÂMETROS!$J$6<PARÂMETROS!$F$6,(H25+2*I25+3*J25-(C25-D25)/PARÂMETROS!$C$11)/(K25+(C25-D25)/PARÂMETROS!$C$14),(K25+(C25-D25)/PARÂMETROS!$C$14)/(H25+2*I25+3*J25-(C25-D25)/PARÂMETROS!$C$11)) -> 1.00E+00 | X25: =IF(PARÂMETROS!$J$6<PARÂMETROS!$F$6,(H25+2*I25+3*J25-(C25-D25)/PARÂMETROS!$C$11)/(L25+2*M25+(C25-D25)/PARÂMETROS!$C$14),(L25+2*M25+(C25-D25)/PARÂMETROS!$C$14)/(H25+2*I25+3*J25-(C25-D25)/PARÂMETROS!$C$11)) -> 5.01E-01 | Y25: =IF(PARÂMETROS!$J$6<PARÂMETROS!$F$6,(H25+2*I25+3*J25-(C25-D25)/PARÂMETROS!$C$11)/(N25+2*O25+3*P25+(C25-D25)/PARÂMETROS!$C$14),(N25+2*O25+3*P25+(C25-D25)/PARÂMETROS!$C$14)/(H25+2*I25+3*J25-(C25-D25)/PARÂMETROS!$C$11)) -> 3.34E-01 | Z25: =Q25*PARÂMETROS!$C$11*PARÂMETROS!$D$11/PARÂMETROS!$C$14 -> 19.96 | AA25: =R25*PARÂMETROS!$C$11*PARÂMETROS!$D$11/PARÂMETROS!$C$14 -> 9.98 | AB25: =S25*PARÂMETROS!$C$11*PARÂMETROS!$D$11/PARÂMETROS!$C$14 -> 6.65 | AC25: =T25*PARÂMETROS!$C$11*PARÂMETROS!$D$11/PARÂMETROS!$C$14 -> 20.05 | AD25: =U25*PARÂMETROS!$C$11*PARÂMETROS!$D$11/PARÂMETROS!$C$14 -> 10.03 | AE25: =V25*PARÂMETROS!$C$11*PARÂMETROS!$D$11/PARÂMETROS!$C$14 -> 6.68 | AF25: =W25*PARÂMETROS!$C$11*PARÂMETROS!$D$11/PARÂMETROS!$C$14 -> 20.05 | AG25: =X25*PARÂMETROS!$C$11*PARÂMETROS!$D$11/PARÂMETROS!$C$14 -> 10.03 | AH25: =Y25*PARÂMETROS!$C$11*PARÂMETROS!$D$11/PARÂMETROS!$C$14 -> 6.68 | AI25: =AND(B25+PARÂMETROS!$C$8>=PARÂMETROS!$C$5,B25+PARÂMETROS!$C$8<=PARÂMETROS!$D$5) -> TRUE | AJ25: 1 | AK25: =VLOOKUP('BANCO DE DADOS COMPLETA'!$N$8,'BANCO DE DADOS COMPLETA'!$A$7:$L$249,3)*-1 -> 3 | AL25: 7 | AM25: =VLOOKUP('BANCO DE DADOS COMPLETA'!$N$10,'BANCO DE DADOS COMPLETA'!$A$7:$L$249,3)*-1 -> 1 | AN25: 11 | AO25: 77 | AP25: 20.05 | AQ25: 20.05 | AR25: 4.86 | AS25: 3.49 | AT25: 1.20 | AU25: =IF(AT24>0,IF(AT26<0,AQ25,"NADA"),"NADA") -> 20.05 | AV25: =IF(AU24="NADA","NADA",IF(AU25="NADA","NADA",AVERAGE(AU25,AU24))) -> NADA | AW25: 0
B26: =B25+PARÂMETROS!$C$8 -> 5.06 | C26: 8.62E-06 | D26: =PARÂMETROS!$Q$4/C26 -> 1.16E-09 | E26: =PARÂMETROS!$F$6/($C26+PARÂMETROS!$F$6) -> 9.99E-01 | F26: =$C26*PARÂMETROS!$F$6/($C26^2+$C26*PARÂMETROS!$F$6+PARÂMETROS!$F$6*PARÂMETROS!$G$6) -> 9.92E-01 | G26: =PARÂMETROS!$F$6*PARÂMETROS!$G$6/($C26^2+$C26*PARÂMETROS!$F$6+PARÂMETROS!$F$6*PARÂMETROS!$G$6) -> 7.27E-03 | H26: =(PARÂMETROS!$F$6*$C26^2)/($C26^3+PARÂMETROS!$F$6*$C26^2+PARÂMETROS!$F$6*PARÂMETROS!$G$6*$C26+PARÂMETROS!$F$6*PARÂMETROS!$G$6*PARÂMETROS!$H$6) -> 9.92E-01 | I26: =(PARÂMETROS!$F$6*PARÂMETROS!$G$6*$C26)/($C26^3+PARÂMETROS!$F$6*$C26^2+PARÂMETROS!$F$6*PARÂMETROS!$G$6*$C26+PARÂMETROS!$F$6*PARÂMETROS!$G$6*PARÂMETROS!$H$6) -> 7.27E-03 | J26: =(PARÂMETROS!$F$6*PARÂMETROS!$G$6*PARÂMETROS!$H$6)/($C26^3+PARÂMETROS!$F$6*$C26^2+PARÂMETROS!$F$6*PARÂMETROS!$G$6*$C26+PARÂMETROS!$F$6*PARÂMETROS!$G$6*PARÂMETROS!$H$6) -> 3.77E-10 | K26: =$C26/($C26+PARÂMETROS!$J$6) -> 1.00E+00 | L26: =$C26*PARÂMETROS!$J$6/($C26^2+$C26*PARÂMETROS!$J$6+PARÂMETROS!$J$6*PARÂMETROS!$K$6) -> 1.16E-08 | M26: =$C26^2/($C26^2+$C26*PARÂMETROS!$J$6+PARÂMETROS!$J$6*PARÂMETROS!$K$6) -> 1.00E+00 | N26: =(PARÂMETROS!$K$6*PARÂMETROS!$J$6*$C26)/($C26^3+PARÂMETROS!$J$6*$C26^2+PARÂMETROS!$J$6*PARÂMETROS!$K$6*$C26+PARÂMETROS!$J$6*PARÂMETROS!$K$6*PARÂMETROS!$L$6) -> 0.00E+00 | O26: =(PARÂMETROS!$J$6*$C26^2)/($C26^3+PARÂMETROS!$J$6*$C26^2+PARÂMETROS!$J$6*PARÂMETROS!$K$6*$C26+PARÂMETROS!$J$6*PARÂMETROS!$K$6*PARÂMETROS!$L$6) -> 1.16E-08 | P26: =($C26^3)/($C26^3+PARÂMETROS!$J$6*$C26^2+PARÂMETROS!$J$6*PARÂMETROS!$K$6*$C26+PARÂMETROS!$J$6*PARÂMETROS!$K$6*PARÂMETROS!$L$6) -> 1.00E+00 | Q26: =IF(PARÂMETROS!$J$6<PARÂMETROS!$F$6,(E26-(C26-D26)/PARÂMETROS!$C$11)/(K26+(C26-D26)/PARÂMETROS!$C$14),(K26+(C26-D26)/PARÂMETROS!$C$14)/(E26-(C26-D26)/PARÂMETROS!$C$11)) -> 9.99E-01 | R26: =IF(PARÂMETROS!$J$6<PARÂMETROS!$F$6,(E26-(C26-D26)/PARÂMETROS!$C$11)/(L26+2*M26+(C26-D26)/PARÂMETROS!$C$14),(L26+2*M26+(C26-D26)/PARÂMETROS!$C$14)/(E26-(C26-D26)/PARÂMETROS!$C$11)) -> 4.99E-01 | S26: =IF(PARÂMETROS!$J$6<PARÂMETROS!$F$6, (E26-(C26-D26)/PARÂMETROS!$C$11)/(N26+2*O26+3*P26+(C26-D26)/PARÂMETROS!$C$14),(N26+2*O26+3*P26+(C26-D26)/PARÂMETROS!$C$14)/ (E26-(C26-D26)/PARÂMETROS!$C$11)) -> 3.33E-01 | T26: =IF(PARÂMETROS!$J$6<PARÂMETROS!$F$6,(F26+2*G26-(C26-D26)/PARÂMETROS!$C$11)/(K26+(C26-D26)/PARÂMETROS!$C$14),(K26+(C26-D26)/PARÂMETROS!$C$14)/(F26+2*G26-(C26-D26)/PARÂMETROS!$C$11)) -> 1.01E+00 | U26: =IF(PARÂMETROS!$J$6<PARÂMETROS!$F$6,(F26+2*G26-(C26-D26)/PARÂMETROS!$C$11)/(L26+2*M26+(C26-D26)/PARÂMETROS!$C$14),(L26+2*M26+(C26-D26)/PARÂMETROS!$C$14)/(F26+2*G26-(C26-D26)/PARÂMETROS!$C$11)) -> 5.03E-01 | V26: =IF(PARÂMETROS!$J$6<PARÂMETROS!$F$6,(F26+2*G26-(C26-D26)/PARÂMETROS!$C$11)/(N26+2*O26+3*P26+(C26-D26)/PARÂMETROS!$C$14),(N26+2*O26+3*P26+(C26-D26)/PARÂMETROS!$C$14)/(F26+2*G26-(C26-D26)/PARÂMETROS!$C$11)) -> 3.35E-01 | W26: =IF(PARÂMETROS!$J$6<PARÂMETROS!$F$6,(H26+2*I26+3*J26-(C26-D26)/PARÂMETROS!$C$11)/(K26+(C26-D26)/PARÂMETROS!$C$14),(K26+(C26-D26)/PARÂMETROS!$C$14)/(H26+2*I26+3*J26-(C26-D26)/PARÂMETROS!$C$11)) -> 1.01E+00 | X26: =IF(PARÂMETROS!$J$6<PARÂMETROS!$F$6,(H26+2*I26+3*J26-(C26-D26)/PARÂMETROS!$C$11)/(L26+2*M26+(C26-D26)/PARÂMETROS!$C$14),(L26+2*M26+(C26-D26)/PARÂMETROS!$C$14)/(H26+2*I26+3*J26-(C26-D26)/PARÂMETROS!$C$11)) -> 5.03E-01 | Y26: =IF(PARÂMETROS!$J$6<PARÂMETROS!$F$6,(H26+2*I26+3*J26-(C26-D26)/PARÂMETROS!$C$11)/(N26+2*O26+3*P26+(C26-D26)/PARÂMETROS!$C$14),(N26+2*O26+3*P26+(C26-D26)/PARÂMETROS!$C$14)/(H26+2*I26+3*J26-(C26-D26)/PARÂMETROS!$C$11)) -> 3.35E-01 | Z26: =Q26*PARÂMETROS!$C$11*PARÂMETROS!$D$11/PARÂMETROS!$C$14 -> 19.97 | AA26: =R26*PARÂMETROS!$C$11*PARÂMETROS!$D$11/PARÂMETROS!$C$14 -> 9.99 | AB26: =S26*PARÂMETROS!$C$11*PARÂMETROS!$D$11/PARÂMETROS!$C$14 -> 6.66 | AC26: =T26*PARÂMETROS!$C$11*PARÂMETROS!$D$11/PARÂMETROS!$C$14 -> 20.12 | AD26: =U26*PARÂMETROS!$C$11*PARÂMETROS!$D$11/PARÂMETROS!$C$14 -> 10.06 | AE26: =V26*PARÂMETROS!$C$11*PARÂMETROS!$D$11/PARÂMETROS!$C$14 -> 6.71 | AF26: =W26*PARÂMETROS!$C$11*PARÂMETROS!$D$11/PARÂMETROS!$C$14 -> 20.12 | AG26: =X26*PARÂMETROS!$C$11*PARÂMETROS!$D$11/PARÂMETROS!$C$14 -> 10.06 | AH26: =Y26*PARÂMETROS!$C$11*PARÂMETROS!$D$11/PARÂMETROS!$C$14 -> 6.71 | AI26: =AND(B26+PARÂMETROS!$C$8>=PARÂMETROS!$C$5,B26+PARÂMETROS!$C$8<=PARÂMETROS!$D$5) -> TRUE | AJ26: 1 | AK26: =VLOOKUP('BANCO DE DADOS COMPLETA'!$N$8,'BANCO DE DADOS COMPLETA'!$A$7:$L$249,3)*-1 -> 3 | AL26: 7 | AM26: =VLOOKUP('BANCO DE DADOS COMPLETA'!$N$10,'BANCO DE DADOS COMPLETA'!$A$7:$L$249,3)*-1 -> 1 | AN26: 11 | AO26: 77 | AP26: 20.12 | AQ26: 20.12 | AR26: 5.06 | AS26: 2.93 | AT26: -9.73 | AU26: =IF(AT25>0,IF(AT27<0,AQ26,"NADA"),"NADA") -> 20.12 | AV26: 20.08601876 | AW26: 1
B27: =B26+PARÂMETROS!$C$8 -> 5.26 | C27: 5.44E-06 | D27: =PARÂMETROS!$Q$4/C27 -> 1.84E-09 | E27: =PARÂMETROS!$F$6/($C27+PARÂMETROS!$F$6) -> 9.99E-01 | F27: =$C27*PARÂMETROS!$F$6/($C27^2+$C27*PARÂMETROS!$F$6+PARÂMETROS!$F$6*PARÂMETROS!$G$6) -> 9.88E-01 | G27: =PARÂMETROS!$F$6*PARÂMETROS!$G$6/($C27^2+$C27*PARÂMETROS!$F$6+PARÂMETROS!$F$6*PARÂMETROS!$G$6) -> 1.15E-02 | H27: =(PARÂMETROS!$F$6*$C27^2)/($C27^3+PARÂMETROS!$F$6*$C27^2+PARÂMETROS!$F$6*PARÂMETROS!$G$6*$C27+PARÂMETROS!$F$6*PARÂMETROS!$G$6*PARÂMETROS!$H$6) -> 9.88E-01 | I27: =(PARÂMETROS!$F$6*PARÂMETROS!$G$6*$C27)/($C27^3+PARÂMETROS!$F$6*$C27^2+PARÂMETROS!$F$6*PARÂMETROS!$G$6*$C27+PARÂMETROS!$F$6*PARÂMETROS!$G$6*PARÂMETROS!$H$6) -> 1.15E-02 | J27: =(PARÂMETROS!$F$6*PARÂMETROS!$G$6*PARÂMETROS!$H$6)/($C27^3+PARÂMETROS!$F$6*$C27^2+PARÂMETROS!$F$6*PARÂMETROS!$G$6*$C27+PARÂMETROS!$F$6*PARÂMETROS!$G$6*PARÂMETROS!$H$6) -> 9.43E-10 | K27: =$C27/($C27+PARÂMETROS!$J$6) -> 1.00E+00 | L27: =$C27*PARÂMETROS!$J$6/($C27^2+$C27*PARÂMETROS!$J$6+PARÂMETROS!$J$6*PARÂMETROS!$K$6) -> 1.84E-08 | M27: =$C27^2/($C27^2+$C27*PARÂMETROS!$J$6+PARÂMETROS!$J$6*PARÂMETROS!$K$6) -> 1.00E+00 | N27: =(PARÂMETROS!$K$6*PARÂMETROS!$J$6*$C27)/($C27^3+PARÂMETROS!$J$6*$C27^2+PARÂMETROS!$J$6*PARÂMETROS!$K$6*$C27+PARÂMETROS!$J$6*PARÂMETROS!$K$6*PARÂMETROS!$L$6) -> 0.00E+00 | O27: =(PARÂMETROS!$J$6*$C27^2)/($C27^3+PARÂMETROS!$J$6*$C27^2+PARÂMETROS!$J$6*PARÂMETROS!$K$6*$C27+PARÂMETROS!$J$6*PARÂMETROS!$K$6*PARÂMETROS!$L$6) -> 1.84E-08 | P27: =($C27^3)/($C27^3+PARÂMETROS!$J$6*$C27^2+PARÂMETROS!$J$6*PARÂMETROS!$K$6*$C27+PARÂMETROS!$J$6*PARÂMETROS!$K$6*PARÂMETROS!$L$6) -> 1.00E+00 | Q27: =IF(PARÂMETROS!$J$6<PARÂMETROS!$F$6,(E27-(C27-D27)/PARÂMETROS!$C$11)/(K27+(C27-D27)/PARÂMETROS!$C$14),(K27+(C27-D27)/PARÂMETROS!$C$14)/(E27-(C27-D27)/PARÂMETROS!$C$11)) -> 9.99E-01 | R27: =IF(PARÂMETROS!$J$6<PARÂMETROS!$F$6,(E27-(C27-D27)/PARÂMETROS!$C$11)/(L27+2*M27+(C27-D27)/PARÂMETROS!$C$14),(L27+2*M27+(C27-D27)/PARÂMETROS!$C$14)/(E27-(C27-D27)/PARÂMETROS!$C$11)) -> 5.00E-01 | S27: =IF(PARÂMETROS!$J$6<PARÂMETROS!$F$6, (E27-(C27-D27)/PARÂMETROS!$C$11)/(N27+2*O27+3*P27+(C27-D27)/PARÂMETROS!$C$14),(N27+2*O27+3*P27+(C27-D27)/PARÂMETROS!$C$14)/ (E27-(C27-D27)/PARÂMETROS!$C$11)) -> 3.33E-01 | T27: =IF(PARÂMETROS!$J$6<PARÂMETROS!$F$6,(F27+2*G27-(C27-D27)/PARÂMETROS!$C$11)/(K27+(C27-D27)/PARÂMETROS!$C$14),(K27+(C27-D27)/PARÂMETROS!$C$14)/(F27+2*G27-(C27-D27)/PARÂMETROS!$C$11)) -> 1.01E+00 | U27: =IF(PARÂMETROS!$J$6<PARÂMETROS!$F$6,(F27+2*G27-(C27-D27)/PARÂMETROS!$C$11)/(L27+2*M27+(C27-D27)/PARÂMETROS!$C$14),(L27+2*M27+(C27-D27)/PARÂMETROS!$C$14)/(F27+2*G27-(C27-D27)/PARÂMETROS!$C$11)) -> 5.05E-01 | V27: =IF(PARÂMETROS!$J$6<PARÂMETROS!$F$6,(F27+2*G27-(C27-D27)/PARÂMETROS!$C$11)/(N27+2*O27+3*P27+(C27-D27)/PARÂMETROS!$C$14),(N27+2*O27+3*P27+(C27-D27)/PARÂMETROS!$C$14)/(F27+2*G27-(C27-D27)/PARÂMETROS!$C$11)) -> 3.37E-01 | W27: =IF(PARÂMETROS!$J$6<PARÂMETROS!$F$6,(H27+2*I27+3*J27-(C27-D27)/PARÂMETROS!$C$11)/(K27+(C27-D27)/PARÂMETROS!$C$14),(K27+(C27-D27)/PARÂMETROS!$C$14)/(H27+2*I27+3*J27-(C27-D27)/PARÂMETROS!$C$11)) -> 1.01E+00 | X27: =IF(PARÂMETROS!$J$6<PARÂMETROS!$F$6,(H27+2*I27+3*J27-(C27-D27)/PARÂMETROS!$C$11)/(L27+2*M27+(C27-D27)/PARÂMETROS!$C$14),(L27+2*M27+(C27-D27)/PARÂMETROS!$C$14)/(H27+2*I27+3*J27-(C27-D27)/PARÂMETROS!$C$11)) -> 5.05E-01 | Y27: =IF(PARÂMETROS!$J$6<PARÂMETROS!$F$6,(H27+2*I27+3*J27-(C27-D27)/PARÂMETROS!$C$11)/(N27+2*O27+3*P27+(C27-D27)/PARÂMETROS!$C$14),(N27+2*O27+3*P27+(C27-D27)/PARÂMETROS!$C$14)/(H27+2*I27+3*J27-(C27-D27)/PARÂMETROS!$C$11)) -> 3.37E-01 | Z27: =Q27*PARÂMETROS!$C$11*PARÂMETROS!$D$11/PARÂMETROS!$C$14 -> 19.98 | AA27: =R27*PARÂMETROS!$C$11*PARÂMETROS!$D$11/PARÂMETROS!$C$14 -> 9.99 | AB27: =S27*PARÂMETROS!$C$11*PARÂMETROS!$D$11/PARÂMETROS!$C$14 -> 6.66 | AC27: =T27*PARÂMETROS!$C$11*PARÂMETROS!$D$11/PARÂMETROS!$C$14 -> 20.21 | AD27: =U27*PARÂMETROS!$C$11*PARÂMETROS!$D$11/PARÂMETROS!$C$14 -> 10.11 | AE27: =V27*PARÂMETROS!$C$11*PARÂMETROS!$D$11/PARÂMETROS!$C$14 -> 6.74 | AF27: =W27*PARÂMETROS!$C$11*PARÂMETROS!$D$11/PARÂMETROS!$C$14 -> 20.21 | AG27: =X27*PARÂMETROS!$C$11*PARÂMETROS!$D$11/PARÂMETROS!$C$14 -> 10.11 | AH27: =Y27*PARÂMETROS!$C$11*PARÂMETROS!$D$11/PARÂMETROS!$C$14 -> 6.74 | AI27: =AND(B27+PARÂMETROS!$C$8>=PARÂMETROS!$C$5,B27+PARÂMETROS!$C$8<=PARÂMETROS!$D$5) -> TRUE | AJ27: 1 | AK27: =VLOOKUP('BANCO DE DADOS COMPLETA'!$N$8,'BANCO DE DADOS COMPLETA'!$A$7:$L$249,3)*-1 -> 3 | AL27: 7 | AM27: =VLOOKUP('BANCO DE DADOS COMPLETA'!$N$10,'BANCO DE DADOS COMPLETA'!$A$7:$L$249,3)*-1 -> 1 | AN27: 11 | AO27: 77 | AP27: 20.21 | AQ27: 20.21 | AR27: 5.26 | AS27: 2.14 | AT27: -11.55 | AU27: NADA | AV27: NADA | AW27: 0
B28: =B27+PARÂMETROS!$C$8 -> 5.46 | C28: 3.43E-06 | D28: =PARÂMETROS!$Q$4/C28 -> 2.91E-09 | E28: =PARÂMETROS!$F$6/($C28+PARÂMETROS!$F$6) -> 1.00E+00 | F28: =$C28*PARÂMETROS!$F$6/($C28^2+$C28*PARÂMETROS!$F$6+PARÂMETROS!$F$6*PARÂMETROS!$G$6) -> 9.81E-01 | G28: =PARÂMETROS!$F$6*PARÂMETROS!$G$6/($C28^2+$C28*PARÂMETROS!$F$6+PARÂMETROS!$F$6*PARÂMETROS!$G$6) -> 1.81E-02 | H28: =(PARÂMETROS!$F$6*$C28^2)/($C28^3+PARÂMETROS!$F$6*$C28^2+PARÂMETROS!$F$6*PARÂMETROS!$G$6*$C28+PARÂMETROS!$F$6*PARÂMETROS!$G$6*PARÂMETROS!$H$6) -> 9.81E-01 | I28: =(PARÂMETROS!$F$6*PARÂMETROS!$G$6*$C28)/($C28^3+PARÂMETROS!$F$6*$C28^2+PARÂMETROS!$F$6*PARÂMETROS!$G$6*$C28+PARÂMETROS!$F$6*PARÂMETROS!$G$6*PARÂMETROS!$H$6) -> 1.81E-02 | J28: =(PARÂMETROS!$F$6*PARÂMETROS!$G$6*PARÂMETROS!$H$6)/($C28^3+PARÂMETROS!$F$6*$C28^2+PARÂMETROS!$F$6*PARÂMETROS!$G$6*$C28+PARÂMETROS!$F$6*PARÂMETROS!$G$6*PARÂMETROS!$H$6) -> 2.35E-09 | K28: =$C28/($C28+PARÂMETROS!$J$6) -> 1.00E+00 | L28: =$C28*PARÂMETROS!$J$6/($C28^2+$C28*PARÂMETROS!$J$6+PARÂMETROS!$J$6*PARÂMETROS!$K$6) -> 2.91E-08 | M28: =$C28^2/($C28^2+$C28*PARÂMETROS!$J$6+PARÂMETROS!$J$6*PARÂMETROS!$K$6) -> 1.00E+00 | N28: =(PARÂMETROS!$K$6*PARÂMETROS!$J$6*$C28)/($C28^3+PARÂMETROS!$J$6*$C28^2+PARÂMETROS!$J$6*PARÂMETROS!$K$6*$C28+PARÂMETROS!$J$6*PARÂMETROS!$K$6*PARÂMETROS!$L$6) -> 0.00E+00 | O28: =(PARÂMETROS!$J$6*$C28^2)/($C28^3+PARÂMETROS!$J$6*$C28^2+PARÂMETROS!$J$6*PARÂMETROS!$K$6*$C28+PARÂMETROS!$J$6*PARÂMETROS!$K$6*PARÂMETROS!$L$6) -> 2.91E-08 | P28: =($C28^3)/($C28^3+PARÂMETROS!$J$6*$C28^2+PARÂMETROS!$J$6*PARÂMETROS!$K$6*$C28+PARÂMETROS!$J$6*PARÂMETROS!$K$6*PARÂMETROS!$L$6) -> 1.00E+00 | Q28: =IF(PARÂMETROS!$J$6<PARÂMETROS!$F$6,(E28-(C28-D28)/PARÂMETROS!$C$11)/(K28+(C28-D28)/PARÂMETROS!$C$14),(K28+(C28-D28)/PARÂMETROS!$C$14)/(E28-(C28-D28)/PARÂMETROS!$C$11)) -> 9.99E-01 | R28: =IF(PARÂMETROS!$J$6<PARÂMETROS!$F$6,(E28-(C28-D28)/PARÂMETROS!$C$11)/(L28+2*M28+(C28-D28)/PARÂMETROS!$C$14),(L28+2*M28+(C28-D28)/PARÂMETROS!$C$14)/(E28-(C28-D28)/PARÂMETROS!$C$11)) -> 5.00E-01 | S28: =IF(PARÂMETROS!$J$6<PARÂMETROS!$F$6, (E28-(C28-D28)/PARÂMETROS!$C$11)/(N28+2*O28+3*P28+(C28-D28)/PARÂMETROS!$C$14),(N28+2*O28+3*P28+(C28-D28)/PARÂMETROS!$C$14)/ (E28-(C28-D28)/PARÂMETROS!$C$11)) -> 3.33E-01 | T28: =IF(PARÂMETROS!$J$6<PARÂMETROS!$F$6,(F28+2*G28-(C28-D28)/PARÂMETROS!$C$11)/(K28+(C28-D28)/PARÂMETROS!$C$14),(K28+(C28-D28)/PARÂMETROS!$C$14)/(F28+2*G28-(C28-D28)/PARÂMETROS!$C$11)) -> 1.02E+00 | U28: =IF(PARÂMETROS!$J$6<PARÂMETROS!$F$6,(F28+2*G28-(C28-D28)/PARÂMETROS!$C$11)/(L28+2*M28+(C28-D28)/PARÂMETROS!$C$14),(L28+2*M28+(C28-D28)/PARÂMETROS!$C$14)/(F28+2*G28-(C28-D28)/PARÂMETROS!$C$11)) -> 5.09E-01 | V28: =IF(PARÂMETROS!$J$6<PARÂMETROS!$F$6,(F28+2*G28-(C28-D28)/PARÂMETROS!$C$11)/(N28+2*O28+3*P28+(C28-D28)/PARÂMETROS!$C$14),(N28+2*O28+3*P28+(C28-D28)/PARÂMETROS!$C$14)/(F28+2*G28-(C28-D28)/PARÂMETROS!$C$11)) -> 3.39E-01 | W28: =IF(PARÂMETROS!$J$6<PARÂMETROS!$F$6,(H28+2*I28+3*J28-(C28-D28)/PARÂMETROS!$C$11)/(K28+(C28-D28)/PARÂMETROS!$C$14),(K28+(C28-D28)/PARÂMETROS!$C$14)/(H28+2*I28+3*J28-(C28-D28)/PARÂMETROS!$C$11)) -> 1.02E+00 | X28: =IF(PARÂMETROS!$J$6<PARÂMETROS!$F$6,(H28+2*I28+3*J28-(C28-D28)/PARÂMETROS!$C$11)/(L28+2*M28+(C28-D28)/PARÂMETROS!$C$14),(L28+2*M28+(C28-D28)/PARÂMETROS!$C$14)/(H28+2*I28+3*J28-(C28-D28)/PARÂMETROS!$C$11)) -> 5.09E-01 | Y28: =IF(PARÂMETROS!$J$6<PARÂMETROS!$F$6,(H28+2*I28+3*J28-(C28-D28)/PARÂMETROS!$C$11)/(N28+2*O28+3*P28+(C28-D28)/PARÂMETROS!$C$14),(N28+2*O28+3*P28+(C28-D28)/PARÂMETROS!$C$14)/(H28+2*I28+3*J28-(C28-D28)/PARÂMETROS!$C$11)) -> 3.39E-01 | Z28: =Q28*PARÂMETROS!$C$11*PARÂMETROS!$D$11/PARÂMETROS!$C$14 -> 19.99 | AA28: =R28*PARÂMETROS!$C$11*PARÂMETROS!$D$11/PARÂMETROS!$C$14 -> 9.99 | AB28: =S28*PARÂMETROS!$C$11*PARÂMETROS!$D$11/PARÂMETROS!$C$14 -> 6.66 | AC28: =T28*PARÂMETROS!$C$11*PARÂMETROS!$D$11/PARÂMETROS!$C$14 -> 20.35 | AD28: =U28*PARÂMETROS!$C$11*PARÂMETROS!$D$11/PARÂMETROS!$C$14 -> 10.18 | AE28: =V28*PARÂMETROS!$C$11*PARÂMETROS!$D$11/PARÂMETROS!$C$14 -> 6.78 | AF28: =W28*PARÂMETROS!$C$11*PARÂMETROS!$D$11/PARÂMETROS!$C$14 -> 20.35 | AG28: =X28*PARÂMETROS!$C$11*PARÂMETROS!$D$11/PARÂMETROS!$C$14 -> 10.18 | AH28: =Y28*PARÂMETROS!$C$11*PARÂMETROS!$D$11/PARÂMETROS!$C$14 -> 6.78 | AI28: =AND(B28+PARÂMETROS!$C$8>=PARÂMETROS!$C$5,B28+PARÂMETROS!$C$8<=PARÂMETROS!$D$5) -> TRUE | AJ28: 1 | AK28: =VLOOKUP('BANCO DE DADOS COMPLETA'!$N$8,'BANCO DE DADOS COMPLETA'!$A$7:$L$249,3)*-1 -> 3 | AL28: 7 | AM28: =VLOOKUP('BANCO DE DADOS COMPLETA'!$N$10,'BANCO DE DADOS COMPLETA'!$A$7:$L$249,3)*-1 -> 1 | AN28: 11 | AO28: 77 | AP28: 20.35 | AQ28: 20.35 | AR28: 5.46 | AS28: 1.45 | AT28: -7.34 | AU28: NADA | AV28: NADA | AW28: 0
B29: =B28+PARÂMETROS!$C$8 -> 5.66 | C29: 2.17E-06 | D29: =PARÂMETROS!$Q$4/C29 -> 4.62E-09 | E29: =PARÂMETROS!$F$6/($C29+PARÂMETROS!$F$6) -> 1.00E+00 | F29: =$C29*PARÂMETROS!$F$6/($C29^2+$C29*PARÂMETROS!$F$6+PARÂMETROS!$F$6*PARÂMETROS!$G$6) -> 9.71E-01 | G29: =PARÂMETROS!$F$6*PARÂMETROS!$G$6/($C29^2+$C29*PARÂMETROS!$F$6+PARÂMETROS!$F$6*PARÂMETROS!$G$6) -> 2.84E-02 | H29: =(PARÂMETROS!$F$6*$C29^2)/($C29^3+PARÂMETROS!$F$6*$C29^2+PARÂMETROS!$F$6*PARÂMETROS!$G$6*$C29+PARÂMETROS!$F$6*PARÂMETROS!$G$6*PARÂMETROS!$H$6) -> 9.71E-01 | I29: =(PARÂMETROS!$F$6*PARÂMETROS!$G$6*$C29)/($C29^3+PARÂMETROS!$F$6*$C29^2+PARÂMETROS!$F$6*PARÂMETROS!$G$6*$C29+PARÂMETROS!$F$6*PARÂMETROS!$G$6*PARÂMETROS!$H$6) -> 2.84E-02 | J29: =(PARÂMETROS!$F$6*PARÂMETROS!$G$6*PARÂMETROS!$H$6)/($C29^3+PARÂMETROS!$F$6*$C29^2+PARÂMETROS!$F$6*PARÂMETROS!$G$6*$C29+PARÂMETROS!$F$6*PARÂMETROS!$G$6*PARÂMETROS!$H$6) -> 5.85E-09 | K29: =$C29/($C29+PARÂMETROS!$J$6) -> 1.00E+00 | L29: =$C29*PARÂMETROS!$J$6/($C29^2+$C29*PARÂMETROS!$J$6+PARÂMETROS!$J$6*PARÂMETROS!$K$6) -> 4.62E-08 | M29: =$C29^2/($C29^2+$C29*PARÂMETROS!$J$6+PARÂMETROS!$J$6*PARÂMETROS!$K$6) -> 1.00E+00 | N29: =(PARÂMETROS!$K$6*PARÂMETROS!$J$6*$C29)/($C29^3+PARÂMETROS!$J$6*$C29^2+PARÂMETROS!$J$6*PARÂMETROS!$K$6*$C29+PARÂMETROS!$J$6*PARÂMETROS!$K$6*PARÂMETROS!$L$6) -> 0.00E+00 | O29: =(PARÂMETROS!$J$6*$C29^2)/($C29^3+PARÂMETROS!$J$6*$C29^2+PARÂMETROS!$J$6*PARÂMETROS!$K$6*$C29+PARÂMETROS!$J$6*PARÂMETROS!$K$6*PARÂMETROS!$L$6) -> 4.62E-08 | P29: =($C29^3)/($C29^3+PARÂMETROS!$J$6*$C29^2+PARÂMETROS!$J$6*PARÂMETROS!$K$6*$C29+PARÂMETROS!$J$6*PARÂMETROS!$K$6*PARÂMETROS!$L$6) -> 1.00E+00 | Q29: =IF(PARÂMETROS!$J$6<PARÂMETROS!$F$6,(E29-(C29-D29)/PARÂMETROS!$C$11)/(K29+(C29-D29)/PARÂMETROS!$C$14),(K29+(C29-D29)/PARÂMETROS!$C$14)/(E29-(C29-D29)/PARÂMETROS!$C$11)) -> 1.00E+00 | R29: =IF(PARÂMETROS!$J$6<PARÂMETROS!$F$6,(E29-(C29-D29)/PARÂMETROS!$C$11)/(L29+2*M29+(C29-D29)/PARÂMETROS!$C$14),(L29+2*M29+(C29-D29)/PARÂMETROS!$C$14)/(E29-(C29-D29)/PARÂMETROS!$C$11)) -> 5.00E-01 | S29: =IF(PARÂMETROS!$J$6<PARÂMETROS!$F$6, (E29-(C29-D29)/PARÂMETROS!$C$11)/(N29+2*O29+3*P29+(C29-D29)/PARÂMETROS!$C$14),(N29+2*O29+3*P29+(C29-D29)/PARÂMETROS!$C$14)/ (E29-(C29-D29)/PARÂMETROS!$C$11)) -> 3.33E-01 | T29: =IF(PARÂMETROS!$J$6<PARÂMETROS!$F$6,(F29+2*G29-(C29-D29)/PARÂMETROS!$C$11)/(K29+(C29-D29)/PARÂMETROS!$C$14),(K29+(C29-D29)/PARÂMETROS!$C$14)/(F29+2*G29-(C29-D29)/PARÂMETROS!$C$11)) -> 1.03E+00 | U29: =IF(PARÂMETROS!$J$6<PARÂMETROS!$F$6,(F29+2*G29-(C29-D29)/PARÂMETROS!$C$11)/(L29+2*M29+(C29-D29)/PARÂMETROS!$C$14),(L29+2*M29+(C29-D29)/PARÂMETROS!$C$14)/(F29+2*G29-(C29-D29)/PARÂMETROS!$C$11)) -> 5.14E-01 | V29: =IF(PARÂMETROS!$J$6<PARÂMETROS!$F$6,(F29+2*G29-(C29-D29)/PARÂMETROS!$C$11)/(N29+2*O29+3*P29+(C29-D29)/PARÂMETROS!$C$14),(N29+2*O29+3*P29+(C29-D29)/PARÂMETROS!$C$14)/(F29+2*G29-(C29-D29)/PARÂMETROS!$C$11)) -> 3.43E-01 | W29: =IF(PARÂMETROS!$J$6<PARÂMETROS!$F$6,(H29+2*I29+3*J29-(C29-D29)/PARÂMETROS!$C$11)/(K29+(C29-D29)/PARÂMETROS!$C$14),(K29+(C29-D29)/PARÂMETROS!$C$14)/(H29+2*I29+3*J29-(C29-D29)/PARÂMETROS!$C$11)) -> 1.03E+00 | X29: =IF(PARÂMETROS!$J$6<PARÂMETROS!$F$6,(H29+2*I29+3*J29-(C29-D29)/PARÂMETROS!$C$11)/(L29+2*M29+(C29-D29)/PARÂMETROS!$C$14),(L29+2*M29+(C29-D29)/PARÂMETROS!$C$14)/(H29+2*I29+3*J29-(C29-D29)/PARÂMETROS!$C$11)) -> 5.14E-01 | Y29: =IF(PARÂMETROS!$J$6<PARÂMETROS!$F$6,(H29+2*I29+3*J29-(C29-D29)/PARÂMETROS!$C$11)/(N29+2*O29+3*P29+(C29-D29)/PARÂMETROS!$C$14),(N29+2*O29+3*P29+(C29-D29)/PARÂMETROS!$C$14)/(H29+2*I29+3*J29-(C29-D29)/PARÂMETROS!$C$11)) -> 3.43E-01 | Z29: =Q29*PARÂMETROS!$C$11*PARÂMETROS!$D$11/PARÂMETROS!$C$14 -> 19.99 | AA29: =R29*PARÂMETROS!$C$11*PARÂMETROS!$D$11/PARÂMETROS!$C$14 -> 10.00 | AB29: =S29*PARÂMETROS!$C$11*PARÂMETROS!$D$11/PARÂMETROS!$C$14 -> 6.66 | AC29: =T29*PARÂMETROS!$C$11*PARÂMETROS!$D$11/PARÂMETROS!$C$14 -> 20.56 | AD29: =U29*PARÂMETROS!$C$11*PARÂMETROS!$D$11/PARÂMETROS!$C$14 -> 10.28 | AE29: =V29*PARÂMETROS!$C$11*PARÂMETROS!$D$11/PARÂMETROS!$C$14 -> 6.85 | AF29: =W29*PARÂMETROS!$C$11*PARÂMETROS!$D$11/PARÂMETROS!$C$14 -> 20.56 | AG29: =X29*PARÂMETROS!$C$11*PARÂMETROS!$D$11/PARÂMETROS!$C$14 -> 10.28 | AH29: =Y29*PARÂMETROS!$C$11*PARÂMETROS!$D$11/PARÂMETROS!$C$14 -> 6.85 | AI29: =AND(B29+PARÂMETROS!$C$8>=PARÂMETROS!$C$5,B29+PARÂMETROS!$C$8<=PARÂMETROS!$D$5) -> TRUE | AJ29: 1 | AK29: =VLOOKUP('BANCO DE DADOS COMPLETA'!$N$8,'BANCO DE DADOS COMPLETA'!$A$7:$L$249,3)*-1 -> 3 | AL29: 7 | AM29: =VLOOKUP('BANCO DE DADOS COMPLETA'!$N$10,'BANCO DE DADOS COMPLETA'!$A$7:$L$249,3)*-1 -> 1 | AN29: 11 | AO29: 77 | AP29: 20.56 | AQ29: 20.56 | AR29: 5.66 | AS29: 0.96 | AT29: -3.59 | AU29: NADA | AV29: NADA | AW29: 0
B30: =B29+PARÂMETROS!$C$8 -> 5.86 | C30: 1.37E-06 | D30: =PARÂMETROS!$Q$4/C30 -> 7.32E-09 | E30: =PARÂMETROS!$F$6/($C30+PARÂMETROS!$F$6) -> 1.00E+00 | F30: =$C30*PARÂMETROS!$F$6/($C30^2+$C30*PARÂMETROS!$F$6+PARÂMETROS!$F$6*PARÂMETROS!$G$6) -> 9.56E-01 | G30: =PARÂMETROS!$F$6*PARÂMETROS!$G$6/($C30^2+$C30*PARÂMETROS!$F$6+PARÂMETROS!$F$6*PARÂMETROS!$G$6) -> 4.42E-02 | H30: =(PARÂMETROS!$F$6*$C30^2)/($C30^3+PARÂMETROS!$F$6*$C30^2+PARÂMETROS!$F$6*PARÂMETROS!$G$6*$C30+PARÂMETROS!$F$6*PARÂMETROS!$G$6*PARÂMETROS!$H$6) -> 9.56E-01 | I30: =(PARÂMETROS!$F$6*PARÂMETROS!$G$6*$C30)/($C30^3+PARÂMETROS!$F$6*$C30^2+PARÂMETROS!$F$6*PARÂMETROS!$G$6*$C30+PARÂMETROS!$F$6*PARÂMETROS!$G$6*PARÂMETROS!$H$6) -> 4.42E-02 | J30: =(PARÂMETROS!$F$6*PARÂMETROS!$G$6*PARÂMETROS!$H$6)/($C30^3+PARÂMETROS!$F$6*$C30^2+PARÂMETROS!$F$6*PARÂMETROS!$G$6*$C30+PARÂMETROS!$F$6*PARÂMETROS!$G$6*PARÂMETROS!$H$6) -> 1.45E-08 | K30: =$C30/($C30+PARÂMETROS!$J$6) -> 1.00E+00 | L30: =$C30*PARÂMETROS!$J$6/($C30^2+$C30*PARÂMETROS!$J$6+PARÂMETROS!$J$6*PARÂMETROS!$K$6) -> 7.32E-08 | M30: =$C30^2/($C30^2+$C30*PARÂMETROS!$J$6+PARÂMETROS!$J$6*PARÂMETROS!$K$6) -> 1.00E+00 | N30: =(PARÂMETROS!$K$6*PARÂMETROS!$J$6*$C30)/($C30^3+PARÂMETROS!$J$6*$C30^2+PARÂMETROS!$J$6*PARÂMETROS!$K$6*$C30+PARÂMETROS!$J$6*PARÂMETROS!$K$6*PARÂMETROS!$L$6) -> 0.00E+00 | O30: =(PARÂMETROS!$J$6*$C30^2)/($C30^3+PARÂMETROS!$J$6*$C30^2+PARÂMETROS!$J$6*PARÂMETROS!$K$6*$C30+PARÂMETROS!$J$6*PARÂMETROS!$K$6*PARÂMETROS!$L$6) -> 7.32E-08 | P30: =($C30^3)/($C30^3+PARÂMETROS!$J$6*$C30^2+PARÂMETROS!$J$6*PARÂMETROS!$K$6*$C30+PARÂMETROS!$J$6*PARÂMETROS!$K$6*PARÂMETROS!$L$6) -> 1.00E+00 | Q30: =IF(PARÂMETROS!$J$6<PARÂMETROS!$F$6,(E30-(C30-D30)/PARÂMETROS!$C$11)/(K30+(C30-D30)/PARÂMETROS!$C$14),(K30+(C30-D30)/PARÂMETROS!$C$14)/(E30-(C30-D30)/PARÂMETROS!$C$11)) -> 1.00E+00 | R30: =IF(PARÂMETROS!$J$6<PARÂMETROS!$F$6,(E30-(C30-D30)/PARÂMETROS!$C$11)/(L30+2*M30+(C30-D30)/PARÂMETROS!$C$14),(L30+2*M30+(C30-D30)/PARÂMETROS!$C$14)/(E30-(C30-D30)/PARÂMETROS!$C$11)) -> 5.00E-01 | S30: =IF(PARÂMETROS!$J$6<PARÂMETROS!$F$6, (E30-(C30-D30)/PARÂMETROS!$C$11)/(N30+2*O30+3*P30+(C30-D30)/PARÂMETROS!$C$14),(N30+2*O30+3*P30+(C30-D30)/PARÂMETROS!$C$14)/ (E30-(C30-D30)/PARÂMETROS!$C$11)) -> 3.33E-01 | T30: =IF(PARÂMETROS!$J$6<PARÂMETROS!$F$6,(F30+2*G30-(C30-D30)/PARÂMETROS!$C$11)/(K30+(C30-D30)/PARÂMETROS!$C$14),(K30+(C30-D30)/PARÂMETROS!$C$14)/(F30+2*G30-(C30-D30)/PARÂMETROS!$C$11)) -> 1.04E+00 | U30: =IF(PARÂMETROS!$J$6<PARÂMETROS!$F$6,(F30+2*G30-(C30-D30)/PARÂMETROS!$C$11)/(L30+2*M30+(C30-D30)/PARÂMETROS!$C$14),(L30+2*M30+(C30-D30)/PARÂMETROS!$C$14)/(F30+2*G30-(C30-D30)/PARÂMETROS!$C$11)) -> 5.22E-01 | V30: =IF(PARÂMETROS!$J$6<PARÂMETROS!$F$6,(F30+2*G30-(C30-D30)/PARÂMETROS!$C$11)/(N30+2*O30+3*P30+(C30-D30)/PARÂMETROS!$C$14),(N30+2*O30+3*P30+(C30-D30)/PARÂMETROS!$C$14)/(F30+2*G30-(C30-D30)/PARÂMETROS!$C$11)) -> 3.48E-01 | W30: =IF(PARÂMETROS!$J$6<PARÂMETROS!$F$6,(H30+2*I30+3*J30-(C30-D30)/PARÂMETROS!$C$11)/(K30+(C30-D30)/PARÂMETROS!$C$14),(K30+(C30-D30)/PARÂMETROS!$C$14)/(H30+2*I30+3*J30-(C30-D30)/PARÂMETROS!$C$11)) -> 1.04E+00 | X30: =IF(PARÂMETROS!$J$6<PARÂMETROS!$F$6,(H30+2*I30+3*J30-(C30-D30)/PARÂMETROS!$C$11)/(L30+2*M30+(C30-D30)/PARÂMETROS!$C$14),(L30+2*M30+(C30-D30)/PARÂMETROS!$C$14)/(H30+2*I30+3*J30-(C30-D30)/PARÂMETROS!$C$11)) -> 5.22E-01 | Y30: =IF(PARÂMETROS!$J$6<PARÂMETROS!$F$6,(H30+2*I30+3*J30-(C30-D30)/PARÂMETROS!$C$11)/(N30+2*O30+3*P30+(C30-D30)/PARÂMETROS!$C$14),(N30+2*O30+3*P30+(C30-D30)/PARÂMETROS!$C$14)/(H30+2*I30+3*J30-(C30-D30)/PARÂMETROS!$C$11)) -> 3.48E-01 | Z30: =Q30*PARÂMETROS!$C$11*PARÂMETROS!$D$11/PARÂMETROS!$C$14 -> 20.00 | AA30: =R30*PARÂMETROS!$C$11*PARÂMETROS!$D$11/PARÂMETROS!$C$14 -> 10.00 | AB30: =S30*PARÂMETROS!$C$11*PARÂMETROS!$D$11/PARÂMETROS!$C$14 -> 6.67 | AC30: =T30*PARÂMETROS!$C$11*PARÂMETROS!$D$11/PARÂMETROS!$C$14 -> 20.88 | AD30: =U30*PARÂMETROS!$C$11*PARÂMETROS!$D$11/PARÂMETROS!$C$14 -> 10.44 | AE30: =V30*PARÂMETROS!$C$11*PARÂMETROS!$D$11/PARÂMETROS!$C$14 -> 6.96 | AF30: =W30*PARÂMETROS!$C$11*PARÂMETROS!$D$11/PARÂMETROS!$C$14 -> 20.88 | AG30: =X30*PARÂMETROS!$C$11*PARÂMETROS!$D$11/PARÂMETROS!$C$14 -> 10.44 | AH30: =Y30*PARÂMETROS!$C$11*PARÂMETROS!$D$11/PARÂMETROS!$C$14 -> 6.96 | AI30: =AND(B30+PARÂMETROS!$C$8>=PARÂMETROS!$C$5,B30+PARÂMETROS!$C$8<=PARÂMETROS!$D$5) -> TRUE | AJ30: 1 | AK30: =VLOOKUP('BANCO DE DADOS COMPLETA'!$N$8,'BANCO DE DADOS COMPLETA'!$A$7:$L$249,3)*-1 -> 3 | AL30: 7 | AM30: =VLOOKUP('BANCO DE DADOS COMPLETA'!$N$10,'BANCO DE DADOS COMPLETA'!$A$7:$L$249,3)*-1 -> 1 | AN30: 11 | AO30: 77 | AP30: 20.88 | AQ30: 20.88 | AR30: 5.86 | AS30: 0.63 | AT30: -1.57 | AU30: NADA | AV30: NADA | AW30: 0
B31: =B30+PARÂMETROS!$C$8 -> 6.06 | C31: 8.62E-07 | D31: =PARÂMETROS!$Q$4/C31 -> 1.16E-08 | E31: =PARÂMETROS!$F$6/($C31+PARÂMETROS!$F$6) -> 1.00E+00 | F31: =$C31*PARÂMETROS!$F$6/($C31^2+$C31*PARÂMETROS!$F$6+PARÂMETROS!$F$6*PARÂMETROS!$G$6) -> 9.32E-01 | G31: =PARÂMETROS!$F$6*PARÂMETROS!$G$6/($C31^2+$C31*PARÂMETROS!$F$6+PARÂMETROS!$F$6*PARÂMETROS!$G$6) -> 6.83E-02 | H31: =(PARÂMETROS!$F$6*$C31^2)/($C31^3+PARÂMETROS!$F$6*$C31^2+PARÂMETROS!$F$6*PARÂMETROS!$G$6*$C31+PARÂMETROS!$F$6*PARÂMETROS!$G$6*PARÂMETROS!$H$6) -> 9.32E-01 | I31: =(PARÂMETROS!$F$6*PARÂMETROS!$G$6*$C31)/($C31^3+PARÂMETROS!$F$6*$C31^2+PARÂMETROS!$F$6*PARÂMETROS!$G$6*$C31+PARÂMETROS!$F$6*PARÂMETROS!$G$6*PARÂMETROS!$H$6) -> 6.83E-02 | J31: =(PARÂMETROS!$F$6*PARÂMETROS!$G$6*PARÂMETROS!$H$6)/($C31^3+PARÂMETROS!$F$6*$C31^2+PARÂMETROS!$F$6*PARÂMETROS!$G$6*$C31+PARÂMETROS!$F$6*PARÂMETROS!$G$6*PARÂMETROS!$H$6) -> 3.54E-08 | K31: =$C31/($C31+PARÂMETROS!$J$6) -> 1.00E+00 | L31: =$C31*PARÂMETROS!$J$6/($C31^2+$C31*PARÂMETROS!$J$6+PARÂMETROS!$J$6*PARÂMETROS!$K$6) -> 1.16E-07 | M31: =$C31^2/($C31^2+$C31*PARÂMETROS!$J$6+PARÂMETROS!$J$6*PARÂMETROS!$K$6) -> 1.00E+00 | N31: =(PARÂMETROS!$K$6*PARÂMETROS!$J$6*$C31)/($C31^3+PARÂMETROS!$J$6*$C31^2+PARÂMETROS!$J$6*PARÂMETROS!$K$6*$C31+PARÂMETROS!$J$6*PARÂMETROS!$K$6*PARÂMETROS!$L$6) -> 0.00E+00 | O31: =(PARÂMETROS!$J$6*$C31^2)/($C31^3+PARÂMETROS!$J$6*$C31^2+PARÂMETROS!$J$6*PARÂMETROS!$K$6*$C31+PARÂMETROS!$J$6*PARÂMETROS!$K$6*PARÂMETROS!$L$6) -> 1.16E-07 | P31: =($C31^3)/($C31^3+PARÂMETROS!$J$6*$C31^2+PARÂMETROS!$J$6*PARÂMETROS!$K$6*$C31+PARÂMETROS!$J$6*PARÂMETROS!$K$6*PARÂMETROS!$L$6) -> 1.00E+00 | Q31: =IF(PARÂMETROS!$J$6<PARÂMETROS!$F$6,(E31-(C31-D31)/PARÂMETROS!$C$11)/(K31+(C31-D31)/PARÂMETROS!$C$14),(K31+(C31-D31)/PARÂMETROS!$C$14)/(E31-(C31-D31)/PARÂMETROS!$C$11)) -> 1.00E+00 | R31: =IF(PARÂMETROS!$J$6<PARÂMETROS!$F$6,(E31-(C31-D31)/PARÂMETROS!$C$11)/(L31+2*M31+(C31-D31)/PARÂMETROS!$C$14),(L31+2*M31+(C31-D31)/PARÂMETROS!$C$14)/(E31-(C31-D31)/PARÂMETROS!$C$11)) -> 5.00E-01 | S31: =IF(PARÂMETROS!$J$6<PARÂMETROS!$F$6, (E31-(C31-D31)/PARÂMETROS!$C$11)/(N31+2*O31+3*P31+(C31-D31)/PARÂMETROS!$C$14),(N31+2*O31+3*P31+(C31-D31)/PARÂMETROS!$C$14)/ (E31-(C31-D31)/PARÂMETROS!$C$11)) -> 3.33E-01 | T31: =IF(PARÂMETROS!$J$6<PARÂMETROS!$F$6,(F31+2*G31-(C31-D31)/PARÂMETROS!$C$11)/(K31+(C31-D31)/PARÂMETROS!$C$14),(K31+(C31-D31)/PARÂMETROS!$C$14)/(F31+2*G31-(C31-D31)/PARÂMETROS!$C$11)) -> 1.07E+00 | U31: =IF(PARÂMETROS!$J$6<PARÂMETROS!$F$6,(F31+2*G31-(C31-D31)/PARÂMETROS!$C$11)/(L31+2*M31+(C31-D31)/PARÂMETROS!$C$14),(L31+2*M31+(C31-D31)/PARÂMETROS!$C$14)/(F31+2*G31-(C31-D31)/PARÂMETROS!$C$11)) -> 5.34E-01 | V31: =IF(PARÂMETROS!$J$6<PARÂMETROS!$F$6,(F31+2*G31-(C31-D31)/PARÂMETROS!$C$11)/(N31+2*O31+3*P31+(C31-D31)/PARÂMETROS!$C$14),(N31+2*O31+3*P31+(C31-D31)/PARÂMETROS!$C$14)/(F31+2*G31-(C31-D31)/PARÂMETROS!$C$11)) -> 3.56E-01 | W31: =IF(PARÂMETROS!$J$6<PARÂMETROS!$F$6,(H31+2*I31+3*J31-(C31-D31)/PARÂMETROS!$C$11)/(K31+(C31-D31)/PARÂMETROS!$C$14),(K31+(C31-D31)/PARÂMETROS!$C$14)/(H31+2*I31+3*J31-(C31-D31)/PARÂMETROS!$C$11)) -> 1.07E+00 | X31: =IF(PARÂMETROS!$J$6<PARÂMETROS!$F$6,(H31+2*I31+3*J31-(C31-D31)/PARÂMETROS!$C$11)/(L31+2*M31+(C31-D31)/PARÂMETROS!$C$14),(L31+2*M31+(C31-D31)/PARÂMETROS!$C$14)/(H31+2*I31+3*J31-(C31-D31)/PARÂMETROS!$C$11)) -> 5.34E-01 | Y31: =IF(PARÂMETROS!$J$6<PARÂMETROS!$F$6,(H31+2*I31+3*J31-(C31-D31)/PARÂMETROS!$C$11)/(N31+2*O31+3*P31+(C31-D31)/PARÂMETROS!$C$14),(N31+2*O31+3*P31+(C31-D31)/PARÂMETROS!$C$14)/(H31+2*I31+3*J31-(C31-D31)/PARÂMETROS!$C$11)) -> 3.56E-01 | Z31: =Q31*PARÂMETROS!$C$11*PARÂMETROS!$D$11/PARÂMETROS!$C$14 -> 20.00 | AA31: =R31*PARÂMETROS!$C$11*PARÂMETROS!$D$11/PARÂMETROS!$C$14 -> 10.00 | AB31: =S31*PARÂMETROS!$C$11*PARÂMETROS!$D$11/PARÂMETROS!$C$14 -> 6.67 | AC31: =T31*PARÂMETROS!$C$11*PARÂMETROS!$D$11/PARÂMETROS!$C$14 -> 21.36 | AD31: =U31*PARÂMETROS!$C$11*PARÂMETROS!$D$11/PARÂMETROS!$C$14 -> 10.68 | AE31: =V31*PARÂMETROS!$C$11*PARÂMETROS!$D$11/PARÂMETROS!$C$14 -> 7.12 | AF31: =W31*PARÂMETROS!$C$11*PARÂMETROS!$D$11/PARÂMETROS!$C$14 -> 21.36 | AG31: =X31*PARÂMETROS!$C$11*PARÂMETROS!$D$11/PARÂMETROS!$C$14 -> 10.68 | AH31: =Y31*PARÂMETROS!$C$11*PARÂMETROS!$D$11/PARÂMETROS!$C$14 -> 7.12 | AI31: =AND(B31+PARÂMETROS!$C$8>=PARÂMETROS!$C$5,B31+PARÂMETROS!$C$8<=PARÂMETROS!$D$5) -> TRUE | AJ31: 1 | AK31: =VLOOKUP('BANCO DE DADOS COMPLETA'!$N$8,'BANCO DE DADOS COMPLETA'!$A$7:$L$249,3)*-1 -> 3 | AL31: 7 | AM31: =VLOOKUP('BANCO DE DADOS COMPLETA'!$N$10,'BANCO DE DADOS COMPLETA'!$A$7:$L$249,3)*-1 -> 1 | AN31: 11 | AO31: 77 | AP31: 21.36 | AQ31: 21.36 | AR31: 6.06 | AS31: 0.41 | AT31: -0.66 | AU31: NADA | AV31: NADA | AW31: 0
B32: =B31+PARÂMETROS!$C$8 -> 6.26 | C32: 5.44E-07 | D32: =PARÂMETROS!$Q$4/C32 -> 1.84E-08 | E32: =PARÂMETROS!$F$6/($C32+PARÂMETROS!$F$6) -> 1.00E+00 | F32: =$C32*PARÂMETROS!$F$6/($C32^2+$C32*PARÂMETROS!$F$6+PARÂMETROS!$F$6*PARÂMETROS!$G$6) -> 8.96E-01 | G32: =PARÂMETROS!$F$6*PARÂMETROS!$G$6/($C32^2+$C32*PARÂMETROS!$F$6+PARÂMETROS!$F$6*PARÂMETROS!$G$6) -> 1.04E-01 | H32: =(PARÂMETROS!$F$6*$C32^2)/($C32^3+PARÂMETROS!$F$6*$C32^2+PARÂMETROS!$F$6*PARÂMETROS!$G$6*$C32+PARÂMETROS!$F$6*PARÂMETROS!$G$6*PARÂMETROS!$H$6) -> 8.96E-01 | I32: =(PARÂMETROS!$F$6*PARÂMETROS!$G$6*$C32)/($C32^3+PARÂMETROS!$F$6*$C32^2+PARÂMETROS!$F$6*PARÂMETROS!$G$6*$C32+PARÂMETROS!$F$6*PARÂMETROS!$G$6*PARÂMETROS!$H$6) -> 1.04E-01 | J32: =(PARÂMETROS!$F$6*PARÂMETROS!$G$6*PARÂMETROS!$H$6)/($C32^3+PARÂMETROS!$F$6*$C32^2+PARÂMETROS!$F$6*PARÂMETROS!$G$6*$C32+PARÂMETROS!$F$6*PARÂMETROS!$G$6*PARÂMETROS!$H$6) -> 8.55E-08 | K32: =$C32/($C32+PARÂMETROS!$J$6) -> 1.00E+00 | L32: =$C32*PARÂMETROS!$J$6/($C32^2+$C32*PARÂMETROS!$J$6+PARÂMETROS!$J$6*PARÂMETROS!$K$6) -> 1.84E-07 | M32: =$C32^2/($C32^2+$C32*PARÂMETROS!$J$6+PARÂMETROS!$J$6*PARÂMETROS!$K$6) -> 1.00E+00 | N32: =(PARÂMETROS!$K$6*PARÂMETROS!$J$6*$C32)/($C32^3+PARÂMETROS!$J$6*$C32^2+PARÂMETROS!$J$6*PARÂMETROS!$K$6*$C32+PARÂMETROS!$J$6*PARÂMETROS!$K$6*PARÂMETROS!$L$6) -> 0.00E+00 | O32: =(PARÂMETROS!$J$6*$C32^2)/($C32^3+PARÂMETROS!$J$6*$C32^2+PARÂMETROS!$J$6*PARÂMETROS!$K$6*$C32+PARÂMETROS!$J$6*PARÂMETROS!$K$6*PARÂMETROS!$L$6) -> 1.84E-07 | P32: =($C32^3)/($C32^3+PARÂMETROS!$J$6*$C32^2+PARÂMETROS!$J$6*PARÂMETROS!$K$6*$C32+PARÂMETROS!$J$6*PARÂMETROS!$K$6*PARÂMETROS!$L$6) -> 1.00E+00 | Q32: =IF(PARÂMETROS!$J$6<PARÂMETROS!$F$6,(E32-(C32-D32)/PARÂMETROS!$C$11)/(K32+(C32-D32)/PARÂMETROS!$C$14),(K32+(C32-D32)/PARÂMETROS!$C$14)/(E32-(C32-D32)/PARÂMETROS!$C$11)) -> 1.00E+00 | R32: =IF(PARÂMETROS!$J$6<PARÂMETROS!$F$6,(E32-(C32-D32)/PARÂMETROS!$C$11)/(L32+2*M32+(C32-D32)/PARÂMETROS!$C$14),(L32+2*M32+(C32-D32)/PARÂMETROS!$C$14)/(E32-(C32-D32)/PARÂMETROS!$C$11)) -> 5.00E-01 | S32: =IF(PARÂMETROS!$J$6<PARÂMETROS!$F$6, (E32-(C32-D32)/PARÂMETROS!$C$11)/(N32+2*O32+3*P32+(C32-D32)/PARÂMETROS!$C$14),(N32+2*O32+3*P32+(C32-D32)/PARÂMETROS!$C$14)/ (E32-(C32-D32)/PARÂMETROS!$C$11)) -> 3.33E-01 | T32: =IF(PARÂMETROS!$J$6<PARÂMETROS!$F$6,(F32+2*G32-(C32-D32)/PARÂMETROS!$C$11)/(K32+(C32-D32)/PARÂMETROS!$C$14),(K32+(C32-D32)/PARÂMETROS!$C$14)/(F32+2*G32-(C32-D32)/PARÂMETROS!$C$11)) -> 1.10E+00 | U32: =IF(PARÂMETROS!$J$6<PARÂMETROS!$F$6,(F32+2*G32-(C32-D32)/PARÂMETROS!$C$11)/(L32+2*M32+(C32-D32)/PARÂMETROS!$C$14),(L32+2*M32+(C32-D32)/PARÂMETROS!$C$14)/(F32+2*G32-(C32-D32)/PARÂMETROS!$C$11)) -> 5.52E-01 | V32: =IF(PARÂMETROS!$J$6<PARÂMETROS!$F$6,(F32+2*G32-(C32-D32)/PARÂMETROS!$C$11)/(N32+2*O32+3*P32+(C32-D32)/PARÂMETROS!$C$14),(N32+2*O32+3*P32+(C32-D32)/PARÂMETROS!$C$14)/(F32+2*G32-(C32-D32)/PARÂMETROS!$C$11)) -> 3.68E-01 | W32: =IF(PARÂMETROS!$J$6<PARÂMETROS!$F$6,(H32+2*I32+3*J32-(C32-D32)/PARÂMETROS!$C$11)/(K32+(C32-D32)/PARÂMETROS!$C$14),(K32+(C32-D32)/PARÂMETROS!$C$14)/(H32+2*I32+3*J32-(C32-D32)/PARÂMETROS!$C$11)) -> 1.10E+00 | X32: =IF(PARÂMETROS!$J$6<PARÂMETROS!$F$6,(H32+2*I32+3*J32-(C32-D32)/PARÂMETROS!$C$11)/(L32+2*M32+(C32-D32)/PARÂMETROS!$C$14),(L32+2*M32+(C32-D32)/PARÂMETROS!$C$14)/(H32+2*I32+3*J32-(C32-D32)/PARÂMETROS!$C$11)) -> 5.52E-01 | Y32: =IF(PARÂMETROS!$J$6<PARÂMETROS!$F$6,(H32+2*I32+3*J32-(C32-D32)/PARÂMETROS!$C$11)/(N32+2*O32+3*P32+(C32-D32)/PARÂMETROS!$C$14),(N32+2*O32+3*P32+(C32-D32)/PARÂMETROS!$C$14)/(H32+2*I32+3*J32-(C32-D32)/PARÂMETROS!$C$11)) -> 3.68E-01 | Z32: =Q32*PARÂMETROS!$C$11*PARÂMETROS!$D$11/PARÂMETROS!$C$14 -> 20.00 | AA32: =R32*PARÂMETROS!$C$11*PARÂMETROS!$D$11/PARÂMETROS!$C$14 -> 10.00 | AB32: =S32*PARÂMETROS!$C$11*PARÂMETROS!$D$11/PARÂMETROS!$C$14 -> 6.67 | AC32: =T32*PARÂMETROS!$C$11*PARÂMETROS!$D$11/PARÂMETROS!$C$14 -> 22.08 | AD32: =U32*PARÂMETROS!$C$11*PARÂMETROS!$D$11/PARÂMETROS!$C$14 -> 11.04 | AE32: =V32*PARÂMETROS!$C$11*PARÂMETROS!$D$11/PARÂMETROS!$C$14 -> 7.36 | AF32: =W32*PARÂMETROS!$C$11*PARÂMETROS!$D$11/PARÂMETROS!$C$14 -> 22.08 | AG32: =X32*PARÂMETROS!$C$11*PARÂMETROS!$D$11/PARÂMETROS!$C$14 -> 11.04 | AH32: =Y32*PARÂMETROS!$C$11*PARÂMETROS!$D$11/PARÂMETROS!$C$14 -> 7.36 | AI32: =AND(B32+PARÂMETROS!$C$8>=PARÂMETROS!$C$5,B32+PARÂMETROS!$C$8<=PARÂMETROS!$D$5) -> TRUE | AJ32: 1 | AK32: =VLOOKUP('BANCO DE DADOS COMPLETA'!$N$8,'BANCO DE DADOS COMPLETA'!$A$7:$L$249,3)*-1 -> 3 | AL32: 7 | AM32: =VLOOKUP('BANCO DE DADOS COMPLETA'!$N$10,'BANCO DE DADOS COMPLETA'!$A$7:$L$249,3)*-1 -> 1 | AN32: 11 | AO32: 77 | AP32: 22.08 | AQ32: 22.08 | AR32: 6.26 | AS32: 0.28 | AT32: -0.28 | AU32: NADA | AV32: NADA | AW32: 0
B33: =B32+PARÂMETROS!$C$8 -> 6.46 | C33: 3.43E-07 | D33: =PARÂMETROS!$Q$4/C33 -> 2.91E-08 | E33: =PARÂMETROS!$F$6/($C33+PARÂMETROS!$F$6) -> 1.00E+00 | F33: =$C33*PARÂMETROS!$F$6/($C33^2+$C33*PARÂMETROS!$F$6+PARÂMETROS!$F$6*PARÂMETROS!$G$6) -> 8.44E-01 | G33: =PARÂMETROS!$F$6*PARÂMETROS!$G$6/($C33^2+$C33*PARÂMETROS!$F$6+PARÂMETROS!$F$6*PARÂMETROS!$G$6) -> 1.56E-01 | H33: =(PARÂMETROS!$F$6*$C33^2)/($C33^3+PARÂMETROS!$F$6*$C33^2+PARÂMETROS!$F$6*PARÂMETROS!$G$6*$C33+PARÂMETROS!$F$6*PARÂMETROS!$G$6*PARÂMETROS!$H$6) -> 8.44E-01 | I33: =(PARÂMETROS!$F$6*PARÂMETROS!$G$6*$C33)/($C33^3+PARÂMETROS!$F$6*$C33^2+PARÂMETROS!$F$6*PARÂMETROS!$G$6*$C33+PARÂMETROS!$F$6*PARÂMETROS!$G$6*PARÂMETROS!$H$6) -> 1.56E-01 | J33: =(PARÂMETROS!$F$6*PARÂMETROS!$G$6*PARÂMETROS!$H$6)/($C33^3+PARÂMETROS!$F$6*$C33^2+PARÂMETROS!$F$6*PARÂMETROS!$G$6*$C33+PARÂMETROS!$F$6*PARÂMETROS!$G$6*PARÂMETROS!$H$6) -> 2.02E-07 | K33: =$C33/($C33+PARÂMETROS!$J$6) -> 1.00E+00 | L33: =$C33*PARÂMETROS!$J$6/($C33^2+$C33*PARÂMETROS!$J$6+PARÂMETROS!$J$6*PARÂMETROS!$K$6) -> 2.91E-07 | M33: =$C33^2/($C33^2+$C33*PARÂMETROS!$J$6+PARÂMETROS!$J$6*PARÂMETROS!$K$6) -> 1.00E+00 | N33: =(PARÂMETROS!$K$6*PARÂMETROS!$J$6*$C33)/($C33^3+PARÂMETROS!$J$6*$C33^2+PARÂMETROS!$J$6*PARÂMETROS!$K$6*$C33+PARÂMETROS!$J$6*PARÂMETROS!$K$6*PARÂMETROS!$L$6) -> 0.00E+00 | O33: =(PARÂMETROS!$J$6*$C33^2)/($C33^3+PARÂMETROS!$J$6*$C33^2+PARÂMETROS!$J$6*PARÂMETROS!$K$6*$C33+PARÂMETROS!$J$6*PARÂMETROS!$K$6*PARÂMETROS!$L$6) -> 2.91E-07 | P33: =($C33^3)/($C33^3+PARÂMETROS!$J$6*$C33^2+PARÂMETROS!$J$6*PARÂMETROS!$K$6*$C33+PARÂMETROS!$J$6*PARÂMETROS!$K$6*PARÂMETROS!$L$6) -> 1.00E+00 | Q33: =IF(PARÂMETROS!$J$6<PARÂMETROS!$F$6,(E33-(C33-D33)/PARÂMETROS!$C$11)/(K33+(C33-D33)/PARÂMETROS!$C$14),(K33+(C33-D33)/PARÂMETROS!$C$14)/(E33-(C33-D33)/PARÂMETROS!$C$11)) -> 1.00E+00 | R33: =IF(PARÂMETROS!$J$6<PARÂMETROS!$F$6,(E33-(C33-D33)/PARÂMETROS!$C$11)/(L33+2*M33+(C33-D33)/PARÂMETROS!$C$14),(L33+2*M33+(C33-D33)/PARÂMETROS!$C$14)/(E33-(C33-D33)/PARÂMETROS!$C$11)) -> 5.00E-01 | S33: =IF(PARÂMETROS!$J$6<PARÂMETROS!$F$6, (E33-(C33-D33)/PARÂMETROS!$C$11)/(N33+2*O33+3*P33+(C33-D33)/PARÂMETROS!$C$14),(N33+2*O33+3*P33+(C33-D33)/PARÂMETROS!$C$14)/ (E33-(C33-D33)/PARÂMETROS!$C$11)) -> 3.33E-01 | T33: =IF(PARÂMETROS!$J$6<PARÂMETROS!$F$6,(F33+2*G33-(C33-D33)/PARÂMETROS!$C$11)/(K33+(C33-D33)/PARÂMETROS!$C$14),(K33+(C33-D33)/PARÂMETROS!$C$14)/(F33+2*G33-(C33-D33)/PARÂMETROS!$C$11)) -> 1.16E+00 | U33: =IF(PARÂMETROS!$J$6<PARÂMETROS!$F$6,(F33+2*G33-(C33-D33)/PARÂMETROS!$C$11)/(L33+2*M33+(C33-D33)/PARÂMETROS!$C$14),(L33+2*M33+(C33-D33)/PARÂMETROS!$C$14)/(F33+2*G33-(C33-D33)/PARÂMETROS!$C$11)) -> 5.78E-01 | V33: =IF(PARÂMETROS!$J$6<PARÂMETROS!$F$6,(F33+2*G33-(C33-D33)/PARÂMETROS!$C$11)/(N33+2*O33+3*P33+(C33-D33)/PARÂMETROS!$C$14),(N33+2*O33+3*P33+(C33-D33)/PARÂMETROS!$C$14)/(F33+2*G33-(C33-D33)/PARÂMETROS!$C$11)) -> 3.85E-01 | W33: =IF(PARÂMETROS!$J$6<PARÂMETROS!$F$6,(H33+2*I33+3*J33-(C33-D33)/PARÂMETROS!$C$11)/(K33+(C33-D33)/PARÂMETROS!$C$14),(K33+(C33-D33)/PARÂMETROS!$C$14)/(H33+2*I33+3*J33-(C33-D33)/PARÂMETROS!$C$11)) -> 1.16E+00 | X33: =IF(PARÂMETROS!$J$6<PARÂMETROS!$F$6,(H33+2*I33+3*J33-(C33-D33)/PARÂMETROS!$C$11)/(L33+2*M33+(C33-D33)/PARÂMETROS!$C$14),(L33+2*M33+(C33-D33)/PARÂMETROS!$C$14)/(H33+2*I33+3*J33-(C33-D33)/PARÂMETROS!$C$11)) -> 5.78E-01 | Y33: =IF(PARÂMETROS!$J$6<PARÂMETROS!$F$6,(H33+2*I33+3*J33-(C33-D33)/PARÂMETROS!$C$11)/(N33+2*O33+3*P33+(C33-D33)/PARÂMETROS!$C$14),(N33+2*O33+3*P33+(C33-D33)/PARÂMETROS!$C$14)/(H33+2*I33+3*J33-(C33-D33)/PARÂMETROS!$C$11)) -> 3.85E-01 | Z33: =Q33*PARÂMETROS!$C$11*PARÂMETROS!$D$11/PARÂMETROS!$C$14 -> 20.00 | AA33: =R33*PARÂMETROS!$C$11*PARÂMETROS!$D$11/PARÂMETROS!$C$14 -> 10.00 | AB33: =S33*PARÂMETROS!$C$11*PARÂMETROS!$D$11/PARÂMETROS!$C$14 -> 6.67 | AC33: =T33*PARÂMETROS!$C$11*PARÂMETROS!$D$11/PARÂMETROS!$C$14 -> 23.11 | AD33: =U33*PARÂMETROS!$C$11*PARÂMETROS!$D$11/PARÂMETROS!$C$14 -> 11.56 | AE33: =V33*PARÂMETROS!$C$11*PARÂMETROS!$D$11/PARÂMETROS!$C$14 -> 7.70 | AF33: =W33*PARÂMETROS!$C$11*PARÂMETROS!$D$11/PARÂMETROS!$C$14 -> 23.11 | AG33: =X33*PARÂMETROS!$C$11*PARÂMETROS!$D$11/PARÂMETROS!$C$14 -> 11.56 | AH33: =Y33*PARÂMETROS!$C$11*PARÂMETROS!$D$11/PARÂMETROS!$C$14 -> 7.70 | AI33: =AND(B33+PARÂMETROS!$C$8>=PARÂMETROS!$C$5,B33+PARÂMETROS!$C$8<=PARÂMETROS!$D$5) -> TRUE | AJ33: 1 | AK33: =VLOOKUP('BANCO DE DADOS COMPLETA'!$N$8,'BANCO DE DADOS COMPLETA'!$A$7:$L$249,3)*-1 -> 3 | AL33: 7 | AM33: =VLOOKUP('BANCO DE DADOS COMPLETA'!$N$10,'BANCO DE DADOS COMPLETA'!$A$7:$L$249,3)*-1 -> 1 | AN33: 11 | AO33: 77 | AP33: 23.11 | AQ33: 23.11 | AR33: 6.46 | AS33: 0.19 | AT33: -0.12 | AU33: NADA | AV33: NADA | AW33: 0
B34: =B33+PARÂMETROS!$C$8 -> 6.66 | C34: 2.17E-07 | D34: =PARÂMETROS!$Q$4/C34 -> 4.62E-08 | E34: =PARÂMETROS!$F$6/($C34+PARÂMETROS!$F$6) -> 1.00E+00 | F34: =$C34*PARÂMETROS!$F$6/($C34^2+$C34*PARÂMETROS!$F$6+PARÂMETROS!$F$6*PARÂMETROS!$G$6) -> 7.74E-01 | G34: =PARÂMETROS!$F$6*PARÂMETROS!$G$6/($C34^2+$C34*PARÂMETROS!$F$6+PARÂMETROS!$F$6*PARÂMETROS!$G$6) -> 2.26E-01 | H34: =(PARÂMETROS!$F$6*$C34^2)/($C34^3+PARÂMETROS!$F$6*$C34^2+PARÂMETROS!$F$6*PARÂMETROS!$G$6*$C34+PARÂMETROS!$F$6*PARÂMETROS!$G$6*PARÂMETROS!$H$6) -> 7.74E-01 | I34: =(PARÂMETROS!$F$6*PARÂMETROS!$G$6*$C34)/($C34^3+PARÂMETROS!$F$6*$C34^2+PARÂMETROS!$F$6*PARÂMETROS!$G$6*$C34+PARÂMETROS!$F$6*PARÂMETROS!$G$6*PARÂMETROS!$H$6) -> 2.26E-01 | J34: =(PARÂMETROS!$F$6*PARÂMETROS!$G$6*PARÂMETROS!$H$6)/($C34^3+PARÂMETROS!$F$6*$C34^2+PARÂMETROS!$F$6*PARÂMETROS!$G$6*$C34+PARÂMETROS!$F$6*PARÂMETROS!$G$6*PARÂMETROS!$H$6) -> 4.66E-07 | K34: =$C34/($C34+PARÂMETROS!$J$6) -> 1.00E+00 | L34: =$C34*PARÂMETROS!$J$6/($C34^2+$C34*PARÂMETROS!$J$6+PARÂMETROS!$J$6*PARÂMETROS!$K$6) -> 4.62E-07 | M34: =$C34^2/($C34^2+$C34*PARÂMETROS!$J$6+PARÂMETROS!$J$6*PARÂMETROS!$K$6) -> 1.00E+00 | N34: =(PARÂMETROS!$K$6*PARÂMETROS!$J$6*$C34)/($C34^3+PARÂMETROS!$J$6*$C34^2+PARÂMETROS!$J$6*PARÂMETROS!$K$6*$C34+PARÂMETROS!$J$6*PARÂMETROS!$K$6*PARÂMETROS!$L$6) -> 0.00E+00 | O34: =(PARÂMETROS!$J$6*$C34^2)/($C34^3+PARÂMETROS!$J$6*$C34^2+PARÂMETROS!$J$6*PARÂMETROS!$K$6*$C34+PARÂMETROS!$J$6*PARÂMETROS!$K$6*PARÂMETROS!$L$6) -> 4.62E-07 | P34: =($C34^3)/($C34^3+PARÂMETROS!$J$6*$C34^2+PARÂMETROS!$J$6*PARÂMETROS!$K$6*$C34+PARÂMETROS!$J$6*PARÂMETROS!$K$6*PARÂMETROS!$L$6) -> 1.00E+00 | Q34: =IF(PARÂMETROS!$J$6<PARÂMETROS!$F$6,(E34-(C34-D34)/PARÂMETROS!$C$11)/(K34+(C34-D34)/PARÂMETROS!$C$14),(K34+(C34-D34)/PARÂMETROS!$C$14)/(E34-(C34-D34)/PARÂMETROS!$C$11)) -> 1.00E+00 | R34: =IF(PARÂMETROS!$J$6<PARÂMETROS!$F$6,(E34-(C34-D34)/PARÂMETROS!$C$11)/(L34+2*M34+(C34-D34)/PARÂMETROS!$C$14),(L34+2*M34+(C34-D34)/PARÂMETROS!$C$14)/(E34-(C34-D34)/PARÂMETROS!$C$11)) -> 5.00E-01 | S34: =IF(PARÂMETROS!$J$6<PARÂMETROS!$F$6, (E34-(C34-D34)/PARÂMETROS!$C$11)/(N34+2*O34+3*P34+(C34-D34)/PARÂMETROS!$C$14),(N34+2*O34+3*P34+(C34-D34)/PARÂMETROS!$C$14)/ (E34-(C34-D34)/PARÂMETROS!$C$11)) -> 3.33E-01 | T34: =IF(PARÂMETROS!$J$6<PARÂMETROS!$F$6,(F34+2*G34-(C34-D34)/PARÂMETROS!$C$11)/(K34+(C34-D34)/PARÂMETROS!$C$14),(K34+(C34-D34)/PARÂMETROS!$C$14)/(F34+2*G34-(C34-D34)/PARÂMETROS!$C$11)) -> 1.23E+00 | U34: =IF(PARÂMETROS!$J$6<PARÂMETROS!$F$6,(F34+2*G34-(C34-D34)/PARÂMETROS!$C$11)/(L34+2*M34+(C34-D34)/PARÂMETROS!$C$14),(L34+2*M34+(C34-D34)/PARÂMETROS!$C$14)/(F34+2*G34-(C34-D34)/PARÂMETROS!$C$11)) -> 6.13E-01 | V34: =IF(PARÂMETROS!$J$6<PARÂMETROS!$F$6,(F34+2*G34-(C34-D34)/PARÂMETROS!$C$11)/(N34+2*O34+3*P34+(C34-D34)/PARÂMETROS!$C$14),(N34+2*O34+3*P34+(C34-D34)/PARÂMETROS!$C$14)/(F34+2*G34-(C34-D34)/PARÂMETROS!$C$11)) -> 4.09E-01 | W34: =IF(PARÂMETROS!$J$6<PARÂMETROS!$F$6,(H34+2*I34+3*J34-(C34-D34)/PARÂMETROS!$C$11)/(K34+(C34-D34)/PARÂMETROS!$C$14),(K34+(C34-D34)/PARÂMETROS!$C$14)/(H34+2*I34+3*J34-(C34-D34)/PARÂMETROS!$C$11)) -> 1.23E+00 | X34: =IF(PARÂMETROS!$J$6<PARÂMETROS!$F$6,(H34+2*I34+3*J34-(C34-D34)/PARÂMETROS!$C$11)/(L34+2*M34+(C34-D34)/PARÂMETROS!$C$14),(L34+2*M34+(C34-D34)/PARÂMETROS!$C$14)/(H34+2*I34+3*J34-(C34-D34)/PARÂMETROS!$C$11)) -> 6.13E-01 | Y34: =IF(PARÂMETROS!$J$6<PARÂMETROS!$F$6,(H34+2*I34+3*J34-(C34-D34)/PARÂMETROS!$C$11)/(N34+2*O34+3*P34+(C34-D34)/PARÂMETROS!$C$14),(N34+2*O34+3*P34+(C34-D34)/PARÂMETROS!$C$14)/(H34+2*I34+3*J34-(C34-D34)/PARÂMETROS!$C$11)) -> 4.09E-01 | Z34: =Q34*PARÂMETROS!$C$11*PARÂMETROS!$D$11/PARÂMETROS!$C$14 -> 20.00 | AA34: =R34*PARÂMETROS!$C$11*PARÂMETROS!$D$11/PARÂMETROS!$C$14 -> 10.00 | AB34: =S34*PARÂMETROS!$C$11*PARÂMETROS!$D$11/PARÂMETROS!$C$14 -> 6.67 | AC34: =T34*PARÂMETROS!$C$11*PARÂMETROS!$D$11/PARÂMETROS!$C$14 -> 24.52 | AD34: =U34*PARÂMETROS!$C$11*PARÂMETROS!$D$11/PARÂMETROS!$C$14 -> 12.26 | AE34: =V34*PARÂMETROS!$C$11*PARÂMETROS!$D$11/PARÂMETROS!$C$14 -> 8.17 | AF34: =W34*PARÂMETROS!$C$11*PARÂMETROS!$D$11/PARÂMETROS!$C$14 -> 24.52 | AG34: =X34*PARÂMETROS!$C$11*PARÂMETROS!$D$11/PARÂMETROS!$C$14 -> 12.26 | AH34: =Y34*PARÂMETROS!$C$11*PARÂMETROS!$D$11/PARÂMETROS!$C$14 -> 8.17 | AI34: =AND(B34+PARÂMETROS!$C$8>=PARÂMETROS!$C$5,B34+PARÂMETROS!$C$8<=PARÂMETROS!$D$5) -> TRUE | AJ34: 1 | AK34: =VLOOKUP('BANCO DE DADOS COMPLETA'!$N$8,'BANCO DE DADOS COMPLETA'!$A$7:$L$249,3)*-1 -> 3 | AL34: 7 | AM34: =VLOOKUP('BANCO DE DADOS COMPLETA'!$N$10,'BANCO DE DADOS COMPLETA'!$A$7:$L$249,3)*-1 -> 1 | AN34: 11 | AO34: 77 | AP34: 24.52 | AQ34: 24.52 | AR34: 6.66 | AS34: 0.14 | AT34: -0.05 | AU34: NADA | AV34: NADA | AW34: 0
B35: =B34+PARÂMETROS!$C$8 -> 6.86 | C35: 1.37E-07 | D35: =PARÂMETROS!$Q$4/C35 -> 7.32E-08 | E35: =PARÂMETROS!$F$6/($C35+PARÂMETROS!$F$6) -> 1.00E+00 | F35: =$C35*PARÂMETROS!$F$6/($C35^2+$C35*PARÂMETROS!$F$6+PARÂMETROS!$F$6*PARÂMETROS!$G$6) -> 6.84E-01 | G35: =PARÂMETROS!$F$6*PARÂMETROS!$G$6/($C35^2+$C35*PARÂMETROS!$F$6+PARÂMETROS!$F$6*PARÂMETROS!$G$6) -> 3.16E-01 | H35: =(PARÂMETROS!$F$6*$C35^2)/($C35^3+PARÂMETROS!$F$6*$C35^2+PARÂMETROS!$F$6*PARÂMETROS!$G$6*$C35+PARÂMETROS!$F$6*PARÂMETROS!$G$6*PARÂMETROS!$H$6) -> 6.84E-01 | I35: =(PARÂMETROS!$F$6*PARÂMETROS!$G$6*$C35)/($C35^3+PARÂMETROS!$F$6*$C35^2+PARÂMETROS!$F$6*PARÂMETROS!$G$6*$C35+PARÂMETROS!$F$6*PARÂMETROS!$G$6*PARÂMETROS!$H$6) -> 3.16E-01 | J35: =(PARÂMETROS!$F$6*PARÂMETROS!$G$6*PARÂMETROS!$H$6)/($C35^3+PARÂMETROS!$F$6*$C35^2+PARÂMETROS!$F$6*PARÂMETROS!$G$6*$C35+PARÂMETROS!$F$6*PARÂMETROS!$G$6*PARÂMETROS!$H$6) -> 1.03E-06 | K35: =$C35/($C35+PARÂMETROS!$J$6) -> 1.00E+00 | L35: =$C35*PARÂMETROS!$J$6/($C35^2+$C35*PARÂMETROS!$J$6+PARÂMETROS!$J$6*PARÂMETROS!$K$6) -> 7.32E-07 | M35: =$C35^2/($C35^2+$C35*PARÂMETROS!$J$6+PARÂMETROS!$J$6*PARÂMETROS!$K$6) -> 1.00E+00 | N35: =(PARÂMETROS!$K$6*PARÂMETROS!$J$6*$C35)/($C35^3+PARÂMETROS!$J$6*$C35^2+PARÂMETROS!$J$6*PARÂMETROS!$K$6*$C35+PARÂMETROS!$J$6*PARÂMETROS!$K$6*PARÂMETROS!$L$6) -> 0.00E+00 | O35: =(PARÂMETROS!$J$6*$C35^2)/($C35^3+PARÂMETROS!$J$6*$C35^2+PARÂMETROS!$J$6*PARÂMETROS!$K$6*$C35+PARÂMETROS!$J$6*PARÂMETROS!$K$6*PARÂMETROS!$L$6) -> 7.32E-07 | P35: =($C35^3)/($C35^3+PARÂMETROS!$J$6*$C35^2+PARÂMETROS!$J$6*PARÂMETROS!$K$6*$C35+PARÂMETROS!$J$6*PARÂMETROS!$K$6*PARÂMETROS!$L$6) -> 1.00E+00 | Q35: =IF(PARÂMETROS!$J$6<PARÂMETROS!$F$6,(E35-(C35-D35)/PARÂMETROS!$C$11)/(K35+(C35-D35)/PARÂMETROS!$C$14),(K35+(C35-D35)/PARÂMETROS!$C$14)/(E35-(C35-D35)/PARÂMETROS!$C$11)) -> 1.00E+00 | R35: =IF(PARÂMETROS!$J$6<PARÂMETROS!$F$6,(E35-(C35-D35)/PARÂMETROS!$C$11)/(L35+2*M35+(C35-D35)/PARÂMETROS!$C$14),(L35+2*M35+(C35-D35)/PARÂMETROS!$C$14)/(E35-(C35-D35)/PARÂMETROS!$C$11)) -> 5.00E-01 | S35: =IF(PARÂMETROS!$J$6<PARÂMETROS!$F$6, (E35-(C35-D35)/PARÂMETROS!$C$11)/(N35+2*O35+3*P35+(C35-D35)/PARÂMETROS!$C$14),(N35+2*O35+3*P35+(C35-D35)/PARÂMETROS!$C$14)/ (E35-(C35-D35)/PARÂMETROS!$C$11)) -> 3.33E-01 | T35: =IF(PARÂMETROS!$J$6<PARÂMETROS!$F$6,(F35+2*G35-(C35-D35)/PARÂMETROS!$C$11)/(K35+(C35-D35)/PARÂMETROS!$C$14),(K35+(C35-D35)/PARÂMETROS!$C$14)/(F35+2*G35-(C35-D35)/PARÂMETROS!$C$11)) -> 1.32E+00 | U35: =IF(PARÂMETROS!$J$6<PARÂMETROS!$F$6,(F35+2*G35-(C35-D35)/PARÂMETROS!$C$11)/(L35+2*M35+(C35-D35)/PARÂMETROS!$C$14),(L35+2*M35+(C35-D35)/PARÂMETROS!$C$14)/(F35+2*G35-(C35-D35)/PARÂMETROS!$C$11)) -> 6.58E-01 | V35: =IF(PARÂMETROS!$J$6<PARÂMETROS!$F$6,(F35+2*G35-(C35-D35)/PARÂMETROS!$C$11)/(N35+2*O35+3*P35+(C35-D35)/PARÂMETROS!$C$14),(N35+2*O35+3*P35+(C35-D35)/PARÂMETROS!$C$14)/(F35+2*G35-(C35-D35)/PARÂMETROS!$C$11)) -> 4.39E-01 | W35: =IF(PARÂMETROS!$J$6<PARÂMETROS!$F$6,(H35+2*I35+3*J35-(C35-D35)/PARÂMETROS!$C$11)/(K35+(C35-D35)/PARÂMETROS!$C$14),(K35+(C35-D35)/PARÂMETROS!$C$14)/(H35+2*I35+3*J35-(C35-D35)/PARÂMETROS!$C$11)) -> 1.32E+00 | X35: =IF(PARÂMETROS!$J$6<PARÂMETROS!$F$6,(H35+2*I35+3*J35-(C35-D35)/PARÂMETROS!$C$11)/(L35+2*M35+(C35-D35)/PARÂMETROS!$C$14),(L35+2*M35+(C35-D35)/PARÂMETROS!$C$14)/(H35+2*I35+3*J35-(C35-D35)/PARÂMETROS!$C$11)) -> 6.58E-01 | Y35: =IF(PARÂMETROS!$J$6<PARÂMETROS!$F$6,(H35+2*I35+3*J35-(C35-D35)/PARÂMETROS!$C$11)/(N35+2*O35+3*P35+(C35-D35)/PARÂMETROS!$C$14),(N35+2*O35+3*P35+(C35-D35)/PARÂMETROS!$C$14)/(H35+2*I35+3*J35-(C35-D35)/PARÂMETROS!$C$11)) -> 4.39E-01 | Z35: =Q35*PARÂMETROS!$C$11*PARÂMETROS!$D$11/PARÂMETROS!$C$14 -> 20.00 | AA35: =R35*PARÂMETROS!$C$11*PARÂMETROS!$D$11/PARÂMETROS!$C$14 -> 10.00 | AB35: =S35*PARÂMETROS!$C$11*PARÂMETROS!$D$11/PARÂMETROS!$C$14 -> 6.67 | AC35: =T35*PARÂMETROS!$C$11*PARÂMETROS!$D$11/PARÂMETROS!$C$14 -> 26.33 | AD35: =U35*PARÂMETROS!$C$11*PARÂMETROS!$D$11/PARÂMETROS!$C$14 -> 13.16 | AE35: =V35*PARÂMETROS!$C$11*PARÂMETROS!$D$11/PARÂMETROS!$C$14 -> 8.78 | AF35: =W35*PARÂMETROS!$C$11*PARÂMETROS!$D$11/PARÂMETROS!$C$14 -> 26.33 | AG35: =X35*PARÂMETROS!$C$11*PARÂMETROS!$D$11/PARÂMETROS!$C$14 -> 13.16 | AH35: =Y35*PARÂMETROS!$C$11*PARÂMETROS!$D$11/PARÂMETROS!$C$14 -> 8.78 | AI35: =AND(B35+PARÂMETROS!$C$8>=PARÂMETROS!$C$5,B35+PARÂMETROS!$C$8<=PARÂMETROS!$D$5) -> TRUE | AJ35: 1 | AK35: =VLOOKUP('BANCO DE DADOS COMPLETA'!$N$8,'BANCO DE DADOS COMPLETA'!$A$7:$L$249,3)*-1 -> 3 | AL35: 7 | AM35: =VLOOKUP('BANCO DE DADOS COMPLETA'!$N$10,'BANCO DE DADOS COMPLETA'!$A$7:$L$249,3)*-1 -> 1 | AN35: 11 | AO35: 77 | AP35: 26.33 | AQ35: 26.33 | AR35: 6.86 | AS35: 0.11 | AT35: -0.02 | AU35: NADA | AV35: NADA | AW35: 0
B36: =B35+PARÂMETROS!$C$8 -> 7.06 | C36: 8.62E-08 | D36: =PARÂMETROS!$Q$4/C36 -> 1.16E-07 | E36: =PARÂMETROS!$F$6/($C36+PARÂMETROS!$F$6) -> 1.00E+00 | F36: =$C36*PARÂMETROS!$F$6/($C36^2+$C36*PARÂMETROS!$F$6+PARÂMETROS!$F$6*PARÂMETROS!$G$6) -> 5.77E-01 | G36: =PARÂMETROS!$F$6*PARÂMETROS!$G$6/($C36^2+$C36*PARÂMETROS!$F$6+PARÂMETROS!$F$6*PARÂMETROS!$G$6) -> 4.23E-01 | H36: =(PARÂMETROS!$F$6*$C36^2)/($C36^3+PARÂMETROS!$F$6*$C36^2+PARÂMETROS!$F$6*PARÂMETROS!$G$6*$C36+PARÂMETROS!$F$6*PARÂMETROS!$G$6*PARÂMETROS!$H$6) -> 5.77E-01 | I36: =(PARÂMETROS!$F$6*PARÂMETROS!$G$6*$C36)/($C36^3+PARÂMETROS!$F$6*$C36^2+PARÂMETROS!$F$6*PARÂMETROS!$G$6*$C36+PARÂMETROS!$F$6*PARÂMETROS!$G$6*PARÂMETROS!$H$6) -> 4.23E-01 | J36: =(PARÂMETROS!$F$6*PARÂMETROS!$G$6*PARÂMETROS!$H$6)/($C36^3+PARÂMETROS!$F$6*$C36^2+PARÂMETROS!$F$6*PARÂMETROS!$G$6*$C36+PARÂMETROS!$F$6*PARÂMETROS!$G$6*PARÂMETROS!$H$6) -> 2.19E-06 | K36: =$C36/($C36+PARÂMETROS!$J$6) -> 1.00E+00 | L36: =$C36*PARÂMETROS!$J$6/($C36^2+$C36*PARÂMETROS!$J$6+PARÂMETROS!$J$6*PARÂMETROS!$K$6) -> 1.16E-06 | M36: =$C36^2/($C36^2+$C36*PARÂMETROS!$J$6+PARÂMETROS!$J$6*PARÂMETROS!$K$6) -> 1.00E+00 | N36: =(PARÂMETROS!$K$6*PARÂMETROS!$J$6*$C36)/($C36^3+PARÂMETROS!$J$6*$C36^2+PARÂMETROS!$J$6*PARÂMETROS!$K$6*$C36+PARÂMETROS!$J$6*PARÂMETROS!$K$6*PARÂMETROS!$L$6) -> 0.00E+00 | O36: =(PARÂMETROS!$J$6*$C36^2)/($C36^3+PARÂMETROS!$J$6*$C36^2+PARÂMETROS!$J$6*PARÂMETROS!$K$6*$C36+PARÂMETROS!$J$6*PARÂMETROS!$K$6*PARÂMETROS!$L$6) -> 1.16E-06 | P36: =($C36^3)/($C36^3+PARÂMETROS!$J$6*$C36^2+PARÂMETROS!$J$6*PARÂMETROS!$K$6*$C36+PARÂMETROS!$J$6*PARÂMETROS!$K$6*PARÂMETROS!$L$6) -> 1.00E+00 | Q36: =IF(PARÂMETROS!$J$6<PARÂMETROS!$F$6,(E36-(C36-D36)/PARÂMETROS!$C$11)/(K36+(C36-D36)/PARÂMETROS!$C$14),(K36+(C36-D36)/PARÂMETROS!$C$14)/(E36-(C36-D36)/PARÂMETROS!$C$11)) -> 1.00E+00 | R36: =IF(PARÂMETROS!$J$6<PARÂMETROS!$F$6,(E36-(C36-D36)/PARÂMETROS!$C$11)/(L36+2*M36+(C36-D36)/PARÂMETROS!$C$14),(L36+2*M36+(C36-D36)/PARÂMETROS!$C$14)/(E36-(C36-D36)/PARÂMETROS!$C$11)) -> 5.00E-01 | S36: =IF(PARÂMETROS!$J$6<PARÂMETROS!$F$6, (E36-(C36-D36)/PARÂMETROS!$C$11)/(N36+2*O36+3*P36+(C36-D36)/PARÂMETROS!$C$14),(N36+2*O36+3*P36+(C36-D36)/PARÂMETROS!$C$14)/ (E36-(C36-D36)/PARÂMETROS!$C$11)) -> 3.33E-01 | T36: =IF(PARÂMETROS!$J$6<PARÂMETROS!$F$6,(F36+2*G36-(C36-D36)/PARÂMETROS!$C$11)/(K36+(C36-D36)/PARÂMETROS!$C$14),(K36+(C36-D36)/PARÂMETROS!$C$14)/(F36+2*G36-(C36-D36)/PARÂMETROS!$C$11)) -> 1.42E+00 | U36: =IF(PARÂMETROS!$J$6<PARÂMETROS!$F$6,(F36+2*G36-(C36-D36)/PARÂMETROS!$C$11)/(L36+2*M36+(C36-D36)/PARÂMETROS!$C$14),(L36+2*M36+(C36-D36)/PARÂMETROS!$C$14)/(F36+2*G36-(C36-D36)/PARÂMETROS!$C$11)) -> 7.12E-01 | V36: =IF(PARÂMETROS!$J$6<PARÂMETROS!$F$6,(F36+2*G36-(C36-D36)/PARÂMETROS!$C$11)/(N36+2*O36+3*P36+(C36-D36)/PARÂMETROS!$C$14),(N36+2*O36+3*P36+(C36-D36)/PARÂMETROS!$C$14)/(F36+2*G36-(C36-D36)/PARÂMETROS!$C$11)) -> 4.74E-01 | W36: =IF(PARÂMETROS!$J$6<PARÂMETROS!$F$6,(H36+2*I36+3*J36-(C36-D36)/PARÂMETROS!$C$11)/(K36+(C36-D36)/PARÂMETROS!$C$14),(K36+(C36-D36)/PARÂMETROS!$C$14)/(H36+2*I36+3*J36-(C36-D36)/PARÂMETROS!$C$11)) -> 1.42E+00 | X36: =IF(PARÂMETROS!$J$6<PARÂMETROS!$F$6,(H36+2*I36+3*J36-(C36-D36)/PARÂMETROS!$C$11)/(L36+2*M36+(C36-D36)/PARÂMETROS!$C$14),(L36+2*M36+(C36-D36)/PARÂMETROS!$C$14)/(H36+2*I36+3*J36-(C36-D36)/PARÂMETROS!$C$11)) -> 7.12E-01 | Y36: =IF(PARÂMETROS!$J$6<PARÂMETROS!$F$6,(H36+2*I36+3*J36-(C36-D36)/PARÂMETROS!$C$11)/(N36+2*O36+3*P36+(C36-D36)/PARÂMETROS!$C$14),(N36+2*O36+3*P36+(C36-D36)/PARÂMETROS!$C$14)/(H36+2*I36+3*J36-(C36-D36)/PARÂMETROS!$C$11)) -> 4.74E-01 | Z36: =Q36*PARÂMETROS!$C$11*PARÂMETROS!$D$11/PARÂMETROS!$C$14 -> 20.00 | AA36: =R36*PARÂMETROS!$C$11*PARÂMETROS!$D$11/PARÂMETROS!$C$14 -> 10.00 | AB36: =S36*PARÂMETROS!$C$11*PARÂMETROS!$D$11/PARÂMETROS!$C$14 -> 6.67 | AC36: =T36*PARÂMETROS!$C$11*PARÂMETROS!$D$11/PARÂMETROS!$C$14 -> 28.46 | AD36: =U36*PARÂMETROS!$C$11*PARÂMETROS!$D$11/PARÂMETROS!$C$14 -> 14.23 | AE36: =V36*PARÂMETROS!$C$11*PARÂMETROS!$D$11/PARÂMETROS!$C$14 -> 9.49 | AF36: =W36*PARÂMETROS!$C$11*PARÂMETROS!$D$11/PARÂMETROS!$C$14 -> 28.46 | AG36: =X36*PARÂMETROS!$C$11*PARÂMETROS!$D$11/PARÂMETROS!$C$14 -> 14.23 | AH36: =Y36*PARÂMETROS!$C$11*PARÂMETROS!$D$11/PARÂMETROS!$C$14 -> 9.49 | AI36: =AND(B36+PARÂMETROS!$C$8>=PARÂMETROS!$C$5,B36+PARÂMETROS!$C$8<=PARÂMETROS!$D$5) -> TRUE | AJ36: 1 | AK36: =VLOOKUP('BANCO DE DADOS COMPLETA'!$N$8,'BANCO DE DADOS COMPLETA'!$A$7:$L$249,3)*-1 -> 3 | AL36: 7 | AM36: =VLOOKUP('BANCO DE DADOS COMPLETA'!$N$10,'BANCO DE DADOS COMPLETA'!$A$7:$L$249,3)*-1 -> 1 | AN36: 11 | AO36: 77 | AP36: 28.46 | AQ36: 28.46 | AR36: 7.06 | AS36: 0.09 | AT36: -0.01 | AU36: NADA | AV36: NADA | AW36: 0
B37: =B36+PARÂMETROS!$C$8 -> 7.26 | C37: 5.44E-08 | D37: =PARÂMETROS!$Q$4/C37 -> 1.84E-07 | E37: =PARÂMETROS!$F$6/($C37+PARÂMETROS!$F$6) -> 1.00E+00 | F37: =$C37*PARÂMETROS!$F$6/($C37^2+$C37*PARÂMETROS!$F$6+PARÂMETROS!$F$6*PARÂMETROS!$G$6) -> 4.62E-01 | G37: =PARÂMETROS!$F$6*PARÂMETROS!$G$6/($C37^2+$C37*PARÂMETROS!$F$6+PARÂMETROS!$F$6*PARÂMETROS!$G$6) -> 5.38E-01 | H37: =(PARÂMETROS!$F$6*$C37^2)/($C37^3+PARÂMETROS!$F$6*$C37^2+PARÂMETROS!$F$6*PARÂMETROS!$G$6*$C37+PARÂMETROS!$F$6*PARÂMETROS!$G$6*PARÂMETROS!$H$6) -> 4.62E-01 | I37: =(PARÂMETROS!$F$6*PARÂMETROS!$G$6*$C37)/($C37^3+PARÂMETROS!$F$6*$C37^2+PARÂMETROS!$F$6*PARÂMETROS!$G$6*$C37+PARÂMETROS!$F$6*PARÂMETROS!$G$6*PARÂMETROS!$H$6) -> 5.38E-01 | J37: =(PARÂMETROS!$F$6*PARÂMETROS!$G$6*PARÂMETROS!$H$6)/($C37^3+PARÂMETROS!$F$6*$C37^2+PARÂMETROS!$F$6*PARÂMETROS!$G$6*$C37+PARÂMETROS!$F$6*PARÂMETROS!$G$6*PARÂMETROS!$H$6) -> 4.41E-06 | K37: =$C37/($C37+PARÂMETROS!$J$6) -> 1.00E+00 | L37: =$C37*PARÂMETROS!$J$6/($C37^2+$C37*PARÂMETROS!$J$6+PARÂMETROS!$J$6*PARÂMETROS!$K$6) -> 1.84E-06 | M37: =$C37^2/($C37^2+$C37*PARÂMETROS!$J$6+PARÂMETROS!$J$6*PARÂMETROS!$K$6) -> 1.00E+00 | N37: =(PARÂMETROS!$K$6*PARÂMETROS!$J$6*$C37)/($C37^3+PARÂMETROS!$J$6*$C37^2+PARÂMETROS!$J$6*PARÂMETROS!$K$6*$C37+PARÂMETROS!$J$6*PARÂMETROS!$K$6*PARÂMETROS!$L$6) -> 0.00E+00 | O37: =(PARÂMETROS!$J$6*$C37^2)/($C37^3+PARÂMETROS!$J$6*$C37^2+PARÂMETROS!$J$6*PARÂMETROS!$K$6*$C37+PARÂMETROS!$J$6*PARÂMETROS!$K$6*PARÂMETROS!$L$6) -> 1.84E-06 | P37: =($C37^3)/($C37^3+PARÂMETROS!$J$6*$C37^2+PARÂMETROS!$J$6*PARÂMETROS!$K$6*$C37+PARÂMETROS!$J$6*PARÂMETROS!$K$6*PARÂMETROS!$L$6) -> 1.00E+00 | Q37: =IF(PARÂMETROS!$J$6<PARÂMETROS!$F$6,(E37-(C37-D37)/PARÂMETROS!$C$11)/(K37+(C37-D37)/PARÂMETROS!$C$14),(K37+(C37-D37)/PARÂMETROS!$C$14)/(E37-(C37-D37)/PARÂMETROS!$C$11)) -> 1.00E+00 | R37: =IF(PARÂMETROS!$J$6<PARÂMETROS!$F$6,(E37-(C37-D37)/PARÂMETROS!$C$11)/(L37+2*M37+(C37-D37)/PARÂMETROS!$C$14),(L37+2*M37+(C37-D37)/PARÂMETROS!$C$14)/(E37-(C37-D37)/PARÂMETROS!$C$11)) -> 5.00E-01 | S37: =IF(PARÂMETROS!$J$6<PARÂMETROS!$F$6, (E37-(C37-D37)/PARÂMETROS!$C$11)/(N37+2*O37+3*P37+(C37-D37)/PARÂMETROS!$C$14),(N37+2*O37+3*P37+(C37-D37)/PARÂMETROS!$C$14)/ (E37-(C37-D37)/PARÂMETROS!$C$11)) -> 3.33E-01 | T37: =IF(PARÂMETROS!$J$6<PARÂMETROS!$F$6,(F37+2*G37-(C37-D37)/PARÂMETROS!$C$11)/(K37+(C37-D37)/PARÂMETROS!$C$14),(K37+(C37-D37)/PARÂMETROS!$C$14)/(F37+2*G37-(C37-D37)/PARÂMETROS!$C$11)) -> 1.54E+00 | U37: =IF(PARÂMETROS!$J$6<PARÂMETROS!$F$6,(F37+2*G37-(C37-D37)/PARÂMETROS!$C$11)/(L37+2*M37+(C37-D37)/PARÂMETROS!$C$14),(L37+2*M37+(C37-D37)/PARÂMETROS!$C$14)/(F37+2*G37-(C37-D37)/PARÂMETROS!$C$11)) -> 7.69E-01 | V37: =IF(PARÂMETROS!$J$6<PARÂMETROS!$F$6,(F37+2*G37-(C37-D37)/PARÂMETROS!$C$11)/(N37+2*O37+3*P37+(C37-D37)/PARÂMETROS!$C$14),(N37+2*O37+3*P37+(C37-D37)/PARÂMETROS!$C$14)/(F37+2*G37-(C37-D37)/PARÂMETROS!$C$11)) -> 5.13E-01 | W37: =IF(PARÂMETROS!$J$6<PARÂMETROS!$F$6,(H37+2*I37+3*J37-(C37-D37)/PARÂMETROS!$C$11)/(K37+(C37-D37)/PARÂMETROS!$C$14),(K37+(C37-D37)/PARÂMETROS!$C$14)/(H37+2*I37+3*J37-(C37-D37)/PARÂMETROS!$C$11)) -> 1.54E+00 | X37: =IF(PARÂMETROS!$J$6<PARÂMETROS!$F$6,(H37+2*I37+3*J37-(C37-D37)/PARÂMETROS!$C$11)/(L37+2*M37+(C37-D37)/PARÂMETROS!$C$14),(L37+2*M37+(C37-D37)/PARÂMETROS!$C$14)/(H37+2*I37+3*J37-(C37-D37)/PARÂMETROS!$C$11)) -> 7.69E-01 | Y37: =IF(PARÂMETROS!$J$6<PARÂMETROS!$F$6,(H37+2*I37+3*J37-(C37-D37)/PARÂMETROS!$C$11)/(N37+2*O37+3*P37+(C37-D37)/PARÂMETROS!$C$14),(N37+2*O37+3*P37+(C37-D37)/PARÂMETROS!$C$14)/(H37+2*I37+3*J37-(C37-D37)/PARÂMETROS!$C$11)) -> 5.13E-01 | Z37: =Q37*PARÂMETROS!$C$11*PARÂMETROS!$D$11/PARÂMETROS!$C$14 -> 20.00 | AA37: =R37*PARÂMETROS!$C$11*PARÂMETROS!$D$11/PARÂMETROS!$C$14 -> 10.00 | AB37: =S37*PARÂMETROS!$C$11*PARÂMETROS!$D$11/PARÂMETROS!$C$14 -> 6.67 | AC37: =T37*PARÂMETROS!$C$11*PARÂMETROS!$D$11/PARÂMETROS!$C$14 -> 30.75 | AD37: =U37*PARÂMETROS!$C$11*PARÂMETROS!$D$11/PARÂMETROS!$C$14 -> 15.38 | AE37: =V37*PARÂMETROS!$C$11*PARÂMETROS!$D$11/PARÂMETROS!$C$14 -> 10.25 | AF37: =W37*PARÂMETROS!$C$11*PARÂMETROS!$D$11/PARÂMETROS!$C$14 -> 30.75 | AG37: =X37*PARÂMETROS!$C$11*PARÂMETROS!$D$11/PARÂMETROS!$C$14 -> 15.38 | AH37: =Y37*PARÂMETROS!$C$11*PARÂMETROS!$D$11/PARÂMETROS!$C$14 -> 10.25 | AI37: =AND(B37+PARÂMETROS!$C$8>=PARÂMETROS!$C$5,B37+PARÂMETROS!$C$8<=PARÂMETROS!$D$5) -> TRUE | AJ37: 1 | AK37: =VLOOKUP('BANCO DE DADOS COMPLETA'!$N$8,'BANCO DE DADOS COMPLETA'!$A$7:$L$249,3)*-1 -> 3 | AL37: 7 | AM37: =VLOOKUP('BANCO DE DADOS COMPLETA'!$N$10,'BANCO DE DADOS COMPLETA'!$A$7:$L$249,3)*-1 -> 1 | AN37: 11 | AO37: 77 | AP37: 30.75 | AQ37: 30.75 | AR37: 7.26 | AS37: 0.09 | AT37: -0.00 | AU37: NADA | AV37: NADA | AW37: 0
B38: =B37+PARÂMETROS!$C$8 -> 7.46 | C38: 3.43E-08 | D38: =PARÂMETROS!$Q$4/C38 -> 2.91E-07 | E38: =PARÂMETROS!$F$6/($C38+PARÂMETROS!$F$6) -> 1.00E+00 | F38: =$C38*PARÂMETROS!$F$6/($C38^2+$C38*PARÂMETROS!$F$6+PARÂMETROS!$F$6*PARÂMETROS!$G$6) -> 3.52E-01 | G38: =PARÂMETROS!$F$6*PARÂMETROS!$G$6/($C38^2+$C38*PARÂMETROS!$F$6+PARÂMETROS!$F$6*PARÂMETROS!$G$6) -> 6.48E-01 | H38: =(PARÂMETROS!$F$6*$C38^2)/($C38^3+PARÂMETROS!$F$6*$C38^2+PARÂMETROS!$F$6*PARÂMETROS!$G$6*$C38+PARÂMETROS!$F$6*PARÂMETROS!$G$6*PARÂMETROS!$H$6) -> 3.52E-01 | I38: =(PARÂMETROS!$F$6*PARÂMETROS!$G$6*$C38)/($C38^3+PARÂMETROS!$F$6*$C38^2+PARÂMETROS!$F$6*PARÂMETROS!$G$6*$C38+PARÂMETROS!$F$6*PARÂMETROS!$G$6*PARÂMETROS!$H$6) -> 6.48E-01 | J38: =(PARÂMETROS!$F$6*PARÂMETROS!$G$6*PARÂMETROS!$H$6)/($C38^3+PARÂMETROS!$F$6*$C38^2+PARÂMETROS!$F$6*PARÂMETROS!$G$6*$C38+PARÂMETROS!$F$6*PARÂMETROS!$G$6*PARÂMETROS!$H$6) -> 8.43E-06 | K38: =$C38/($C38+PARÂMETROS!$J$6) -> 1.00E+00 | L38: =$C38*PARÂMETROS!$J$6/($C38^2+$C38*PARÂMETROS!$J$6+PARÂMETROS!$J$6*PARÂMETROS!$K$6) -> 2.91E-06 | M38: =$C38^2/($C38^2+$C38*PARÂMETROS!$J$6+PARÂMETROS!$J$6*PARÂMETROS!$K$6) -> 1.00E+00 | N38: =(PARÂMETROS!$K$6*PARÂMETROS!$J$6*$C38)/($C38^3+PARÂMETROS!$J$6*$C38^2+PARÂMETROS!$J$6*PARÂMETROS!$K$6*$C38+PARÂMETROS!$J$6*PARÂMETROS!$K$6*PARÂMETROS!$L$6) -> 0.00E+00 | O38: =(PARÂMETROS!$J$6*$C38^2)/($C38^3+PARÂMETROS!$J$6*$C38^2+PARÂMETROS!$J$6*PARÂMETROS!$K$6*$C38+PARÂMETROS!$J$6*PARÂMETROS!$K$6*PARÂMETROS!$L$6) -> 2.91E-06 | P38: =($C38^3)/($C38^3+PARÂMETROS!$J$6*$C38^2+PARÂMETROS!$J$6*PARÂMETROS!$K$6*$C38+PARÂMETROS!$J$6*PARÂMETROS!$K$6*PARÂMETROS!$L$6) -> 1.00E+00 | Q38: =IF(PARÂMETROS!$J$6<PARÂMETROS!$F$6,(E38-(C38-D38)/PARÂMETROS!$C$11)/(K38+(C38-D38)/PARÂMETROS!$C$14),(K38+(C38-D38)/PARÂMETROS!$C$14)/(E38-(C38-D38)/PARÂMETROS!$C$11)) -> 1.00E+00 | R38: =IF(PARÂMETROS!$J$6<PARÂMETROS!$F$6,(E38-(C38-D38)/PARÂMETROS!$C$11)/(L38+2*M38+(C38-D38)/PARÂMETROS!$C$14),(L38+2*M38+(C38-D38)/PARÂMETROS!$C$14)/(E38-(C38-D38)/PARÂMETROS!$C$11)) -> 5.00E-01 | S38: =IF(PARÂMETROS!$J$6<PARÂMETROS!$F$6, (E38-(C38-D38)/PARÂMETROS!$C$11)/(N38+2*O38+3*P38+(C38-D38)/PARÂMETROS!$C$14),(N38+2*O38+3*P38+(C38-D38)/PARÂMETROS!$C$14)/ (E38-(C38-D38)/PARÂMETROS!$C$11)) -> 3.33E-01 | T38: =IF(PARÂMETROS!$J$6<PARÂMETROS!$F$6,(F38+2*G38-(C38-D38)/PARÂMETROS!$C$11)/(K38+(C38-D38)/PARÂMETROS!$C$14),(K38+(C38-D38)/PARÂMETROS!$C$14)/(F38+2*G38-(C38-D38)/PARÂMETROS!$C$11)) -> 1.65E+00 | U38: =IF(PARÂMETROS!$J$6<PARÂMETROS!$F$6,(F38+2*G38-(C38-D38)/PARÂMETROS!$C$11)/(L38+2*M38+(C38-D38)/PARÂMETROS!$C$14),(L38+2*M38+(C38-D38)/PARÂMETROS!$C$14)/(F38+2*G38-(C38-D38)/PARÂMETROS!$C$11)) -> 8.24E-01 | V38: =IF(PARÂMETROS!$J$6<PARÂMETROS!$F$6,(F38+2*G38-(C38-D38)/PARÂMETROS!$C$11)/(N38+2*O38+3*P38+(C38-D38)/PARÂMETROS!$C$14),(N38+2*O38+3*P38+(C38-D38)/PARÂMETROS!$C$14)/(F38+2*G38-(C38-D38)/PARÂMETROS!$C$11)) -> 5.49E-01 | W38: =IF(PARÂMETROS!$J$6<PARÂMETROS!$F$6,(H38+2*I38+3*J38-(C38-D38)/PARÂMETROS!$C$11)/(K38+(C38-D38)/PARÂMETROS!$C$14),(K38+(C38-D38)/PARÂMETROS!$C$14)/(H38+2*I38+3*J38-(C38-D38)/PARÂMETROS!$C$11)) -> 1.65E+00 | X38: =IF(PARÂMETROS!$J$6<PARÂMETROS!$F$6,(H38+2*I38+3*J38-(C38-D38)/PARÂMETROS!$C$11)/(L38+2*M38+(C38-D38)/PARÂMETROS!$C$14),(L38+2*M38+(C38-D38)/PARÂMETROS!$C$14)/(H38+2*I38+3*J38-(C38-D38)/PARÂMETROS!$C$11)) -> 8.24E-01 | Y38: =IF(PARÂMETROS!$J$6<PARÂMETROS!$F$6,(H38+2*I38+3*J38-(C38-D38)/PARÂMETROS!$C$11)/(N38+2*O38+3*P38+(C38-D38)/PARÂMETROS!$C$14),(N38+2*O38+3*P38+(C38-D38)/PARÂMETROS!$C$14)/(H38+2*I38+3*J38-(C38-D38)/PARÂMETROS!$C$11)) -> 5.49E-01 | Z38: =Q38*PARÂMETROS!$C$11*PARÂMETROS!$D$11/PARÂMETROS!$C$14 -> 20.00 | AA38: =R38*PARÂMETROS!$C$11*PARÂMETROS!$D$11/PARÂMETROS!$C$14 -> 10.00 | AB38: =S38*PARÂMETROS!$C$11*PARÂMETROS!$D$11/PARÂMETROS!$C$14 -> 6.67 | AC38: =T38*PARÂMETROS!$C$11*PARÂMETROS!$D$11/PARÂMETROS!$C$14 -> 32.96 | AD38: =U38*PARÂMETROS!$C$11*PARÂMETROS!$D$11/PARÂMETROS!$C$14 -> 16.48 | AE38: =V38*PARÂMETROS!$C$11*PARÂMETROS!$D$11/PARÂMETROS!$C$14 -> 10.99 | AF38: =W38*PARÂMETROS!$C$11*PARÂMETROS!$D$11/PARÂMETROS!$C$14 -> 32.96 | AG38: =X38*PARÂMETROS!$C$11*PARÂMETROS!$D$11/PARÂMETROS!$C$14 -> 16.48 | AH38: =Y38*PARÂMETROS!$C$11*PARÂMETROS!$D$11/PARÂMETROS!$C$14 -> 10.99 | AI38: =AND(B38+PARÂMETROS!$C$8>=PARÂMETROS!$C$5,B38+PARÂMETROS!$C$8<=PARÂMETROS!$D$5) -> TRUE | AJ38: 1 | AK38: =VLOOKUP('BANCO DE DADOS COMPLETA'!$N$8,'BANCO DE DADOS COMPLETA'!$A$7:$L$249,3)*-1 -> 3 | AL38: 7 | AM38: =VLOOKUP('BANCO DE DADOS COMPLETA'!$N$10,'BANCO DE DADOS COMPLETA'!$A$7:$L$249,3)*-1 -> 1 | AN38: 11 | AO38: 77 | AP38: 32.96 | AQ38: 32.96 | AR38: 7.46 | AS38: 0.09 | AT38: 0.00 | AU38: NADA | AV38: NADA | AW38: 0
B39: =B38+PARÂMETROS!$C$8 -> 7.66 | C39: 2.17E-08 | D39: =PARÂMETROS!$Q$4/C39 -> 4.62E-07 | E39: =PARÂMETROS!$F$6/($C39+PARÂMETROS!$F$6) -> 1.00E+00 | F39: =$C39*PARÂMETROS!$F$6/($C39^2+$C39*PARÂMETROS!$F$6+PARÂMETROS!$F$6*PARÂMETROS!$G$6) -> 2.55E-01 | G39: =PARÂMETROS!$F$6*PARÂMETROS!$G$6/($C39^2+$C39*PARÂMETROS!$F$6+PARÂMETROS!$F$6*PARÂMETROS!$G$6) -> 7.45E-01 | H39: =(PARÂMETROS!$F$6*$C39^2)/($C39^3+PARÂMETROS!$F$6*$C39^2+PARÂMETROS!$F$6*PARÂMETROS!$G$6*$C39+PARÂMETROS!$F$6*PARÂMETROS!$G$6*PARÂMETROS!$H$6) -> 2.55E-01 | I39: =(PARÂMETROS!$F$6*PARÂMETROS!$G$6*$C39)/($C39^3+PARÂMETROS!$F$6*$C39^2+PARÂMETROS!$F$6*PARÂMETROS!$G$6*$C39+PARÂMETROS!$F$6*PARÂMETROS!$G$6*PARÂMETROS!$H$6) -> 7.45E-01 | J39: =(PARÂMETROS!$F$6*PARÂMETROS!$G$6*PARÂMETROS!$H$6)/($C39^3+PARÂMETROS!$F$6*$C39^2+PARÂMETROS!$F$6*PARÂMETROS!$G$6*$C39+PARÂMETROS!$F$6*PARÂMETROS!$G$6*PARÂMETROS!$H$6) -> 1.54E-05 | K39: =$C39/($C39+PARÂMETROS!$J$6) -> 1.00E+00 | L39: =$C39*PARÂMETROS!$J$6/($C39^2+$C39*PARÂMETROS!$J$6+PARÂMETROS!$J$6*PARÂMETROS!$K$6) -> 4.62E-06 | M39: =$C39^2/($C39^2+$C39*PARÂMETROS!$J$6+PARÂMETROS!$J$6*PARÂMETROS!$K$6) -> 1.00E+00 | N39: =(PARÂMETROS!$K$6*PARÂMETROS!$J$6*$C39)/($C39^3+PARÂMETROS!$J$6*$C39^2+PARÂMETROS!$J$6*PARÂMETROS!$K$6*$C39+PARÂMETROS!$J$6*PARÂMETROS!$K$6*PARÂMETROS!$L$6) -> 0.00E+00 | O39: =(PARÂMETROS!$J$6*$C39^2)/($C39^3+PARÂMETROS!$J$6*$C39^2+PARÂMETROS!$J$6*PARÂMETROS!$K$6*$C39+PARÂMETROS!$J$6*PARÂMETROS!$K$6*PARÂMETROS!$L$6) -> 4.62E-06 | P39: =($C39^3)/($C39^3+PARÂMETROS!$J$6*$C39^2+PARÂMETROS!$J$6*PARÂMETROS!$K$6*$C39+PARÂMETROS!$J$6*PARÂMETROS!$K$6*PARÂMETROS!$L$6) -> 1.00E+00 | Q39: =IF(PARÂMETROS!$J$6<PARÂMETROS!$F$6,(E39-(C39-D39)/PARÂMETROS!$C$11)/(K39+(C39-D39)/PARÂMETROS!$C$14),(K39+(C39-D39)/PARÂMETROS!$C$14)/(E39-(C39-D39)/PARÂMETROS!$C$11)) -> 1.00E+00 | R39: =IF(PARÂMETROS!$J$6<PARÂMETROS!$F$6,(E39-(C39-D39)/PARÂMETROS!$C$11)/(L39+2*M39+(C39-D39)/PARÂMETROS!$C$14),(L39+2*M39+(C39-D39)/PARÂMETROS!$C$14)/(E39-(C39-D39)/PARÂMETROS!$C$11)) -> 5.00E-01 | S39: =IF(PARÂMETROS!$J$6<PARÂMETROS!$F$6, (E39-(C39-D39)/PARÂMETROS!$C$11)/(N39+2*O39+3*P39+(C39-D39)/PARÂMETROS!$C$14),(N39+2*O39+3*P39+(C39-D39)/PARÂMETROS!$C$14)/ (E39-(C39-D39)/PARÂMETROS!$C$11)) -> 3.33E-01 | T39: =IF(PARÂMETROS!$J$6<PARÂMETROS!$F$6,(F39+2*G39-(C39-D39)/PARÂMETROS!$C$11)/(K39+(C39-D39)/PARÂMETROS!$C$14),(K39+(C39-D39)/PARÂMETROS!$C$14)/(F39+2*G39-(C39-D39)/PARÂMETROS!$C$11)) -> 1.74E+00 | U39: =IF(PARÂMETROS!$J$6<PARÂMETROS!$F$6,(F39+2*G39-(C39-D39)/PARÂMETROS!$C$11)/(L39+2*M39+(C39-D39)/PARÂMETROS!$C$14),(L39+2*M39+(C39-D39)/PARÂMETROS!$C$14)/(F39+2*G39-(C39-D39)/PARÂMETROS!$C$11)) -> 8.72E-01 | V39: =IF(PARÂMETROS!$J$6<PARÂMETROS!$F$6,(F39+2*G39-(C39-D39)/PARÂMETROS!$C$11)/(N39+2*O39+3*P39+(C39-D39)/PARÂMETROS!$C$14),(N39+2*O39+3*P39+(C39-D39)/PARÂMETROS!$C$14)/(F39+2*G39-(C39-D39)/PARÂMETROS!$C$11)) -> 5.82E-01 | W39: =IF(PARÂMETROS!$J$6<PARÂMETROS!$F$6,(H39+2*I39+3*J39-(C39-D39)/PARÂMETROS!$C$11)/(K39+(C39-D39)/PARÂMETROS!$C$14),(K39+(C39-D39)/PARÂMETROS!$C$14)/(H39+2*I39+3*J39-(C39-D39)/PARÂMETROS!$C$11)) -> 1.74E+00 | X39: =IF(PARÂMETROS!$J$6<PARÂMETROS!$F$6,(H39+2*I39+3*J39-(C39-D39)/PARÂMETROS!$C$11)/(L39+2*M39+(C39-D39)/PARÂMETROS!$C$14),(L39+2*M39+(C39-D39)/PARÂMETROS!$C$14)/(H39+2*I39+3*J39-(C39-D39)/PARÂMETROS!$C$11)) -> 8.72E-01 | Y39: =IF(PARÂMETROS!$J$6<PARÂMETROS!$F$6,(H39+2*I39+3*J39-(C39-D39)/PARÂMETROS!$C$11)/(N39+2*O39+3*P39+(C39-D39)/PARÂMETROS!$C$14),(N39+2*O39+3*P39+(C39-D39)/PARÂMETROS!$C$14)/(H39+2*I39+3*J39-(C39-D39)/PARÂMETROS!$C$11)) -> 5.82E-01 | Z39: =Q39*PARÂMETROS!$C$11*PARÂMETROS!$D$11/PARÂMETROS!$C$14 -> 20.00 | AA39: =R39*PARÂMETROS!$C$11*PARÂMETROS!$D$11/PARÂMETROS!$C$14 -> 10.00 | AB39: =S39*PARÂMETROS!$C$11*PARÂMETROS!$D$11/PARÂMETROS!$C$14 -> 6.67 | AC39: =T39*PARÂMETROS!$C$11*PARÂMETROS!$D$11/PARÂMETROS!$C$14 -> 34.90 | AD39: =U39*PARÂMETROS!$C$11*PARÂMETROS!$D$11/PARÂMETROS!$C$14 -> 17.45 | AE39: =V39*PARÂMETROS!$C$11*PARÂMETROS!$D$11/PARÂMETROS!$C$14 -> 11.63 | AF39: =W39*PARÂMETROS!$C$11*PARÂMETROS!$D$11/PARÂMETROS!$C$14 -> 34.90 | AG39: =X39*PARÂMETROS!$C$11*PARÂMETROS!$D$11/PARÂMETROS!$C$14 -> 17.45 | AH39: =Y39*PARÂMETROS!$C$11*PARÂMETROS!$D$11/PARÂMETROS!$C$14 -> 11.63 | AI39: =AND(B39+PARÂMETROS!$C$8>=PARÂMETROS!$C$5,B39+PARÂMETROS!$C$8<=PARÂMETROS!$D$5) -> TRUE | AJ39: 1 | AK39: =VLOOKUP('BANCO DE DADOS COMPLETA'!$N$8,'BANCO DE DADOS COMPLETA'!$A$7:$L$249,3)*-1 -> 3 | AL39: 7 | AM39: =VLOOKUP('BANCO DE DADOS COMPLETA'!$N$10,'BANCO DE DADOS COMPLETA'!$A$7:$L$249,3)*-1 -> 1 | AN39: 11 | AO39: 77 | AP39: 34.90 | AQ39: 34.90 | AR39: 7.66 | AS39: 0.10 | AT39: 0.01 | AU39: NADA | AV39: NADA | AW39: 0
B40: =B39+PARÂMETROS!$C$8 -> 7.86 | C40: 1.37E-08 | D40: =PARÂMETROS!$Q$4/C40 -> 7.32E-07 | E40: =PARÂMETROS!$F$6/($C40+PARÂMETROS!$F$6) -> 1.00E+00 | F40: =$C40*PARÂMETROS!$F$6/($C40^2+$C40*PARÂMETROS!$F$6+PARÂMETROS!$F$6*PARÂMETROS!$G$6) -> 1.78E-01 | G40: =PARÂMETROS!$F$6*PARÂMETROS!$G$6/($C40^2+$C40*PARÂMETROS!$F$6+PARÂMETROS!$F$6*PARÂMETROS!$G$6) -> 8.22E-01 | H40: =(PARÂMETROS!$F$6*$C40^2)/($C40^3+PARÂMETROS!$F$6*$C40^2+PARÂMETROS!$F$6*PARÂMETROS!$G$6*$C40+PARÂMETROS!$F$6*PARÂMETROS!$G$6*PARÂMETROS!$H$6) -> 1.78E-01 | I40: =(PARÂMETROS!$F$6*PARÂMETROS!$G$6*$C40)/($C40^3+PARÂMETROS!$F$6*$C40^2+PARÂMETROS!$F$6*PARÂMETROS!$G$6*$C40+PARÂMETROS!$F$6*PARÂMETROS!$G$6*PARÂMETROS!$H$6) -> 8.22E-01 | J40: =(PARÂMETROS!$F$6*PARÂMETROS!$G$6*PARÂMETROS!$H$6)/($C40^3+PARÂMETROS!$F$6*$C40^2+PARÂMETROS!$F$6*PARÂMETROS!$G$6*$C40+PARÂMETROS!$F$6*PARÂMETROS!$G$6*PARÂMETROS!$H$6) -> 2.69E-05 | K40: =$C40/($C40+PARÂMETROS!$J$6) -> 1.00E+00 | L40: =$C40*PARÂMETROS!$J$6/($C40^2+$C40*PARÂMETROS!$J$6+PARÂMETROS!$J$6*PARÂMETROS!$K$6) -> 7.32E-06 | M40: =$C40^2/($C40^2+$C40*PARÂMETROS!$J$6+PARÂMETROS!$J$6*PARÂMETROS!$K$6) -> 1.00E+00 | N40: =(PARÂMETROS!$K$6*PARÂMETROS!$J$6*$C40)/($C40^3+PARÂMETROS!$J$6*$C40^2+PARÂMETROS!$J$6*PARÂMETROS!$K$6*$C40+PARÂMETROS!$J$6*PARÂMETROS!$K$6*PARÂMETROS!$L$6) -> 0.00E+00 | O40: =(PARÂMETROS!$J$6*$C40^2)/($C40^3+PARÂMETROS!$J$6*$C40^2+PARÂMETROS!$J$6*PARÂMETROS!$K$6*$C40+PARÂMETROS!$J$6*PARÂMETROS!$K$6*PARÂMETROS!$L$6) -> 7.32E-06 | P40: =($C40^3)/($C40^3+PARÂMETROS!$J$6*$C40^2+PARÂMETROS!$J$6*PARÂMETROS!$K$6*$C40+PARÂMETROS!$J$6*PARÂMETROS!$K$6*PARÂMETROS!$L$6) -> 1.00E+00 | Q40: =IF(PARÂMETROS!$J$6<PARÂMETROS!$F$6,(E40-(C40-D40)/PARÂMETROS!$C$11)/(K40+(C40-D40)/PARÂMETROS!$C$14),(K40+(C40-D40)/PARÂMETROS!$C$14)/(E40-(C40-D40)/PARÂMETROS!$C$11)) -> 1.00E+00 | R40: =IF(PARÂMETROS!$J$6<PARÂMETROS!$F$6,(E40-(C40-D40)/PARÂMETROS!$C$11)/(L40+2*M40+(C40-D40)/PARÂMETROS!$C$14),(L40+2*M40+(C40-D40)/PARÂMETROS!$C$14)/(E40-(C40-D40)/PARÂMETROS!$C$11)) -> 5.00E-01 | S40: =IF(PARÂMETROS!$J$6<PARÂMETROS!$F$6, (E40-(C40-D40)/PARÂMETROS!$C$11)/(N40+2*O40+3*P40+(C40-D40)/PARÂMETROS!$C$14),(N40+2*O40+3*P40+(C40-D40)/PARÂMETROS!$C$14)/ (E40-(C40-D40)/PARÂMETROS!$C$11)) -> 3.33E-01 | T40: =IF(PARÂMETROS!$J$6<PARÂMETROS!$F$6,(F40+2*G40-(C40-D40)/PARÂMETROS!$C$11)/(K40+(C40-D40)/PARÂMETROS!$C$14),(K40+(C40-D40)/PARÂMETROS!$C$14)/(F40+2*G40-(C40-D40)/PARÂMETROS!$C$11)) -> 1.82E+00 | U40: =IF(PARÂMETROS!$J$6<PARÂMETROS!$F$6,(F40+2*G40-(C40-D40)/PARÂMETROS!$C$11)/(L40+2*M40+(C40-D40)/PARÂMETROS!$C$14),(L40+2*M40+(C40-D40)/PARÂMETROS!$C$14)/(F40+2*G40-(C40-D40)/PARÂMETROS!$C$11)) -> 9.11E-01 | V40: =IF(PARÂMETROS!$J$6<PARÂMETROS!$F$6,(F40+2*G40-(C40-D40)/PARÂMETROS!$C$11)/(N40+2*O40+3*P40+(C40-D40)/PARÂMETROS!$C$14),(N40+2*O40+3*P40+(C40-D40)/PARÂMETROS!$C$14)/(F40+2*G40-(C40-D40)/PARÂMETROS!$C$11)) -> 6.07E-01 | W40: =IF(PARÂMETROS!$J$6<PARÂMETROS!$F$6,(H40+2*I40+3*J40-(C40-D40)/PARÂMETROS!$C$11)/(K40+(C40-D40)/PARÂMETROS!$C$14),(K40+(C40-D40)/PARÂMETROS!$C$14)/(H40+2*I40+3*J40-(C40-D40)/PARÂMETROS!$C$11)) -> 1.82E+00 | X40: =IF(PARÂMETROS!$J$6<PARÂMETROS!$F$6,(H40+2*I40+3*J40-(C40-D40)/PARÂMETROS!$C$11)/(L40+2*M40+(C40-D40)/PARÂMETROS!$C$14),(L40+2*M40+(C40-D40)/PARÂMETROS!$C$14)/(H40+2*I40+3*J40-(C40-D40)/PARÂMETROS!$C$11)) -> 9.11E-01 | Y40: =IF(PARÂMETROS!$J$6<PARÂMETROS!$F$6,(H40+2*I40+3*J40-(C40-D40)/PARÂMETROS!$C$11)/(N40+2*O40+3*P40+(C40-D40)/PARÂMETROS!$C$14),(N40+2*O40+3*P40+(C40-D40)/PARÂMETROS!$C$14)/(H40+2*I40+3*J40-(C40-D40)/PARÂMETROS!$C$11)) -> 6.07E-01 | Z40: =Q40*PARÂMETROS!$C$11*PARÂMETROS!$D$11/PARÂMETROS!$C$14 -> 20.00 | AA40: =R40*PARÂMETROS!$C$11*PARÂMETROS!$D$11/PARÂMETROS!$C$14 -> 10.00 | AB40: =S40*PARÂMETROS!$C$11*PARÂMETROS!$D$11/PARÂMETROS!$C$14 -> 6.67 | AC40: =T40*PARÂMETROS!$C$11*PARÂMETROS!$D$11/PARÂMETROS!$C$14 -> 36.45 | AD40: =U40*PARÂMETROS!$C$11*PARÂMETROS!$D$11/PARÂMETROS!$C$14 -> 18.22 | AE40: =V40*PARÂMETROS!$C$11*PARÂMETROS!$D$11/PARÂMETROS!$C$14 -> 12.15 | AF40: =W40*PARÂMETROS!$C$11*PARÂMETROS!$D$11/PARÂMETROS!$C$14 -> 36.45 | AG40: =X40*PARÂMETROS!$C$11*PARÂMETROS!$D$11/PARÂMETROS!$C$14 -> 18.22 | AH40: =Y40*PARÂMETROS!$C$11*PARÂMETROS!$D$11/PARÂMETROS!$C$14 -> 12.15 | AI40: =AND(B40+PARÂMETROS!$C$8>=PARÂMETROS!$C$5,B40+PARÂMETROS!$C$8<=PARÂMETROS!$D$5) -> TRUE | AJ40: 1 | AK40: =VLOOKUP('BANCO DE DADOS COMPLETA'!$N$8,'BANCO DE DADOS COMPLETA'!$A$7:$L$249,3)*-1 -> 3 | AL40: 7 | AM40: =VLOOKUP('BANCO DE DADOS COMPLETA'!$N$10,'BANCO DE DADOS COMPLETA'!$A$7:$L$249,3)*-1 -> 1 | AN40: 11 | AO40: 77 | AP40: 36.45 | AQ40: 36.45 | AR40: 7.86 | AS40: 0.13 | AT40: 0.01 | AU40: NADA | AV40: NADA | AW40: 0
B41: =B40+PARÂMETROS!$C$8 -> 8.06 | C41: 8.62E-09 | D41: =PARÂMETROS!$Q$4/C41 -> 1.16E-06 | E41: =PARÂMETROS!$F$6/($C41+PARÂMETROS!$F$6) -> 1.00E+00 | F41: =$C41*PARÂMETROS!$F$6/($C41^2+$C41*PARÂMETROS!$F$6+PARÂMETROS!$F$6*PARÂMETROS!$G$6) -> 1.20E-01 | G41: =PARÂMETROS!$F$6*PARÂMETROS!$G$6/($C41^2+$C41*PARÂMETROS!$F$6+PARÂMETROS!$F$6*PARÂMETROS!$G$6) -> 8.80E-01 | H41: =(PARÂMETROS!$F$6*$C41^2)/($C41^3+PARÂMETROS!$F$6*$C41^2+PARÂMETROS!$F$6*PARÂMETROS!$G$6*$C41+PARÂMETROS!$F$6*PARÂMETROS!$G$6*PARÂMETROS!$H$6) -> 1.20E-01 | I41: =(PARÂMETROS!$F$6*PARÂMETROS!$G$6*$C41)/($C41^3+PARÂMETROS!$F$6*$C41^2+PARÂMETROS!$F$6*PARÂMETROS!$G$6*$C41+PARÂMETROS!$F$6*PARÂMETROS!$G$6*PARÂMETROS!$H$6) -> 8.80E-01 | J41: =(PARÂMETROS!$F$6*PARÂMETROS!$G$6*PARÂMETROS!$H$6)/($C41^3+PARÂMETROS!$F$6*$C41^2+PARÂMETROS!$F$6*PARÂMETROS!$G$6*$C41+PARÂMETROS!$F$6*PARÂMETROS!$G$6*PARÂMETROS!$H$6) -> 4.56E-05 | K41: =$C41/($C41+PARÂMETROS!$J$6) -> 1.00E+00 | L41: =$C41*PARÂMETROS!$J$6/($C41^2+$C41*PARÂMETROS!$J$6+PARÂMETROS!$J$6*PARÂMETROS!$K$6) -> 1.16E-05 | M41: =$C41^2/($C41^2+$C41*PARÂMETROS!$J$6+PARÂMETROS!$J$6*PARÂMETROS!$K$6) -> 1.00E+00 | N41: =(PARÂMETROS!$K$6*PARÂMETROS!$J$6*$C41)/($C41^3+PARÂMETROS!$J$6*$C41^2+PARÂMETROS!$J$6*PARÂMETROS!$K$6*$C41+PARÂMETROS!$J$6*PARÂMETROS!$K$6*PARÂMETROS!$L$6) -> 0.00E+00 | O41: =(PARÂMETROS!$J$6*$C41^2)/($C41^3+PARÂMETROS!$J$6*$C41^2+PARÂMETROS!$J$6*PARÂMETROS!$K$6*$C41+PARÂMETROS!$J$6*PARÂMETROS!$K$6*PARÂMETROS!$L$6) -> 1.16E-05 | P41: =($C41^3)/($C41^3+PARÂMETROS!$J$6*$C41^2+PARÂMETROS!$J$6*PARÂMETROS!$K$6*$C41+PARÂMETROS!$J$6*PARÂMETROS!$K$6*PARÂMETROS!$L$6) -> 1.00E+00 | Q41: =IF(PARÂMETROS!$J$6<PARÂMETROS!$F$6,(E41-(C41-D41)/PARÂMETROS!$C$11)/(K41+(C41-D41)/PARÂMETROS!$C$14),(K41+(C41-D41)/PARÂMETROS!$C$14)/(E41-(C41-D41)/PARÂMETROS!$C$11)) -> 1.00E+00 | R41: =IF(PARÂMETROS!$J$6<PARÂMETROS!$F$6,(E41-(C41-D41)/PARÂMETROS!$C$11)/(L41+2*M41+(C41-D41)/PARÂMETROS!$C$14),(L41+2*M41+(C41-D41)/PARÂMETROS!$C$14)/(E41-(C41-D41)/PARÂMETROS!$C$11)) -> 5.00E-01 | S41: =IF(PARÂMETROS!$J$6<PARÂMETROS!$F$6, (E41-(C41-D41)/PARÂMETROS!$C$11)/(N41+2*O41+3*P41+(C41-D41)/PARÂMETROS!$C$14),(N41+2*O41+3*P41+(C41-D41)/PARÂMETROS!$C$14)/ (E41-(C41-D41)/PARÂMETROS!$C$11)) -> 3.33E-01 | T41: =IF(PARÂMETROS!$J$6<PARÂMETROS!$F$6,(F41+2*G41-(C41-D41)/PARÂMETROS!$C$11)/(K41+(C41-D41)/PARÂMETROS!$C$14),(K41+(C41-D41)/PARÂMETROS!$C$14)/(F41+2*G41-(C41-D41)/PARÂMETROS!$C$11)) -> 1.88E+00 | U41: =IF(PARÂMETROS!$J$6<PARÂMETROS!$F$6,(F41+2*G41-(C41-D41)/PARÂMETROS!$C$11)/(L41+2*M41+(C41-D41)/PARÂMETROS!$C$14),(L41+2*M41+(C41-D41)/PARÂMETROS!$C$14)/(F41+2*G41-(C41-D41)/PARÂMETROS!$C$11)) -> 9.40E-01 | V41: =IF(PARÂMETROS!$J$6<PARÂMETROS!$F$6,(F41+2*G41-(C41-D41)/PARÂMETROS!$C$11)/(N41+2*O41+3*P41+(C41-D41)/PARÂMETROS!$C$14),(N41+2*O41+3*P41+(C41-D41)/PARÂMETROS!$C$14)/(F41+2*G41-(C41-D41)/PARÂMETROS!$C$11)) -> 6.27E-01 | W41: =IF(PARÂMETROS!$J$6<PARÂMETROS!$F$6,(H41+2*I41+3*J41-(C41-D41)/PARÂMETROS!$C$11)/(K41+(C41-D41)/PARÂMETROS!$C$14),(K41+(C41-D41)/PARÂMETROS!$C$14)/(H41+2*I41+3*J41-(C41-D41)/PARÂMETROS!$C$11)) -> 1.88E+00 | X41: =IF(PARÂMETROS!$J$6<PARÂMETROS!$F$6,(H41+2*I41+3*J41-(C41-D41)/PARÂMETROS!$C$11)/(L41+2*M41+(C41-D41)/PARÂMETROS!$C$14),(L41+2*M41+(C41-D41)/PARÂMETROS!$C$14)/(H41+2*I41+3*J41-(C41-D41)/PARÂMETROS!$C$11)) -> 9.40E-01 | Y41: =IF(PARÂMETROS!$J$6<PARÂMETROS!$F$6,(H41+2*I41+3*J41-(C41-D41)/PARÂMETROS!$C$11)/(N41+2*O41+3*P41+(C41-D41)/PARÂMETROS!$C$14),(N41+2*O41+3*P41+(C41-D41)/PARÂMETROS!$C$14)/(H41+2*I41+3*J41-(C41-D41)/PARÂMETROS!$C$11)) -> 6.27E-01 | Z41: =Q41*PARÂMETROS!$C$11*PARÂMETROS!$D$11/PARÂMETROS!$C$14 -> 20.00 | AA41: =R41*PARÂMETROS!$C$11*PARÂMETROS!$D$11/PARÂMETROS!$C$14 -> 10.00 | AB41: =S41*PARÂMETROS!$C$11*PARÂMETROS!$D$11/PARÂMETROS!$C$14 -> 6.67 | AC41: =T41*PARÂMETROS!$C$11*PARÂMETROS!$D$11/PARÂMETROS!$C$14 -> 37.60 | AD41: =U41*PARÂMETROS!$C$11*PARÂMETROS!$D$11/PARÂMETROS!$C$14 -> 18.80 | AE41: =V41*PARÂMETROS!$C$11*PARÂMETROS!$D$11/PARÂMETROS!$C$14 -> 12.53 | AF41: =W41*PARÂMETROS!$C$11*PARÂMETROS!$D$11/PARÂMETROS!$C$14 -> 37.60 | AG41: =X41*PARÂMETROS!$C$11*PARÂMETROS!$D$11/PARÂMETROS!$C$14 -> 18.80 | AH41: =Y41*PARÂMETROS!$C$11*PARÂMETROS!$D$11/PARÂMETROS!$C$14 -> 12.53 | AI41: =AND(B41+PARÂMETROS!$C$8>=PARÂMETROS!$C$5,B41+PARÂMETROS!$C$8<=PARÂMETROS!$D$5) -> TRUE | AJ41: 1 | AK41: =VLOOKUP('BANCO DE DADOS COMPLETA'!$N$8,'BANCO DE DADOS COMPLETA'!$A$7:$L$249,3)*-1 -> 3 | AL41: 7 | AM41: =VLOOKUP('BANCO DE DADOS COMPLETA'!$N$10,'BANCO DE DADOS COMPLETA'!$A$7:$L$249,3)*-1 -> 1 | AN41: 11 | AO41: 77 | AP41: 37.60 | AQ41: 37.60 | AR41: 8.06 | AS41: 0.17 | AT41: 0.03 | AU41: =IF(AT40>0,IF(AT42<0,AQ41,"NADA"),"NADA") -> NADA | AV41: NADA | AW41: 0
B42: =B41+PARÂMETROS!$C$8 -> 8.26 | C42: 5.44E-09 | D42: =PARÂMETROS!$Q$4/C42 -> 1.84E-06 | E42: =PARÂMETROS!$F$6/($C42+PARÂMETROS!$F$6) -> 1.00E+00 | F42: =$C42*PARÂMETROS!$F$6/($C42^2+$C42*PARÂMETROS!$F$6+PARÂMETROS!$F$6*PARÂMETROS!$G$6) -> 7.92E-02 | G42: =PARÂMETROS!$F$6*PARÂMETROS!$G$6/($C42^2+$C42*PARÂMETROS!$F$6+PARÂMETROS!$F$6*PARÂMETROS!$G$6) -> 9.21E-01 | H42: =(PARÂMETROS!$F$6*$C42^2)/($C42^3+PARÂMETROS!$F$6*$C42^2+PARÂMETROS!$F$6*PARÂMETROS!$G$6*$C42+PARÂMETROS!$F$6*PARÂMETROS!$G$6*PARÂMETROS!$H$6) -> 7.92E-02 | I42: =(PARÂMETROS!$F$6*PARÂMETROS!$G$6*$C42)/($C42^3+PARÂMETROS!$F$6*$C42^2+PARÂMETROS!$F$6*PARÂMETROS!$G$6*$C42+PARÂMETROS!$F$6*PARÂMETROS!$G$6*PARÂMETROS!$H$6) -> 9.21E-01 | J42: =(PARÂMETROS!$F$6*PARÂMETROS!$G$6*PARÂMETROS!$H$6)/($C42^3+PARÂMETROS!$F$6*$C42^2+PARÂMETROS!$F$6*PARÂMETROS!$G$6*$C42+PARÂMETROS!$F$6*PARÂMETROS!$G$6*PARÂMETROS!$H$6) -> 7.56E-05 | K42: =$C42/($C42+PARÂMETROS!$J$6) -> 1.00E+00 | L42: =$C42*PARÂMETROS!$J$6/($C42^2+$C42*PARÂMETROS!$J$6+PARÂMETROS!$J$6*PARÂMETROS!$K$6) -> 1.84E-05 | M42: =$C42^2/($C42^2+$C42*PARÂMETROS!$J$6+PARÂMETROS!$J$6*PARÂMETROS!$K$6) -> 1.00E+00 | N42: =(PARÂMETROS!$K$6*PARÂMETROS!$J$6*$C42)/($C42^3+PARÂMETROS!$J$6*$C42^2+PARÂMETROS!$J$6*PARÂMETROS!$K$6*$C42+PARÂMETROS!$J$6*PARÂMETROS!$K$6*PARÂMETROS!$L$6) -> 0.00E+00 | O42: =(PARÂMETROS!$J$6*$C42^2)/($C42^3+PARÂMETROS!$J$6*$C42^2+PARÂMETROS!$J$6*PARÂMETROS!$K$6*$C42+PARÂMETROS!$J$6*PARÂMETROS!$K$6*PARÂMETROS!$L$6) -> 1.84E-05 | P42: =($C42^3)/($C42^3+PARÂMETROS!$J$6*$C42^2+PARÂMETROS!$J$6*PARÂMETROS!$K$6*$C42+PARÂMETROS!$J$6*PARÂMETROS!$K$6*PARÂMETROS!$L$6) -> 1.00E+00 | Q42: =IF(PARÂMETROS!$J$6<PARÂMETROS!$F$6,(E42-(C42-D42)/PARÂMETROS!$C$11)/(K42+(C42-D42)/PARÂMETROS!$C$14),(K42+(C42-D42)/PARÂMETROS!$C$14)/(E42-(C42-D42)/PARÂMETROS!$C$11)) -> 1.00E+00 | R42: =IF(PARÂMETROS!$J$6<PARÂMETROS!$F$6,(E42-(C42-D42)/PARÂMETROS!$C$11)/(L42+2*M42+(C42-D42)/PARÂMETROS!$C$14),(L42+2*M42+(C42-D42)/PARÂMETROS!$C$14)/(E42-(C42-D42)/PARÂMETROS!$C$11)) -> 5.00E-01 | S42: =IF(PARÂMETROS!$J$6<PARÂMETROS!$F$6, (E42-(C42-D42)/PARÂMETROS!$C$11)/(N42+2*O42+3*P42+(C42-D42)/PARÂMETROS!$C$14),(N42+2*O42+3*P42+(C42-D42)/PARÂMETROS!$C$14)/ (E42-(C42-D42)/PARÂMETROS!$C$11)) -> 3.33E-01 | T42: =IF(PARÂMETROS!$J$6<PARÂMETROS!$F$6,(F42+2*G42-(C42-D42)/PARÂMETROS!$C$11)/(K42+(C42-D42)/PARÂMETROS!$C$14),(K42+(C42-D42)/PARÂMETROS!$C$14)/(F42+2*G42-(C42-D42)/PARÂMETROS!$C$11)) -> 1.92E+00 | U42: =IF(PARÂMETROS!$J$6<PARÂMETROS!$F$6,(F42+2*G42-(C42-D42)/PARÂMETROS!$C$11)/(L42+2*M42+(C42-D42)/PARÂMETROS!$C$14),(L42+2*M42+(C42-D42)/PARÂMETROS!$C$14)/(F42+2*G42-(C42-D42)/PARÂMETROS!$C$11)) -> 9.60E-01 | V42: =IF(PARÂMETROS!$J$6<PARÂMETROS!$F$6,(F42+2*G42-(C42-D42)/PARÂMETROS!$C$11)/(N42+2*O42+3*P42+(C42-D42)/PARÂMETROS!$C$14),(N42+2*O42+3*P42+(C42-D42)/PARÂMETROS!$C$14)/(F42+2*G42-(C42-D42)/PARÂMETROS!$C$11)) -> 6.40E-01 | W42: =IF(PARÂMETROS!$J$6<PARÂMETROS!$F$6,(H42+2*I42+3*J42-(C42-D42)/PARÂMETROS!$C$11)/(K42+(C42-D42)/PARÂMETROS!$C$14),(K42+(C42-D42)/PARÂMETROS!$C$14)/(H42+2*I42+3*J42-(C42-D42)/PARÂMETROS!$C$11)) -> 1.92E+00 | X42: =IF(PARÂMETROS!$J$6<PARÂMETROS!$F$6,(H42+2*I42+3*J42-(C42-D42)/PARÂMETROS!$C$11)/(L42+2*M42+(C42-D42)/PARÂMETROS!$C$14),(L42+2*M42+(C42-D42)/PARÂMETROS!$C$14)/(H42+2*I42+3*J42-(C42-D42)/PARÂMETROS!$C$11)) -> 9.60E-01 | Y42: =IF(PARÂMETROS!$J$6<PARÂMETROS!$F$6,(H42+2*I42+3*J42-(C42-D42)/PARÂMETROS!$C$11)/(N42+2*O42+3*P42+(C42-D42)/PARÂMETROS!$C$14),(N42+2*O42+3*P42+(C42-D42)/PARÂMETROS!$C$14)/(H42+2*I42+3*J42-(C42-D42)/PARÂMETROS!$C$11)) -> 6.40E-01 | Z42: =Q42*PARÂMETROS!$C$11*PARÂMETROS!$D$11/PARÂMETROS!$C$14 -> 20.00 | AA42: =R42*PARÂMETROS!$C$11*PARÂMETROS!$D$11/PARÂMETROS!$C$14 -> 10.00 | AB42: =S42*PARÂMETROS!$C$11*PARÂMETROS!$D$11/PARÂMETROS!$C$14 -> 6.67 | AC42: =T42*PARÂMETROS!$C$11*PARÂMETROS!$D$11/PARÂMETROS!$C$14 -> 38.42 | AD42: =U42*PARÂMETROS!$C$11*PARÂMETROS!$D$11/PARÂMETROS!$C$14 -> 19.21 | AE42: =V42*PARÂMETROS!$C$11*PARÂMETROS!$D$11/PARÂMETROS!$C$14 -> 12.81 | AF42: =W42*PARÂMETROS!$C$11*PARÂMETROS!$D$11/PARÂMETROS!$C$14 -> 38.42 | AG42: =X42*PARÂMETROS!$C$11*PARÂMETROS!$D$11/PARÂMETROS!$C$14 -> 19.21 | AH42: =Y42*PARÂMETROS!$C$11*PARÂMETROS!$D$11/PARÂMETROS!$C$14 -> 12.81 | AI42: =AND(B42+PARÂMETROS!$C$8>=PARÂMETROS!$C$5,B42+PARÂMETROS!$C$8<=PARÂMETROS!$D$5) -> TRUE | AJ42: 1 | AK42: =VLOOKUP('BANCO DE DADOS COMPLETA'!$N$8,'BANCO DE DADOS COMPLETA'!$A$7:$L$249,3)*-1 -> 3 | AL42: 7 | AM42: =VLOOKUP('BANCO DE DADOS COMPLETA'!$N$10,'BANCO DE DADOS COMPLETA'!$A$7:$L$249,3)*-1 -> 1 | AN42: 11 | AO42: 77 | AP42: 38.42 | AQ42: 38.42 | AR42: 8.26 | AS42: 0.24 | AT42: 0.06 | AU42: NADA | AV42: =IF(AU41="NADA","NADA",IF(AU42="NADA","NADA",AVERAGE(AU42,AU41))) -> NADA | AW42: =IF(AV42="NADA",0,1) -> 0
B43: =B42+PARÂMETROS!$C$8 -> 8.46 | C43: 3.43E-09 | D43: =PARÂMETROS!$Q$4/C43 -> 2.91E-06 | E43: =PARÂMETROS!$F$6/($C43+PARÂMETROS!$F$6) -> 1.00E+00 | F43: =$C43*PARÂMETROS!$F$6/($C43^2+$C43*PARÂMETROS!$F$6+PARÂMETROS!$F$6*PARÂMETROS!$G$6) -> 5.15E-02 | G43: =PARÂMETROS!$F$6*PARÂMETROS!$G$6/($C43^2+$C43*PARÂMETROS!$F$6+PARÂMETROS!$F$6*PARÂMETROS!$G$6) -> 9.49E-01 | H43: =(PARÂMETROS!$F$6*$C43^2)/($C43^3+PARÂMETROS!$F$6*$C43^2+PARÂMETROS!$F$6*PARÂMETROS!$G$6*$C43+PARÂMETROS!$F$6*PARÂMETROS!$G$6*PARÂMETROS!$H$6) -> 5.15E-02 | I43: =(PARÂMETROS!$F$6*PARÂMETROS!$G$6*$C43)/($C43^3+PARÂMETROS!$F$6*$C43^2+PARÂMETROS!$F$6*PARÂMETROS!$G$6*$C43+PARÂMETROS!$F$6*PARÂMETROS!$G$6*PARÂMETROS!$H$6) -> 9.48E-01 | J43: =(PARÂMETROS!$F$6*PARÂMETROS!$G$6*PARÂMETROS!$H$6)/($C43^3+PARÂMETROS!$F$6*$C43^2+PARÂMETROS!$F$6*PARÂMETROS!$G$6*$C43+PARÂMETROS!$F$6*PARÂMETROS!$G$6*PARÂMETROS!$H$6) -> 1.23E-04 | K43: =$C43/($C43+PARÂMETROS!$J$6) -> 1.00E+00 | L43: =$C43*PARÂMETROS!$J$6/($C43^2+$C43*PARÂMETROS!$J$6+PARÂMETROS!$J$6*PARÂMETROS!$K$6) -> 2.91E-05 | M43: =$C43^2/($C43^2+$C43*PARÂMETROS!$J$6+PARÂMETROS!$J$6*PARÂMETROS!$K$6) -> 1.00E+00 | N43: =(PARÂMETROS!$K$6*PARÂMETROS!$J$6*$C43)/($C43^3+PARÂMETROS!$J$6*$C43^2+PARÂMETROS!$J$6*PARÂMETROS!$K$6*$C43+PARÂMETROS!$J$6*PARÂMETROS!$K$6*PARÂMETROS!$L$6) -> 0.00E+00 | O43: =(PARÂMETROS!$J$6*$C43^2)/($C43^3+PARÂMETROS!$J$6*$C43^2+PARÂMETROS!$J$6*PARÂMETROS!$K$6*$C43+PARÂMETROS!$J$6*PARÂMETROS!$K$6*PARÂMETROS!$L$6) -> 2.91E-05 | P43: =($C43^3)/($C43^3+PARÂMETROS!$J$6*$C43^2+PARÂMETROS!$J$6*PARÂMETROS!$K$6*$C43+PARÂMETROS!$J$6*PARÂMETROS!$K$6*PARÂMETROS!$L$6) -> 1.00E+00 | Q43: =IF(PARÂMETROS!$J$6<PARÂMETROS!$F$6,(E43-(C43-D43)/PARÂMETROS!$C$11)/(K43+(C43-D43)/PARÂMETROS!$C$14),(K43+(C43-D43)/PARÂMETROS!$C$14)/(E43-(C43-D43)/PARÂMETROS!$C$11)) -> 1.00E+00 | R43: =IF(PARÂMETROS!$J$6<PARÂMETROS!$F$6,(E43-(C43-D43)/PARÂMETROS!$C$11)/(L43+2*M43+(C43-D43)/PARÂMETROS!$C$14),(L43+2*M43+(C43-D43)/PARÂMETROS!$C$14)/(E43-(C43-D43)/PARÂMETROS!$C$11)) -> 5.00E-01 | S43: =IF(PARÂMETROS!$J$6<PARÂMETROS!$F$6, (E43-(C43-D43)/PARÂMETROS!$C$11)/(N43+2*O43+3*P43+(C43-D43)/PARÂMETROS!$C$14),(N43+2*O43+3*P43+(C43-D43)/PARÂMETROS!$C$14)/ (E43-(C43-D43)/PARÂMETROS!$C$11)) -> 3.33E-01 | T43: =IF(PARÂMETROS!$J$6<PARÂMETROS!$F$6,(F43+2*G43-(C43-D43)/PARÂMETROS!$C$11)/(K43+(C43-D43)/PARÂMETROS!$C$14),(K43+(C43-D43)/PARÂMETROS!$C$14)/(F43+2*G43-(C43-D43)/PARÂMETROS!$C$11)) -> 1.95E+00 | U43: =IF(PARÂMETROS!$J$6<PARÂMETROS!$F$6,(F43+2*G43-(C43-D43)/PARÂMETROS!$C$11)/(L43+2*M43+(C43-D43)/PARÂMETROS!$C$14),(L43+2*M43+(C43-D43)/PARÂMETROS!$C$14)/(F43+2*G43-(C43-D43)/PARÂMETROS!$C$11)) -> 9.74E-01 | V43: =IF(PARÂMETROS!$J$6<PARÂMETROS!$F$6,(F43+2*G43-(C43-D43)/PARÂMETROS!$C$11)/(N43+2*O43+3*P43+(C43-D43)/PARÂMETROS!$C$14),(N43+2*O43+3*P43+(C43-D43)/PARÂMETROS!$C$14)/(F43+2*G43-(C43-D43)/PARÂMETROS!$C$11)) -> 6.50E-01 | W43: =IF(PARÂMETROS!$J$6<PARÂMETROS!$F$6,(H43+2*I43+3*J43-(C43-D43)/PARÂMETROS!$C$11)/(K43+(C43-D43)/PARÂMETROS!$C$14),(K43+(C43-D43)/PARÂMETROS!$C$14)/(H43+2*I43+3*J43-(C43-D43)/PARÂMETROS!$C$11)) -> 1.95E+00 | X43: =IF(PARÂMETROS!$J$6<PARÂMETROS!$F$6,(H43+2*I43+3*J43-(C43-D43)/PARÂMETROS!$C$11)/(L43+2*M43+(C43-D43)/PARÂMETROS!$C$14),(L43+2*M43+(C43-D43)/PARÂMETROS!$C$14)/(H43+2*I43+3*J43-(C43-D43)/PARÂMETROS!$C$11)) -> 9.74E-01 | Y43: =IF(PARÂMETROS!$J$6<PARÂMETROS!$F$6,(H43+2*I43+3*J43-(C43-D43)/PARÂMETROS!$C$11)/(N43+2*O43+3*P43+(C43-D43)/PARÂMETROS!$C$14),(N43+2*O43+3*P43+(C43-D43)/PARÂMETROS!$C$14)/(H43+2*I43+3*J43-(C43-D43)/PARÂMETROS!$C$11)) -> 6.50E-01 | Z43: =Q43*PARÂMETROS!$C$11*PARÂMETROS!$D$11/PARÂMETROS!$C$14 -> 20.00 | AA43: =R43*PARÂMETROS!$C$11*PARÂMETROS!$D$11/PARÂMETROS!$C$14 -> 10.00 | AB43: =S43*PARÂMETROS!$C$11*PARÂMETROS!$D$11/PARÂMETROS!$C$14 -> 6.67 | AC43: =T43*PARÂMETROS!$C$11*PARÂMETROS!$D$11/PARÂMETROS!$C$14 -> 38.97 | AD43: =U43*PARÂMETROS!$C$11*PARÂMETROS!$D$11/PARÂMETROS!$C$14 -> 19.49 | AE43: =V43*PARÂMETROS!$C$11*PARÂMETROS!$D$11/PARÂMETROS!$C$14 -> 12.99 | AF43: =W43*PARÂMETROS!$C$11*PARÂMETROS!$D$11/PARÂMETROS!$C$14 -> 38.97 | AG43: =X43*PARÂMETROS!$C$11*PARÂMETROS!$D$11/PARÂMETROS!$C$14 -> 19.49 | AH43: =Y43*PARÂMETROS!$C$11*PARÂMETROS!$D$11/PARÂMETROS!$C$14 -> 12.99 | AI43: =AND(B43+PARÂMETROS!$C$8>=PARÂMETROS!$C$5,B43+PARÂMETROS!$C$8<=PARÂMETROS!$D$5) -> TRUE | AJ43: 1 | AK43: =VLOOKUP('BANCO DE DADOS COMPLETA'!$N$8,'BANCO DE DADOS COMPLETA'!$A$7:$L$249,3)*-1 -> 3 | AL43: 7 | AM43: =VLOOKUP('BANCO DE DADOS COMPLETA'!$N$10,'BANCO DE DADOS COMPLETA'!$A$7:$L$249,3)*-1 -> 1 | AN43: 11 | AO43: 77 | AP43: 38.97 | AQ43: 38.97 | AR43: 8.46 | AS43: 0.36 | AT43: 0.14 | AU43: NADA | AV43: NADA | AW43: 0
B44: =B43+PARÂMETROS!$C$8 -> 8.66 | C44: 2.17E-09 | D44: =PARÂMETROS!$Q$4/C44 -> 4.62E-06 | E44: =PARÂMETROS!$F$6/($C44+PARÂMETROS!$F$6) -> 1.00E+00 | F44: =$C44*PARÂMETROS!$F$6/($C44^2+$C44*PARÂMETROS!$F$6+PARÂMETROS!$F$6*PARÂMETROS!$G$6) -> 3.31E-02 | G44: =PARÂMETROS!$F$6*PARÂMETROS!$G$6/($C44^2+$C44*PARÂMETROS!$F$6+PARÂMETROS!$F$6*PARÂMETROS!$G$6) -> 9.67E-01 | H44: =(PARÂMETROS!$F$6*$C44^2)/($C44^3+PARÂMETROS!$F$6*$C44^2+PARÂMETROS!$F$6*PARÂMETROS!$G$6*$C44+PARÂMETROS!$F$6*PARÂMETROS!$G$6*PARÂMETROS!$H$6) -> 3.31E-02 | I44: =(PARÂMETROS!$F$6*PARÂMETROS!$G$6*$C44)/($C44^3+PARÂMETROS!$F$6*$C44^2+PARÂMETROS!$F$6*PARÂMETROS!$G$6*$C44+PARÂMETROS!$F$6*PARÂMETROS!$G$6*PARÂMETROS!$H$6) -> 9.67E-01 | J44: =(PARÂMETROS!$F$6*PARÂMETROS!$G$6*PARÂMETROS!$H$6)/($C44^3+PARÂMETROS!$F$6*$C44^2+PARÂMETROS!$F$6*PARÂMETROS!$G$6*$C44+PARÂMETROS!$F$6*PARÂMETROS!$G$6*PARÂMETROS!$H$6) -> 1.99E-04 | K44: =$C44/($C44+PARÂMETROS!$J$6) -> 1.00E+00 | L44: =$C44*PARÂMETROS!$J$6/($C44^2+$C44*PARÂMETROS!$J$6+PARÂMETROS!$J$6*PARÂMETROS!$K$6) -> 4.62E-05 | M44: =$C44^2/($C44^2+$C44*PARÂMETROS!$J$6+PARÂMETROS!$J$6*PARÂMETROS!$K$6) -> 1.00E+00 | N44: =(PARÂMETROS!$K$6*PARÂMETROS!$J$6*$C44)/($C44^3+PARÂMETROS!$J$6*$C44^2+PARÂMETROS!$J$6*PARÂMETROS!$K$6*$C44+PARÂMETROS!$J$6*PARÂMETROS!$K$6*PARÂMETROS!$L$6) -> 0.00E+00 | O44: =(PARÂMETROS!$J$6*$C44^2)/($C44^3+PARÂMETROS!$J$6*$C44^2+PARÂMETROS!$J$6*PARÂMETROS!$K$6*$C44+PARÂMETROS!$J$6*PARÂMETROS!$K$6*PARÂMETROS!$L$6) -> 4.62E-05 | P44: =($C44^3)/($C44^3+PARÂMETROS!$J$6*$C44^2+PARÂMETROS!$J$6*PARÂMETROS!$K$6*$C44+PARÂMETROS!$J$6*PARÂMETROS!$K$6*PARÂMETROS!$L$6) -> 1.00E+00 | Q44: =IF(PARÂMETROS!$J$6<PARÂMETROS!$F$6,(E44-(C44-D44)/PARÂMETROS!$C$11)/(K44+(C44-D44)/PARÂMETROS!$C$14),(K44+(C44-D44)/PARÂMETROS!$C$14)/(E44-(C44-D44)/PARÂMETROS!$C$11)) -> 1.00E+00 | R44: =IF(PARÂMETROS!$J$6<PARÂMETROS!$F$6,(E44-(C44-D44)/PARÂMETROS!$C$11)/(L44+2*M44+(C44-D44)/PARÂMETROS!$C$14),(L44+2*M44+(C44-D44)/PARÂMETROS!$C$14)/(E44-(C44-D44)/PARÂMETROS!$C$11)) -> 5.00E-01 | S44: =IF(PARÂMETROS!$J$6<PARÂMETROS!$F$6, (E44-(C44-D44)/PARÂMETROS!$C$11)/(N44+2*O44+3*P44+(C44-D44)/PARÂMETROS!$C$14),(N44+2*O44+3*P44+(C44-D44)/PARÂMETROS!$C$14)/ (E44-(C44-D44)/PARÂMETROS!$C$11)) -> 3.33E-01 | T44: =IF(PARÂMETROS!$J$6<PARÂMETROS!$F$6,(F44+2*G44-(C44-D44)/PARÂMETROS!$C$11)/(K44+(C44-D44)/PARÂMETROS!$C$14),(K44+(C44-D44)/PARÂMETROS!$C$14)/(F44+2*G44-(C44-D44)/PARÂMETROS!$C$11)) -> 1.97E+00 | U44: =IF(PARÂMETROS!$J$6<PARÂMETROS!$F$6,(F44+2*G44-(C44-D44)/PARÂMETROS!$C$11)/(L44+2*M44+(C44-D44)/PARÂMETROS!$C$14),(L44+2*M44+(C44-D44)/PARÂMETROS!$C$14)/(F44+2*G44-(C44-D44)/PARÂMETROS!$C$11)) -> 9.83E-01 | V44: =IF(PARÂMETROS!$J$6<PARÂMETROS!$F$6,(F44+2*G44-(C44-D44)/PARÂMETROS!$C$11)/(N44+2*O44+3*P44+(C44-D44)/PARÂMETROS!$C$14),(N44+2*O44+3*P44+(C44-D44)/PARÂMETROS!$C$14)/(F44+2*G44-(C44-D44)/PARÂMETROS!$C$11)) -> 6.56E-01 | W44: =IF(PARÂMETROS!$J$6<PARÂMETROS!$F$6,(H44+2*I44+3*J44-(C44-D44)/PARÂMETROS!$C$11)/(K44+(C44-D44)/PARÂMETROS!$C$14),(K44+(C44-D44)/PARÂMETROS!$C$14)/(H44+2*I44+3*J44-(C44-D44)/PARÂMETROS!$C$11)) -> 1.97E+00 | X44: =IF(PARÂMETROS!$J$6<PARÂMETROS!$F$6,(H44+2*I44+3*J44-(C44-D44)/PARÂMETROS!$C$11)/(L44+2*M44+(C44-D44)/PARÂMETROS!$C$14),(L44+2*M44+(C44-D44)/PARÂMETROS!$C$14)/(H44+2*I44+3*J44-(C44-D44)/PARÂMETROS!$C$11)) -> 9.84E-01 | Y44: =IF(PARÂMETROS!$J$6<PARÂMETROS!$F$6,(H44+2*I44+3*J44-(C44-D44)/PARÂMETROS!$C$11)/(N44+2*O44+3*P44+(C44-D44)/PARÂMETROS!$C$14),(N44+2*O44+3*P44+(C44-D44)/PARÂMETROS!$C$14)/(H44+2*I44+3*J44-(C44-D44)/PARÂMETROS!$C$11)) -> 6.56E-01 | Z44: =Q44*PARÂMETROS!$C$11*PARÂMETROS!$D$11/PARÂMETROS!$C$14 -> 20.00 | AA44: =R44*PARÂMETROS!$C$11*PARÂMETROS!$D$11/PARÂMETROS!$C$14 -> 10.00 | AB44: =S44*PARÂMETROS!$C$11*PARÂMETROS!$D$11/PARÂMETROS!$C$14 -> 6.67 | AC44: =T44*PARÂMETROS!$C$11*PARÂMETROS!$D$11/PARÂMETROS!$C$14 -> 39.34 | AD44: =U44*PARÂMETROS!$C$11*PARÂMETROS!$D$11/PARÂMETROS!$C$14 -> 19.67 | AE44: =V44*PARÂMETROS!$C$11*PARÂMETROS!$D$11/PARÂMETROS!$C$14 -> 13.11 | AF44: =W44*PARÂMETROS!$C$11*PARÂMETROS!$D$11/PARÂMETROS!$C$14 -> 39.34 | AG44: =X44*PARÂMETROS!$C$11*PARÂMETROS!$D$11/PARÂMETROS!$C$14 -> 19.67 | AH44: =Y44*PARÂMETROS!$C$11*PARÂMETROS!$D$11/PARÂMETROS!$C$14 -> 13.11 | AI44: =AND(B44+PARÂMETROS!$C$8>=PARÂMETROS!$C$5,B44+PARÂMETROS!$C$8<=PARÂMETROS!$D$5) -> TRUE | AJ44: 1 | AK44: =VLOOKUP('BANCO DE DADOS COMPLETA'!$N$8,'BANCO DE DADOS COMPLETA'!$A$7:$L$249,3)*-1 -> 3 | AL44: 7 | AM44: =VLOOKUP('BANCO DE DADOS COMPLETA'!$N$10,'BANCO DE DADOS COMPLETA'!$A$7:$L$249,3)*-1 -> 1 | AN44: 11 | AO44: 77 | AP44: 39.34 | AQ44: 39.34 | AR44: 8.66 | AS44: 0.54 | AT44: 0.33 | AU44: NADA | AV44: NADA | AW44: 0
B45: =B44+PARÂMETROS!$C$8 -> 8.86 | C45: 1.37E-09 | D45: =PARÂMETROS!$Q$4/C45 -> 7.32E-06 | E45: =PARÂMETROS!$F$6/($C45+PARÂMETROS!$F$6) -> 1.00E+00 | F45: =$C45*PARÂMETROS!$F$6/($C45^2+$C45*PARÂMETROS!$F$6+PARÂMETROS!$F$6*PARÂMETROS!$G$6) -> 2.12E-02 | G45: =PARÂMETROS!$F$6*PARÂMETROS!$G$6/($C45^2+$C45*PARÂMETROS!$F$6+PARÂMETROS!$F$6*PARÂMETROS!$G$6) -> 9.79E-01 | H45: =(PARÂMETROS!$F$6*$C45^2)/($C45^3+PARÂMETROS!$F$6*$C45^2+PARÂMETROS!$F$6*PARÂMETROS!$G$6*$C45+PARÂMETROS!$F$6*PARÂMETROS!$G$6*PARÂMETROS!$H$6) -> 2.11E-02 | I45: =(PARÂMETROS!$F$6*PARÂMETROS!$G$6*$C45)/($C45^3+PARÂMETROS!$F$6*$C45^2+PARÂMETROS!$F$6*PARÂMETROS!$G$6*$C45+PARÂMETROS!$F$6*PARÂMETROS!$G$6*PARÂMETROS!$H$6) -> 9.79E-01 | J45: =(PARÂMETROS!$F$6*PARÂMETROS!$G$6*PARÂMETROS!$H$6)/($C45^3+PARÂMETROS!$F$6*$C45^2+PARÂMETROS!$F$6*PARÂMETROS!$G$6*$C45+PARÂMETROS!$F$6*PARÂMETROS!$G$6*PARÂMETROS!$H$6) -> 3.20E-04 | K45: =$C45/($C45+PARÂMETROS!$J$6) -> 1.00E+00 | L45: =$C45*PARÂMETROS!$J$6/($C45^2+$C45*PARÂMETROS!$J$6+PARÂMETROS!$J$6*PARÂMETROS!$K$6) -> 7.32E-05 | M45: =$C45^2/($C45^2+$C45*PARÂMETROS!$J$6+PARÂMETROS!$J$6*PARÂMETROS!$K$6) -> 1.00E+00 | N45: =(PARÂMETROS!$K$6*PARÂMETROS!$J$6*$C45)/($C45^3+PARÂMETROS!$J$6*$C45^2+PARÂMETROS!$J$6*PARÂMETROS!$K$6*$C45+PARÂMETROS!$J$6*PARÂMETROS!$K$6*PARÂMETROS!$L$6) -> 0.00E+00 | O45: =(PARÂMETROS!$J$6*$C45^2)/($C45^3+PARÂMETROS!$J$6*$C45^2+PARÂMETROS!$J$6*PARÂMETROS!$K$6*$C45+PARÂMETROS!$J$6*PARÂMETROS!$K$6*PARÂMETROS!$L$6) -> 7.32E-05 | P45: =($C45^3)/($C45^3+PARÂMETROS!$J$6*$C45^2+PARÂMETROS!$J$6*PARÂMETROS!$K$6*$C45+PARÂMETROS!$J$6*PARÂMETROS!$K$6*PARÂMETROS!$L$6) -> 1.00E+00 | Q45: =IF(PARÂMETROS!$J$6<PARÂMETROS!$F$6,(E45-(C45-D45)/PARÂMETROS!$C$11)/(K45+(C45-D45)/PARÂMETROS!$C$14),(K45+(C45-D45)/PARÂMETROS!$C$14)/(E45-(C45-D45)/PARÂMETROS!$C$11)) -> 1.00E+00 | R45: =IF(PARÂMETROS!$J$6<PARÂMETROS!$F$6,(E45-(C45-D45)/PARÂMETROS!$C$11)/(L45+2*M45+(C45-D45)/PARÂMETROS!$C$14),(L45+2*M45+(C45-D45)/PARÂMETROS!$C$14)/(E45-(C45-D45)/PARÂMETROS!$C$11)) -> 5.00E-01 | S45: =IF(PARÂMETROS!$J$6<PARÂMETROS!$F$6, (E45-(C45-D45)/PARÂMETROS!$C$11)/(N45+2*O45+3*P45+(C45-D45)/PARÂMETROS!$C$14),(N45+2*O45+3*P45+(C45-D45)/PARÂMETROS!$C$14)/ (E45-(C45-D45)/PARÂMETROS!$C$11)) -> 3.33E-01 | T45: =IF(PARÂMETROS!$J$6<PARÂMETROS!$F$6,(F45+2*G45-(C45-D45)/PARÂMETROS!$C$11)/(K45+(C45-D45)/PARÂMETROS!$C$14),(K45+(C45-D45)/PARÂMETROS!$C$14)/(F45+2*G45-(C45-D45)/PARÂMETROS!$C$11)) -> 1.98E+00 | U45: =IF(PARÂMETROS!$J$6<PARÂMETROS!$F$6,(F45+2*G45-(C45-D45)/PARÂMETROS!$C$11)/(L45+2*M45+(C45-D45)/PARÂMETROS!$C$14),(L45+2*M45+(C45-D45)/PARÂMETROS!$C$14)/(F45+2*G45-(C45-D45)/PARÂMETROS!$C$11)) -> 9.89E-01 | V45: =IF(PARÂMETROS!$J$6<PARÂMETROS!$F$6,(F45+2*G45-(C45-D45)/PARÂMETROS!$C$11)/(N45+2*O45+3*P45+(C45-D45)/PARÂMETROS!$C$14),(N45+2*O45+3*P45+(C45-D45)/PARÂMETROS!$C$14)/(F45+2*G45-(C45-D45)/PARÂMETROS!$C$11)) -> 6.60E-01 | W45: =IF(PARÂMETROS!$J$6<PARÂMETROS!$F$6,(H45+2*I45+3*J45-(C45-D45)/PARÂMETROS!$C$11)/(K45+(C45-D45)/PARÂMETROS!$C$14),(K45+(C45-D45)/PARÂMETROS!$C$14)/(H45+2*I45+3*J45-(C45-D45)/PARÂMETROS!$C$11)) -> 1.98E+00 | X45: =IF(PARÂMETROS!$J$6<PARÂMETROS!$F$6,(H45+2*I45+3*J45-(C45-D45)/PARÂMETROS!$C$11)/(L45+2*M45+(C45-D45)/PARÂMETROS!$C$14),(L45+2*M45+(C45-D45)/PARÂMETROS!$C$14)/(H45+2*I45+3*J45-(C45-D45)/PARÂMETROS!$C$11)) -> 9.90E-01 | Y45: =IF(PARÂMETROS!$J$6<PARÂMETROS!$F$6,(H45+2*I45+3*J45-(C45-D45)/PARÂMETROS!$C$11)/(N45+2*O45+3*P45+(C45-D45)/PARÂMETROS!$C$14),(N45+2*O45+3*P45+(C45-D45)/PARÂMETROS!$C$14)/(H45+2*I45+3*J45-(C45-D45)/PARÂMETROS!$C$11)) -> 6.60E-01 | Z45: =Q45*PARÂMETROS!$C$11*PARÂMETROS!$D$11/PARÂMETROS!$C$14 -> 20.00 | AA45: =R45*PARÂMETROS!$C$11*PARÂMETROS!$D$11/PARÂMETROS!$C$14 -> 10.00 | AB45: =S45*PARÂMETROS!$C$11*PARÂMETROS!$D$11/PARÂMETROS!$C$14 -> 6.67 | AC45: =T45*PARÂMETROS!$C$11*PARÂMETROS!$D$11/PARÂMETROS!$C$14 -> 39.58 | AD45: =U45*PARÂMETROS!$C$11*PARÂMETROS!$D$11/PARÂMETROS!$C$14 -> 19.79 | AE45: =V45*PARÂMETROS!$C$11*PARÂMETROS!$D$11/PARÂMETROS!$C$14 -> 13.19 | AF45: =W45*PARÂMETROS!$C$11*PARÂMETROS!$D$11/PARÂMETROS!$C$14 -> 39.59 | AG45: =X45*PARÂMETROS!$C$11*PARÂMETROS!$D$11/PARÂMETROS!$C$14 -> 19.79 | AH45: =Y45*PARÂMETROS!$C$11*PARÂMETROS!$D$11/PARÂMETROS!$C$14 -> 13.20 | AI45: =AND(B45+PARÂMETROS!$C$8>=PARÂMETROS!$C$5,B45+PARÂMETROS!$C$8<=PARÂMETROS!$D$5) -> TRUE | AJ45: 1 | AK45: =VLOOKUP('BANCO DE DADOS COMPLETA'!$N$8,'BANCO DE DADOS COMPLETA'!$A$7:$L$249,3)*-1 -> 3 | AL45: 7 | AM45: =VLOOKUP('BANCO DE DADOS COMPLETA'!$N$10,'BANCO DE DADOS COMPLETA'!$A$7:$L$249,3)*-1 -> 1 | AN45: 11 | AO45: 77 | AP45: 39.59 | AQ45: 39.59 | AR45: 8.86 | AS45: 0.82 | AT45: 0.76 | AU45: NADA | AV45: NADA | AW45: 0
B46: =B45+PARÂMETROS!$C$8 -> 9.06 | C46: 8.62E-10 | D46: =PARÂMETROS!$Q$4/C46 -> 1.16E-05 | E46: =PARÂMETROS!$F$6/($C46+PARÂMETROS!$F$6) -> 1.00E+00 | F46: =$C46*PARÂMETROS!$F$6/($C46^2+$C46*PARÂMETROS!$F$6+PARÂMETROS!$F$6*PARÂMETROS!$G$6) -> 1.35E-02 | G46: =PARÂMETROS!$F$6*PARÂMETROS!$G$6/($C46^2+$C46*PARÂMETROS!$F$6+PARÂMETROS!$F$6*PARÂMETROS!$G$6) -> 9.87E-01 | H46: =(PARÂMETROS!$F$6*$C46^2)/($C46^3+PARÂMETROS!$F$6*$C46^2+PARÂMETROS!$F$6*PARÂMETROS!$G$6*$C46+PARÂMETROS!$F$6*PARÂMETROS!$G$6*PARÂMETROS!$H$6) -> 1.34E-02 | I46: =(PARÂMETROS!$F$6*PARÂMETROS!$G$6*$C46)/($C46^3+PARÂMETROS!$F$6*$C46^2+PARÂMETROS!$F$6*PARÂMETROS!$G$6*$C46+PARÂMETROS!$F$6*PARÂMETROS!$G$6*PARÂMETROS!$H$6) -> 9.86E-01 | J46: =(PARÂMETROS!$F$6*PARÂMETROS!$G$6*PARÂMETROS!$H$6)/($C46^3+PARÂMETROS!$F$6*$C46^2+PARÂMETROS!$F$6*PARÂMETROS!$G$6*$C46+PARÂMETROS!$F$6*PARÂMETROS!$G$6*PARÂMETROS!$H$6) -> 5.11E-04 | K46: =$C46/($C46+PARÂMETROS!$J$6) -> 1.00E+00 | L46: =$C46*PARÂMETROS!$J$6/($C46^2+$C46*PARÂMETROS!$J$6+PARÂMETROS!$J$6*PARÂMETROS!$K$6) -> 1.16E-04 | M46: =$C46^2/($C46^2+$C46*PARÂMETROS!$J$6+PARÂMETROS!$J$6*PARÂMETROS!$K$6) -> 1.00E+00 | N46: =(PARÂMETROS!$K$6*PARÂMETROS!$J$6*$C46)/($C46^3+PARÂMETROS!$J$6*$C46^2+PARÂMETROS!$J$6*PARÂMETROS!$K$6*$C46+PARÂMETROS!$J$6*PARÂMETROS!$K$6*PARÂMETROS!$L$6) -> 0.00E+00 | O46: =(PARÂMETROS!$J$6*$C46^2)/($C46^3+PARÂMETROS!$J$6*$C46^2+PARÂMETROS!$J$6*PARÂMETROS!$K$6*$C46+PARÂMETROS!$J$6*PARÂMETROS!$K$6*PARÂMETROS!$L$6) -> 1.16E-04 | P46: =($C46^3)/($C46^3+PARÂMETROS!$J$6*$C46^2+PARÂMETROS!$J$6*PARÂMETROS!$K$6*$C46+PARÂMETROS!$J$6*PARÂMETROS!$K$6*PARÂMETROS!$L$6) -> 1.00E+00 | Q46: =IF(PARÂMETROS!$J$6<PARÂMETROS!$F$6,(E46-(C46-D46)/PARÂMETROS!$C$11)/(K46+(C46-D46)/PARÂMETROS!$C$14),(K46+(C46-D46)/PARÂMETROS!$C$14)/(E46-(C46-D46)/PARÂMETROS!$C$11)) -> 1.00E+00 | R46: =IF(PARÂMETROS!$J$6<PARÂMETROS!$F$6,(E46-(C46-D46)/PARÂMETROS!$C$11)/(L46+2*M46+(C46-D46)/PARÂMETROS!$C$14),(L46+2*M46+(C46-D46)/PARÂMETROS!$C$14)/(E46-(C46-D46)/PARÂMETROS!$C$11)) -> 5.00E-01 | S46: =IF(PARÂMETROS!$J$6<PARÂMETROS!$F$6, (E46-(C46-D46)/PARÂMETROS!$C$11)/(N46+2*O46+3*P46+(C46-D46)/PARÂMETROS!$C$14),(N46+2*O46+3*P46+(C46-D46)/PARÂMETROS!$C$14)/ (E46-(C46-D46)/PARÂMETROS!$C$11)) -> 3.33E-01 | T46: =IF(PARÂMETROS!$J$6<PARÂMETROS!$F$6,(F46+2*G46-(C46-D46)/PARÂMETROS!$C$11)/(K46+(C46-D46)/PARÂMETROS!$C$14),(K46+(C46-D46)/PARÂMETROS!$C$14)/(F46+2*G46-(C46-D46)/PARÂMETROS!$C$11)) -> 1.99E+00 | U46: =IF(PARÂMETROS!$J$6<PARÂMETROS!$F$6,(F46+2*G46-(C46-D46)/PARÂMETROS!$C$11)/(L46+2*M46+(C46-D46)/PARÂMETROS!$C$14),(L46+2*M46+(C46-D46)/PARÂMETROS!$C$14)/(F46+2*G46-(C46-D46)/PARÂMETROS!$C$11)) -> 9.93E-01 | V46: =IF(PARÂMETROS!$J$6<PARÂMETROS!$F$6,(F46+2*G46-(C46-D46)/PARÂMETROS!$C$11)/(N46+2*O46+3*P46+(C46-D46)/PARÂMETROS!$C$14),(N46+2*O46+3*P46+(C46-D46)/PARÂMETROS!$C$14)/(F46+2*G46-(C46-D46)/PARÂMETROS!$C$11)) -> 6.62E-01 | W46: =IF(PARÂMETROS!$J$6<PARÂMETROS!$F$6,(H46+2*I46+3*J46-(C46-D46)/PARÂMETROS!$C$11)/(K46+(C46-D46)/PARÂMETROS!$C$14),(K46+(C46-D46)/PARÂMETROS!$C$14)/(H46+2*I46+3*J46-(C46-D46)/PARÂMETROS!$C$11)) -> 1.99E+00 | X46: =IF(PARÂMETROS!$J$6<PARÂMETROS!$F$6,(H46+2*I46+3*J46-(C46-D46)/PARÂMETROS!$C$11)/(L46+2*M46+(C46-D46)/PARÂMETROS!$C$14),(L46+2*M46+(C46-D46)/PARÂMETROS!$C$14)/(H46+2*I46+3*J46-(C46-D46)/PARÂMETROS!$C$11)) -> 9.94E-01 | Y46: =IF(PARÂMETROS!$J$6<PARÂMETROS!$F$6,(H46+2*I46+3*J46-(C46-D46)/PARÂMETROS!$C$11)/(N46+2*O46+3*P46+(C46-D46)/PARÂMETROS!$C$14),(N46+2*O46+3*P46+(C46-D46)/PARÂMETROS!$C$14)/(H46+2*I46+3*J46-(C46-D46)/PARÂMETROS!$C$11)) -> 6.62E-01 | Z46: =Q46*PARÂMETROS!$C$11*PARÂMETROS!$D$11/PARÂMETROS!$C$14 -> 20.00 | AA46: =R46*PARÂMETROS!$C$11*PARÂMETROS!$D$11/PARÂMETROS!$C$14 -> 10.00 | AB46: =S46*PARÂMETROS!$C$11*PARÂMETROS!$D$11/PARÂMETROS!$C$14 -> 6.67 | AC46: =T46*PARÂMETROS!$C$11*PARÂMETROS!$D$11/PARÂMETROS!$C$14 -> 39.74 | AD46: =U46*PARÂMETROS!$C$11*PARÂMETROS!$D$11/PARÂMETROS!$C$14 -> 19.87 | AE46: =V46*PARÂMETROS!$C$11*PARÂMETROS!$D$11/PARÂMETROS!$C$14 -> 13.24 | AF46: =W46*PARÂMETROS!$C$11*PARÂMETROS!$D$11/PARÂMETROS!$C$14 -> 39.75 | AG46: =X46*PARÂMETROS!$C$11*PARÂMETROS!$D$11/PARÂMETROS!$C$14 -> 19.87 | AH46: =Y46*PARÂMETROS!$C$11*PARÂMETROS!$D$11/PARÂMETROS!$C$14 -> 13.25 | AI46: =AND(B46+PARÂMETROS!$C$8>=PARÂMETROS!$C$5,B46+PARÂMETROS!$C$8<=PARÂMETROS!$D$5) -> TRUE | AJ46: 1 | AK46: =VLOOKUP('BANCO DE DADOS COMPLETA'!$N$8,'BANCO DE DADOS COMPLETA'!$A$7:$L$249,3)*-1 -> 3 | AL46: 7 | AM46: =VLOOKUP('BANCO DE DADOS COMPLETA'!$N$10,'BANCO DE DADOS COMPLETA'!$A$7:$L$249,3)*-1 -> 1 | AN46: 11 | AO46: 77 | AP46: 39.75 | AQ46: 39.75 | AR46: 9.06 | AS46: 1.25 | AT46: 1.75 | AU46: NADA | AV46: NADA | AW46: 0
B47: =B46+PARÂMETROS!$C$8 -> 9.26 | C47: 5.44E-10 | D47: =PARÂMETROS!$Q$4/C47 -> 1.84E-05 | E47: =PARÂMETROS!$F$6/($C47+PARÂMETROS!$F$6) -> 1.00E+00 | F47: =$C47*PARÂMETROS!$F$6/($C47^2+$C47*PARÂMETROS!$F$6+PARÂMETROS!$F$6*PARÂMETROS!$G$6) -> 8.53E-03 | G47: =PARÂMETROS!$F$6*PARÂMETROS!$G$6/($C47^2+$C47*PARÂMETROS!$F$6+PARÂMETROS!$F$6*PARÂMETROS!$G$6) -> 9.91E-01 | H47: =(PARÂMETROS!$F$6*$C47^2)/($C47^3+PARÂMETROS!$F$6*$C47^2+PARÂMETROS!$F$6*PARÂMETROS!$G$6*$C47+PARÂMETROS!$F$6*PARÂMETROS!$G$6*PARÂMETROS!$H$6) -> 8.52E-03 | I47: =(PARÂMETROS!$F$6*PARÂMETROS!$G$6*$C47)/($C47^3+PARÂMETROS!$F$6*$C47^2+PARÂMETROS!$F$6*PARÂMETROS!$G$6*$C47+PARÂMETROS!$F$6*PARÂMETROS!$G$6*PARÂMETROS!$H$6) -> 9.91E-01 | J47: =(PARÂMETROS!$F$6*PARÂMETROS!$G$6*PARÂMETROS!$H$6)/($C47^3+PARÂMETROS!$F$6*$C47^2+PARÂMETROS!$F$6*PARÂMETROS!$G$6*$C47+PARÂMETROS!$F$6*PARÂMETROS!$G$6*PARÂMETROS!$H$6) -> 8.13E-04 | K47: =$C47/($C47+PARÂMETROS!$J$6) -> 1.00E+00 | L47: =$C47*PARÂMETROS!$J$6/($C47^2+$C47*PARÂMETROS!$J$6+PARÂMETROS!$J$6*PARÂMETROS!$K$6) -> 1.84E-04 | M47: =$C47^2/($C47^2+$C47*PARÂMETROS!$J$6+PARÂMETROS!$J$6*PARÂMETROS!$K$6) -> 1.00E+00 | N47: =(PARÂMETROS!$K$6*PARÂMETROS!$J$6*$C47)/($C47^3+PARÂMETROS!$J$6*$C47^2+PARÂMETROS!$J$6*PARÂMETROS!$K$6*$C47+PARÂMETROS!$J$6*PARÂMETROS!$K$6*PARÂMETROS!$L$6) -> 0.00E+00 | O47: =(PARÂMETROS!$J$6*$C47^2)/($C47^3+PARÂMETROS!$J$6*$C47^2+PARÂMETROS!$J$6*PARÂMETROS!$K$6*$C47+PARÂMETROS!$J$6*PARÂMETROS!$K$6*PARÂMETROS!$L$6) -> 1.84E-04 | P47: =($C47^3)/($C47^3+PARÂMETROS!$J$6*$C47^2+PARÂMETROS!$J$6*PARÂMETROS!$K$6*$C47+PARÂMETROS!$J$6*PARÂMETROS!$K$6*PARÂMETROS!$L$6) -> 1.00E+00 | Q47: =IF(PARÂMETROS!$J$6<PARÂMETROS!$F$6,(E47-(C47-D47)/PARÂMETROS!$C$11)/(K47+(C47-D47)/PARÂMETROS!$C$14),(K47+(C47-D47)/PARÂMETROS!$C$14)/(E47-(C47-D47)/PARÂMETROS!$C$11)) -> 1.00E+00 | R47: =IF(PARÂMETROS!$J$6<PARÂMETROS!$F$6,(E47-(C47-D47)/PARÂMETROS!$C$11)/(L47+2*M47+(C47-D47)/PARÂMETROS!$C$14),(L47+2*M47+(C47-D47)/PARÂMETROS!$C$14)/(E47-(C47-D47)/PARÂMETROS!$C$11)) -> 5.00E-01 | S47: =IF(PARÂMETROS!$J$6<PARÂMETROS!$F$6, (E47-(C47-D47)/PARÂMETROS!$C$11)/(N47+2*O47+3*P47+(C47-D47)/PARÂMETROS!$C$14),(N47+2*O47+3*P47+(C47-D47)/PARÂMETROS!$C$14)/ (E47-(C47-D47)/PARÂMETROS!$C$11)) -> 3.33E-01 | T47: =IF(PARÂMETROS!$J$6<PARÂMETROS!$F$6,(F47+2*G47-(C47-D47)/PARÂMETROS!$C$11)/(K47+(C47-D47)/PARÂMETROS!$C$14),(K47+(C47-D47)/PARÂMETROS!$C$14)/(F47+2*G47-(C47-D47)/PARÂMETROS!$C$11)) -> 1.99E+00 | U47: =IF(PARÂMETROS!$J$6<PARÂMETROS!$F$6,(F47+2*G47-(C47-D47)/PARÂMETROS!$C$11)/(L47+2*M47+(C47-D47)/PARÂMETROS!$C$14),(L47+2*M47+(C47-D47)/PARÂMETROS!$C$14)/(F47+2*G47-(C47-D47)/PARÂMETROS!$C$11)) -> 9.96E-01 | V47: =IF(PARÂMETROS!$J$6<PARÂMETROS!$F$6,(F47+2*G47-(C47-D47)/PARÂMETROS!$C$11)/(N47+2*O47+3*P47+(C47-D47)/PARÂMETROS!$C$14),(N47+2*O47+3*P47+(C47-D47)/PARÂMETROS!$C$14)/(F47+2*G47-(C47-D47)/PARÂMETROS!$C$11)) -> 6.64E-01 | W47: =IF(PARÂMETROS!$J$6<PARÂMETROS!$F$6,(H47+2*I47+3*J47-(C47-D47)/PARÂMETROS!$C$11)/(K47+(C47-D47)/PARÂMETROS!$C$14),(K47+(C47-D47)/PARÂMETROS!$C$14)/(H47+2*I47+3*J47-(C47-D47)/PARÂMETROS!$C$11)) -> 1.99E+00 | X47: =IF(PARÂMETROS!$J$6<PARÂMETROS!$F$6,(H47+2*I47+3*J47-(C47-D47)/PARÂMETROS!$C$11)/(L47+2*M47+(C47-D47)/PARÂMETROS!$C$14),(L47+2*M47+(C47-D47)/PARÂMETROS!$C$14)/(H47+2*I47+3*J47-(C47-D47)/PARÂMETROS!$C$11)) -> 9.96E-01 | Y47: =IF(PARÂMETROS!$J$6<PARÂMETROS!$F$6,(H47+2*I47+3*J47-(C47-D47)/PARÂMETROS!$C$11)/(N47+2*O47+3*P47+(C47-D47)/PARÂMETROS!$C$14),(N47+2*O47+3*P47+(C47-D47)/PARÂMETROS!$C$14)/(H47+2*I47+3*J47-(C47-D47)/PARÂMETROS!$C$11)) -> 6.64E-01 | Z47: =Q47*PARÂMETROS!$C$11*PARÂMETROS!$D$11/PARÂMETROS!$C$14 -> 20.01 | AA47: =R47*PARÂMETROS!$C$11*PARÂMETROS!$D$11/PARÂMETROS!$C$14 -> 10.00 | AB47: =S47*PARÂMETROS!$C$11*PARÂMETROS!$D$11/PARÂMETROS!$C$14 -> 6.67 | AC47: =T47*PARÂMETROS!$C$11*PARÂMETROS!$D$11/PARÂMETROS!$C$14 -> 39.84 | AD47: =U47*PARÂMETROS!$C$11*PARÂMETROS!$D$11/PARÂMETROS!$C$14 -> 19.92 | AE47: =V47*PARÂMETROS!$C$11*PARÂMETROS!$D$11/PARÂMETROS!$C$14 -> 13.28 | AF47: =W47*PARÂMETROS!$C$11*PARÂMETROS!$D$11/PARÂMETROS!$C$14 -> 39.86 | AG47: =X47*PARÂMETROS!$C$11*PARÂMETROS!$D$11/PARÂMETROS!$C$14 -> 19.93 | AH47: =Y47*PARÂMETROS!$C$11*PARÂMETROS!$D$11/PARÂMETROS!$C$14 -> 13.28 | AI47: =AND(B47+PARÂMETROS!$C$8>=PARÂMETROS!$C$5,B47+PARÂMETROS!$C$8<=PARÂMETROS!$D$5) -> TRUE | AJ47: 1 | AK47: =VLOOKUP('BANCO DE DADOS COMPLETA'!$N$8,'BANCO DE DADOS COMPLETA'!$A$7:$L$249,3)*-1 -> 3 | AL47: 7 | AM47: =VLOOKUP('BANCO DE DADOS COMPLETA'!$N$10,'BANCO DE DADOS COMPLETA'!$A$7:$L$249,3)*-1 -> 1 | AN47: 11 | AO47: 77 | AP47: 39.86 | AQ47: 39.86 | AR47: 9.26 | AS47: 1.84 | AT47: 3.72 | AU47: NADA | AV47: NADA | AW47: 0
B48: =B47+PARÂMETROS!$C$8 -> 9.46 | C48: 3.43E-10 | D48: =PARÂMETROS!$Q$4/C48 -> 2.91E-05 | E48: =PARÂMETROS!$F$6/($C48+PARÂMETROS!$F$6) -> 1.00E+00 | F48: =$C48*PARÂMETROS!$F$6/($C48^2+$C48*PARÂMETROS!$F$6+PARÂMETROS!$F$6*PARÂMETROS!$G$6) -> 5.40E-03 | G48: =PARÂMETROS!$F$6*PARÂMETROS!$G$6/($C48^2+$C48*PARÂMETROS!$F$6+PARÂMETROS!$F$6*PARÂMETROS!$G$6) -> 9.95E-01 | H48: =(PARÂMETROS!$F$6*$C48^2)/($C48^3+PARÂMETROS!$F$6*$C48^2+PARÂMETROS!$F$6*PARÂMETROS!$G$6*$C48+PARÂMETROS!$F$6*PARÂMETROS!$G$6*PARÂMETROS!$H$6) -> 5.39E-03 | I48: =(PARÂMETROS!$F$6*PARÂMETROS!$G$6*$C48)/($C48^3+PARÂMETROS!$F$6*$C48^2+PARÂMETROS!$F$6*PARÂMETROS!$G$6*$C48+PARÂMETROS!$F$6*PARÂMETROS!$G$6*PARÂMETROS!$H$6) -> 9.93E-01 | J48: =(PARÂMETROS!$F$6*PARÂMETROS!$G$6*PARÂMETROS!$H$6)/($C48^3+PARÂMETROS!$F$6*$C48^2+PARÂMETROS!$F$6*PARÂMETROS!$G$6*$C48+PARÂMETROS!$F$6*PARÂMETROS!$G$6*PARÂMETROS!$H$6) -> 1.29E-03 | K48: =$C48/($C48+PARÂMETROS!$J$6) -> 1.00E+00 | L48: =$C48*PARÂMETROS!$J$6/($C48^2+$C48*PARÂMETROS!$J$6+PARÂMETROS!$J$6*PARÂMETROS!$K$6) -> 2.91E-04 | M48: =$C48^2/($C48^2+$C48*PARÂMETROS!$J$6+PARÂMETROS!$J$6*PARÂMETROS!$K$6) -> 1.00E+00 | N48: =(PARÂMETROS!$K$6*PARÂMETROS!$J$6*$C48)/($C48^3+PARÂMETROS!$J$6*$C48^2+PARÂMETROS!$J$6*PARÂMETROS!$K$6*$C48+PARÂMETROS!$J$6*PARÂMETROS!$K$6*PARÂMETROS!$L$6) -> 0.00E+00 | O48: =(PARÂMETROS!$J$6*$C48^2)/($C48^3+PARÂMETROS!$J$6*$C48^2+PARÂMETROS!$J$6*PARÂMETROS!$K$6*$C48+PARÂMETROS!$J$6*PARÂMETROS!$K$6*PARÂMETROS!$L$6) -> 2.91E-04 | P48: =($C48^3)/($C48^3+PARÂMETROS!$J$6*$C48^2+PARÂMETROS!$J$6*PARÂMETROS!$K$6*$C48+PARÂMETROS!$J$6*PARÂMETROS!$K$6*PARÂMETROS!$L$6) -> 1.00E+00 | Q48: =IF(PARÂMETROS!$J$6<PARÂMETROS!$F$6,(E48-(C48-D48)/PARÂMETROS!$C$11)/(K48+(C48-D48)/PARÂMETROS!$C$14),(K48+(C48-D48)/PARÂMETROS!$C$14)/(E48-(C48-D48)/PARÂMETROS!$C$11)) -> 1.00E+00 | R48: =IF(PARÂMETROS!$J$6<PARÂMETROS!$F$6,(E48-(C48-D48)/PARÂMETROS!$C$11)/(L48+2*M48+(C48-D48)/PARÂMETROS!$C$14),(L48+2*M48+(C48-D48)/PARÂMETROS!$C$14)/(E48-(C48-D48)/PARÂMETROS!$C$11)) -> 5.00E-01 | S48: =IF(PARÂMETROS!$J$6<PARÂMETROS!$F$6, (E48-(C48-D48)/PARÂMETROS!$C$11)/(N48+2*O48+3*P48+(C48-D48)/PARÂMETROS!$C$14),(N48+2*O48+3*P48+(C48-D48)/PARÂMETROS!$C$14)/ (E48-(C48-D48)/PARÂMETROS!$C$11)) -> 3.33E-01 | T48: =IF(PARÂMETROS!$J$6<PARÂMETROS!$F$6,(F48+2*G48-(C48-D48)/PARÂMETROS!$C$11)/(K48+(C48-D48)/PARÂMETROS!$C$14),(K48+(C48-D48)/PARÂMETROS!$C$14)/(F48+2*G48-(C48-D48)/PARÂMETROS!$C$11)) -> 2.00E+00 | U48: =IF(PARÂMETROS!$J$6<PARÂMETROS!$F$6,(F48+2*G48-(C48-D48)/PARÂMETROS!$C$11)/(L48+2*M48+(C48-D48)/PARÂMETROS!$C$14),(L48+2*M48+(C48-D48)/PARÂMETROS!$C$14)/(F48+2*G48-(C48-D48)/PARÂMETROS!$C$11)) -> 9.98E-01 | V48: =IF(PARÂMETROS!$J$6<PARÂMETROS!$F$6,(F48+2*G48-(C48-D48)/PARÂMETROS!$C$11)/(N48+2*O48+3*P48+(C48-D48)/PARÂMETROS!$C$14),(N48+2*O48+3*P48+(C48-D48)/PARÂMETROS!$C$14)/(F48+2*G48-(C48-D48)/PARÂMETROS!$C$11)) -> 6.65E-01 | W48: =IF(PARÂMETROS!$J$6<PARÂMETROS!$F$6,(H48+2*I48+3*J48-(C48-D48)/PARÂMETROS!$C$11)/(K48+(C48-D48)/PARÂMETROS!$C$14),(K48+(C48-D48)/PARÂMETROS!$C$14)/(H48+2*I48+3*J48-(C48-D48)/PARÂMETROS!$C$11)) -> 2.00E+00 | X48: =IF(PARÂMETROS!$J$6<PARÂMETROS!$F$6,(H48+2*I48+3*J48-(C48-D48)/PARÂMETROS!$C$11)/(L48+2*M48+(C48-D48)/PARÂMETROS!$C$14),(L48+2*M48+(C48-D48)/PARÂMETROS!$C$14)/(H48+2*I48+3*J48-(C48-D48)/PARÂMETROS!$C$11)) -> 9.98E-01 | Y48: =IF(PARÂMETROS!$J$6<PARÂMETROS!$F$6,(H48+2*I48+3*J48-(C48-D48)/PARÂMETROS!$C$11)/(N48+2*O48+3*P48+(C48-D48)/PARÂMETROS!$C$14),(N48+2*O48+3*P48+(C48-D48)/PARÂMETROS!$C$14)/(H48+2*I48+3*J48-(C48-D48)/PARÂMETROS!$C$11)) -> 6.65E-01 | Z48: =Q48*PARÂMETROS!$C$11*PARÂMETROS!$D$11/PARÂMETROS!$C$14 -> 20.01 | AA48: =R48*PARÂMETROS!$C$11*PARÂMETROS!$D$11/PARÂMETROS!$C$14 -> 10.00 | AB48: =S48*PARÂMETROS!$C$11*PARÂMETROS!$D$11/PARÂMETROS!$C$14 -> 6.67 | AC48: =T48*PARÂMETROS!$C$11*PARÂMETROS!$D$11/PARÂMETROS!$C$14 -> 39.91 | AD48: =U48*PARÂMETROS!$C$11*PARÂMETROS!$D$11/PARÂMETROS!$C$14 -> 19.95 | AE48: =V48*PARÂMETROS!$C$11*PARÂMETROS!$D$11/PARÂMETROS!$C$14 -> 13.30 | AF48: =W48*PARÂMETROS!$C$11*PARÂMETROS!$D$11/PARÂMETROS!$C$14 -> 39.93 | AG48: =X48*PARÂMETROS!$C$11*PARÂMETROS!$D$11/PARÂMETROS!$C$14 -> 19.96 | AH48: =Y48*PARÂMETROS!$C$11*PARÂMETROS!$D$11/PARÂMETROS!$C$14 -> 13.31 | AI48: =AND(B48+PARÂMETROS!$C$8>=PARÂMETROS!$C$5,B48+PARÂMETROS!$C$8<=PARÂMETROS!$D$5) -> TRUE | AJ48: 1 | AK48: =VLOOKUP('BANCO DE DADOS COMPLETA'!$N$8,'BANCO DE DADOS COMPLETA'!$A$7:$L$249,3)*-1 -> 3 | AL48: 7 | AM48: =VLOOKUP('BANCO DE DADOS COMPLETA'!$N$10,'BANCO DE DADOS COMPLETA'!$A$7:$L$249,3)*-1 -> 1 | AN48: 11 | AO48: 77 | AP48: 39.93 | AQ48: 39.93 | AR48: 9.46 | AS48: 2.55 | AT48: 6.50 | AU48: NADA | AV48: NADA | AW48: 0
B49: =B48+PARÂMETROS!$C$8 -> 9.66 | C49: 2.17E-10 | D49: =PARÂMETROS!$Q$4/C49 -> 4.62E-05 | E49: =PARÂMETROS!$F$6/($C49+PARÂMETROS!$F$6) -> 1.00E+00 | F49: =$C49*PARÂMETROS!$F$6/($C49^2+$C49*PARÂMETROS!$F$6+PARÂMETROS!$F$6*PARÂMETROS!$G$6) -> 3.41E-03 | G49: =PARÂMETROS!$F$6*PARÂMETROS!$G$6/($C49^2+$C49*PARÂMETROS!$F$6+PARÂMETROS!$F$6*PARÂMETROS!$G$6) -> 9.97E-01 | H49: =(PARÂMETROS!$F$6*$C49^2)/($C49^3+PARÂMETROS!$F$6*$C49^2+PARÂMETROS!$F$6*PARÂMETROS!$G$6*$C49+PARÂMETROS!$F$6*PARÂMETROS!$G$6*PARÂMETROS!$H$6) -> 3.41E-03 | I49: =(PARÂMETROS!$F$6*PARÂMETROS!$G$6*$C49)/($C49^3+PARÂMETROS!$F$6*$C49^2+PARÂMETROS!$F$6*PARÂMETROS!$G$6*$C49+PARÂMETROS!$F$6*PARÂMETROS!$G$6*PARÂMETROS!$H$6) -> 9.95E-01 | J49: =(PARÂMETROS!$F$6*PARÂMETROS!$G$6*PARÂMETROS!$H$6)/($C49^3+PARÂMETROS!$F$6*$C49^2+PARÂMETROS!$F$6*PARÂMETROS!$G$6*$C49+PARÂMETROS!$F$6*PARÂMETROS!$G$6*PARÂMETROS!$H$6) -> 2.05E-03 | K49: =$C49/($C49+PARÂMETROS!$J$6) -> 1.00E+00 | L49: =$C49*PARÂMETROS!$J$6/($C49^2+$C49*PARÂMETROS!$J$6+PARÂMETROS!$J$6*PARÂMETROS!$K$6) -> 4.61E-04 | M49: =$C49^2/($C49^2+$C49*PARÂMETROS!$J$6+PARÂMETROS!$J$6*PARÂMETROS!$K$6) -> 1.00E+00 | N49: =(PARÂMETROS!$K$6*PARÂMETROS!$J$6*$C49)/($C49^3+PARÂMETROS!$J$6*$C49^2+PARÂMETROS!$J$6*PARÂMETROS!$K$6*$C49+PARÂMETROS!$J$6*PARÂMETROS!$K$6*PARÂMETROS!$L$6) -> 0.00E+00 | O49: =(PARÂMETROS!$J$6*$C49^2)/($C49^3+PARÂMETROS!$J$6*$C49^2+PARÂMETROS!$J$6*PARÂMETROS!$K$6*$C49+PARÂMETROS!$J$6*PARÂMETROS!$K$6*PARÂMETROS!$L$6) -> 4.61E-04 | P49: =($C49^3)/($C49^3+PARÂMETROS!$J$6*$C49^2+PARÂMETROS!$J$6*PARÂMETROS!$K$6*$C49+PARÂMETROS!$J$6*PARÂMETROS!$K$6*PARÂMETROS!$L$6) -> 1.00E+00 | Q49: =IF(PARÂMETROS!$J$6<PARÂMETROS!$F$6,(E49-(C49-D49)/PARÂMETROS!$C$11)/(K49+(C49-D49)/PARÂMETROS!$C$14),(K49+(C49-D49)/PARÂMETROS!$C$14)/(E49-(C49-D49)/PARÂMETROS!$C$11)) -> 1.00E+00 | R49: =IF(PARÂMETROS!$J$6<PARÂMETROS!$F$6,(E49-(C49-D49)/PARÂMETROS!$C$11)/(L49+2*M49+(C49-D49)/PARÂMETROS!$C$14),(L49+2*M49+(C49-D49)/PARÂMETROS!$C$14)/(E49-(C49-D49)/PARÂMETROS!$C$11)) -> 5.00E-01 | S49: =IF(PARÂMETROS!$J$6<PARÂMETROS!$F$6, (E49-(C49-D49)/PARÂMETROS!$C$11)/(N49+2*O49+3*P49+(C49-D49)/PARÂMETROS!$C$14),(N49+2*O49+3*P49+(C49-D49)/PARÂMETROS!$C$14)/ (E49-(C49-D49)/PARÂMETROS!$C$11)) -> 3.33E-01 | T49: =IF(PARÂMETROS!$J$6<PARÂMETROS!$F$6,(F49+2*G49-(C49-D49)/PARÂMETROS!$C$11)/(K49+(C49-D49)/PARÂMETROS!$C$14),(K49+(C49-D49)/PARÂMETROS!$C$14)/(F49+2*G49-(C49-D49)/PARÂMETROS!$C$11)) -> 2.00E+00 | U49: =IF(PARÂMETROS!$J$6<PARÂMETROS!$F$6,(F49+2*G49-(C49-D49)/PARÂMETROS!$C$11)/(L49+2*M49+(C49-D49)/PARÂMETROS!$C$14),(L49+2*M49+(C49-D49)/PARÂMETROS!$C$14)/(F49+2*G49-(C49-D49)/PARÂMETROS!$C$11)) -> 9.99E-01 | V49: =IF(PARÂMETROS!$J$6<PARÂMETROS!$F$6,(F49+2*G49-(C49-D49)/PARÂMETROS!$C$11)/(N49+2*O49+3*P49+(C49-D49)/PARÂMETROS!$C$14),(N49+2*O49+3*P49+(C49-D49)/PARÂMETROS!$C$14)/(F49+2*G49-(C49-D49)/PARÂMETROS!$C$11)) -> 6.66E-01 | W49: =IF(PARÂMETROS!$J$6<PARÂMETROS!$F$6,(H49+2*I49+3*J49-(C49-D49)/PARÂMETROS!$C$11)/(K49+(C49-D49)/PARÂMETROS!$C$14),(K49+(C49-D49)/PARÂMETROS!$C$14)/(H49+2*I49+3*J49-(C49-D49)/PARÂMETROS!$C$11)) -> 2.00E+00 | X49: =IF(PARÂMETROS!$J$6<PARÂMETROS!$F$6,(H49+2*I49+3*J49-(C49-D49)/PARÂMETROS!$C$11)/(L49+2*M49+(C49-D49)/PARÂMETROS!$C$14),(L49+2*M49+(C49-D49)/PARÂMETROS!$C$14)/(H49+2*I49+3*J49-(C49-D49)/PARÂMETROS!$C$11)) -> 1.00E+00 | Y49: =IF(PARÂMETROS!$J$6<PARÂMETROS!$F$6,(H49+2*I49+3*J49-(C49-D49)/PARÂMETROS!$C$11)/(N49+2*O49+3*P49+(C49-D49)/PARÂMETROS!$C$14),(N49+2*O49+3*P49+(C49-D49)/PARÂMETROS!$C$14)/(H49+2*I49+3*J49-(C49-D49)/PARÂMETROS!$C$11)) -> 6.66E-01 | Z49: =Q49*PARÂMETROS!$C$11*PARÂMETROS!$D$11/PARÂMETROS!$C$14 -> 20.02 | AA49: =R49*PARÂMETROS!$C$11*PARÂMETROS!$D$11/PARÂMETROS!$C$14 -> 10.01 | AB49: =S49*PARÂMETROS!$C$11*PARÂMETROS!$D$11/PARÂMETROS!$C$14 -> 6.67 | AC49: =T49*PARÂMETROS!$C$11*PARÂMETROS!$D$11/PARÂMETROS!$C$14 -> 39.96 | AD49: =U49*PARÂMETROS!$C$11*PARÂMETROS!$D$11/PARÂMETROS!$C$14 -> 19.97 | AE49: =V49*PARÂMETROS!$C$11*PARÂMETROS!$D$11/PARÂMETROS!$C$14 -> 13.31 | AF49: =W49*PARÂMETROS!$C$11*PARÂMETROS!$D$11/PARÂMETROS!$C$14 -> 40.00 | AG49: =X49*PARÂMETROS!$C$11*PARÂMETROS!$D$11/PARÂMETROS!$C$14 -> 19.99 | AH49: =Y49*PARÂMETROS!$C$11*PARÂMETROS!$D$11/PARÂMETROS!$C$14 -> 13.33 | AI49: =AND(B49+PARÂMETROS!$C$8>=PARÂMETROS!$C$5,B49+PARÂMETROS!$C$8<=PARÂMETROS!$D$5) -> TRUE | AJ49: 1 | AK49: =VLOOKUP('BANCO DE DADOS COMPLETA'!$N$8,'BANCO DE DADOS COMPLETA'!$A$7:$L$249,3)*-1 -> 3 | AL49: 7 | AM49: =VLOOKUP('BANCO DE DADOS COMPLETA'!$N$10,'BANCO DE DADOS COMPLETA'!$A$7:$L$249,3)*-1 -> 1 | AN49: 11 | AO49: 77 | AP49: 40.00 | AQ49: 40.00 | AR49: 9.66 | AS49: 3.09 | AT49: 6.85 | AU49: 40.00 | AV49: NADA | AW49: 0
B50: =B49+PARÂMETROS!$C$8 -> 9.86 | C50: 1.37E-10 | D50: =PARÂMETROS!$Q$4/C50 -> 7.32E-05 | E50: =PARÂMETROS!$F$6/($C50+PARÂMETROS!$F$6) -> 1.00E+00 | F50: =$C50*PARÂMETROS!$F$6/($C50^2+$C50*PARÂMETROS!$F$6+PARÂMETROS!$F$6*PARÂMETROS!$G$6) -> 2.16E-03 | G50: =PARÂMETROS!$F$6*PARÂMETROS!$G$6/($C50^2+$C50*PARÂMETROS!$F$6+PARÂMETROS!$F$6*PARÂMETROS!$G$6) -> 9.98E-01 | H50: =(PARÂMETROS!$F$6*$C50^2)/($C50^3+PARÂMETROS!$F$6*$C50^2+PARÂMETROS!$F$6*PARÂMETROS!$G$6*$C50+PARÂMETROS!$F$6*PARÂMETROS!$G$6*PARÂMETROS!$H$6) -> 2.15E-03 | I50: =(PARÂMETROS!$F$6*PARÂMETROS!$G$6*$C50)/($C50^3+PARÂMETROS!$F$6*$C50^2+PARÂMETROS!$F$6*PARÂMETROS!$G$6*$C50+PARÂMETROS!$F$6*PARÂMETROS!$G$6*PARÂMETROS!$H$6) -> 9.95E-01 | J50: =(PARÂMETROS!$F$6*PARÂMETROS!$G$6*PARÂMETROS!$H$6)/($C50^3+PARÂMETROS!$F$6*$C50^2+PARÂMETROS!$F$6*PARÂMETROS!$G$6*$C50+PARÂMETROS!$F$6*PARÂMETROS!$G$6*PARÂMETROS!$H$6) -> 3.25E-03 | K50: =$C50/($C50+PARÂMETROS!$J$6) -> 9.99E-01 | L50: =$C50*PARÂMETROS!$J$6/($C50^2+$C50*PARÂMETROS!$J$6+PARÂMETROS!$J$6*PARÂMETROS!$K$6) -> 7.31E-04 | M50: =$C50^2/($C50^2+$C50*PARÂMETROS!$J$6+PARÂMETROS!$J$6*PARÂMETROS!$K$6) -> 9.99E-01 | N50: =(PARÂMETROS!$K$6*PARÂMETROS!$J$6*$C50)/($C50^3+PARÂMETROS!$J$6*$C50^2+PARÂMETROS!$J$6*PARÂMETROS!$K$6*$C50+PARÂMETROS!$J$6*PARÂMETROS!$K$6*PARÂMETROS!$L$6) -> 0.00E+00 | O50: =(PARÂMETROS!$J$6*$C50^2)/($C50^3+PARÂMETROS!$J$6*$C50^2+PARÂMETROS!$J$6*PARÂMETROS!$K$6*$C50+PARÂMETROS!$J$6*PARÂMETROS!$K$6*PARÂMETROS!$L$6) -> 7.31E-04 | P50: =($C50^3)/($C50^3+PARÂMETROS!$J$6*$C50^2+PARÂMETROS!$J$6*PARÂMETROS!$K$6*$C50+PARÂMETROS!$J$6*PARÂMETROS!$K$6*PARÂMETROS!$L$6) -> 9.99E-01 | Q50: =IF(PARÂMETROS!$J$6<PARÂMETROS!$F$6,(E50-(C50-D50)/PARÂMETROS!$C$11)/(K50+(C50-D50)/PARÂMETROS!$C$14),(K50+(C50-D50)/PARÂMETROS!$C$14)/(E50-(C50-D50)/PARÂMETROS!$C$11)) -> 1.00E+00 | R50: =IF(PARÂMETROS!$J$6<PARÂMETROS!$F$6,(E50-(C50-D50)/PARÂMETROS!$C$11)/(L50+2*M50+(C50-D50)/PARÂMETROS!$C$14),(L50+2*M50+(C50-D50)/PARÂMETROS!$C$14)/(E50-(C50-D50)/PARÂMETROS!$C$11)) -> 5.00E-01 | S50: =IF(PARÂMETROS!$J$6<PARÂMETROS!$F$6, (E50-(C50-D50)/PARÂMETROS!$C$11)/(N50+2*O50+3*P50+(C50-D50)/PARÂMETROS!$C$14),(N50+2*O50+3*P50+(C50-D50)/PARÂMETROS!$C$14)/ (E50-(C50-D50)/PARÂMETROS!$C$11)) -> 3.34E-01 | T50: =IF(PARÂMETROS!$J$6<PARÂMETROS!$F$6,(F50+2*G50-(C50-D50)/PARÂMETROS!$C$11)/(K50+(C50-D50)/PARÂMETROS!$C$14),(K50+(C50-D50)/PARÂMETROS!$C$14)/(F50+2*G50-(C50-D50)/PARÂMETROS!$C$11)) -> 2.00E+00 | U50: =IF(PARÂMETROS!$J$6<PARÂMETROS!$F$6,(F50+2*G50-(C50-D50)/PARÂMETROS!$C$11)/(L50+2*M50+(C50-D50)/PARÂMETROS!$C$14),(L50+2*M50+(C50-D50)/PARÂMETROS!$C$14)/(F50+2*G50-(C50-D50)/PARÂMETROS!$C$11)) -> 1.00E+00 | V50: =IF(PARÂMETROS!$J$6<PARÂMETROS!$F$6,(F50+2*G50-(C50-D50)/PARÂMETROS!$C$11)/(N50+2*O50+3*P50+(C50-D50)/PARÂMETROS!$C$14),(N50+2*O50+3*P50+(C50-D50)/PARÂMETROS!$C$14)/(F50+2*G50-(C50-D50)/PARÂMETROS!$C$11)) -> 6.66E-01 | W50: =IF(PARÂMETROS!$J$6<PARÂMETROS!$F$6,(H50+2*I50+3*J50-(C50-D50)/PARÂMETROS!$C$11)/(K50+(C50-D50)/PARÂMETROS!$C$14),(K50+(C50-D50)/PARÂMETROS!$C$14)/(H50+2*I50+3*J50-(C50-D50)/PARÂMETROS!$C$11)) -> 2.00E+00 | X50: =IF(PARÂMETROS!$J$6<PARÂMETROS!$F$6,(H50+2*I50+3*J50-(C50-D50)/PARÂMETROS!$C$11)/(L50+2*M50+(C50-D50)/PARÂMETROS!$C$14),(L50+2*M50+(C50-D50)/PARÂMETROS!$C$14)/(H50+2*I50+3*J50-(C50-D50)/PARÂMETROS!$C$11)) -> 1.00E+00 | Y50: =IF(PARÂMETROS!$J$6<PARÂMETROS!$F$6,(H50+2*I50+3*J50-(C50-D50)/PARÂMETROS!$C$11)/(N50+2*O50+3*P50+(C50-D50)/PARÂMETROS!$C$14),(N50+2*O50+3*P50+(C50-D50)/PARÂMETROS!$C$14)/(H50+2*I50+3*J50-(C50-D50)/PARÂMETROS!$C$11)) -> 6.67E-01 | Z50: =Q50*PARÂMETROS!$C$11*PARÂMETROS!$D$11/PARÂMETROS!$C$14 -> 20.02 | AA50: =R50*PARÂMETROS!$C$11*PARÂMETROS!$D$11/PARÂMETROS!$C$14 -> 10.01 | AB50: =S50*PARÂMETROS!$C$11*PARÂMETROS!$D$11/PARÂMETROS!$C$14 -> 6.67 | AC50: =T50*PARÂMETROS!$C$11*PARÂMETROS!$D$11/PARÂMETROS!$C$14 -> 40.00 | AD50: =U50*PARÂMETROS!$C$11*PARÂMETROS!$D$11/PARÂMETROS!$C$14 -> 19.99 | AE50: =V50*PARÂMETROS!$C$11*PARÂMETROS!$D$11/PARÂMETROS!$C$14 -> 13.33 | AF50: =W50*PARÂMETROS!$C$11*PARÂMETROS!$D$11/PARÂMETROS!$C$14 -> 40.06 | AG50: =X50*PARÂMETROS!$C$11*PARÂMETROS!$D$11/PARÂMETROS!$C$14 -> 20.02 | AH50: =Y50*PARÂMETROS!$C$11*PARÂMETROS!$D$11/PARÂMETROS!$C$14 -> 13.35 | AI50: =AND(B50+PARÂMETROS!$C$8>=PARÂMETROS!$C$5,B50+PARÂMETROS!$C$8<=PARÂMETROS!$D$5) -> TRUE | AJ50: 1 | AK50: =VLOOKUP('BANCO DE DADOS COMPLETA'!$N$8,'BANCO DE DADOS COMPLETA'!$A$7:$L$249,3)*-1 -> 3 | AL50: 7 | AM50: =VLOOKUP('BANCO DE DADOS COMPLETA'!$N$10,'BANCO DE DADOS COMPLETA'!$A$7:$L$249,3)*-1 -> 1 | AN50: 11 | AO50: 77 | AP50: 40.06 | AQ50: 40.06 | AR50: 9.86 | AS50: 3.08 | AT50: -0.04 | AU50: 40.06 | AV50: 40.03208396 | AW50: 1
B51: =B50+PARÂMETROS!$C$8 -> 10.06 | C51: 8.62E-11 | D51: =PARÂMETROS!$Q$4/C51 -> 1.16E-04 | E51: =PARÂMETROS!$F$6/($C51+PARÂMETROS!$F$6) -> 1.00E+00 | F51: =$C51*PARÂMETROS!$F$6/($C51^2+$C51*PARÂMETROS!$F$6+PARÂMETROS!$F$6*PARÂMETROS!$G$6) -> 1.36E-03 | G51: =PARÂMETROS!$F$6*PARÂMETROS!$G$6/($C51^2+$C51*PARÂMETROS!$F$6+PARÂMETROS!$F$6*PARÂMETROS!$G$6) -> 9.99E-01 | H51: =(PARÂMETROS!$F$6*$C51^2)/($C51^3+PARÂMETROS!$F$6*$C51^2+PARÂMETROS!$F$6*PARÂMETROS!$G$6*$C51+PARÂMETROS!$F$6*PARÂMETROS!$G$6*PARÂMETROS!$H$6) -> 1.35E-03 | I51: =(PARÂMETROS!$F$6*PARÂMETROS!$G$6*$C51)/($C51^3+PARÂMETROS!$F$6*$C51^2+PARÂMETROS!$F$6*PARÂMETROS!$G$6*$C51+PARÂMETROS!$F$6*PARÂMETROS!$G$6*PARÂMETROS!$H$6) -> 9.93E-01 | J51: =(PARÂMETROS!$F$6*PARÂMETROS!$G$6*PARÂMETROS!$H$6)/($C51^3+PARÂMETROS!$F$6*$C51^2+PARÂMETROS!$F$6*PARÂMETROS!$G$6*$C51+PARÂMETROS!$F$6*PARÂMETROS!$G$6*PARÂMETROS!$H$6) -> 5.15E-03 | K51: =$C51/($C51+PARÂMETROS!$J$6) -> 9.99E-01 | L51: =$C51*PARÂMETROS!$J$6/($C51^2+$C51*PARÂMETROS!$J$6+PARÂMETROS!$J$6*PARÂMETROS!$K$6) -> 1.16E-03 | M51: =$C51^2/($C51^2+$C51*PARÂMETROS!$J$6+PARÂMETROS!$J$6*PARÂMETROS!$K$6) -> 9.99E-01 | N51: =(PARÂMETROS!$K$6*PARÂMETROS!$J$6*$C51)/($C51^3+PARÂMETROS!$J$6*$C51^2+PARÂMETROS!$J$6*PARÂMETROS!$K$6*$C51+PARÂMETROS!$J$6*PARÂMETROS!$K$6*PARÂMETROS!$L$6) -> 0.00E+00 | O51: =(PARÂMETROS!$J$6*$C51^2)/($C51^3+PARÂMETROS!$J$6*$C51^2+PARÂMETROS!$J$6*PARÂMETROS!$K$6*$C51+PARÂMETROS!$J$6*PARÂMETROS!$K$6*PARÂMETROS!$L$6) -> 1.16E-03 | P51: =($C51^3)/($C51^3+PARÂMETROS!$J$6*$C51^2+PARÂMETROS!$J$6*PARÂMETROS!$K$6*$C51+PARÂMETROS!$J$6*PARÂMETROS!$K$6*PARÂMETROS!$L$6) -> 9.99E-01 | Q51: =IF(PARÂMETROS!$J$6<PARÂMETROS!$F$6,(E51-(C51-D51)/PARÂMETROS!$C$11)/(K51+(C51-D51)/PARÂMETROS!$C$14),(K51+(C51-D51)/PARÂMETROS!$C$14)/(E51-(C51-D51)/PARÂMETROS!$C$11)) -> 1.00E+00 | R51: =IF(PARÂMETROS!$J$6<PARÂMETROS!$F$6,(E51-(C51-D51)/PARÂMETROS!$C$11)/(L51+2*M51+(C51-D51)/PARÂMETROS!$C$14),(L51+2*M51+(C51-D51)/PARÂMETROS!$C$14)/(E51-(C51-D51)/PARÂMETROS!$C$11)) -> 5.01E-01 | S51: =IF(PARÂMETROS!$J$6<PARÂMETROS!$F$6, (E51-(C51-D51)/PARÂMETROS!$C$11)/(N51+2*O51+3*P51+(C51-D51)/PARÂMETROS!$C$14),(N51+2*O51+3*P51+(C51-D51)/PARÂMETROS!$C$14)/ (E51-(C51-D51)/PARÂMETROS!$C$11)) -> 3.34E-01 | T51: =IF(PARÂMETROS!$J$6<PARÂMETROS!$F$6,(F51+2*G51-(C51-D51)/PARÂMETROS!$C$11)/(K51+(C51-D51)/PARÂMETROS!$C$14),(K51+(C51-D51)/PARÂMETROS!$C$14)/(F51+2*G51-(C51-D51)/PARÂMETROS!$C$11)) -> 2.00E+00 | U51: =IF(PARÂMETROS!$J$6<PARÂMETROS!$F$6,(F51+2*G51-(C51-D51)/PARÂMETROS!$C$11)/(L51+2*M51+(C51-D51)/PARÂMETROS!$C$14),(L51+2*M51+(C51-D51)/PARÂMETROS!$C$14)/(F51+2*G51-(C51-D51)/PARÂMETROS!$C$11)) -> 1.00E+00 | V51: =IF(PARÂMETROS!$J$6<PARÂMETROS!$F$6,(F51+2*G51-(C51-D51)/PARÂMETROS!$C$11)/(N51+2*O51+3*P51+(C51-D51)/PARÂMETROS!$C$14),(N51+2*O51+3*P51+(C51-D51)/PARÂMETROS!$C$14)/(F51+2*G51-(C51-D51)/PARÂMETROS!$C$11)) -> 6.67E-01 | W51: =IF(PARÂMETROS!$J$6<PARÂMETROS!$F$6,(H51+2*I51+3*J51-(C51-D51)/PARÂMETROS!$C$11)/(K51+(C51-D51)/PARÂMETROS!$C$14),(K51+(C51-D51)/PARÂMETROS!$C$14)/(H51+2*I51+3*J51-(C51-D51)/PARÂMETROS!$C$11)) -> 2.01E+00 | X51: =IF(PARÂMETROS!$J$6<PARÂMETROS!$F$6,(H51+2*I51+3*J51-(C51-D51)/PARÂMETROS!$C$11)/(L51+2*M51+(C51-D51)/PARÂMETROS!$C$14),(L51+2*M51+(C51-D51)/PARÂMETROS!$C$14)/(H51+2*I51+3*J51-(C51-D51)/PARÂMETROS!$C$11)) -> 1.00E+00 | Y51: =IF(PARÂMETROS!$J$6<PARÂMETROS!$F$6,(H51+2*I51+3*J51-(C51-D51)/PARÂMETROS!$C$11)/(N51+2*O51+3*P51+(C51-D51)/PARÂMETROS!$C$14),(N51+2*O51+3*P51+(C51-D51)/PARÂMETROS!$C$14)/(H51+2*I51+3*J51-(C51-D51)/PARÂMETROS!$C$11)) -> 6.68E-01 | Z51: =Q51*PARÂMETROS!$C$11*PARÂMETROS!$D$11/PARÂMETROS!$C$14 -> 20.04 | AA51: =R51*PARÂMETROS!$C$11*PARÂMETROS!$D$11/PARÂMETROS!$C$14 -> 10.01 | AB51: =S51*PARÂMETROS!$C$11*PARÂMETROS!$D$11/PARÂMETROS!$C$14 -> 6.67 | AC51: =T51*PARÂMETROS!$C$11*PARÂMETROS!$D$11/PARÂMETROS!$C$14 -> 40.04 | AD51: =U51*PARÂMETROS!$C$11*PARÂMETROS!$D$11/PARÂMETROS!$C$14 -> 20.01 | AE51: =V51*PARÂMETROS!$C$11*PARÂMETROS!$D$11/PARÂMETROS!$C$14 -> 13.33 | AF51: =W51*PARÂMETROS!$C$11*PARÂMETROS!$D$11/PARÂMETROS!$C$14 -> 40.14 | AG51: =X51*PARÂMETROS!$C$11*PARÂMETROS!$D$11/PARÂMETROS!$C$14 -> 20.06 | AH51: =Y51*PARÂMETROS!$C$11*PARÂMETROS!$D$11/PARÂMETROS!$C$14 -> 13.37 | AI51: =AND(B51+PARÂMETROS!$C$8>=PARÂMETROS!$C$5,B51+PARÂMETROS!$C$8<=PARÂMETROS!$D$5) -> TRUE | AJ51: 1 | AK51: =VLOOKUP('BANCO DE DADOS COMPLETA'!$N$8,'BANCO DE DADOS COMPLETA'!$A$7:$L$249,3)*-1 -> 3 | AL51: 7 | AM51: =VLOOKUP('BANCO DE DADOS COMPLETA'!$N$10,'BANCO DE DADOS COMPLETA'!$A$7:$L$249,3)*-1 -> 1 | AN51: 11 | AO51: 77 | AP51: 40.14 | AQ51: 40.14 | AR51: 10.06 | AS51: 2.54 | AT51: -8.40 | AU51: NADA | AV51: NADA | AW51: 0
B52: =B51+PARÂMETROS!$C$8 -> 10.26 | C52: 5.44E-11 | D52: =PARÂMETROS!$Q$4/C52 -> 1.84E-04 | E52: =PARÂMETROS!$F$6/($C52+PARÂMETROS!$F$6) -> 1.00E+00 | F52: =$C52*PARÂMETROS!$F$6/($C52^2+$C52*PARÂMETROS!$F$6+PARÂMETROS!$F$6*PARÂMETROS!$G$6) -> 8.60E-04 | G52: =PARÂMETROS!$F$6*PARÂMETROS!$G$6/($C52^2+$C52*PARÂMETROS!$F$6+PARÂMETROS!$F$6*PARÂMETROS!$G$6) -> 9.99E-01 | H52: =(PARÂMETROS!$F$6*$C52^2)/($C52^3+PARÂMETROS!$F$6*$C52^2+PARÂMETROS!$F$6*PARÂMETROS!$G$6*$C52+PARÂMETROS!$F$6*PARÂMETROS!$G$6*PARÂMETROS!$H$6) -> 8.53E-04 | I52: =(PARÂMETROS!$F$6*PARÂMETROS!$G$6*$C52)/($C52^3+PARÂMETROS!$F$6*$C52^2+PARÂMETROS!$F$6*PARÂMETROS!$G$6*$C52+PARÂMETROS!$F$6*PARÂMETROS!$G$6*PARÂMETROS!$H$6) -> 9.91E-01 | J52: =(PARÂMETROS!$F$6*PARÂMETROS!$G$6*PARÂMETROS!$H$6)/($C52^3+PARÂMETROS!$F$6*$C52^2+PARÂMETROS!$F$6*PARÂMETROS!$G$6*$C52+PARÂMETROS!$F$6*PARÂMETROS!$G$6*PARÂMETROS!$H$6) -> 8.14E-03 | K52: =$C52/($C52+PARÂMETROS!$J$6) -> 9.98E-01 | L52: =$C52*PARÂMETROS!$J$6/($C52^2+$C52*PARÂMETROS!$J$6+PARÂMETROS!$J$6*PARÂMETROS!$K$6) -> 1.83E-03 | M52: =$C52^2/($C52^2+$C52*PARÂMETROS!$J$6+PARÂMETROS!$J$6*PARÂMETROS!$K$6) -> 9.98E-01 | N52: =(PARÂMETROS!$K$6*PARÂMETROS!$J$6*$C52)/($C52^3+PARÂMETROS!$J$6*$C52^2+PARÂMETROS!$J$6*PARÂMETROS!$K$6*$C52+PARÂMETROS!$J$6*PARÂMETROS!$K$6*PARÂMETROS!$L$6) -> 0.00E+00 | O52: =(PARÂMETROS!$J$6*$C52^2)/($C52^3+PARÂMETROS!$J$6*$C52^2+PARÂMETROS!$J$6*PARÂMETROS!$K$6*$C52+PARÂMETROS!$J$6*PARÂMETROS!$K$6*PARÂMETROS!$L$6) -> 1.83E-03 | P52: =($C52^3)/($C52^3+PARÂMETROS!$J$6*$C52^2+PARÂMETROS!$J$6*PARÂMETROS!$K$6*$C52+PARÂMETROS!$J$6*PARÂMETROS!$K$6*PARÂMETROS!$L$6) -> 9.98E-01 | Q52: =IF(PARÂMETROS!$J$6<PARÂMETROS!$F$6,(E52-(C52-D52)/PARÂMETROS!$C$11)/(K52+(C52-D52)/PARÂMETROS!$C$14),(K52+(C52-D52)/PARÂMETROS!$C$14)/(E52-(C52-D52)/PARÂMETROS!$C$11)) -> 1.00E+00 | R52: =IF(PARÂMETROS!$J$6<PARÂMETROS!$F$6,(E52-(C52-D52)/PARÂMETROS!$C$11)/(L52+2*M52+(C52-D52)/PARÂMETROS!$C$14),(L52+2*M52+(C52-D52)/PARÂMETROS!$C$14)/(E52-(C52-D52)/PARÂMETROS!$C$11)) -> 5.01E-01 | S52: =IF(PARÂMETROS!$J$6<PARÂMETROS!$F$6, (E52-(C52-D52)/PARÂMETROS!$C$11)/(N52+2*O52+3*P52+(C52-D52)/PARÂMETROS!$C$14),(N52+2*O52+3*P52+(C52-D52)/PARÂMETROS!$C$14)/ (E52-(C52-D52)/PARÂMETROS!$C$11)) -> 3.34E-01 | T52: =IF(PARÂMETROS!$J$6<PARÂMETROS!$F$6,(F52+2*G52-(C52-D52)/PARÂMETROS!$C$11)/(K52+(C52-D52)/PARÂMETROS!$C$14),(K52+(C52-D52)/PARÂMETROS!$C$14)/(F52+2*G52-(C52-D52)/PARÂMETROS!$C$11)) -> 2.00E+00 | U52: =IF(PARÂMETROS!$J$6<PARÂMETROS!$F$6,(F52+2*G52-(C52-D52)/PARÂMETROS!$C$11)/(L52+2*M52+(C52-D52)/PARÂMETROS!$C$14),(L52+2*M52+(C52-D52)/PARÂMETROS!$C$14)/(F52+2*G52-(C52-D52)/PARÂMETROS!$C$11)) -> 1.00E+00 | V52: =IF(PARÂMETROS!$J$6<PARÂMETROS!$F$6,(F52+2*G52-(C52-D52)/PARÂMETROS!$C$11)/(N52+2*O52+3*P52+(C52-D52)/PARÂMETROS!$C$14),(N52+2*O52+3*P52+(C52-D52)/PARÂMETROS!$C$14)/(F52+2*G52-(C52-D52)/PARÂMETROS!$C$11)) -> 6.67E-01 | W52: =IF(PARÂMETROS!$J$6<PARÂMETROS!$F$6,(H52+2*I52+3*J52-(C52-D52)/PARÂMETROS!$C$11)/(K52+(C52-D52)/PARÂMETROS!$C$14),(K52+(C52-D52)/PARÂMETROS!$C$14)/(H52+2*I52+3*J52-(C52-D52)/PARÂMETROS!$C$11)) -> 2.01E+00 | X52: =IF(PARÂMETROS!$J$6<PARÂMETROS!$F$6,(H52+2*I52+3*J52-(C52-D52)/PARÂMETROS!$C$11)/(L52+2*M52+(C52-D52)/PARÂMETROS!$C$14),(L52+2*M52+(C52-D52)/PARÂMETROS!$C$14)/(H52+2*I52+3*J52-(C52-D52)/PARÂMETROS!$C$11)) -> 1.01E+00 | Y52: =IF(PARÂMETROS!$J$6<PARÂMETROS!$F$6,(H52+2*I52+3*J52-(C52-D52)/PARÂMETROS!$C$11)/(N52+2*O52+3*P52+(C52-D52)/PARÂMETROS!$C$14),(N52+2*O52+3*P52+(C52-D52)/PARÂMETROS!$C$14)/(H52+2*I52+3*J52-(C52-D52)/PARÂMETROS!$C$11)) -> 6.70E-01 | Z52: =Q52*PARÂMETROS!$C$11*PARÂMETROS!$D$11/PARÂMETROS!$C$14 -> 20.06 | AA52: =R52*PARÂMETROS!$C$11*PARÂMETROS!$D$11/PARÂMETROS!$C$14 -> 10.02 | AB52: =S52*PARÂMETROS!$C$11*PARÂMETROS!$D$11/PARÂMETROS!$C$14 -> 6.68 | AC52: =T52*PARÂMETROS!$C$11*PARÂMETROS!$D$11/PARÂMETROS!$C$14 -> 40.09 | AD52: =U52*PARÂMETROS!$C$11*PARÂMETROS!$D$11/PARÂMETROS!$C$14 -> 20.02 | AE52: =V52*PARÂMETROS!$C$11*PARÂMETROS!$D$11/PARÂMETROS!$C$14 -> 13.34 | AF52: =W52*PARÂMETROS!$C$11*PARÂMETROS!$D$11/PARÂMETROS!$C$14 -> 40.25 | AG52: =X52*PARÂMETROS!$C$11*PARÂMETROS!$D$11/PARÂMETROS!$C$14 -> 20.10 | AH52: =Y52*PARÂMETROS!$C$11*PARÂMETROS!$D$11/PARÂMETROS!$C$14 -> 13.40 | AI52: =AND(B52+PARÂMETROS!$C$8>=PARÂMETROS!$C$5,B52+PARÂMETROS!$C$8<=PARÂMETROS!$D$5) -> TRUE | AJ52: 1 | AK52: =VLOOKUP('BANCO DE DADOS COMPLETA'!$N$8,'BANCO DE DADOS COMPLETA'!$A$7:$L$249,3)*-1 -> 3 | AL52: 7 | AM52: =VLOOKUP('BANCO DE DADOS COMPLETA'!$N$10,'BANCO DE DADOS COMPLETA'!$A$7:$L$249,3)*-1 -> 1 | AN52: 11 | AO52: 77 | AP52: 40.25 | AQ52: 40.25 | AR52: 10.26 | AS52: 1.83 | AT52: -9.05 | AU52: NADA | AV52: NADA | AW52: 0
B53: =B52+PARÂMETROS!$C$8 -> 10.46 | C53: 3.43E-11 | D53: =PARÂMETROS!$Q$4/C53 -> 2.91E-04 | E53: =PARÂMETROS!$F$6/($C53+PARÂMETROS!$F$6) -> 1.00E+00 | F53: =$C53*PARÂMETROS!$F$6/($C53^2+$C53*PARÂMETROS!$F$6+PARÂMETROS!$F$6*PARÂMETROS!$G$6) -> 5.43E-04 | G53: =PARÂMETROS!$F$6*PARÂMETROS!$G$6/($C53^2+$C53*PARÂMETROS!$F$6+PARÂMETROS!$F$6*PARÂMETROS!$G$6) -> 9.99E-01 | H53: =(PARÂMETROS!$F$6*$C53^2)/($C53^3+PARÂMETROS!$F$6*$C53^2+PARÂMETROS!$F$6*PARÂMETROS!$G$6*$C53+PARÂMETROS!$F$6*PARÂMETROS!$G$6*PARÂMETROS!$H$6) -> 5.36E-04 | I53: =(PARÂMETROS!$F$6*PARÂMETROS!$G$6*$C53)/($C53^3+PARÂMETROS!$F$6*$C53^2+PARÂMETROS!$F$6*PARÂMETROS!$G$6*$C53+PARÂMETROS!$F$6*PARÂMETROS!$G$6*PARÂMETROS!$H$6) -> 9.87E-01 | J53: =(PARÂMETROS!$F$6*PARÂMETROS!$G$6*PARÂMETROS!$H$6)/($C53^3+PARÂMETROS!$F$6*$C53^2+PARÂMETROS!$F$6*PARÂMETROS!$G$6*$C53+PARÂMETROS!$F$6*PARÂMETROS!$G$6*PARÂMETROS!$H$6) -> 1.28E-02 | K53: =$C53/($C53+PARÂMETROS!$J$6) -> 9.97E-01 | L53: =$C53*PARÂMETROS!$J$6/($C53^2+$C53*PARÂMETROS!$J$6+PARÂMETROS!$J$6*PARÂMETROS!$K$6) -> 2.90E-03 | M53: =$C53^2/($C53^2+$C53*PARÂMETROS!$J$6+PARÂMETROS!$J$6*PARÂMETROS!$K$6) -> 9.97E-01 | N53: =(PARÂMETROS!$K$6*PARÂMETROS!$J$6*$C53)/($C53^3+PARÂMETROS!$J$6*$C53^2+PARÂMETROS!$J$6*PARÂMETROS!$K$6*$C53+PARÂMETROS!$J$6*PARÂMETROS!$K$6*PARÂMETROS!$L$6) -> 0.00E+00 | O53: =(PARÂMETROS!$J$6*$C53^2)/($C53^3+PARÂMETROS!$J$6*$C53^2+PARÂMETROS!$J$6*PARÂMETROS!$K$6*$C53+PARÂMETROS!$J$6*PARÂMETROS!$K$6*PARÂMETROS!$L$6) -> 2.90E-03 | P53: =($C53^3)/($C53^3+PARÂMETROS!$J$6*$C53^2+PARÂMETROS!$J$6*PARÂMETROS!$K$6*$C53+PARÂMETROS!$J$6*PARÂMETROS!$K$6*PARÂMETROS!$L$6) -> 9.97E-01 | Q53: =IF(PARÂMETROS!$J$6<PARÂMETROS!$F$6,(E53-(C53-D53)/PARÂMETROS!$C$11)/(K53+(C53-D53)/PARÂMETROS!$C$14),(K53+(C53-D53)/PARÂMETROS!$C$14)/(E53-(C53-D53)/PARÂMETROS!$C$11)) -> 1.00E+00 | R53: =IF(PARÂMETROS!$J$6<PARÂMETROS!$F$6,(E53-(C53-D53)/PARÂMETROS!$C$11)/(L53+2*M53+(C53-D53)/PARÂMETROS!$C$14),(L53+2*M53+(C53-D53)/PARÂMETROS!$C$14)/(E53-(C53-D53)/PARÂMETROS!$C$11)) -> 5.02E-01 | S53: =IF(PARÂMETROS!$J$6<PARÂMETROS!$F$6, (E53-(C53-D53)/PARÂMETROS!$C$11)/(N53+2*O53+3*P53+(C53-D53)/PARÂMETROS!$C$14),(N53+2*O53+3*P53+(C53-D53)/PARÂMETROS!$C$14)/ (E53-(C53-D53)/PARÂMETROS!$C$11)) -> 3.34E-01 | T53: =IF(PARÂMETROS!$J$6<PARÂMETROS!$F$6,(F53+2*G53-(C53-D53)/PARÂMETROS!$C$11)/(K53+(C53-D53)/PARÂMETROS!$C$14),(K53+(C53-D53)/PARÂMETROS!$C$14)/(F53+2*G53-(C53-D53)/PARÂMETROS!$C$11)) -> 2.01E+00 | U53: =IF(PARÂMETROS!$J$6<PARÂMETROS!$F$6,(F53+2*G53-(C53-D53)/PARÂMETROS!$C$11)/(L53+2*M53+(C53-D53)/PARÂMETROS!$C$14),(L53+2*M53+(C53-D53)/PARÂMETROS!$C$14)/(F53+2*G53-(C53-D53)/PARÂMETROS!$C$11)) -> 1.00E+00 | V53: =IF(PARÂMETROS!$J$6<PARÂMETROS!$F$6,(F53+2*G53-(C53-D53)/PARÂMETROS!$C$11)/(N53+2*O53+3*P53+(C53-D53)/PARÂMETROS!$C$14),(N53+2*O53+3*P53+(C53-D53)/PARÂMETROS!$C$14)/(F53+2*G53-(C53-D53)/PARÂMETROS!$C$11)) -> 6.68E-01 | W53: =IF(PARÂMETROS!$J$6<PARÂMETROS!$F$6,(H53+2*I53+3*J53-(C53-D53)/PARÂMETROS!$C$11)/(K53+(C53-D53)/PARÂMETROS!$C$14),(K53+(C53-D53)/PARÂMETROS!$C$14)/(H53+2*I53+3*J53-(C53-D53)/PARÂMETROS!$C$11)) -> 2.02E+00 | X53: =IF(PARÂMETROS!$J$6<PARÂMETROS!$F$6,(H53+2*I53+3*J53-(C53-D53)/PARÂMETROS!$C$11)/(L53+2*M53+(C53-D53)/PARÂMETROS!$C$14),(L53+2*M53+(C53-D53)/PARÂMETROS!$C$14)/(H53+2*I53+3*J53-(C53-D53)/PARÂMETROS!$C$11)) -> 1.01E+00 | Y53: =IF(PARÂMETROS!$J$6<PARÂMETROS!$F$6,(H53+2*I53+3*J53-(C53-D53)/PARÂMETROS!$C$11)/(N53+2*O53+3*P53+(C53-D53)/PARÂMETROS!$C$14),(N53+2*O53+3*P53+(C53-D53)/PARÂMETROS!$C$14)/(H53+2*I53+3*J53-(C53-D53)/PARÂMETROS!$C$11)) -> 6.72E-01 | Z53: =Q53*PARÂMETROS!$C$11*PARÂMETROS!$D$11/PARÂMETROS!$C$14 -> 20.10 | AA53: =R53*PARÂMETROS!$C$11*PARÂMETROS!$D$11/PARÂMETROS!$C$14 -> 10.03 | AB53: =S53*PARÂMETROS!$C$11*PARÂMETROS!$D$11/PARÂMETROS!$C$14 -> 6.68 | AC53: =T53*PARÂMETROS!$C$11*PARÂMETROS!$D$11/PARÂMETROS!$C$14 -> 40.16 | AD53: =U53*PARÂMETROS!$C$11*PARÂMETROS!$D$11/PARÂMETROS!$C$14 -> 20.04 | AE53: =V53*PARÂMETROS!$C$11*PARÂMETROS!$D$11/PARÂMETROS!$C$14 -> 13.35 | AF53: =W53*PARÂMETROS!$C$11*PARÂMETROS!$D$11/PARÂMETROS!$C$14 -> 40.42 | AG53: =X53*PARÂMETROS!$C$11*PARÂMETROS!$D$11/PARÂMETROS!$C$14 -> 20.17 | AH53: =Y53*PARÂMETROS!$C$11*PARÂMETROS!$D$11/PARÂMETROS!$C$14 -> 13.44 | AI53: =AND(B53+PARÂMETROS!$C$8>=PARÂMETROS!$C$5,B53+PARÂMETROS!$C$8<=PARÂMETROS!$D$5) -> TRUE | AJ53: 1 | AK53: =VLOOKUP('BANCO DE DADOS COMPLETA'!$N$8,'BANCO DE DADOS COMPLETA'!$A$7:$L$249,3)*-1 -> 3 | AL53: 7 | AM53: =VLOOKUP('BANCO DE DADOS COMPLETA'!$N$10,'BANCO DE DADOS COMPLETA'!$A$7:$L$249,3)*-1 -> 1 | AN53: 11 | AO53: 77 | AP53: 40.42 | AQ53: 40.42 | AR53: 10.46 | AS53: 1.22 | AT53: -5.51 | AU53: NADA | AV53: NADA | AW53: 0
B54: =B53+PARÂMETROS!$C$8 -> 10.66 | C54: 2.17E-11 | D54: =PARÂMETROS!$Q$4/C54 -> 4.62E-04 | E54: =PARÂMETROS!$F$6/($C54+PARÂMETROS!$F$6) -> 1.00E+00 | F54: =$C54*PARÂMETROS!$F$6/($C54^2+$C54*PARÂMETROS!$F$6+PARÂMETROS!$F$6*PARÂMETROS!$G$6) -> 3.42E-04 | G54: =PARÂMETROS!$F$6*PARÂMETROS!$G$6/($C54^2+$C54*PARÂMETROS!$F$6+PARÂMETROS!$F$6*PARÂMETROS!$G$6) -> 1.00E+00 | H54: =(PARÂMETROS!$F$6*$C54^2)/($C54^3+PARÂMETROS!$F$6*$C54^2+PARÂMETROS!$F$6*PARÂMETROS!$G$6*$C54+PARÂMETROS!$F$6*PARÂMETROS!$G$6*PARÂMETROS!$H$6) -> 3.35E-04 | I54: =(PARÂMETROS!$F$6*PARÂMETROS!$G$6*$C54)/($C54^3+PARÂMETROS!$F$6*$C54^2+PARÂMETROS!$F$6*PARÂMETROS!$G$6*$C54+PARÂMETROS!$F$6*PARÂMETROS!$G$6*PARÂMETROS!$H$6) -> 9.79E-01 | J54: =(PARÂMETROS!$F$6*PARÂMETROS!$G$6*PARÂMETROS!$H$6)/($C54^3+PARÂMETROS!$F$6*$C54^2+PARÂMETROS!$F$6*PARÂMETROS!$G$6*$C54+PARÂMETROS!$F$6*PARÂMETROS!$G$6*PARÂMETROS!$H$6) -> 2.02E-02 | K54: =$C54/($C54+PARÂMETROS!$J$6) -> 9.95E-01 | L54: =$C54*PARÂMETROS!$J$6/($C54^2+$C54*PARÂMETROS!$J$6+PARÂMETROS!$J$6*PARÂMETROS!$K$6) -> 4.60E-03 | M54: =$C54^2/($C54^2+$C54*PARÂMETROS!$J$6+PARÂMETROS!$J$6*PARÂMETROS!$K$6) -> 9.95E-01 | N54: =(PARÂMETROS!$K$6*PARÂMETROS!$J$6*$C54)/($C54^3+PARÂMETROS!$J$6*$C54^2+PARÂMETROS!$J$6*PARÂMETROS!$K$6*$C54+PARÂMETROS!$J$6*PARÂMETROS!$K$6*PARÂMETROS!$L$6) -> 0.00E+00 | O54: =(PARÂMETROS!$J$6*$C54^2)/($C54^3+PARÂMETROS!$J$6*$C54^2+PARÂMETROS!$J$6*PARÂMETROS!$K$6*$C54+PARÂMETROS!$J$6*PARÂMETROS!$K$6*PARÂMETROS!$L$6) -> 4.60E-03 | P54: =($C54^3)/($C54^3+PARÂMETROS!$J$6*$C54^2+PARÂMETROS!$J$6*PARÂMETROS!$K$6*$C54+PARÂMETROS!$J$6*PARÂMETROS!$K$6*PARÂMETROS!$L$6) -> 9.95E-01 | Q54: =IF(PARÂMETROS!$J$6<PARÂMETROS!$F$6,(E54-(C54-D54)/PARÂMETROS!$C$11)/(K54+(C54-D54)/PARÂMETROS!$C$14),(K54+(C54-D54)/PARÂMETROS!$C$14)/(E54-(C54-D54)/PARÂMETROS!$C$11)) -> 1.01E+00 | R54: =IF(PARÂMETROS!$J$6<PARÂMETROS!$F$6,(E54-(C54-D54)/PARÂMETROS!$C$11)/(L54+2*M54+(C54-D54)/PARÂMETROS!$C$14),(L54+2*M54+(C54-D54)/PARÂMETROS!$C$14)/(E54-(C54-D54)/PARÂMETROS!$C$11)) -> 5.03E-01 | S54: =IF(PARÂMETROS!$J$6<PARÂMETROS!$F$6, (E54-(C54-D54)/PARÂMETROS!$C$11)/(N54+2*O54+3*P54+(C54-D54)/PARÂMETROS!$C$14),(N54+2*O54+3*P54+(C54-D54)/PARÂMETROS!$C$14)/ (E54-(C54-D54)/PARÂMETROS!$C$11)) -> 3.35E-01 | T54: =IF(PARÂMETROS!$J$6<PARÂMETROS!$F$6,(F54+2*G54-(C54-D54)/PARÂMETROS!$C$11)/(K54+(C54-D54)/PARÂMETROS!$C$14),(K54+(C54-D54)/PARÂMETROS!$C$14)/(F54+2*G54-(C54-D54)/PARÂMETROS!$C$11)) -> 2.01E+00 | U54: =IF(PARÂMETROS!$J$6<PARÂMETROS!$F$6,(F54+2*G54-(C54-D54)/PARÂMETROS!$C$11)/(L54+2*M54+(C54-D54)/PARÂMETROS!$C$14),(L54+2*M54+(C54-D54)/PARÂMETROS!$C$14)/(F54+2*G54-(C54-D54)/PARÂMETROS!$C$11)) -> 1.00E+00 | V54: =IF(PARÂMETROS!$J$6<PARÂMETROS!$F$6,(F54+2*G54-(C54-D54)/PARÂMETROS!$C$11)/(N54+2*O54+3*P54+(C54-D54)/PARÂMETROS!$C$14),(N54+2*O54+3*P54+(C54-D54)/PARÂMETROS!$C$14)/(F54+2*G54-(C54-D54)/PARÂMETROS!$C$11)) -> 6.69E-01 | W54: =IF(PARÂMETROS!$J$6<PARÂMETROS!$F$6,(H54+2*I54+3*J54-(C54-D54)/PARÂMETROS!$C$11)/(K54+(C54-D54)/PARÂMETROS!$C$14),(K54+(C54-D54)/PARÂMETROS!$C$14)/(H54+2*I54+3*J54-(C54-D54)/PARÂMETROS!$C$11)) -> 2.03E+00 | X54: =IF(PARÂMETROS!$J$6<PARÂMETROS!$F$6,(H54+2*I54+3*J54-(C54-D54)/PARÂMETROS!$C$11)/(L54+2*M54+(C54-D54)/PARÂMETROS!$C$14),(L54+2*M54+(C54-D54)/PARÂMETROS!$C$14)/(H54+2*I54+3*J54-(C54-D54)/PARÂMETROS!$C$11)) -> 1.01E+00 | Y54: =IF(PARÂMETROS!$J$6<PARÂMETROS!$F$6,(H54+2*I54+3*J54-(C54-D54)/PARÂMETROS!$C$11)/(N54+2*O54+3*P54+(C54-D54)/PARÂMETROS!$C$14),(N54+2*O54+3*P54+(C54-D54)/PARÂMETROS!$C$14)/(H54+2*I54+3*J54-(C54-D54)/PARÂMETROS!$C$11)) -> 6.75E-01 | Z54: =Q54*PARÂMETROS!$C$11*PARÂMETROS!$D$11/PARÂMETROS!$C$14 -> 20.16 | AA54: =R54*PARÂMETROS!$C$11*PARÂMETROS!$D$11/PARÂMETROS!$C$14 -> 10.05 | AB54: =S54*PARÂMETROS!$C$11*PARÂMETROS!$D$11/PARÂMETROS!$C$14 -> 6.69 | AC54: =T54*PARÂMETROS!$C$11*PARÂMETROS!$D$11/PARÂMETROS!$C$14 -> 40.26 | AD54: =U54*PARÂMETROS!$C$11*PARÂMETROS!$D$11/PARÂMETROS!$C$14 -> 20.08 | AE54: =V54*PARÂMETROS!$C$11*PARÂMETROS!$D$11/PARÂMETROS!$C$14 -> 13.37 | AF54: =W54*PARÂMETROS!$C$11*PARÂMETROS!$D$11/PARÂMETROS!$C$14 -> 40.67 | AG54: =X54*PARÂMETROS!$C$11*PARÂMETROS!$D$11/PARÂMETROS!$C$14 -> 20.28 | AH54: =Y54*PARÂMETROS!$C$11*PARÂMETROS!$D$11/PARÂMETROS!$C$14 -> 13.51 | AI54: =AND(B54+PARÂMETROS!$C$8>=PARÂMETROS!$C$5,B54+PARÂMETROS!$C$8<=PARÂMETROS!$D$5) -> TRUE | AJ54: 1 | AK54: =VLOOKUP('BANCO DE DADOS COMPLETA'!$N$8,'BANCO DE DADOS COMPLETA'!$A$7:$L$249,3)*-1 -> 3 | AL54: 7 | AM54: =VLOOKUP('BANCO DE DADOS COMPLETA'!$N$10,'BANCO DE DADOS COMPLETA'!$A$7:$L$249,3)*-1 -> 1 | AN54: 11 | AO54: 77 | AP54: 40.67 | AQ54: 40.67 | AR54: 10.66 | AS54: 0.79 | AT54: -2.63 | AU54: NADA | AV54: NADA | AW54: 0
B55: =B54+PARÂMETROS!$C$8 -> 10.86 | C55: 1.37E-11 | D55: =PARÂMETROS!$Q$4/C55 -> 7.32E-04 | E55: =PARÂMETROS!$F$6/($C55+PARÂMETROS!$F$6) -> 1.00E+00 | F55: =$C55*PARÂMETROS!$F$6/($C55^2+$C55*PARÂMETROS!$F$6+PARÂMETROS!$F$6*PARÂMETROS!$G$6) -> 2.16E-04 | G55: =PARÂMETROS!$F$6*PARÂMETROS!$G$6/($C55^2+$C55*PARÂMETROS!$F$6+PARÂMETROS!$F$6*PARÂMETROS!$G$6) -> 1.00E+00 | H55: =(PARÂMETROS!$F$6*$C55^2)/($C55^3+PARÂMETROS!$F$6*$C55^2+PARÂMETROS!$F$6*PARÂMETROS!$G$6*$C55+PARÂMETROS!$F$6*PARÂMETROS!$G$6*PARÂMETROS!$H$6) -> 2.09E-04 | I55: =(PARÂMETROS!$F$6*PARÂMETROS!$G$6*$C55)/($C55^3+PARÂMETROS!$F$6*$C55^2+PARÂMETROS!$F$6*PARÂMETROS!$G$6*$C55+PARÂMETROS!$F$6*PARÂMETROS!$G$6*PARÂMETROS!$H$6) -> 9.68E-01 | J55: =(PARÂMETROS!$F$6*PARÂMETROS!$G$6*PARÂMETROS!$H$6)/($C55^3+PARÂMETROS!$F$6*$C55^2+PARÂMETROS!$F$6*PARÂMETROS!$G$6*$C55+PARÂMETROS!$F$6*PARÂMETROS!$G$6*PARÂMETROS!$H$6) -> 3.16E-02 | K55: =$C55/($C55+PARÂMETROS!$J$6) -> 9.93E-01 | L55: =$C55*PARÂMETROS!$J$6/($C55^2+$C55*PARÂMETROS!$J$6+PARÂMETROS!$J$6*PARÂMETROS!$K$6) -> 7.26E-03 | M55: =$C55^2/($C55^2+$C55*PARÂMETROS!$J$6+PARÂMETROS!$J$6*PARÂMETROS!$K$6) -> 9.93E-01 | N55: =(PARÂMETROS!$K$6*PARÂMETROS!$J$6*$C55)/($C55^3+PARÂMETROS!$J$6*$C55^2+PARÂMETROS!$J$6*PARÂMETROS!$K$6*$C55+PARÂMETROS!$J$6*PARÂMETROS!$K$6*PARÂMETROS!$L$6) -> 0.00E+00 | O55: =(PARÂMETROS!$J$6*$C55^2)/($C55^3+PARÂMETROS!$J$6*$C55^2+PARÂMETROS!$J$6*PARÂMETROS!$K$6*$C55+PARÂMETROS!$J$6*PARÂMETROS!$K$6*PARÂMETROS!$L$6) -> 7.26E-03 | P55: =($C55^3)/($C55^3+PARÂMETROS!$J$6*$C55^2+PARÂMETROS!$J$6*PARÂMETROS!$K$6*$C55+PARÂMETROS!$J$6*PARÂMETROS!$K$6*PARÂMETROS!$L$6) -> 9.93E-01 | Q55: =IF(PARÂMETROS!$J$6<PARÂMETROS!$F$6,(E55-(C55-D55)/PARÂMETROS!$C$11)/(K55+(C55-D55)/PARÂMETROS!$C$14),(K55+(C55-D55)/PARÂMETROS!$C$14)/(E55-(C55-D55)/PARÂMETROS!$C$11)) -> 1.01E+00 | R55: =IF(PARÂMETROS!$J$6<PARÂMETROS!$F$6,(E55-(C55-D55)/PARÂMETROS!$C$11)/(L55+2*M55+(C55-D55)/PARÂMETROS!$C$14),(L55+2*M55+(C55-D55)/PARÂMETROS!$C$14)/(E55-(C55-D55)/PARÂMETROS!$C$11)) -> 5.04E-01 | S55: =IF(PARÂMETROS!$J$6<PARÂMETROS!$F$6, (E55-(C55-D55)/PARÂMETROS!$C$11)/(N55+2*O55+3*P55+(C55-D55)/PARÂMETROS!$C$14),(N55+2*O55+3*P55+(C55-D55)/PARÂMETROS!$C$14)/ (E55-(C55-D55)/PARÂMETROS!$C$11)) -> 3.36E-01 | T55: =IF(PARÂMETROS!$J$6<PARÂMETROS!$F$6,(F55+2*G55-(C55-D55)/PARÂMETROS!$C$11)/(K55+(C55-D55)/PARÂMETROS!$C$14),(K55+(C55-D55)/PARÂMETROS!$C$14)/(F55+2*G55-(C55-D55)/PARÂMETROS!$C$11)) -> 2.02E+00 | U55: =IF(PARÂMETROS!$J$6<PARÂMETROS!$F$6,(F55+2*G55-(C55-D55)/PARÂMETROS!$C$11)/(L55+2*M55+(C55-D55)/PARÂMETROS!$C$14),(L55+2*M55+(C55-D55)/PARÂMETROS!$C$14)/(F55+2*G55-(C55-D55)/PARÂMETROS!$C$11)) -> 1.01E+00 | V55: =IF(PARÂMETROS!$J$6<PARÂMETROS!$F$6,(F55+2*G55-(C55-D55)/PARÂMETROS!$C$11)/(N55+2*O55+3*P55+(C55-D55)/PARÂMETROS!$C$14),(N55+2*O55+3*P55+(C55-D55)/PARÂMETROS!$C$14)/(F55+2*G55-(C55-D55)/PARÂMETROS!$C$11)) -> 6.70E-01 | W55: =IF(PARÂMETROS!$J$6<PARÂMETROS!$F$6,(H55+2*I55+3*J55-(C55-D55)/PARÂMETROS!$C$11)/(K55+(C55-D55)/PARÂMETROS!$C$14),(K55+(C55-D55)/PARÂMETROS!$C$14)/(H55+2*I55+3*J55-(C55-D55)/PARÂMETROS!$C$11)) -> 2.05E+00 | X55: =IF(PARÂMETROS!$J$6<PARÂMETROS!$F$6,(H55+2*I55+3*J55-(C55-D55)/PARÂMETROS!$C$11)/(L55+2*M55+(C55-D55)/PARÂMETROS!$C$14),(L55+2*M55+(C55-D55)/PARÂMETROS!$C$14)/(H55+2*I55+3*J55-(C55-D55)/PARÂMETROS!$C$11)) -> 1.02E+00 | Y55: =IF(PARÂMETROS!$J$6<PARÂMETROS!$F$6,(H55+2*I55+3*J55-(C55-D55)/PARÂMETROS!$C$11)/(N55+2*O55+3*P55+(C55-D55)/PARÂMETROS!$C$14),(N55+2*O55+3*P55+(C55-D55)/PARÂMETROS!$C$14)/(H55+2*I55+3*J55-(C55-D55)/PARÂMETROS!$C$11)) -> 6.80E-01 | Z55: =Q55*PARÂMETROS!$C$11*PARÂMETROS!$D$11/PARÂMETROS!$C$14 -> 20.25 | AA55: =R55*PARÂMETROS!$C$11*PARÂMETROS!$D$11/PARÂMETROS!$C$14 -> 10.08 | AB55: =S55*PARÂMETROS!$C$11*PARÂMETROS!$D$11/PARÂMETROS!$C$14 -> 6.71 | AC55: =T55*PARÂMETROS!$C$11*PARÂMETROS!$D$11/PARÂMETROS!$C$14 -> 40.42 | AD55: =U55*PARÂMETROS!$C$11*PARÂMETROS!$D$11/PARÂMETROS!$C$14 -> 20.12 | AE55: =V55*PARÂMETROS!$C$11*PARÂMETROS!$D$11/PARÂMETROS!$C$14 -> 13.40 | AF55: =W55*PARÂMETROS!$C$11*PARÂMETROS!$D$11/PARÂMETROS!$C$14 -> 41.06 | AG55: =X55*PARÂMETROS!$C$11*PARÂMETROS!$D$11/PARÂMETROS!$C$14 -> 20.44 | AH55: =Y55*PARÂMETROS!$C$11*PARÂMETROS!$D$11/PARÂMETROS!$C$14 -> 13.61 | AI55: =AND(B55+PARÂMETROS!$C$8>=PARÂMETROS!$C$5,B55+PARÂMETROS!$C$8<=PARÂMETROS!$D$5) -> TRUE | AJ55: 1 | AK55: =VLOOKUP('BANCO DE DADOS COMPLETA'!$N$8,'BANCO DE DADOS COMPLETA'!$A$7:$L$249,3)*-1 -> 3 | AL55: 7 | AM55: =VLOOKUP('BANCO DE DADOS COMPLETA'!$N$10,'BANCO DE DADOS COMPLETA'!$A$7:$L$249,3)*-1 -> 1 | AN55: 11 | AO55: 77 | AP55: 41.06 | AQ55: 41.06 | AR55: 10.86 | AS55: 0.51 | AT55: -1.13 | AU55: NADA | AV55: NADA | AW55: 0
B56: =B55+PARÂMETROS!$C$8 -> 11.06 | C56: 8.62E-12 | D56: =PARÂMETROS!$Q$4/C56 -> 1.16E-03 | E56: =PARÂMETROS!$F$6/($C56+PARÂMETROS!$F$6) -> 1.00E+00 | F56: =$C56*PARÂMETROS!$F$6/($C56^2+$C56*PARÂMETROS!$F$6+PARÂMETROS!$F$6*PARÂMETROS!$G$6) -> 1.36E-04 | G56: =PARÂMETROS!$F$6*PARÂMETROS!$G$6/($C56^2+$C56*PARÂMETROS!$F$6+PARÂMETROS!$F$6*PARÂMETROS!$G$6) -> 1.00E+00 | H56: =(PARÂMETROS!$F$6*$C56^2)/($C56^3+PARÂMETROS!$F$6*$C56^2+PARÂMETROS!$F$6*PARÂMETROS!$G$6*$C56+PARÂMETROS!$F$6*PARÂMETROS!$G$6*PARÂMETROS!$H$6) -> 1.30E-04 | I56: =(PARÂMETROS!$F$6*PARÂMETROS!$G$6*$C56)/($C56^3+PARÂMETROS!$F$6*$C56^2+PARÂMETROS!$F$6*PARÂMETROS!$G$6*$C56+PARÂMETROS!$F$6*PARÂMETROS!$G$6*PARÂMETROS!$H$6) -> 9.51E-01 | J56: =(PARÂMETROS!$F$6*PARÂMETROS!$G$6*PARÂMETROS!$H$6)/($C56^3+PARÂMETROS!$F$6*$C56^2+PARÂMETROS!$F$6*PARÂMETROS!$G$6*$C56+PARÂMETROS!$F$6*PARÂMETROS!$G$6*PARÂMETROS!$H$6) -> 4.92E-02 | K56: =$C56/($C56+PARÂMETROS!$J$6) -> 9.89E-01 | L56: =$C56*PARÂMETROS!$J$6/($C56^2+$C56*PARÂMETROS!$J$6+PARÂMETROS!$J$6*PARÂMETROS!$K$6) -> 1.15E-02 | M56: =$C56^2/($C56^2+$C56*PARÂMETROS!$J$6+PARÂMETROS!$J$6*PARÂMETROS!$K$6) -> 9.89E-01 | N56: =(PARÂMETROS!$K$6*PARÂMETROS!$J$6*$C56)/($C56^3+PARÂMETROS!$J$6*$C56^2+PARÂMETROS!$J$6*PARÂMETROS!$K$6*$C56+PARÂMETROS!$J$6*PARÂMETROS!$K$6*PARÂMETROS!$L$6) -> 0.00E+00 | O56: =(PARÂMETROS!$J$6*$C56^2)/($C56^3+PARÂMETROS!$J$6*$C56^2+PARÂMETROS!$J$6*PARÂMETROS!$K$6*$C56+PARÂMETROS!$J$6*PARÂMETROS!$K$6*PARÂMETROS!$L$6) -> 1.15E-02 | P56: =($C56^3)/($C56^3+PARÂMETROS!$J$6*$C56^2+PARÂMETROS!$J$6*PARÂMETROS!$K$6*$C56+PARÂMETROS!$J$6*PARÂMETROS!$K$6*PARÂMETROS!$L$6) -> 9.89E-01 | Q56: =IF(PARÂMETROS!$J$6<PARÂMETROS!$F$6,(E56-(C56-D56)/PARÂMETROS!$C$11)/(K56+(C56-D56)/PARÂMETROS!$C$14),(K56+(C56-D56)/PARÂMETROS!$C$14)/(E56-(C56-D56)/PARÂMETROS!$C$11)) -> 1.02E+00 | R56: =IF(PARÂMETROS!$J$6<PARÂMETROS!$F$6,(E56-(C56-D56)/PARÂMETROS!$C$11)/(L56+2*M56+(C56-D56)/PARÂMETROS!$C$14),(L56+2*M56+(C56-D56)/PARÂMETROS!$C$14)/(E56-(C56-D56)/PARÂMETROS!$C$11)) -> 5.06E-01 | S56: =IF(PARÂMETROS!$J$6<PARÂMETROS!$F$6, (E56-(C56-D56)/PARÂMETROS!$C$11)/(N56+2*O56+3*P56+(C56-D56)/PARÂMETROS!$C$14),(N56+2*O56+3*P56+(C56-D56)/PARÂMETROS!$C$14)/ (E56-(C56-D56)/PARÂMETROS!$C$11)) -> 3.37E-01 | T56: =IF(PARÂMETROS!$J$6<PARÂMETROS!$F$6,(F56+2*G56-(C56-D56)/PARÂMETROS!$C$11)/(K56+(C56-D56)/PARÂMETROS!$C$14),(K56+(C56-D56)/PARÂMETROS!$C$14)/(F56+2*G56-(C56-D56)/PARÂMETROS!$C$11)) -> 2.03E+00 | U56: =IF(PARÂMETROS!$J$6<PARÂMETROS!$F$6,(F56+2*G56-(C56-D56)/PARÂMETROS!$C$11)/(L56+2*M56+(C56-D56)/PARÂMETROS!$C$14),(L56+2*M56+(C56-D56)/PARÂMETROS!$C$14)/(F56+2*G56-(C56-D56)/PARÂMETROS!$C$11)) -> 1.01E+00 | V56: =IF(PARÂMETROS!$J$6<PARÂMETROS!$F$6,(F56+2*G56-(C56-D56)/PARÂMETROS!$C$11)/(N56+2*O56+3*P56+(C56-D56)/PARÂMETROS!$C$14),(N56+2*O56+3*P56+(C56-D56)/PARÂMETROS!$C$14)/(F56+2*G56-(C56-D56)/PARÂMETROS!$C$11)) -> 6.72E-01 | W56: =IF(PARÂMETROS!$J$6<PARÂMETROS!$F$6,(H56+2*I56+3*J56-(C56-D56)/PARÂMETROS!$C$11)/(K56+(C56-D56)/PARÂMETROS!$C$14),(K56+(C56-D56)/PARÂMETROS!$C$14)/(H56+2*I56+3*J56-(C56-D56)/PARÂMETROS!$C$11)) -> 2.08E+00 | X56: =IF(PARÂMETROS!$J$6<PARÂMETROS!$F$6,(H56+2*I56+3*J56-(C56-D56)/PARÂMETROS!$C$11)/(L56+2*M56+(C56-D56)/PARÂMETROS!$C$14),(L56+2*M56+(C56-D56)/PARÂMETROS!$C$14)/(H56+2*I56+3*J56-(C56-D56)/PARÂMETROS!$C$11)) -> 1.03E+00 | Y56: =IF(PARÂMETROS!$J$6<PARÂMETROS!$F$6,(H56+2*I56+3*J56-(C56-D56)/PARÂMETROS!$C$11)/(N56+2*O56+3*P56+(C56-D56)/PARÂMETROS!$C$14),(N56+2*O56+3*P56+(C56-D56)/PARÂMETROS!$C$14)/(H56+2*I56+3*J56-(C56-D56)/PARÂMETROS!$C$11)) -> 6.88E-01 | Z56: =Q56*PARÂMETROS!$C$11*PARÂMETROS!$D$11/PARÂMETROS!$C$14 -> 20.40 | AA56: =R56*PARÂMETROS!$C$11*PARÂMETROS!$D$11/PARÂMETROS!$C$14 -> 10.13 | AB56: =S56*PARÂMETROS!$C$11*PARÂMETROS!$D$11/PARÂMETROS!$C$14 -> 6.74 | AC56: =T56*PARÂMETROS!$C$11*PARÂMETROS!$D$11/PARÂMETROS!$C$14 -> 40.67 | AD56: =U56*PARÂMETROS!$C$11*PARÂMETROS!$D$11/PARÂMETROS!$C$14 -> 20.20 | AE56: =V56*PARÂMETROS!$C$11*PARÂMETROS!$D$11/PARÂMETROS!$C$14 -> 13.43 | AF56: =W56*PARÂMETROS!$C$11*PARÂMETROS!$D$11/PARÂMETROS!$C$14 -> 41.67 | AG56: =X56*PARÂMETROS!$C$11*PARÂMETROS!$D$11/PARÂMETROS!$C$14 -> 20.69 | AH56: =Y56*PARÂMETROS!$C$11*PARÂMETROS!$D$11/PARÂMETROS!$C$14 -> 13.76 | AI56: =AND(B56+PARÂMETROS!$C$8>=PARÂMETROS!$C$5,B56+PARÂMETROS!$C$8<=PARÂMETROS!$D$5) -> TRUE | AJ56: 1 | AK56: =VLOOKUP('BANCO DE DADOS COMPLETA'!$N$8,'BANCO DE DADOS COMPLETA'!$A$7:$L$249,3)*-1 -> 3 | AL56: 7 | AM56: =VLOOKUP('BANCO DE DADOS COMPLETA'!$N$10,'BANCO DE DADOS COMPLETA'!$A$7:$L$249,3)*-1 -> 1 | AN56: 11 | AO56: 77 | AP56: 41.67 | AQ56: 41.67 | AR56: 11.06 | AS56: 0.33 | AT56: -0.47 | AU56: NADA | AV56: NADA | AW56: 0
B57: =B56+PARÂMETROS!$C$8 -> 11.26 | C57: 5.44E-12 | D57: =PARÂMETROS!$Q$4/C57 -> 1.84E-03 | E57: =PARÂMETROS!$F$6/($C57+PARÂMETROS!$F$6) -> 1.00E+00 | F57: =$C57*PARÂMETROS!$F$6/($C57^2+$C57*PARÂMETROS!$F$6+PARÂMETROS!$F$6*PARÂMETROS!$G$6) -> 8.60E-05 | G57: =PARÂMETROS!$F$6*PARÂMETROS!$G$6/($C57^2+$C57*PARÂMETROS!$F$6+PARÂMETROS!$F$6*PARÂMETROS!$G$6) -> 1.00E+00 | H57: =(PARÂMETROS!$F$6*$C57^2)/($C57^3+PARÂMETROS!$F$6*$C57^2+PARÂMETROS!$F$6*PARÂMETROS!$G$6*$C57+PARÂMETROS!$F$6*PARÂMETROS!$G$6*PARÂMETROS!$H$6) -> 7.95E-05 | I57: =(PARÂMETROS!$F$6*PARÂMETROS!$G$6*$C57)/($C57^3+PARÂMETROS!$F$6*$C57^2+PARÂMETROS!$F$6*PARÂMETROS!$G$6*$C57+PARÂMETROS!$F$6*PARÂMETROS!$G$6*PARÂMETROS!$H$6) -> 9.24E-01 | J57: =(PARÂMETROS!$F$6*PARÂMETROS!$G$6*PARÂMETROS!$H$6)/($C57^3+PARÂMETROS!$F$6*$C57^2+PARÂMETROS!$F$6*PARÂMETROS!$G$6*$C57+PARÂMETROS!$F$6*PARÂMETROS!$G$6*PARÂMETROS!$H$6) -> 7.59E-02 | K57: =$C57/($C57+PARÂMETROS!$J$6) -> 9.82E-01 | L57: =$C57*PARÂMETROS!$J$6/($C57^2+$C57*PARÂMETROS!$J$6+PARÂMETROS!$J$6*PARÂMETROS!$K$6) -> 1.80E-02 | M57: =$C57^2/($C57^2+$C57*PARÂMETROS!$J$6+PARÂMETROS!$J$6*PARÂMETROS!$K$6) -> 9.82E-01 | N57: =(PARÂMETROS!$K$6*PARÂMETROS!$J$6*$C57)/($C57^3+PARÂMETROS!$J$6*$C57^2+PARÂMETROS!$J$6*PARÂMETROS!$K$6*$C57+PARÂMETROS!$J$6*PARÂMETROS!$K$6*PARÂMETROS!$L$6) -> 0.00E+00 | O57: =(PARÂMETROS!$J$6*$C57^2)/($C57^3+PARÂMETROS!$J$6*$C57^2+PARÂMETROS!$J$6*PARÂMETROS!$K$6*$C57+PARÂMETROS!$J$6*PARÂMETROS!$K$6*PARÂMETROS!$L$6) -> 1.80E-02 | P57: =($C57^3)/($C57^3+PARÂMETROS!$J$6*$C57^2+PARÂMETROS!$J$6*PARÂMETROS!$K$6*$C57+PARÂMETROS!$J$6*PARÂMETROS!$K$6*PARÂMETROS!$L$6) -> 9.82E-01 | Q57: =IF(PARÂMETROS!$J$6<PARÂMETROS!$F$6,(E57-(C57-D57)/PARÂMETROS!$C$11)/(K57+(C57-D57)/PARÂMETROS!$C$14),(K57+(C57-D57)/PARÂMETROS!$C$14)/(E57-(C57-D57)/PARÂMETROS!$C$11)) -> 1.03E+00 | R57: =IF(PARÂMETROS!$J$6<PARÂMETROS!$F$6,(E57-(C57-D57)/PARÂMETROS!$C$11)/(L57+2*M57+(C57-D57)/PARÂMETROS!$C$14),(L57+2*M57+(C57-D57)/PARÂMETROS!$C$14)/(E57-(C57-D57)/PARÂMETROS!$C$11)) -> 5.10E-01 | S57: =IF(PARÂMETROS!$J$6<PARÂMETROS!$F$6, (E57-(C57-D57)/PARÂMETROS!$C$11)/(N57+2*O57+3*P57+(C57-D57)/PARÂMETROS!$C$14),(N57+2*O57+3*P57+(C57-D57)/PARÂMETROS!$C$14)/ (E57-(C57-D57)/PARÂMETROS!$C$11)) -> 3.39E-01 | T57: =IF(PARÂMETROS!$J$6<PARÂMETROS!$F$6,(F57+2*G57-(C57-D57)/PARÂMETROS!$C$11)/(K57+(C57-D57)/PARÂMETROS!$C$14),(K57+(C57-D57)/PARÂMETROS!$C$14)/(F57+2*G57-(C57-D57)/PARÂMETROS!$C$11)) -> 2.05E+00 | U57: =IF(PARÂMETROS!$J$6<PARÂMETROS!$F$6,(F57+2*G57-(C57-D57)/PARÂMETROS!$C$11)/(L57+2*M57+(C57-D57)/PARÂMETROS!$C$14),(L57+2*M57+(C57-D57)/PARÂMETROS!$C$14)/(F57+2*G57-(C57-D57)/PARÂMETROS!$C$11)) -> 1.02E+00 | V57: =IF(PARÂMETROS!$J$6<PARÂMETROS!$F$6,(F57+2*G57-(C57-D57)/PARÂMETROS!$C$11)/(N57+2*O57+3*P57+(C57-D57)/PARÂMETROS!$C$14),(N57+2*O57+3*P57+(C57-D57)/PARÂMETROS!$C$14)/(F57+2*G57-(C57-D57)/PARÂMETROS!$C$11)) -> 6.75E-01 | W57: =IF(PARÂMETROS!$J$6<PARÂMETROS!$F$6,(H57+2*I57+3*J57-(C57-D57)/PARÂMETROS!$C$11)/(K57+(C57-D57)/PARÂMETROS!$C$14),(K57+(C57-D57)/PARÂMETROS!$C$14)/(H57+2*I57+3*J57-(C57-D57)/PARÂMETROS!$C$11)) -> 2.13E+00 | X57: =IF(PARÂMETROS!$J$6<PARÂMETROS!$F$6,(H57+2*I57+3*J57-(C57-D57)/PARÂMETROS!$C$11)/(L57+2*M57+(C57-D57)/PARÂMETROS!$C$14),(L57+2*M57+(C57-D57)/PARÂMETROS!$C$14)/(H57+2*I57+3*J57-(C57-D57)/PARÂMETROS!$C$11)) -> 1.05E+00 | Y57: =IF(PARÂMETROS!$J$6<PARÂMETROS!$F$6,(H57+2*I57+3*J57-(C57-D57)/PARÂMETROS!$C$11)/(N57+2*O57+3*P57+(C57-D57)/PARÂMETROS!$C$14),(N57+2*O57+3*P57+(C57-D57)/PARÂMETROS!$C$14)/(H57+2*I57+3*J57-(C57-D57)/PARÂMETROS!$C$11)) -> 7.00E-01 | Z57: =Q57*PARÂMETROS!$C$11*PARÂMETROS!$D$11/PARÂMETROS!$C$14 -> 20.63 | AA57: =R57*PARÂMETROS!$C$11*PARÂMETROS!$D$11/PARÂMETROS!$C$14 -> 10.20 | AB57: =S57*PARÂMETROS!$C$11*PARÂMETROS!$D$11/PARÂMETROS!$C$14 -> 6.78 | AC57: =T57*PARÂMETROS!$C$11*PARÂMETROS!$D$11/PARÂMETROS!$C$14 -> 41.07 | AD57: =U57*PARÂMETROS!$C$11*PARÂMETROS!$D$11/PARÂMETROS!$C$14 -> 20.31 | AE57: =V57*PARÂMETROS!$C$11*PARÂMETROS!$D$11/PARÂMETROS!$C$14 -> 13.49 | AF57: =W57*PARÂMETROS!$C$11*PARÂMETROS!$D$11/PARÂMETROS!$C$14 -> 42.63 | AG57: =X57*PARÂMETROS!$C$11*PARÂMETROS!$D$11/PARÂMETROS!$C$14 -> 21.08 | AH57: =Y57*PARÂMETROS!$C$11*PARÂMETROS!$D$11/PARÂMETROS!$C$14 -> 14.00 | AI57: =AND(B57+PARÂMETROS!$C$8>=PARÂMETROS!$C$5,B57+PARÂMETROS!$C$8<=PARÂMETROS!$D$5) -> TRUE | AJ57: 1 | AK57: =VLOOKUP('BANCO DE DADOS COMPLETA'!$N$8,'BANCO DE DADOS COMPLETA'!$A$7:$L$249,3)*-1 -> 3 | AL57: 7 | AM57: =VLOOKUP('BANCO DE DADOS COMPLETA'!$N$10,'BANCO DE DADOS COMPLETA'!$A$7:$L$249,3)*-1 -> 1 | AN57: 11 | AO57: 77 | AP57: 42.63 | AQ57: 42.63 | AR57: 11.26 | AS57: 0.21 | AT57: -0.19 | AU57: NADA | AV57: NADA | AW57: 0
B58: =B57+PARÂMETROS!$C$8 -> 11.46 | C58: 3.43E-12 | D58: =PARÂMETROS!$Q$4/C58 -> 2.91E-03 | E58: =PARÂMETROS!$F$6/($C58+PARÂMETROS!$F$6) -> 1.00E+00 | F58: =$C58*PARÂMETROS!$F$6/($C58^2+$C58*PARÂMETROS!$F$6+PARÂMETROS!$F$6*PARÂMETROS!$G$6) -> 5.43E-05 | G58: =PARÂMETROS!$F$6*PARÂMETROS!$G$6/($C58^2+$C58*PARÂMETROS!$F$6+PARÂMETROS!$F$6*PARÂMETROS!$G$6) -> 1.00E+00 | H58: =(PARÂMETROS!$F$6*$C58^2)/($C58^3+PARÂMETROS!$F$6*$C58^2+PARÂMETROS!$F$6*PARÂMETROS!$G$6*$C58+PARÂMETROS!$F$6*PARÂMETROS!$G$6*PARÂMETROS!$H$6) -> 4.80E-05 | I58: =(PARÂMETROS!$F$6*PARÂMETROS!$G$6*$C58)/($C58^3+PARÂMETROS!$F$6*$C58^2+PARÂMETROS!$F$6*PARÂMETROS!$G$6*$C58+PARÂMETROS!$F$6*PARÂMETROS!$G$6*PARÂMETROS!$H$6) -> 8.85E-01 | J58: =(PARÂMETROS!$F$6*PARÂMETROS!$G$6*PARÂMETROS!$H$6)/($C58^3+PARÂMETROS!$F$6*$C58^2+PARÂMETROS!$F$6*PARÂMETROS!$G$6*$C58+PARÂMETROS!$F$6*PARÂMETROS!$G$6*PARÂMETROS!$H$6) -> 1.15E-01 | K58: =$C58/($C58+PARÂMETROS!$J$6) -> 9.72E-01 | L58: =$C58*PARÂMETROS!$J$6/($C58^2+$C58*PARÂMETROS!$J$6+PARÂMETROS!$J$6*PARÂMETROS!$K$6) -> 2.83E-02 | M58: =$C58^2/($C58^2+$C58*PARÂMETROS!$J$6+PARÂMETROS!$J$6*PARÂMETROS!$K$6) -> 9.72E-01 | N58: =(PARÂMETROS!$K$6*PARÂMETROS!$J$6*$C58)/($C58^3+PARÂMETROS!$J$6*$C58^2+PARÂMETROS!$J$6*PARÂMETROS!$K$6*$C58+PARÂMETROS!$J$6*PARÂMETROS!$K$6*PARÂMETROS!$L$6) -> 0.00E+00 | O58: =(PARÂMETROS!$J$6*$C58^2)/($C58^3+PARÂMETROS!$J$6*$C58^2+PARÂMETROS!$J$6*PARÂMETROS!$K$6*$C58+PARÂMETROS!$J$6*PARÂMETROS!$K$6*PARÂMETROS!$L$6) -> 2.83E-02 | P58: =($C58^3)/($C58^3+PARÂMETROS!$J$6*$C58^2+PARÂMETROS!$J$6*PARÂMETROS!$K$6*$C58+PARÂMETROS!$J$6*PARÂMETROS!$K$6*PARÂMETROS!$L$6) -> 9.72E-01 | Q58: =IF(PARÂMETROS!$J$6<PARÂMETROS!$F$6,(E58-(C58-D58)/PARÂMETROS!$C$11)/(K58+(C58-D58)/PARÂMETROS!$C$14),(K58+(C58-D58)/PARÂMETROS!$C$14)/(E58-(C58-D58)/PARÂMETROS!$C$11)) -> 1.05E+00 | R58: =IF(PARÂMETROS!$J$6<PARÂMETROS!$F$6,(E58-(C58-D58)/PARÂMETROS!$C$11)/(L58+2*M58+(C58-D58)/PARÂMETROS!$C$14),(L58+2*M58+(C58-D58)/PARÂMETROS!$C$14)/(E58-(C58-D58)/PARÂMETROS!$C$11)) -> 5.16E-01 | S58: =IF(PARÂMETROS!$J$6<PARÂMETROS!$F$6, (E58-(C58-D58)/PARÂMETROS!$C$11)/(N58+2*O58+3*P58+(C58-D58)/PARÂMETROS!$C$14),(N58+2*O58+3*P58+(C58-D58)/PARÂMETROS!$C$14)/ (E58-(C58-D58)/PARÂMETROS!$C$11)) -> 3.42E-01 | T58: =IF(PARÂMETROS!$J$6<PARÂMETROS!$F$6,(F58+2*G58-(C58-D58)/PARÂMETROS!$C$11)/(K58+(C58-D58)/PARÂMETROS!$C$14),(K58+(C58-D58)/PARÂMETROS!$C$14)/(F58+2*G58-(C58-D58)/PARÂMETROS!$C$11)) -> 2.09E+00 | U58: =IF(PARÂMETROS!$J$6<PARÂMETROS!$F$6,(F58+2*G58-(C58-D58)/PARÂMETROS!$C$11)/(L58+2*M58+(C58-D58)/PARÂMETROS!$C$14),(L58+2*M58+(C58-D58)/PARÂMETROS!$C$14)/(F58+2*G58-(C58-D58)/PARÂMETROS!$C$11)) -> 1.02E+00 | V58: =IF(PARÂMETROS!$J$6<PARÂMETROS!$F$6,(F58+2*G58-(C58-D58)/PARÂMETROS!$C$11)/(N58+2*O58+3*P58+(C58-D58)/PARÂMETROS!$C$14),(N58+2*O58+3*P58+(C58-D58)/PARÂMETROS!$C$14)/(F58+2*G58-(C58-D58)/PARÂMETROS!$C$11)) -> 6.79E-01 | W58: =IF(PARÂMETROS!$J$6<PARÂMETROS!$F$6,(H58+2*I58+3*J58-(C58-D58)/PARÂMETROS!$C$11)/(K58+(C58-D58)/PARÂMETROS!$C$14),(K58+(C58-D58)/PARÂMETROS!$C$14)/(H58+2*I58+3*J58-(C58-D58)/PARÂMETROS!$C$11)) -> 2.20E+00 | X58: =IF(PARÂMETROS!$J$6<PARÂMETROS!$F$6,(H58+2*I58+3*J58-(C58-D58)/PARÂMETROS!$C$11)/(L58+2*M58+(C58-D58)/PARÂMETROS!$C$14),(L58+2*M58+(C58-D58)/PARÂMETROS!$C$14)/(H58+2*I58+3*J58-(C58-D58)/PARÂMETROS!$C$11)) -> 1.08E+00 | Y58: =IF(PARÂMETROS!$J$6<PARÂMETROS!$F$6,(H58+2*I58+3*J58-(C58-D58)/PARÂMETROS!$C$11)/(N58+2*O58+3*P58+(C58-D58)/PARÂMETROS!$C$14),(N58+2*O58+3*P58+(C58-D58)/PARÂMETROS!$C$14)/(H58+2*I58+3*J58-(C58-D58)/PARÂMETROS!$C$11)) -> 7.18E-01 | Z58: =Q58*PARÂMETROS!$C$11*PARÂMETROS!$D$11/PARÂMETROS!$C$14 -> 21.01 | AA58: =R58*PARÂMETROS!$C$11*PARÂMETROS!$D$11/PARÂMETROS!$C$14 -> 10.32 | AB58: =S58*PARÂMETROS!$C$11*PARÂMETROS!$D$11/PARÂMETROS!$C$14 -> 6.84 | AC58: =T58*PARÂMETROS!$C$11*PARÂMETROS!$D$11/PARÂMETROS!$C$14 -> 41.71 | AD58: =U58*PARÂMETROS!$C$11*PARÂMETROS!$D$11/PARÂMETROS!$C$14 -> 20.49 | AE58: =V58*PARÂMETROS!$C$11*PARÂMETROS!$D$11/PARÂMETROS!$C$14 -> 13.58 | AF58: =W58*PARÂMETROS!$C$11*PARÂMETROS!$D$11/PARÂMETROS!$C$14 -> 44.10 | AG58: =X58*PARÂMETROS!$C$11*PARÂMETROS!$D$11/PARÂMETROS!$C$14 -> 21.67 | AH58: =Y58*PARÂMETROS!$C$11*PARÂMETROS!$D$11/PARÂMETROS!$C$14 -> 14.36 | AI58: =AND(B58+PARÂMETROS!$C$8>=PARÂMETROS!$C$5,B58+PARÂMETROS!$C$8<=PARÂMETROS!$D$5) -> TRUE | AJ58: 1 | AK58: =VLOOKUP('BANCO DE DADOS COMPLETA'!$N$8,'BANCO DE DADOS COMPLETA'!$A$7:$L$249,3)*-1 -> 3 | AL58: 7 | AM58: =VLOOKUP('BANCO DE DADOS COMPLETA'!$N$10,'BANCO DE DADOS COMPLETA'!$A$7:$L$249,3)*-1 -> 1 | AN58: 11 | AO58: 77 | AP58: 44.10 | AQ58: 44.10 | AR58: 11.46 | AS58: 0.14 | AT58: -0.08 | AU58: NADA | AV58: NADA | AW58: 0
B59: =B58+PARÂMETROS!$C$8 -> 11.66 | C59: 2.17E-12 | D59: =PARÂMETROS!$Q$4/C59 -> 4.62E-03 | E59: =PARÂMETROS!$F$6/($C59+PARÂMETROS!$F$6) -> 1.00E+00 | F59: =$C59*PARÂMETROS!$F$6/($C59^2+$C59*PARÂMETROS!$F$6+PARÂMETROS!$F$6*PARÂMETROS!$G$6) -> 3.42E-05 | G59: =PARÂMETROS!$F$6*PARÂMETROS!$G$6/($C59^2+$C59*PARÂMETROS!$F$6+PARÂMETROS!$F$6*PARÂMETROS!$G$6) -> 1.00E+00 | H59: =(PARÂMETROS!$F$6*$C59^2)/($C59^3+PARÂMETROS!$F$6*$C59^2+PARÂMETROS!$F$6*PARÂMETROS!$G$6*$C59+PARÂMETROS!$F$6*PARÂMETROS!$G$6*PARÂMETROS!$H$6) -> 2.84E-05 | I59: =(PARÂMETROS!$F$6*PARÂMETROS!$G$6*$C59)/($C59^3+PARÂMETROS!$F$6*$C59^2+PARÂMETROS!$F$6*PARÂMETROS!$G$6*$C59+PARÂMETROS!$F$6*PARÂMETROS!$G$6*PARÂMETROS!$H$6) -> 8.29E-01 | J59: =(PARÂMETROS!$F$6*PARÂMETROS!$G$6*PARÂMETROS!$H$6)/($C59^3+PARÂMETROS!$F$6*$C59^2+PARÂMETROS!$F$6*PARÂMETROS!$G$6*$C59+PARÂMETROS!$F$6*PARÂMETROS!$G$6*PARÂMETROS!$H$6) -> 1.71E-01 | K59: =$C59/($C59+PARÂMETROS!$J$6) -> 9.56E-01 | L59: =$C59*PARÂMETROS!$J$6/($C59^2+$C59*PARÂMETROS!$J$6+PARÂMETROS!$J$6*PARÂMETROS!$K$6) -> 4.41E-02 | M59: =$C59^2/($C59^2+$C59*PARÂMETROS!$J$6+PARÂMETROS!$J$6*PARÂMETROS!$K$6) -> 9.56E-01 | N59: =(PARÂMETROS!$K$6*PARÂMETROS!$J$6*$C59)/($C59^3+PARÂMETROS!$J$6*$C59^2+PARÂMETROS!$J$6*PARÂMETROS!$K$6*$C59+PARÂMETROS!$J$6*PARÂMETROS!$K$6*PARÂMETROS!$L$6) -> 0.00E+00 | O59: =(PARÂMETROS!$J$6*$C59^2)/($C59^3+PARÂMETROS!$J$6*$C59^2+PARÂMETROS!$J$6*PARÂMETROS!$K$6*$C59+PARÂMETROS!$J$6*PARÂMETROS!$K$6*PARÂMETROS!$L$6) -> 4.41E-02 | P59: =($C59^3)/($C59^3+PARÂMETROS!$J$6*$C59^2+PARÂMETROS!$J$6*PARÂMETROS!$K$6*$C59+PARÂMETROS!$J$6*PARÂMETROS!$K$6*PARÂMETROS!$L$6) -> 9.56E-01 | Q59: =IF(PARÂMETROS!$J$6<PARÂMETROS!$F$6,(E59-(C59-D59)/PARÂMETROS!$C$11)/(K59+(C59-D59)/PARÂMETROS!$C$14),(K59+(C59-D59)/PARÂMETROS!$C$14)/(E59-(C59-D59)/PARÂMETROS!$C$11)) -> 1.08E+00 | R59: =IF(PARÂMETROS!$J$6<PARÂMETROS!$F$6,(E59-(C59-D59)/PARÂMETROS!$C$11)/(L59+2*M59+(C59-D59)/PARÂMETROS!$C$14),(L59+2*M59+(C59-D59)/PARÂMETROS!$C$14)/(E59-(C59-D59)/PARÂMETROS!$C$11)) -> 5.26E-01 | S59: =IF(PARÂMETROS!$J$6<PARÂMETROS!$F$6, (E59-(C59-D59)/PARÂMETROS!$C$11)/(N59+2*O59+3*P59+(C59-D59)/PARÂMETROS!$C$14),(N59+2*O59+3*P59+(C59-D59)/PARÂMETROS!$C$14)/ (E59-(C59-D59)/PARÂMETROS!$C$11)) -> 3.47E-01 | T59: =IF(PARÂMETROS!$J$6<PARÂMETROS!$F$6,(F59+2*G59-(C59-D59)/PARÂMETROS!$C$11)/(K59+(C59-D59)/PARÂMETROS!$C$14),(K59+(C59-D59)/PARÂMETROS!$C$14)/(F59+2*G59-(C59-D59)/PARÂMETROS!$C$11)) -> 2.14E+00 | U59: =IF(PARÂMETROS!$J$6<PARÂMETROS!$F$6,(F59+2*G59-(C59-D59)/PARÂMETROS!$C$11)/(L59+2*M59+(C59-D59)/PARÂMETROS!$C$14),(L59+2*M59+(C59-D59)/PARÂMETROS!$C$14)/(F59+2*G59-(C59-D59)/PARÂMETROS!$C$11)) -> 1.04E+00 | V59: =IF(PARÂMETROS!$J$6<PARÂMETROS!$F$6,(F59+2*G59-(C59-D59)/PARÂMETROS!$C$11)/(N59+2*O59+3*P59+(C59-D59)/PARÂMETROS!$C$14),(N59+2*O59+3*P59+(C59-D59)/PARÂMETROS!$C$14)/(F59+2*G59-(C59-D59)/PARÂMETROS!$C$11)) -> 6.87E-01 | W59: =IF(PARÂMETROS!$J$6<PARÂMETROS!$F$6,(H59+2*I59+3*J59-(C59-D59)/PARÂMETROS!$C$11)/(K59+(C59-D59)/PARÂMETROS!$C$14),(K59+(C59-D59)/PARÂMETROS!$C$14)/(H59+2*I59+3*J59-(C59-D59)/PARÂMETROS!$C$11)) -> 2.32E+00 | X59: =IF(PARÂMETROS!$J$6<PARÂMETROS!$F$6,(H59+2*I59+3*J59-(C59-D59)/PARÂMETROS!$C$11)/(L59+2*M59+(C59-D59)/PARÂMETROS!$C$14),(L59+2*M59+(C59-D59)/PARÂMETROS!$C$14)/(H59+2*I59+3*J59-(C59-D59)/PARÂMETROS!$C$11)) -> 1.13E+00 | Y59: =IF(PARÂMETROS!$J$6<PARÂMETROS!$F$6,(H59+2*I59+3*J59-(C59-D59)/PARÂMETROS!$C$11)/(N59+2*O59+3*P59+(C59-D59)/PARÂMETROS!$C$14),(N59+2*O59+3*P59+(C59-D59)/PARÂMETROS!$C$14)/(H59+2*I59+3*J59-(C59-D59)/PARÂMETROS!$C$11)) -> 7.45E-01 | Z59: =Q59*PARÂMETROS!$C$11*PARÂMETROS!$D$11/PARÂMETROS!$C$14 -> 21.62 | AA59: =R59*PARÂMETROS!$C$11*PARÂMETROS!$D$11/PARÂMETROS!$C$14 -> 10.51 | AB59: =S59*PARÂMETROS!$C$11*PARÂMETROS!$D$11/PARÂMETROS!$C$14 -> 6.94 | AC59: =T59*PARÂMETROS!$C$11*PARÂMETROS!$D$11/PARÂMETROS!$C$14 -> 42.74 | AD59: =U59*PARÂMETROS!$C$11*PARÂMETROS!$D$11/PARÂMETROS!$C$14 -> 20.79 | AE59: =V59*PARÂMETROS!$C$11*PARÂMETROS!$D$11/PARÂMETROS!$C$14 -> 13.73 | AF59: =W59*PARÂMETROS!$C$11*PARÂMETROS!$D$11/PARÂMETROS!$C$14 -> 46.35 | AG59: =X59*PARÂMETROS!$C$11*PARÂMETROS!$D$11/PARÂMETROS!$C$14 -> 22.54 | AH59: =Y59*PARÂMETROS!$C$11*PARÂMETROS!$D$11/PARÂMETROS!$C$14 -> 14.89 | AI59: =AND(B59+PARÂMETROS!$C$8>=PARÂMETROS!$C$5,B59+PARÂMETROS!$C$8<=PARÂMETROS!$D$5) -> TRUE | AJ59: 1 | AK59: =VLOOKUP('BANCO DE DADOS COMPLETA'!$N$8,'BANCO DE DADOS COMPLETA'!$A$7:$L$249,3)*-1 -> 3 | AL59: 7 | AM59: =VLOOKUP('BANCO DE DADOS COMPLETA'!$N$10,'BANCO DE DADOS COMPLETA'!$A$7:$L$249,3)*-1 -> 1 | AN59: 11 | AO59: 77 | AP59: 46.35 | AQ59: 46.35 | AR59: 11.66 | AS59: 0.09 | AT59: -0.03 | AU59: NADA | AV59: NADA | AW59: 0
B60: =B59+PARÂMETROS!$C$8 -> 11.86 | C60: 1.37E-12 | D60: =PARÂMETROS!$Q$4/C60 -> 7.32E-03 | E60: =PARÂMETROS!$F$6/($C60+PARÂMETROS!$F$6) -> 1.00E+00 | F60: =$C60*PARÂMETROS!$F$6/($C60^2+$C60*PARÂMETROS!$F$6+PARÂMETROS!$F$6*PARÂMETROS!$G$6) -> 2.16E-05 | G60: =PARÂMETROS!$F$6*PARÂMETROS!$G$6/($C60^2+$C60*PARÂMETROS!$F$6+PARÂMETROS!$F$6*PARÂMETROS!$G$6) -> 1.00E+00 | H60: =(PARÂMETROS!$F$6*$C60^2)/($C60^3+PARÂMETROS!$F$6*$C60^2+PARÂMETROS!$F$6*PARÂMETROS!$G$6*$C60+PARÂMETROS!$F$6*PARÂMETROS!$G$6*PARÂMETROS!$H$6) -> 1.63E-05 | I60: =(PARÂMETROS!$F$6*PARÂMETROS!$G$6*$C60)/($C60^3+PARÂMETROS!$F$6*$C60^2+PARÂMETROS!$F$6*PARÂMETROS!$G$6*$C60+PARÂMETROS!$F$6*PARÂMETROS!$G$6*PARÂMETROS!$H$6) -> 7.54E-01 | J60: =(PARÂMETROS!$F$6*PARÂMETROS!$G$6*PARÂMETROS!$H$6)/($C60^3+PARÂMETROS!$F$6*$C60^2+PARÂMETROS!$F$6*PARÂMETROS!$G$6*$C60+PARÂMETROS!$F$6*PARÂMETROS!$G$6*PARÂMETROS!$H$6) -> 2.46E-01 | K60: =$C60/($C60+PARÂMETROS!$J$6) -> 9.32E-01 | L60: =$C60*PARÂMETROS!$J$6/($C60^2+$C60*PARÂMETROS!$J$6+PARÂMETROS!$J$6*PARÂMETROS!$K$6) -> 6.82E-02 | M60: =$C60^2/($C60^2+$C60*PARÂMETROS!$J$6+PARÂMETROS!$J$6*PARÂMETROS!$K$6) -> 9.32E-01 | N60: =(PARÂMETROS!$K$6*PARÂMETROS!$J$6*$C60)/($C60^3+PARÂMETROS!$J$6*$C60^2+PARÂMETROS!$J$6*PARÂMETROS!$K$6*$C60+PARÂMETROS!$J$6*PARÂMETROS!$K$6*PARÂMETROS!$L$6) -> 0.00E+00 | O60: =(PARÂMETROS!$J$6*$C60^2)/($C60^3+PARÂMETROS!$J$6*$C60^2+PARÂMETROS!$J$6*PARÂMETROS!$K$6*$C60+PARÂMETROS!$J$6*PARÂMETROS!$K$6*PARÂMETROS!$L$6) -> 6.82E-02 | P60: =($C60^3)/($C60^3+PARÂMETROS!$J$6*$C60^2+PARÂMETROS!$J$6*PARÂMETROS!$K$6*$C60+PARÂMETROS!$J$6*PARÂMETROS!$K$6*PARÂMETROS!$L$6) -> 9.32E-01 | Q60: =IF(PARÂMETROS!$J$6<PARÂMETROS!$F$6,(E60-(C60-D60)/PARÂMETROS!$C$11)/(K60+(C60-D60)/PARÂMETROS!$C$14),(K60+(C60-D60)/PARÂMETROS!$C$14)/(E60-(C60-D60)/PARÂMETROS!$C$11)) -> 1.13E+00 | R60: =IF(PARÂMETROS!$J$6<PARÂMETROS!$F$6,(E60-(C60-D60)/PARÂMETROS!$C$11)/(L60+2*M60+(C60-D60)/PARÂMETROS!$C$14),(L60+2*M60+(C60-D60)/PARÂMETROS!$C$14)/(E60-(C60-D60)/PARÂMETROS!$C$11)) -> 5.41E-01 | S60: =IF(PARÂMETROS!$J$6<PARÂMETROS!$F$6, (E60-(C60-D60)/PARÂMETROS!$C$11)/(N60+2*O60+3*P60+(C60-D60)/PARÂMETROS!$C$14),(N60+2*O60+3*P60+(C60-D60)/PARÂMETROS!$C$14)/ (E60-(C60-D60)/PARÂMETROS!$C$11)) -> 3.55E-01 | T60: =IF(PARÂMETROS!$J$6<PARÂMETROS!$F$6,(F60+2*G60-(C60-D60)/PARÂMETROS!$C$11)/(K60+(C60-D60)/PARÂMETROS!$C$14),(K60+(C60-D60)/PARÂMETROS!$C$14)/(F60+2*G60-(C60-D60)/PARÂMETROS!$C$11)) -> 2.22E+00 | U60: =IF(PARÂMETROS!$J$6<PARÂMETROS!$F$6,(F60+2*G60-(C60-D60)/PARÂMETROS!$C$11)/(L60+2*M60+(C60-D60)/PARÂMETROS!$C$14),(L60+2*M60+(C60-D60)/PARÂMETROS!$C$14)/(F60+2*G60-(C60-D60)/PARÂMETROS!$C$11)) -> 1.06E+00 | V60: =IF(PARÂMETROS!$J$6<PARÂMETROS!$F$6,(F60+2*G60-(C60-D60)/PARÂMETROS!$C$11)/(N60+2*O60+3*P60+(C60-D60)/PARÂMETROS!$C$14),(N60+2*O60+3*P60+(C60-D60)/PARÂMETROS!$C$14)/(F60+2*G60-(C60-D60)/PARÂMETROS!$C$11)) -> 6.98E-01 | W60: =IF(PARÂMETROS!$J$6<PARÂMETROS!$F$6,(H60+2*I60+3*J60-(C60-D60)/PARÂMETROS!$C$11)/(K60+(C60-D60)/PARÂMETROS!$C$14),(K60+(C60-D60)/PARÂMETROS!$C$14)/(H60+2*I60+3*J60-(C60-D60)/PARÂMETROS!$C$11)) -> 2.49E+00 | X60: =IF(PARÂMETROS!$J$6<PARÂMETROS!$F$6,(H60+2*I60+3*J60-(C60-D60)/PARÂMETROS!$C$11)/(L60+2*M60+(C60-D60)/PARÂMETROS!$C$14),(L60+2*M60+(C60-D60)/PARÂMETROS!$C$14)/(H60+2*I60+3*J60-(C60-D60)/PARÂMETROS!$C$11)) -> 1.19E+00 | Y60: =IF(PARÂMETROS!$J$6<PARÂMETROS!$F$6,(H60+2*I60+3*J60-(C60-D60)/PARÂMETROS!$C$11)/(N60+2*O60+3*P60+(C60-D60)/PARÂMETROS!$C$14),(N60+2*O60+3*P60+(C60-D60)/PARÂMETROS!$C$14)/(H60+2*I60+3*J60-(C60-D60)/PARÂMETROS!$C$11)) -> 7.83E-01 | Z60: =Q60*PARÂMETROS!$C$11*PARÂMETROS!$D$11/PARÂMETROS!$C$14 -> 22.60 | AA60: =R60*PARÂMETROS!$C$11*PARÂMETROS!$D$11/PARÂMETROS!$C$14 -> 10.81 | AB60: =S60*PARÂMETROS!$C$11*PARÂMETROS!$D$11/PARÂMETROS!$C$14 -> 7.11 | AC60: =T60*PARÂMETROS!$C$11*PARÂMETROS!$D$11/PARÂMETROS!$C$14 -> 44.41 | AD60: =U60*PARÂMETROS!$C$11*PARÂMETROS!$D$11/PARÂMETROS!$C$14 -> 21.25 | AE60: =V60*PARÂMETROS!$C$11*PARÂMETROS!$D$11/PARÂMETROS!$C$14 -> 13.96 | AF60: =W60*PARÂMETROS!$C$11*PARÂMETROS!$D$11/PARÂMETROS!$C$14 -> 49.78 | AG60: =X60*PARÂMETROS!$C$11*PARÂMETROS!$D$11/PARÂMETROS!$C$14 -> 23.82 | AH60: =Y60*PARÂMETROS!$C$11*PARÂMETROS!$D$11/PARÂMETROS!$C$14 -> 15.65 | AI60: =AND(B60+PARÂMETROS!$C$8>=PARÂMETROS!$C$5,B60+PARÂMETROS!$C$8<=PARÂMETROS!$D$5) -> FALSE | AJ60: 0 | AK60: =VLOOKUP('BANCO DE DADOS COMPLETA'!$N$8,'BANCO DE DADOS COMPLETA'!$A$7:$L$249,3)*-1 -> 3 | AL60: 7 | AM60: =VLOOKUP('BANCO DE DADOS COMPLETA'!$N$10,'BANCO DE DADOS COMPLETA'!$A$7:$L$249,3)*-1 -> 1 | AN60: 11 | AO60: 77 | AP60: 49.78 | AQ60: LIMITE | AR60: LIMITE | AU60: NADA | AV60: NADA | AW60: 0
B61: =B60+PARÂMETROS!$C$8 -> 12.06 | C61: 8.62E-13 | D61: =PARÂMETROS!$Q$4/C61 -> 1.16E-02 | E61: =PARÂMETROS!$F$6/($C61+PARÂMETROS!$F$6) -> 1.00E+00 | F61: =$C61*PARÂMETROS!$F$6/($C61^2+$C61*PARÂMETROS!$F$6+PARÂMETROS!$F$6*PARÂMETROS!$G$6) -> 1.36E-05 | G61: =PARÂMETROS!$F$6*PARÂMETROS!$G$6/($C61^2+$C61*PARÂMETROS!$F$6+PARÂMETROS!$F$6*PARÂMETROS!$G$6) -> 1.00E+00 | H61: =(PARÂMETROS!$F$6*$C61^2)/($C61^3+PARÂMETROS!$F$6*$C61^2+PARÂMETROS!$F$6*PARÂMETROS!$G$6*$C61+PARÂMETROS!$F$6*PARÂMETROS!$G$6*PARÂMETROS!$H$6) -> 8.98E-06 | I61: =(PARÂMETROS!$F$6*PARÂMETROS!$G$6*$C61)/($C61^3+PARÂMETROS!$F$6*$C61^2+PARÂMETROS!$F$6*PARÂMETROS!$G$6*$C61+PARÂMETROS!$F$6*PARÂMETROS!$G$6*PARÂMETROS!$H$6) -> 6.59E-01 | J61: =(PARÂMETROS!$F$6*PARÂMETROS!$G$6*PARÂMETROS!$H$6)/($C61^3+PARÂMETROS!$F$6*$C61^2+PARÂMETROS!$F$6*PARÂMETROS!$G$6*$C61+PARÂMETROS!$F$6*PARÂMETROS!$G$6*PARÂMETROS!$H$6) -> 3.41E-01 | K61: =$C61/($C61+PARÂMETROS!$J$6) -> 8.96E-01 | L61: =$C61*PARÂMETROS!$J$6/($C61^2+$C61*PARÂMETROS!$J$6+PARÂMETROS!$J$6*PARÂMETROS!$K$6) -> 1.04E-01 | M61: =$C61^2/($C61^2+$C61*PARÂMETROS!$J$6+PARÂMETROS!$J$6*PARÂMETROS!$K$6) -> 8.96E-01 | N61: =(PARÂMETROS!$K$6*PARÂMETROS!$J$6*$C61)/($C61^3+PARÂMETROS!$J$6*$C61^2+PARÂMETROS!$J$6*PARÂMETROS!$K$6*$C61+PARÂMETROS!$J$6*PARÂMETROS!$K$6*PARÂMETROS!$L$6) -> 0.00E+00 | O61: =(PARÂMETROS!$J$6*$C61^2)/($C61^3+PARÂMETROS!$J$6*$C61^2+PARÂMETROS!$J$6*PARÂMETROS!$K$6*$C61+PARÂMETROS!$J$6*PARÂMETROS!$K$6*PARÂMETROS!$L$6) -> 1.04E-01 | P61: =($C61^3)/($C61^3+PARÂMETROS!$J$6*$C61^2+PARÂMETROS!$J$6*PARÂMETROS!$K$6*$C61+PARÂMETROS!$J$6*PARÂMETROS!$K$6*PARÂMETROS!$L$6) -> 8.96E-01 | Q61: =IF(PARÂMETROS!$J$6<PARÂMETROS!$F$6,(E61-(C61-D61)/PARÂMETROS!$C$11)/(K61+(C61-D61)/PARÂMETROS!$C$14),(K61+(C61-D61)/PARÂMETROS!$C$14)/(E61-(C61-D61)/PARÂMETROS!$C$11)) -> 1.21E+00 | R61: =IF(PARÂMETROS!$J$6<PARÂMETROS!$F$6,(E61-(C61-D61)/PARÂMETROS!$C$11)/(L61+2*M61+(C61-D61)/PARÂMETROS!$C$14),(L61+2*M61+(C61-D61)/PARÂMETROS!$C$14)/(E61-(C61-D61)/PARÂMETROS!$C$11)) -> 5.65E-01 | S61: =IF(PARÂMETROS!$J$6<PARÂMETROS!$F$6, (E61-(C61-D61)/PARÂMETROS!$C$11)/(N61+2*O61+3*P61+(C61-D61)/PARÂMETROS!$C$14),(N61+2*O61+3*P61+(C61-D61)/PARÂMETROS!$C$14)/ (E61-(C61-D61)/PARÂMETROS!$C$11)) -> 3.68E-01 | T61: =IF(PARÂMETROS!$J$6<PARÂMETROS!$F$6,(F61+2*G61-(C61-D61)/PARÂMETROS!$C$11)/(K61+(C61-D61)/PARÂMETROS!$C$14),(K61+(C61-D61)/PARÂMETROS!$C$14)/(F61+2*G61-(C61-D61)/PARÂMETROS!$C$11)) -> 2.36E+00 | U61: =IF(PARÂMETROS!$J$6<PARÂMETROS!$F$6,(F61+2*G61-(C61-D61)/PARÂMETROS!$C$11)/(L61+2*M61+(C61-D61)/PARÂMETROS!$C$14),(L61+2*M61+(C61-D61)/PARÂMETROS!$C$14)/(F61+2*G61-(C61-D61)/PARÂMETROS!$C$11)) -> 1.10E+00 | V61: =IF(PARÂMETROS!$J$6<PARÂMETROS!$F$6,(F61+2*G61-(C61-D61)/PARÂMETROS!$C$11)/(N61+2*O61+3*P61+(C61-D61)/PARÂMETROS!$C$14),(N61+2*O61+3*P61+(C61-D61)/PARÂMETROS!$C$14)/(F61+2*G61-(C61-D61)/PARÂMETROS!$C$11)) -> 7.16E-01 | W61: =IF(PARÂMETROS!$J$6<PARÂMETROS!$F$6,(H61+2*I61+3*J61-(C61-D61)/PARÂMETROS!$C$11)/(K61+(C61-D61)/PARÂMETROS!$C$14),(K61+(C61-D61)/PARÂMETROS!$C$14)/(H61+2*I61+3*J61-(C61-D61)/PARÂMETROS!$C$11)) -> 2.75E+00 | X61: =IF(PARÂMETROS!$J$6<PARÂMETROS!$F$6,(H61+2*I61+3*J61-(C61-D61)/PARÂMETROS!$C$11)/(L61+2*M61+(C61-D61)/PARÂMETROS!$C$14),(L61+2*M61+(C61-D61)/PARÂMETROS!$C$14)/(H61+2*I61+3*J61-(C61-D61)/PARÂMETROS!$C$11)) -> 1.28E+00 | Y61: =IF(PARÂMETROS!$J$6<PARÂMETROS!$F$6,(H61+2*I61+3*J61-(C61-D61)/PARÂMETROS!$C$11)/(N61+2*O61+3*P61+(C61-D61)/PARÂMETROS!$C$14),(N61+2*O61+3*P61+(C61-D61)/PARÂMETROS!$C$14)/(H61+2*I61+3*J61-(C61-D61)/PARÂMETROS!$C$11)) -> 8.35E-01 | Z61: =Q61*PARÂMETROS!$C$11*PARÂMETROS!$D$11/PARÂMETROS!$C$14 -> 24.24 | AA61: =R61*PARÂMETROS!$C$11*PARÂMETROS!$D$11/PARÂMETROS!$C$14 -> 11.30 | AB61: =S61*PARÂMETROS!$C$11*PARÂMETROS!$D$11/PARÂMETROS!$C$14 -> 7.37 | AC61: =T61*PARÂMETROS!$C$11*PARÂMETROS!$D$11/PARÂMETROS!$C$14 -> 47.15 | AD61: =U61*PARÂMETROS!$C$11*PARÂMETROS!$D$11/PARÂMETROS!$C$14 -> 21.98 | AE61: =V61*PARÂMETROS!$C$11*PARÂMETROS!$D$11/PARÂMETROS!$C$14 -> 14.33 | AF61: =W61*PARÂMETROS!$C$11*PARÂMETROS!$D$11/PARÂMETROS!$C$14 -> 54.97 | AG61: =X61*PARÂMETROS!$C$11*PARÂMETROS!$D$11/PARÂMETROS!$C$14 -> 25.62 | AH61: =Y61*PARÂMETROS!$C$11*PARÂMETROS!$D$11/PARÂMETROS!$C$14 -> 16.70 | AI61: =AND(B61+PARÂMETROS!$C$8>=PARÂMETROS!$C$5,B61+PARÂMETROS!$C$8<=PARÂMETROS!$D$5) -> FALSE | AJ61: 0 | AK61: =VLOOKUP('BANCO DE DADOS COMPLETA'!$N$8,'BANCO DE DADOS COMPLETA'!$A$7:$L$249,3)*-1 -> 3 | AL61: 7 | AM61: =VLOOKUP('BANCO DE DADOS COMPLETA'!$N$10,'BANCO DE DADOS COMPLETA'!$A$7:$L$249,3)*-1 -> 1 | AN61: 11 | AO61: 77 | AP61: 54.97 | AQ61: LIMITE | AR61: LIMITE | AS61: LIMITE | AV61: NADA | AW61: 0
B62: =B61+PARÂMETROS!$C$8 -> 12.26 | C62: 5.44E-13 | D62: =PARÂMETROS!$Q$4/C62 -> 1.84E-02 | E62: =PARÂMETROS!$F$6/($C62+PARÂMETROS!$F$6) -> 1.00E+00 | F62: =$C62*PARÂMETROS!$F$6/($C62^2+$C62*PARÂMETROS!$F$6+PARÂMETROS!$F$6*PARÂMETROS!$G$6) -> 8.60E-06 | G62: =PARÂMETROS!$F$6*PARÂMETROS!$G$6/($C62^2+$C62*PARÂMETROS!$F$6+PARÂMETROS!$F$6*PARÂMETROS!$G$6) -> 1.00E+00 | H62: =(PARÂMETROS!$F$6*$C62^2)/($C62^3+PARÂMETROS!$F$6*$C62^2+PARÂMETROS!$F$6*PARÂMETROS!$G$6*$C62+PARÂMETROS!$F$6*PARÂMETROS!$G$6*PARÂMETROS!$H$6) -> 4.72E-06 | I62: =(PARÂMETROS!$F$6*PARÂMETROS!$G$6*$C62)/($C62^3+PARÂMETROS!$F$6*$C62^2+PARÂMETROS!$F$6*PARÂMETROS!$G$6*$C62+PARÂMETROS!$F$6*PARÂMETROS!$G$6*PARÂMETROS!$H$6) -> 5.49E-01 | J62: =(PARÂMETROS!$F$6*PARÂMETROS!$G$6*PARÂMETROS!$H$6)/($C62^3+PARÂMETROS!$F$6*$C62^2+PARÂMETROS!$F$6*PARÂMETROS!$G$6*$C62+PARÂMETROS!$F$6*PARÂMETROS!$G$6*PARÂMETROS!$H$6) -> 4.51E-01 | K62: =$C62/($C62+PARÂMETROS!$J$6) -> 8.45E-01 | L62: =$C62*PARÂMETROS!$J$6/($C62^2+$C62*PARÂMETROS!$J$6+PARÂMETROS!$J$6*PARÂMETROS!$K$6) -> 1.55E-01 | M62: =$C62^2/($C62^2+$C62*PARÂMETROS!$J$6+PARÂMETROS!$J$6*PARÂMETROS!$K$6) -> 8.45E-01 | N62: =(PARÂMETROS!$K$6*PARÂMETROS!$J$6*$C62)/($C62^3+PARÂMETROS!$J$6*$C62^2+PARÂMETROS!$J$6*PARÂMETROS!$K$6*$C62+PARÂMETROS!$J$6*PARÂMETROS!$K$6*PARÂMETROS!$L$6) -> 0.00E+00 | O62: =(PARÂMETROS!$J$6*$C62^2)/($C62^3+PARÂMETROS!$J$6*$C62^2+PARÂMETROS!$J$6*PARÂMETROS!$K$6*$C62+PARÂMETROS!$J$6*PARÂMETROS!$K$6*PARÂMETROS!$L$6) -> 1.55E-01 | P62: =($C62^3)/($C62^3+PARÂMETROS!$J$6*$C62^2+PARÂMETROS!$J$6*PARÂMETROS!$K$6*$C62+PARÂMETROS!$J$6*PARÂMETROS!$K$6*PARÂMETROS!$L$6) -> 8.45E-01 | Q62: =IF(PARÂMETROS!$J$6<PARÂMETROS!$F$6,(E62-(C62-D62)/PARÂMETROS!$C$11)/(K62+(C62-D62)/PARÂMETROS!$C$14),(K62+(C62-D62)/PARÂMETROS!$C$14)/(E62-(C62-D62)/PARÂMETROS!$C$11)) -> 1.35E+00 | R62: =IF(PARÂMETROS!$J$6<PARÂMETROS!$F$6,(E62-(C62-D62)/PARÂMETROS!$C$11)/(L62+2*M62+(C62-D62)/PARÂMETROS!$C$14),(L62+2*M62+(C62-D62)/PARÂMETROS!$C$14)/(E62-(C62-D62)/PARÂMETROS!$C$11)) -> 6.04E-01 | S62: =IF(PARÂMETROS!$J$6<PARÂMETROS!$F$6, (E62-(C62-D62)/PARÂMETROS!$C$11)/(N62+2*O62+3*P62+(C62-D62)/PARÂMETROS!$C$14),(N62+2*O62+3*P62+(C62-D62)/PARÂMETROS!$C$14)/ (E62-(C62-D62)/PARÂMETROS!$C$11)) -> 3.89E-01 | T62: =IF(PARÂMETROS!$J$6<PARÂMETROS!$F$6,(F62+2*G62-(C62-D62)/PARÂMETROS!$C$11)/(K62+(C62-D62)/PARÂMETROS!$C$14),(K62+(C62-D62)/PARÂMETROS!$C$14)/(F62+2*G62-(C62-D62)/PARÂMETROS!$C$11)) -> 2.59E+00 | U62: =IF(PARÂMETROS!$J$6<PARÂMETROS!$F$6,(F62+2*G62-(C62-D62)/PARÂMETROS!$C$11)/(L62+2*M62+(C62-D62)/PARÂMETROS!$C$14),(L62+2*M62+(C62-D62)/PARÂMETROS!$C$14)/(F62+2*G62-(C62-D62)/PARÂMETROS!$C$11)) -> 1.16E+00 | V62: =IF(PARÂMETROS!$J$6<PARÂMETROS!$F$6,(F62+2*G62-(C62-D62)/PARÂMETROS!$C$11)/(N62+2*O62+3*P62+(C62-D62)/PARÂMETROS!$C$14),(N62+2*O62+3*P62+(C62-D62)/PARÂMETROS!$C$14)/(F62+2*G62-(C62-D62)/PARÂMETROS!$C$11)) -> 7.45E-01 | W62: =IF(PARÂMETROS!$J$6<PARÂMETROS!$F$6,(H62+2*I62+3*J62-(C62-D62)/PARÂMETROS!$C$11)/(K62+(C62-D62)/PARÂMETROS!$C$14),(K62+(C62-D62)/PARÂMETROS!$C$14)/(H62+2*I62+3*J62-(C62-D62)/PARÂMETROS!$C$11)) -> 3.15E+00 | X62: =IF(PARÂMETROS!$J$6<PARÂMETROS!$F$6,(H62+2*I62+3*J62-(C62-D62)/PARÂMETROS!$C$11)/(L62+2*M62+(C62-D62)/PARÂMETROS!$C$14),(L62+2*M62+(C62-D62)/PARÂMETROS!$C$14)/(H62+2*I62+3*J62-(C62-D62)/PARÂMETROS!$C$11)) -> 1.41E+00 | Y62: =IF(PARÂMETROS!$J$6<PARÂMETROS!$F$6,(H62+2*I62+3*J62-(C62-D62)/PARÂMETROS!$C$11)/(N62+2*O62+3*P62+(C62-D62)/PARÂMETROS!$C$14),(N62+2*O62+3*P62+(C62-D62)/PARÂMETROS!$C$14)/(H62+2*I62+3*J62-(C62-D62)/PARÂMETROS!$C$11)) -> 9.06E-01 | Z62: =Q62*PARÂMETROS!$C$11*PARÂMETROS!$D$11/PARÂMETROS!$C$14 -> 27.03 | AA62: =R62*PARÂMETROS!$C$11*PARÂMETROS!$D$11/PARÂMETROS!$C$14 -> 12.08 | AB62: =S62*PARÂMETROS!$C$11*PARÂMETROS!$D$11/PARÂMETROS!$C$14 -> 7.78 | AC62: =T62*PARÂMETROS!$C$11*PARÂMETROS!$D$11/PARÂMETROS!$C$14 -> 51.78 | AD62: =U62*PARÂMETROS!$C$11*PARÂMETROS!$D$11/PARÂMETROS!$C$14 -> 23.14 | AE62: =V62*PARÂMETROS!$C$11*PARÂMETROS!$D$11/PARÂMETROS!$C$14 -> 14.90 | AF62: =W62*PARÂMETROS!$C$11*PARÂMETROS!$D$11/PARÂMETROS!$C$14 -> 62.94 | AG62: =X62*PARÂMETROS!$C$11*PARÂMETROS!$D$11/PARÂMETROS!$C$14 -> 28.13 | AH62: =Y62*PARÂMETROS!$C$11*PARÂMETROS!$D$11/PARÂMETROS!$C$14 -> 18.11 | AI62: =AND(B62+PARÂMETROS!$C$8>=PARÂMETROS!$C$5,B62+PARÂMETROS!$C$8<=PARÂMETROS!$D$5) -> FALSE | AJ62: 0 | AK62: =VLOOKUP('BANCO DE DADOS COMPLETA'!$N$8,'BANCO DE DADOS COMPLETA'!$A$7:$L$249,3)*-1 -> 3 | AL62: 7 | AM62: =VLOOKUP('BANCO DE DADOS COMPLETA'!$N$10,'BANCO DE DADOS COMPLETA'!$A$7:$L$249,3)*-1 -> 1 | AN62: 11 | AO62: 77 | AP62: 62.94 | AQ62: LIMITE | AR62: LIMITE | AS62: LIMITE | AT62: LIMITE
B63: =B62+PARÂMETROS!$C$8 -> 12.46 | C63: 3.43E-13 | D63: =PARÂMETROS!$Q$4/C63 -> 2.91E-02 | E63: =PARÂMETROS!$F$6/($C63+PARÂMETROS!$F$6) -> 1.00E+00 | F63: =$C63*PARÂMETROS!$F$6/($C63^2+$C63*PARÂMETROS!$F$6+PARÂMETROS!$F$6*PARÂMETROS!$G$6) -> 5.43E-06 | G63: =PARÂMETROS!$F$6*PARÂMETROS!$G$6/($C63^2+$C63*PARÂMETROS!$F$6+PARÂMETROS!$F$6*PARÂMETROS!$G$6) -> 1.00E+00 | H63: =(PARÂMETROS!$F$6*$C63^2)/($C63^3+PARÂMETROS!$F$6*$C63^2+PARÂMETROS!$F$6*PARÂMETROS!$G$6*$C63+PARÂMETROS!$F$6*PARÂMETROS!$G$6*PARÂMETROS!$H$6) -> 2.36E-06 | I63: =(PARÂMETROS!$F$6*PARÂMETROS!$G$6*$C63)/($C63^3+PARÂMETROS!$F$6*$C63^2+PARÂMETROS!$F$6*PARÂMETROS!$G$6*$C63+PARÂMETROS!$F$6*PARÂMETROS!$G$6*PARÂMETROS!$H$6) -> 4.35E-01 | J63: =(PARÂMETROS!$F$6*PARÂMETROS!$G$6*PARÂMETROS!$H$6)/($C63^3+PARÂMETROS!$F$6*$C63^2+PARÂMETROS!$F$6*PARÂMETROS!$G$6*$C63+PARÂMETROS!$F$6*PARÂMETROS!$G$6*PARÂMETROS!$H$6) -> 5.65E-01 | K63: =$C63/($C63+PARÂMETROS!$J$6) -> 7.74E-01 | L63: =$C63*PARÂMETROS!$J$6/($C63^2+$C63*PARÂMETROS!$J$6+PARÂMETROS!$J$6*PARÂMETROS!$K$6) -> 2.26E-01 | M63: =$C63^2/($C63^2+$C63*PARÂMETROS!$J$6+PARÂMETROS!$J$6*PARÂMETROS!$K$6) -> 7.74E-01 | N63: =(PARÂMETROS!$K$6*PARÂMETROS!$J$6*$C63)/($C63^3+PARÂMETROS!$J$6*$C63^2+PARÂMETROS!$J$6*PARÂMETROS!$K$6*$C63+PARÂMETROS!$J$6*PARÂMETROS!$K$6*PARÂMETROS!$L$6) -> 0.00E+00 | O63: =(PARÂMETROS!$J$6*$C63^2)/($C63^3+PARÂMETROS!$J$6*$C63^2+PARÂMETROS!$J$6*PARÂMETROS!$K$6*$C63+PARÂMETROS!$J$6*PARÂMETROS!$K$6*PARÂMETROS!$L$6) -> 2.26E-01 | P63: =($C63^3)/($C63^3+PARÂMETROS!$J$6*$C63^2+PARÂMETROS!$J$6*PARÂMETROS!$K$6*$C63+PARÂMETROS!$J$6*PARÂMETROS!$K$6*PARÂMETROS!$L$6) -> 7.74E-01 | Q63: =IF(PARÂMETROS!$J$6<PARÂMETROS!$F$6,(E63-(C63-D63)/PARÂMETROS!$C$11)/(K63+(C63-D63)/PARÂMETROS!$C$14),(K63+(C63-D63)/PARÂMETROS!$C$14)/(E63-(C63-D63)/PARÂMETROS!$C$11)) -> 1.60E+00 | R63: =IF(PARÂMETROS!$J$6<PARÂMETROS!$F$6,(E63-(C63-D63)/PARÂMETROS!$C$11)/(L63+2*M63+(C63-D63)/PARÂMETROS!$C$14),(L63+2*M63+(C63-D63)/PARÂMETROS!$C$14)/(E63-(C63-D63)/PARÂMETROS!$C$11)) -> 6.68E-01 | S63: =IF(PARÂMETROS!$J$6<PARÂMETROS!$F$6, (E63-(C63-D63)/PARÂMETROS!$C$11)/(N63+2*O63+3*P63+(C63-D63)/PARÂMETROS!$C$14),(N63+2*O63+3*P63+(C63-D63)/PARÂMETROS!$C$14)/ (E63-(C63-D63)/PARÂMETROS!$C$11)) -> 4.22E-01 | T63: =IF(PARÂMETROS!$J$6<PARÂMETROS!$F$6,(F63+2*G63-(C63-D63)/PARÂMETROS!$C$11)/(K63+(C63-D63)/PARÂMETROS!$C$14),(K63+(C63-D63)/PARÂMETROS!$C$14)/(F63+2*G63-(C63-D63)/PARÂMETROS!$C$11)) -> 3.00E+00 | U63: =IF(PARÂMETROS!$J$6<PARÂMETROS!$F$6,(F63+2*G63-(C63-D63)/PARÂMETROS!$C$11)/(L63+2*M63+(C63-D63)/PARÂMETROS!$C$14),(L63+2*M63+(C63-D63)/PARÂMETROS!$C$14)/(F63+2*G63-(C63-D63)/PARÂMETROS!$C$11)) -> 1.25E+00 | V63: =IF(PARÂMETROS!$J$6<PARÂMETROS!$F$6,(F63+2*G63-(C63-D63)/PARÂMETROS!$C$11)/(N63+2*O63+3*P63+(C63-D63)/PARÂMETROS!$C$14),(N63+2*O63+3*P63+(C63-D63)/PARÂMETROS!$C$14)/(F63+2*G63-(C63-D63)/PARÂMETROS!$C$11)) -> 7.90E-01 | W63: =IF(PARÂMETROS!$J$6<PARÂMETROS!$F$6,(H63+2*I63+3*J63-(C63-D63)/PARÂMETROS!$C$11)/(K63+(C63-D63)/PARÂMETROS!$C$14),(K63+(C63-D63)/PARÂMETROS!$C$14)/(H63+2*I63+3*J63-(C63-D63)/PARÂMETROS!$C$11)) -> 3.79E+00 | X63: =IF(PARÂMETROS!$J$6<PARÂMETROS!$F$6,(H63+2*I63+3*J63-(C63-D63)/PARÂMETROS!$C$11)/(L63+2*M63+(C63-D63)/PARÂMETROS!$C$14),(L63+2*M63+(C63-D63)/PARÂMETROS!$C$14)/(H63+2*I63+3*J63-(C63-D63)/PARÂMETROS!$C$11)) -> 1.58E+00 | Y63: =IF(PARÂMETROS!$J$6<PARÂMETROS!$F$6,(H63+2*I63+3*J63-(C63-D63)/PARÂMETROS!$C$11)/(N63+2*O63+3*P63+(C63-D63)/PARÂMETROS!$C$14),(N63+2*O63+3*P63+(C63-D63)/PARÂMETROS!$C$14)/(H63+2*I63+3*J63-(C63-D63)/PARÂMETROS!$C$11)) -> 9.98E-01 | Z63: =Q63*PARÂMETROS!$C$11*PARÂMETROS!$D$11/PARÂMETROS!$C$14 -> 31.99 | AA63: =R63*PARÂMETROS!$C$11*PARÂMETROS!$D$11/PARÂMETROS!$C$14 -> 13.35 | AB63: =S63*PARÂMETROS!$C$11*PARÂMETROS!$D$11/PARÂMETROS!$C$14 -> 8.44 | AC63: =T63*PARÂMETROS!$C$11*PARÂMETROS!$D$11/PARÂMETROS!$C$14 -> 59.92 | AD63: =U63*PARÂMETROS!$C$11*PARÂMETROS!$D$11/PARÂMETROS!$C$14 -> 25.01 | AE63: =V63*PARÂMETROS!$C$11*PARÂMETROS!$D$11/PARÂMETROS!$C$14 -> 15.80 | AF63: =W63*PARÂMETROS!$C$11*PARÂMETROS!$D$11/PARÂMETROS!$C$14 -> 75.71 | AG63: =X63*PARÂMETROS!$C$11*PARÂMETROS!$D$11/PARÂMETROS!$C$14 -> 31.60 | AH63: =Y63*PARÂMETROS!$C$11*PARÂMETROS!$D$11/PARÂMETROS!$C$14 -> 19.96 | AI63: =AND(B63+PARÂMETROS!$C$8>=PARÂMETROS!$C$5,B63+PARÂMETROS!$C$8<=PARÂMETROS!$D$5) -> FALSE | AJ63: 0 | AK63: =VLOOKUP('BANCO DE DADOS COMPLETA'!$N$8,'BANCO DE DADOS COMPLETA'!$A$7:$L$249,3)*-1 -> 3 | AL63: 7 | AM63: =VLOOKUP('BANCO DE DADOS COMPLETA'!$N$10,'BANCO DE DADOS COMPLETA'!$A$7:$L$249,3)*-1 -> 1 | AN63: 11 | AO63: 77 | AP63: 75.71 | AQ63: LIMITE | AR63: LIMITE | AS63: LIMITE | AT63: LIMITE | AU63: NADA
B64: =B63+PARÂMETROS!$C$8 -> 12.66 | C64: 2.17E-13 | D64: =PARÂMETROS!$Q$4/C64 -> 4.62E-02 | E64: =PARÂMETROS!$F$6/($C64+PARÂMETROS!$F$6) -> 1.00E+00 | F64: =$C64*PARÂMETROS!$F$6/($C64^2+$C64*PARÂMETROS!$F$6+PARÂMETROS!$F$6*PARÂMETROS!$G$6) -> 3.42E-06 | G64: =PARÂMETROS!$F$6*PARÂMETROS!$G$6/($C64^2+$C64*PARÂMETROS!$F$6+PARÂMETROS!$F$6*PARÂMETROS!$G$6) -> 1.00E+00 | H64: =(PARÂMETROS!$F$6*$C64^2)/($C64^3+PARÂMETROS!$F$6*$C64^2+PARÂMETROS!$F$6*PARÂMETROS!$G$6*$C64+PARÂMETROS!$F$6*PARÂMETROS!$G$6*PARÂMETROS!$H$6) -> 1.12E-06 | I64: =(PARÂMETROS!$F$6*PARÂMETROS!$G$6*$C64)/($C64^3+PARÂMETROS!$F$6*$C64^2+PARÂMETROS!$F$6*PARÂMETROS!$G$6*$C64+PARÂMETROS!$F$6*PARÂMETROS!$G$6*PARÂMETROS!$H$6) -> 3.27E-01 | J64: =(PARÂMETROS!$F$6*PARÂMETROS!$G$6*PARÂMETROS!$H$6)/($C64^3+PARÂMETROS!$F$6*$C64^2+PARÂMETROS!$F$6*PARÂMETROS!$G$6*$C64+PARÂMETROS!$F$6*PARÂMETROS!$G$6*PARÂMETROS!$H$6) -> 6.73E-01 | K64: =$C64/($C64+PARÂMETROS!$J$6) -> 6.84E-01 | L64: =$C64*PARÂMETROS!$J$6/($C64^2+$C64*PARÂMETROS!$J$6+PARÂMETROS!$J$6*PARÂMETROS!$K$6) -> 3.16E-01 | M64: =$C64^2/($C64^2+$C64*PARÂMETROS!$J$6+PARÂMETROS!$J$6*PARÂMETROS!$K$6) -> 6.84E-01 | N64: =(PARÂMETROS!$K$6*PARÂMETROS!$J$6*$C64)/($C64^3+PARÂMETROS!$J$6*$C64^2+PARÂMETROS!$J$6*PARÂMETROS!$K$6*$C64+PARÂMETROS!$J$6*PARÂMETROS!$K$6*PARÂMETROS!$L$6) -> 0.00E+00 | O64: =(PARÂMETROS!$J$6*$C64^2)/($C64^3+PARÂMETROS!$J$6*$C64^2+PARÂMETROS!$J$6*PARÂMETROS!$K$6*$C64+PARÂMETROS!$J$6*PARÂMETROS!$K$6*PARÂMETROS!$L$6) -> 3.16E-01 | P64: =($C64^3)/($C64^3+PARÂMETROS!$J$6*$C64^2+PARÂMETROS!$J$6*PARÂMETROS!$K$6*$C64+PARÂMETROS!$J$6*PARÂMETROS!$K$6*PARÂMETROS!$L$6) -> 6.84E-01 | Q64: =IF(PARÂMETROS!$J$6<PARÂMETROS!$F$6,(E64-(C64-D64)/PARÂMETROS!$C$11)/(K64+(C64-D64)/PARÂMETROS!$C$14),(K64+(C64-D64)/PARÂMETROS!$C$14)/(E64-(C64-D64)/PARÂMETROS!$C$11)) -> 2.08E+00 | R64: =IF(PARÂMETROS!$J$6<PARÂMETROS!$F$6,(E64-(C64-D64)/PARÂMETROS!$C$11)/(L64+2*M64+(C64-D64)/PARÂMETROS!$C$14),(L64+2*M64+(C64-D64)/PARÂMETROS!$C$14)/(E64-(C64-D64)/PARÂMETROS!$C$11)) -> 7.73E-01 | S64: =IF(PARÂMETROS!$J$6<PARÂMETROS!$F$6, (E64-(C64-D64)/PARÂMETROS!$C$11)/(N64+2*O64+3*P64+(C64-D64)/PARÂMETROS!$C$14),(N64+2*O64+3*P64+(C64-D64)/PARÂMETROS!$C$14)/ (E64-(C64-D64)/PARÂMETROS!$C$11)) -> 4.75E-01 | T64: =IF(PARÂMETROS!$J$6<PARÂMETROS!$F$6,(F64+2*G64-(C64-D64)/PARÂMETROS!$C$11)/(K64+(C64-D64)/PARÂMETROS!$C$14),(K64+(C64-D64)/PARÂMETROS!$C$14)/(F64+2*G64-(C64-D64)/PARÂMETROS!$C$11)) -> 3.77E+00 | U64: =IF(PARÂMETROS!$J$6<PARÂMETROS!$F$6,(F64+2*G64-(C64-D64)/PARÂMETROS!$C$11)/(L64+2*M64+(C64-D64)/PARÂMETROS!$C$14),(L64+2*M64+(C64-D64)/PARÂMETROS!$C$14)/(F64+2*G64-(C64-D64)/PARÂMETROS!$C$11)) -> 1.40E+00 | V64: =IF(PARÂMETROS!$J$6<PARÂMETROS!$F$6,(F64+2*G64-(C64-D64)/PARÂMETROS!$C$11)/(N64+2*O64+3*P64+(C64-D64)/PARÂMETROS!$C$14),(N64+2*O64+3*P64+(C64-D64)/PARÂMETROS!$C$14)/(F64+2*G64-(C64-D64)/PARÂMETROS!$C$11)) -> 8.61E-01 | W64: =IF(PARÂMETROS!$J$6<PARÂMETROS!$F$6,(H64+2*I64+3*J64-(C64-D64)/PARÂMETROS!$C$11)/(K64+(C64-D64)/PARÂMETROS!$C$14),(K64+(C64-D64)/PARÂMETROS!$C$14)/(H64+2*I64+3*J64-(C64-D64)/PARÂMETROS!$C$11)) -> 4.91E+00 | X64: =IF(PARÂMETROS!$J$6<PARÂMETROS!$F$6,(H64+2*I64+3*J64-(C64-D64)/PARÂMETROS!$C$11)/(L64+2*M64+(C64-D64)/PARÂMETROS!$C$14),(L64+2*M64+(C64-D64)/PARÂMETROS!$C$14)/(H64+2*I64+3*J64-(C64-D64)/PARÂMETROS!$C$11)) -> 1.82E+00 | Y64: =IF(PARÂMETROS!$J$6<PARÂMETROS!$F$6,(H64+2*I64+3*J64-(C64-D64)/PARÂMETROS!$C$11)/(N64+2*O64+3*P64+(C64-D64)/PARÂMETROS!$C$14),(N64+2*O64+3*P64+(C64-D64)/PARÂMETROS!$C$14)/(H64+2*I64+3*J64-(C64-D64)/PARÂMETROS!$C$11)) -> 1.12E+00 | Z64: =Q64*PARÂMETROS!$C$11*PARÂMETROS!$D$11/PARÂMETROS!$C$14 -> 41.60 | AA64: =R64*PARÂMETROS!$C$11*PARÂMETROS!$D$11/PARÂMETROS!$C$14 -> 15.46 | AB64: =S64*PARÂMETROS!$C$11*PARÂMETROS!$D$11/PARÂMETROS!$C$14 -> 9.50 | AC64: =T64*PARÂMETROS!$C$11*PARÂMETROS!$D$11/PARÂMETROS!$C$14 -> 75.39 | AD64: =U64*PARÂMETROS!$C$11*PARÂMETROS!$D$11/PARÂMETROS!$C$14 -> 28.03 | AE64: =V64*PARÂMETROS!$C$11*PARÂMETROS!$D$11/PARÂMETROS!$C$14 -> 17.21 | AF64: =W64*PARÂMETROS!$C$11*PARÂMETROS!$D$11/PARÂMETROS!$C$14 -> 98.15 | AG64: =X64*PARÂMETROS!$C$11*PARÂMETROS!$D$11/PARÂMETROS!$C$14 -> 36.49 | AH64: =Y64*PARÂMETROS!$C$11*PARÂMETROS!$D$11/PARÂMETROS!$C$14 -> 22.41 | AI64: =AND(B64+PARÂMETROS!$C$8>=PARÂMETROS!$C$5,B64+PARÂMETROS!$C$8<=PARÂMETROS!$D$5) -> FALSE | AJ64: 0 | AK64: =VLOOKUP('BANCO DE DADOS COMPLETA'!$N$8,'BANCO DE DADOS COMPLETA'!$A$7:$L$249,3)*-1 -> 3 | AL64: 7 | AM64: =VLOOKUP('BANCO DE DADOS COMPLETA'!$N$10,'BANCO DE DADOS COMPLETA'!$A$7:$L$249,3)*-1 -> 1 | AN64: 11 | AO64: 77 | AP64: 98.15 | AQ64: LIMITE | AR64: LIMITE | AS64: LIMITE | AT64: LIMITE | AU64: NADA | AV64: NADA | AW64: 0
B65: =B64+PARÂMETROS!$C$8 -> 12.86 | C65: 1.37E-13 | D65: =PARÂMETROS!$Q$4/C65 -> 7.32E-02 | E65: =PARÂMETROS!$F$6/($C65+PARÂMETROS!$F$6) -> 1.00E+00 | F65: =$C65*PARÂMETROS!$F$6/($C65^2+$C65*PARÂMETROS!$F$6+PARÂMETROS!$F$6*PARÂMETROS!$G$6) -> 2.16E-06 | G65: =PARÂMETROS!$F$6*PARÂMETROS!$G$6/($C65^2+$C65*PARÂMETROS!$F$6+PARÂMETROS!$F$6*PARÂMETROS!$G$6) -> 1.00E+00 | H65: =(PARÂMETROS!$F$6*$C65^2)/($C65^3+PARÂMETROS!$F$6*$C65^2+PARÂMETROS!$F$6*PARÂMETROS!$G$6*$C65+PARÂMETROS!$F$6*PARÂMETROS!$G$6*PARÂMETROS!$H$6) -> 5.06E-07 | I65: =(PARÂMETROS!$F$6*PARÂMETROS!$G$6*$C65)/($C65^3+PARÂMETROS!$F$6*$C65^2+PARÂMETROS!$F$6*PARÂMETROS!$G$6*$C65+PARÂMETROS!$F$6*PARÂMETROS!$G$6*PARÂMETROS!$H$6) -> 2.34E-01 | J65: =(PARÂMETROS!$F$6*PARÂMETROS!$G$6*PARÂMETROS!$H$6)/($C65^3+PARÂMETROS!$F$6*$C65^2+PARÂMETROS!$F$6*PARÂMETROS!$G$6*$C65+PARÂMETROS!$F$6*PARÂMETROS!$G$6*PARÂMETROS!$H$6) -> 7.66E-01 | K65: =$C65/($C65+PARÂMETROS!$J$6) -> 5.77E-01 | L65: =$C65*PARÂMETROS!$J$6/($C65^2+$C65*PARÂMETROS!$J$6+PARÂMETROS!$J$6*PARÂMETROS!$K$6) -> 4.23E-01 | M65: =$C65^2/($C65^2+$C65*PARÂMETROS!$J$6+PARÂMETROS!$J$6*PARÂMETROS!$K$6) -> 5.77E-01 | N65: =(PARÂMETROS!$K$6*PARÂMETROS!$J$6*$C65)/($C65^3+PARÂMETROS!$J$6*$C65^2+PARÂMETROS!$J$6*PARÂMETROS!$K$6*$C65+PARÂMETROS!$J$6*PARÂMETROS!$K$6*PARÂMETROS!$L$6) -> 0.00E+00 | O65: =(PARÂMETROS!$J$6*$C65^2)/($C65^3+PARÂMETROS!$J$6*$C65^2+PARÂMETROS!$J$6*PARÂMETROS!$K$6*$C65+PARÂMETROS!$J$6*PARÂMETROS!$K$6*PARÂMETROS!$L$6) -> 4.23E-01 | P65: =($C65^3)/($C65^3+PARÂMETROS!$J$6*$C65^2+PARÂMETROS!$J$6*PARÂMETROS!$K$6*$C65+PARÂMETROS!$J$6*PARÂMETROS!$K$6*PARÂMETROS!$L$6) -> 5.77E-01 | Q65: =IF(PARÂMETROS!$J$6<PARÂMETROS!$F$6,(E65-(C65-D65)/PARÂMETROS!$C$11)/(K65+(C65-D65)/PARÂMETROS!$C$14),(K65+(C65-D65)/PARÂMETROS!$C$14)/(E65-(C65-D65)/PARÂMETROS!$C$11)) -> 3.17E+00 | R65: =IF(PARÂMETROS!$J$6<PARÂMETROS!$F$6,(E65-(C65-D65)/PARÂMETROS!$C$11)/(L65+2*M65+(C65-D65)/PARÂMETROS!$C$14),(L65+2*M65+(C65-D65)/PARÂMETROS!$C$14)/(E65-(C65-D65)/PARÂMETROS!$C$11)) -> 9.54E-01 | S65: =IF(PARÂMETROS!$J$6<PARÂMETROS!$F$6, (E65-(C65-D65)/PARÂMETROS!$C$11)/(N65+2*O65+3*P65+(C65-D65)/PARÂMETROS!$C$14),(N65+2*O65+3*P65+(C65-D65)/PARÂMETROS!$C$14)/ (E65-(C65-D65)/PARÂMETROS!$C$11)) -> 5.62E-01 | T65: =IF(PARÂMETROS!$J$6<PARÂMETROS!$F$6,(F65+2*G65-(C65-D65)/PARÂMETROS!$C$11)/(K65+(C65-D65)/PARÂMETROS!$C$14),(K65+(C65-D65)/PARÂMETROS!$C$14)/(F65+2*G65-(C65-D65)/PARÂMETROS!$C$11)) -> 5.49E+00 | U65: =IF(PARÂMETROS!$J$6<PARÂMETROS!$F$6,(F65+2*G65-(C65-D65)/PARÂMETROS!$C$11)/(L65+2*M65+(C65-D65)/PARÂMETROS!$C$14),(L65+2*M65+(C65-D65)/PARÂMETROS!$C$14)/(F65+2*G65-(C65-D65)/PARÂMETROS!$C$11)) -> 1.65E+00 | V65: =IF(PARÂMETROS!$J$6<PARÂMETROS!$F$6,(F65+2*G65-(C65-D65)/PARÂMETROS!$C$11)/(N65+2*O65+3*P65+(C65-D65)/PARÂMETROS!$C$14),(N65+2*O65+3*P65+(C65-D65)/PARÂMETROS!$C$14)/(F65+2*G65-(C65-D65)/PARÂMETROS!$C$11)) -> 9.73E-01 | W65: =IF(PARÂMETROS!$J$6<PARÂMETROS!$F$6,(H65+2*I65+3*J65-(C65-D65)/PARÂMETROS!$C$11)/(K65+(C65-D65)/PARÂMETROS!$C$14),(K65+(C65-D65)/PARÂMETROS!$C$14)/(H65+2*I65+3*J65-(C65-D65)/PARÂMETROS!$C$11)) -> 7.26E+00 | X65: =IF(PARÂMETROS!$J$6<PARÂMETROS!$F$6,(H65+2*I65+3*J65-(C65-D65)/PARÂMETROS!$C$11)/(L65+2*M65+(C65-D65)/PARÂMETROS!$C$14),(L65+2*M65+(C65-D65)/PARÂMETROS!$C$14)/(H65+2*I65+3*J65-(C65-D65)/PARÂMETROS!$C$11)) -> 2.19E+00 | Y65: =IF(PARÂMETROS!$J$6<PARÂMETROS!$F$6,(H65+2*I65+3*J65-(C65-D65)/PARÂMETROS!$C$11)/(N65+2*O65+3*P65+(C65-D65)/PARÂMETROS!$C$14),(N65+2*O65+3*P65+(C65-D65)/PARÂMETROS!$C$14)/(H65+2*I65+3*J65-(C65-D65)/PARÂMETROS!$C$11)) -> 1.29E+00 | Z65: =Q65*PARÂMETROS!$C$11*PARÂMETROS!$D$11/PARÂMETROS!$C$14 -> 63.36 | AA65: =R65*PARÂMETROS!$C$11*PARÂMETROS!$D$11/PARÂMETROS!$C$14 -> 19.09 | AB65: =S65*PARÂMETROS!$C$11*PARÂMETROS!$D$11/PARÂMETROS!$C$14 -> 11.24 | AC65: =T65*PARÂMETROS!$C$11*PARÂMETROS!$D$11/PARÂMETROS!$C$14 -> 109.75 | AD65: =U65*PARÂMETROS!$C$11*PARÂMETROS!$D$11/PARÂMETROS!$C$14 -> 33.06 | AE65: =V65*PARÂMETROS!$C$11*PARÂMETROS!$D$11/PARÂMETROS!$C$14 -> 19.46 | AF65: =W65*PARÂMETROS!$C$11*PARÂMETROS!$D$11/PARÂMETROS!$C$14 -> 145.28 | AG65: =X65*PARÂMETROS!$C$11*PARÂMETROS!$D$11/PARÂMETROS!$C$14 -> 43.76 | AH65: =Y65*PARÂMETROS!$C$11*PARÂMETROS!$D$11/PARÂMETROS!$C$14 -> 25.76 | AI65: =AND(B65+PARÂMETROS!$C$8>=PARÂMETROS!$C$5,B65+PARÂMETROS!$C$8<=PARÂMETROS!$D$5) -> FALSE | AJ65: 0 | AK65: =VLOOKUP('BANCO DE DADOS COMPLETA'!$N$8,'BANCO DE DADOS COMPLETA'!$A$7:$L$249,3)*-1 -> 3 | AL65: 7 | AM65: =VLOOKUP('BANCO DE DADOS COMPLETA'!$N$10,'BANCO DE DADOS COMPLETA'!$A$7:$L$249,3)*-1 -> 1 | AN65: 11 | AO65: 77 | AP65: 145.28 | AQ65: LIMITE | AR65: LIMITE | AS65: LIMITE | AT65: LIMITE | AU65: NADA | AV65: NADA | AW65: 0
B66: =B65+PARÂMETROS!$C$8 -> 13.06 | C66: 8.62E-14 | D66: =PARÂMETROS!$Q$4/C66 -> 1.16E-01 | E66: =PARÂMETROS!$F$6/($C66+PARÂMETROS!$F$6) -> 1.00E+00 | F66: =$C66*PARÂMETROS!$F$6/($C66^2+$C66*PARÂMETROS!$F$6+PARÂMETROS!$F$6*PARÂMETROS!$G$6) -> 1.36E-06 | G66: =PARÂMETROS!$F$6*PARÂMETROS!$G$6/($C66^2+$C66*PARÂMETROS!$F$6+PARÂMETROS!$F$6*PARÂMETROS!$G$6) -> 1.00E+00 | H66: =(PARÂMETROS!$F$6*$C66^2)/($C66^3+PARÂMETROS!$F$6*$C66^2+PARÂMETROS!$F$6*PARÂMETROS!$G$6*$C66+PARÂMETROS!$F$6*PARÂMETROS!$G$6*PARÂMETROS!$H$6) -> 2.21E-07 | I66: =(PARÂMETROS!$F$6*PARÂMETROS!$G$6*$C66)/($C66^3+PARÂMETROS!$F$6*$C66^2+PARÂMETROS!$F$6*PARÂMETROS!$G$6*$C66+PARÂMETROS!$F$6*PARÂMETROS!$G$6*PARÂMETROS!$H$6) -> 1.62E-01 | J66: =(PARÂMETROS!$F$6*PARÂMETROS!$G$6*PARÂMETROS!$H$6)/($C66^3+PARÂMETROS!$F$6*$C66^2+PARÂMETROS!$F$6*PARÂMETROS!$G$6*$C66+PARÂMETROS!$F$6*PARÂMETROS!$G$6*PARÂMETROS!$H$6) -> 8.38E-01 | K66: =$C66/($C66+PARÂMETROS!$J$6) -> 4.63E-01 | L66: =$C66*PARÂMETROS!$J$6/($C66^2+$C66*PARÂMETROS!$J$6+PARÂMETROS!$J$6*PARÂMETROS!$K$6) -> 5.37E-01 | M66: =$C66^2/($C66^2+$C66*PARÂMETROS!$J$6+PARÂMETROS!$J$6*PARÂMETROS!$K$6) -> 4.63E-01 | N66: =(PARÂMETROS!$K$6*PARÂMETROS!$J$6*$C66)/($C66^3+PARÂMETROS!$J$6*$C66^2+PARÂMETROS!$J$6*PARÂMETROS!$K$6*$C66+PARÂMETROS!$J$6*PARÂMETROS!$K$6*PARÂMETROS!$L$6) -> 0.00E+00 | O66: =(PARÂMETROS!$J$6*$C66^2)/($C66^3+PARÂMETROS!$J$6*$C66^2+PARÂMETROS!$J$6*PARÂMETROS!$K$6*$C66+PARÂMETROS!$J$6*PARÂMETROS!$K$6*PARÂMETROS!$L$6) -> 5.37E-01 | P66: =($C66^3)/($C66^3+PARÂMETROS!$J$6*$C66^2+PARÂMETROS!$J$6*PARÂMETROS!$K$6*$C66+PARÂMETROS!$J$6*PARÂMETROS!$K$6*PARÂMETROS!$L$6) -> 4.63E-01 | Q66: =IF(PARÂMETROS!$J$6<PARÂMETROS!$F$6,(E66-(C66-D66)/PARÂMETROS!$C$11)/(K66+(C66-D66)/PARÂMETROS!$C$14),(K66+(C66-D66)/PARÂMETROS!$C$14)/(E66-(C66-D66)/PARÂMETROS!$C$11)) -> 6.84E+00 | R66: =IF(PARÂMETROS!$J$6<PARÂMETROS!$F$6,(E66-(C66-D66)/PARÂMETROS!$C$11)/(L66+2*M66+(C66-D66)/PARÂMETROS!$C$14),(L66+2*M66+(C66-D66)/PARÂMETROS!$C$14)/(E66-(C66-D66)/PARÂMETROS!$C$11)) -> 1.28E+00 | S66: =IF(PARÂMETROS!$J$6<PARÂMETROS!$F$6, (E66-(C66-D66)/PARÂMETROS!$C$11)/(N66+2*O66+3*P66+(C66-D66)/PARÂMETROS!$C$14),(N66+2*O66+3*P66+(C66-D66)/PARÂMETROS!$C$14)/ (E66-(C66-D66)/PARÂMETROS!$C$11)) -> 7.08E-01 | T66: =IF(PARÂMETROS!$J$6<PARÂMETROS!$F$6,(F66+2*G66-(C66-D66)/PARÂMETROS!$C$11)/(K66+(C66-D66)/PARÂMETROS!$C$14),(K66+(C66-D66)/PARÂMETROS!$C$14)/(F66+2*G66-(C66-D66)/PARÂMETROS!$C$11)) -> 1.12E+01 | U66: =IF(PARÂMETROS!$J$6<PARÂMETROS!$F$6,(F66+2*G66-(C66-D66)/PARÂMETROS!$C$11)/(L66+2*M66+(C66-D66)/PARÂMETROS!$C$14),(L66+2*M66+(C66-D66)/PARÂMETROS!$C$14)/(F66+2*G66-(C66-D66)/PARÂMETROS!$C$11)) -> 2.10E+00 | V66: =IF(PARÂMETROS!$J$6<PARÂMETROS!$F$6,(F66+2*G66-(C66-D66)/PARÂMETROS!$C$11)/(N66+2*O66+3*P66+(C66-D66)/PARÂMETROS!$C$14),(N66+2*O66+3*P66+(C66-D66)/PARÂMETROS!$C$14)/(F66+2*G66-(C66-D66)/PARÂMETROS!$C$11)) -> 1.16E+00 | W66: =IF(PARÂMETROS!$J$6<PARÂMETROS!$F$6,(H66+2*I66+3*J66-(C66-D66)/PARÂMETROS!$C$11)/(K66+(C66-D66)/PARÂMETROS!$C$14),(K66+(C66-D66)/PARÂMETROS!$C$14)/(H66+2*I66+3*J66-(C66-D66)/PARÂMETROS!$C$11)) -> 1.48E+01 | X66: =IF(PARÂMETROS!$J$6<PARÂMETROS!$F$6,(H66+2*I66+3*J66-(C66-D66)/PARÂMETROS!$C$11)/(L66+2*M66+(C66-D66)/PARÂMETROS!$C$14),(L66+2*M66+(C66-D66)/PARÂMETROS!$C$14)/(H66+2*I66+3*J66-(C66-D66)/PARÂMETROS!$C$11)) -> 2.78E+00 | Y66: =IF(PARÂMETROS!$J$6<PARÂMETROS!$F$6,(H66+2*I66+3*J66-(C66-D66)/PARÂMETROS!$C$11)/(N66+2*O66+3*P66+(C66-D66)/PARÂMETROS!$C$14),(N66+2*O66+3*P66+(C66-D66)/PARÂMETROS!$C$14)/(H66+2*I66+3*J66-(C66-D66)/PARÂMETROS!$C$11)) -> 1.53E+00 | Z66: =Q66*PARÂMETROS!$C$11*PARÂMETROS!$D$11/PARÂMETROS!$C$14 -> 136.73 | AA66: =R66*PARÂMETROS!$C$11*PARÂMETROS!$D$11/PARÂMETROS!$C$14 -> 25.67 | AB66: =S66*PARÂMETROS!$C$11*PARÂMETROS!$D$11/PARÂMETROS!$C$14 -> 14.16 | AC66: =T66*PARÂMETROS!$C$11*PARÂMETROS!$D$11/PARÂMETROS!$C$14 -> 223.28 | AD66: =U66*PARÂMETROS!$C$11*PARÂMETROS!$D$11/PARÂMETROS!$C$14 -> 41.91 | AE66: =V66*PARÂMETROS!$C$11*PARÂMETROS!$D$11/PARÂMETROS!$C$14 -> 23.13 | AF66: =W66*PARÂMETROS!$C$11*PARÂMETROS!$D$11/PARÂMETROS!$C$14 -> 295.82 | AG66: =X66*PARÂMETROS!$C$11*PARÂMETROS!$D$11/PARÂMETROS!$C$14 -> 55.53 | AH66: =Y66*PARÂMETROS!$C$11*PARÂMETROS!$D$11/PARÂMETROS!$C$14 -> 30.64 | AI66: =AND(B66+PARÂMETROS!$C$8>=PARÂMETROS!$C$5,B66+PARÂMETROS!$C$8<=PARÂMETROS!$D$5) -> FALSE | AJ66: 0 | AK66: =VLOOKUP('BANCO DE DADOS COMPLETA'!$N$8,'BANCO DE DADOS COMPLETA'!$A$7:$L$249,3)*-1 -> 3 | AL66: 7 | AM66: =VLOOKUP('BANCO DE DADOS COMPLETA'!$N$10,'BANCO DE DADOS COMPLETA'!$A$7:$L$249,3)*-1 -> 1 | AN66: 11 | AO66: 77 | AP66: 295.82 | AQ66: LIMITE | AR66: LIMITE | AS66: LIMITE | AT66: LIMITE | AU66: NADA | AV66: NADA | AW66: 0
B67: =B66+PARÂMETROS!$C$8 -> 13.26 | C67: 5.44E-14 | D67: =PARÂMETROS!$Q$4/C67 -> 1.84E-01 | E67: =PARÂMETROS!$F$6/($C67+PARÂMETROS!$F$6) -> 1.00E+00 | F67: =$C67*PARÂMETROS!$F$6/($C67^2+$C67*PARÂMETROS!$F$6+PARÂMETROS!$F$6*PARÂMETROS!$G$6) -> 8.60E-07 | G67: =PARÂMETROS!$F$6*PARÂMETROS!$G$6/($C67^2+$C67*PARÂMETROS!$F$6+PARÂMETROS!$F$6*PARÂMETROS!$G$6) -> 1.00E+00 | H67: =(PARÂMETROS!$F$6*$C67^2)/($C67^3+PARÂMETROS!$F$6*$C67^2+PARÂMETROS!$F$6*PARÂMETROS!$G$6*$C67+PARÂMETROS!$F$6*PARÂMETROS!$G$6*PARÂMETROS!$H$6) -> 9.34E-08 | I67: =(PARÂMETROS!$F$6*PARÂMETROS!$G$6*$C67)/($C67^3+PARÂMETROS!$F$6*$C67^2+PARÂMETROS!$F$6*PARÂMETROS!$G$6*$C67+PARÂMETROS!$F$6*PARÂMETROS!$G$6*PARÂMETROS!$H$6) -> 1.09E-01 | J67: =(PARÂMETROS!$F$6*PARÂMETROS!$G$6*PARÂMETROS!$H$6)/($C67^3+PARÂMETROS!$F$6*$C67^2+PARÂMETROS!$F$6*PARÂMETROS!$G$6*$C67+PARÂMETROS!$F$6*PARÂMETROS!$G$6*PARÂMETROS!$H$6) -> 8.91E-01 | K67: =$C67/($C67+PARÂMETROS!$J$6) -> 3.52E-01 | L67: =$C67*PARÂMETROS!$J$6/($C67^2+$C67*PARÂMETROS!$J$6+PARÂMETROS!$J$6*PARÂMETROS!$K$6) -> 6.48E-01 | M67: =$C67^2/($C67^2+$C67*PARÂMETROS!$J$6+PARÂMETROS!$J$6*PARÂMETROS!$K$6) -> 3.52E-01 | N67: =(PARÂMETROS!$K$6*PARÂMETROS!$J$6*$C67)/($C67^3+PARÂMETROS!$J$6*$C67^2+PARÂMETROS!$J$6*PARÂMETROS!$K$6*$C67+PARÂMETROS!$J$6*PARÂMETROS!$K$6*PARÂMETROS!$L$6) -> 0.00E+00 | O67: =(PARÂMETROS!$J$6*$C67^2)/($C67^3+PARÂMETROS!$J$6*$C67^2+PARÂMETROS!$J$6*PARÂMETROS!$K$6*$C67+PARÂMETROS!$J$6*PARÂMETROS!$K$6*PARÂMETROS!$L$6) -> 6.48E-01 | P67: =($C67^3)/($C67^3+PARÂMETROS!$J$6*$C67^2+PARÂMETROS!$J$6*PARÂMETROS!$K$6*$C67+PARÂMETROS!$J$6*PARÂMETROS!$K$6*PARÂMETROS!$L$6) -> 3.52E-01 | Q67: =IF(PARÂMETROS!$J$6<PARÂMETROS!$F$6,(E67-(C67-D67)/PARÂMETROS!$C$11)/(K67+(C67-D67)/PARÂMETROS!$C$14),(K67+(C67-D67)/PARÂMETROS!$C$14)/(E67-(C67-D67)/PARÂMETROS!$C$11)) -> -1.26E+02 | R67: =IF(PARÂMETROS!$J$6<PARÂMETROS!$F$6,(E67-(C67-D67)/PARÂMETROS!$C$11)/(L67+2*M67+(C67-D67)/PARÂMETROS!$C$14),(L67+2*M67+(C67-D67)/PARÂMETROS!$C$14)/(E67-(C67-D67)/PARÂMETROS!$C$11)) -> 1.95E+00 | S67: =IF(PARÂMETROS!$J$6<PARÂMETROS!$F$6, (E67-(C67-D67)/PARÂMETROS!$C$11)/(N67+2*O67+3*P67+(C67-D67)/PARÂMETROS!$C$14),(N67+2*O67+3*P67+(C67-D67)/PARÂMETROS!$C$14)/ (E67-(C67-D67)/PARÂMETROS!$C$11)) -> 9.67E-01 | T67: =IF(PARÂMETROS!$J$6<PARÂMETROS!$F$6,(F67+2*G67-(C67-D67)/PARÂMETROS!$C$11)/(K67+(C67-D67)/PARÂMETROS!$C$14),(K67+(C67-D67)/PARÂMETROS!$C$14)/(F67+2*G67-(C67-D67)/PARÂMETROS!$C$11)) -> -1.92E+02 | U67: =IF(PARÂMETROS!$J$6<PARÂMETROS!$F$6,(F67+2*G67-(C67-D67)/PARÂMETROS!$C$11)/(L67+2*M67+(C67-D67)/PARÂMETROS!$C$14),(L67+2*M67+(C67-D67)/PARÂMETROS!$C$14)/(F67+2*G67-(C67-D67)/PARÂMETROS!$C$11)) -> 2.96E+00 | V67: =IF(PARÂMETROS!$J$6<PARÂMETROS!$F$6,(F67+2*G67-(C67-D67)/PARÂMETROS!$C$11)/(N67+2*O67+3*P67+(C67-D67)/PARÂMETROS!$C$14),(N67+2*O67+3*P67+(C67-D67)/PARÂMETROS!$C$14)/(F67+2*G67-(C67-D67)/PARÂMETROS!$C$11)) -> 1.47E+00 | W67: =IF(PARÂMETROS!$J$6<PARÂMETROS!$F$6,(H67+2*I67+3*J67-(C67-D67)/PARÂMETROS!$C$11)/(K67+(C67-D67)/PARÂMETROS!$C$14),(K67+(C67-D67)/PARÂMETROS!$C$14)/(H67+2*I67+3*J67-(C67-D67)/PARÂMETROS!$C$11)) -> -2.50E+02 | X67: =IF(PARÂMETROS!$J$6<PARÂMETROS!$F$6,(H67+2*I67+3*J67-(C67-D67)/PARÂMETROS!$C$11)/(L67+2*M67+(C67-D67)/PARÂMETROS!$C$14),(L67+2*M67+(C67-D67)/PARÂMETROS!$C$14)/(H67+2*I67+3*J67-(C67-D67)/PARÂMETROS!$C$11)) -> 3.87E+00 | Y67: =IF(PARÂMETROS!$J$6<PARÂMETROS!$F$6,(H67+2*I67+3*J67-(C67-D67)/PARÂMETROS!$C$11)/(N67+2*O67+3*P67+(C67-D67)/PARÂMETROS!$C$14),(N67+2*O67+3*P67+(C67-D67)/PARÂMETROS!$C$14)/(H67+2*I67+3*J67-(C67-D67)/PARÂMETROS!$C$11)) -> 1.92E+00 | Z67: =Q67*PARÂMETROS!$C$11*PARÂMETROS!$D$11/PARÂMETROS!$C$14 -> -2518.88 | AA67: =R67*PARÂMETROS!$C$11*PARÂMETROS!$D$11/PARÂMETROS!$C$14 -> 38.97 | AB67: =S67*PARÂMETROS!$C$11*PARÂMETROS!$D$11/PARÂMETROS!$C$14 -> 19.34 | AC67: =T67*PARÂMETROS!$C$11*PARÂMETROS!$D$11/PARÂMETROS!$C$14 -> -3831.48 | AD67: =U67*PARÂMETROS!$C$11*PARÂMETROS!$D$11/PARÂMETROS!$C$14 -> 59.28 | AE67: =V67*PARÂMETROS!$C$11*PARÂMETROS!$D$11/PARÂMETROS!$C$14 -> 29.41 | AF67: =W67*PARÂMETROS!$C$11*PARÂMETROS!$D$11/PARÂMETROS!$C$14 -> -5001.56 | AG67: =X67*PARÂMETROS!$C$11*PARÂMETROS!$D$11/PARÂMETROS!$C$14 -> 77.39 | AH67: =Y67*PARÂMETROS!$C$11*PARÂMETROS!$D$11/PARÂMETROS!$C$14 -> 38.40 | AI67: =AND(B67+PARÂMETROS!$C$8>=PARÂMETROS!$C$5,B67+PARÂMETROS!$C$8<=PARÂMETROS!$D$5) -> FALSE | AJ67: 0 | AK67: =VLOOKUP('BANCO DE DADOS COMPLETA'!$N$8,'BANCO DE DADOS COMPLETA'!$A$7:$L$249,3)*-1 -> 3 | AL67: 7 | AM67: =VLOOKUP('BANCO DE DADOS COMPLETA'!$N$10,'BANCO DE DADOS COMPLETA'!$A$7:$L$249,3)*-1 -> 1 | AN67: 11 | AO67: 77 | AP67: -5001.56 | AQ67: LIMITE | AR67: LIMITE | AS67: LIMITE | AT67: LIMITE | AU67: NADA | AV67: NADA | AW67: 0
B68: =B67+PARÂMETROS!$C$8 -> 13.46 | C68: 3.43E-14 | D68: =PARÂMETROS!$Q$4/C68 -> 2.91E-01 | E68: =PARÂMETROS!$F$6/($C68+PARÂMETROS!$F$6) -> 1.00E+00 | F68: =$C68*PARÂMETROS!$F$6/($C68^2+$C68*PARÂMETROS!$F$6+PARÂMETROS!$F$6*PARÂMETROS!$G$6) -> 5.43E-07 | G68: =PARÂMETROS!$F$6*PARÂMETROS!$G$6/($C68^2+$C68*PARÂMETROS!$F$6+PARÂMETROS!$F$6*PARÂMETROS!$G$6) -> 1.00E+00 | H68: =(PARÂMETROS!$F$6*$C68^2)/($C68^3+PARÂMETROS!$F$6*$C68^2+PARÂMETROS!$F$6*PARÂMETROS!$G$6*$C68+PARÂMETROS!$F$6*PARÂMETROS!$G$6*PARÂMETROS!$H$6) -> 3.87E-08 | I68: =(PARÂMETROS!$F$6*PARÂMETROS!$G$6*$C68)/($C68^3+PARÂMETROS!$F$6*$C68^2+PARÂMETROS!$F$6*PARÂMETROS!$G$6*$C68+PARÂMETROS!$F$6*PARÂMETROS!$G$6*PARÂMETROS!$H$6) -> 7.14E-02 | J68: =(PARÂMETROS!$F$6*PARÂMETROS!$G$6*PARÂMETROS!$H$6)/($C68^3+PARÂMETROS!$F$6*$C68^2+PARÂMETROS!$F$6*PARÂMETROS!$G$6*$C68+PARÂMETROS!$F$6*PARÂMETROS!$G$6*PARÂMETROS!$H$6) -> 9.29E-01 | K68: =$C68/($C68+PARÂMETROS!$J$6) -> 2.56E-01 | L68: =$C68*PARÂMETROS!$J$6/($C68^2+$C68*PARÂMETROS!$J$6+PARÂMETROS!$J$6*PARÂMETROS!$K$6) -> 7.44E-01 | M68: =$C68^2/($C68^2+$C68*PARÂMETROS!$J$6+PARÂMETROS!$J$6*PARÂMETROS!$K$6) -> 2.56E-01 | N68: =(PARÂMETROS!$K$6*PARÂMETROS!$J$6*$C68)/($C68^3+PARÂMETROS!$J$6*$C68^2+PARÂMETROS!$J$6*PARÂMETROS!$K$6*$C68+PARÂMETROS!$J$6*PARÂMETROS!$K$6*PARÂMETROS!$L$6) -> 0.00E+00 | O68: =(PARÂMETROS!$J$6*$C68^2)/($C68^3+PARÂMETROS!$J$6*$C68^2+PARÂMETROS!$J$6*PARÂMETROS!$K$6*$C68+PARÂMETROS!$J$6*PARÂMETROS!$K$6*PARÂMETROS!$L$6) -> 7.44E-01 | P68: =($C68^3)/($C68^3+PARÂMETROS!$J$6*$C68^2+PARÂMETROS!$J$6*PARÂMETROS!$K$6*$C68+PARÂMETROS!$J$6*PARÂMETROS!$K$6*PARÂMETROS!$L$6) -> 2.56E-01 | Q68: =IF(PARÂMETROS!$J$6<PARÂMETROS!$F$6,(E68-(C68-D68)/PARÂMETROS!$C$11)/(K68+(C68-D68)/PARÂMETROS!$C$14),(K68+(C68-D68)/PARÂMETROS!$C$14)/(E68-(C68-D68)/PARÂMETROS!$C$11)) -> -7.51E+00 | R68: =IF(PARÂMETROS!$J$6<PARÂMETROS!$F$6,(E68-(C68-D68)/PARÂMETROS!$C$11)/(L68+2*M68+(C68-D68)/PARÂMETROS!$C$14),(L68+2*M68+(C68-D68)/PARÂMETROS!$C$14)/(E68-(C68-D68)/PARÂMETROS!$C$11)) -> 3.65E+00 | S68: =IF(PARÂMETROS!$J$6<PARÂMETROS!$F$6, (E68-(C68-D68)/PARÂMETROS!$C$11)/(N68+2*O68+3*P68+(C68-D68)/PARÂMETROS!$C$14),(N68+2*O68+3*P68+(C68-D68)/PARÂMETROS!$C$14)/ (E68-(C68-D68)/PARÂMETROS!$C$11)) -> 1.47E+00 | T68: =IF(PARÂMETROS!$J$6<PARÂMETROS!$F$6,(F68+2*G68-(C68-D68)/PARÂMETROS!$C$11)/(K68+(C68-D68)/PARÂMETROS!$C$14),(K68+(C68-D68)/PARÂMETROS!$C$14)/(F68+2*G68-(C68-D68)/PARÂMETROS!$C$11)) -> -1.06E+01 | U68: =IF(PARÂMETROS!$J$6<PARÂMETROS!$F$6,(F68+2*G68-(C68-D68)/PARÂMETROS!$C$11)/(L68+2*M68+(C68-D68)/PARÂMETROS!$C$14),(L68+2*M68+(C68-D68)/PARÂMETROS!$C$14)/(F68+2*G68-(C68-D68)/PARÂMETROS!$C$11)) -> 5.14E+00 | V68: =IF(PARÂMETROS!$J$6<PARÂMETROS!$F$6,(F68+2*G68-(C68-D68)/PARÂMETROS!$C$11)/(N68+2*O68+3*P68+(C68-D68)/PARÂMETROS!$C$14),(N68+2*O68+3*P68+(C68-D68)/PARÂMETROS!$C$14)/(F68+2*G68-(C68-D68)/PARÂMETROS!$C$11)) -> 2.07E+00 | W68: =IF(PARÂMETROS!$J$6<PARÂMETROS!$F$6,(H68+2*I68+3*J68-(C68-D68)/PARÂMETROS!$C$11)/(K68+(C68-D68)/PARÂMETROS!$C$14),(K68+(C68-D68)/PARÂMETROS!$C$14)/(H68+2*I68+3*J68-(C68-D68)/PARÂMETROS!$C$11)) -> -1.34E+01 | X68: =IF(PARÂMETROS!$J$6<PARÂMETROS!$F$6,(H68+2*I68+3*J68-(C68-D68)/PARÂMETROS!$C$11)/(L68+2*M68+(C68-D68)/PARÂMETROS!$C$14),(L68+2*M68+(C68-D68)/PARÂMETROS!$C$14)/(H68+2*I68+3*J68-(C68-D68)/PARÂMETROS!$C$11)) -> 6.52E+00 | Y68: =IF(PARÂMETROS!$J$6<PARÂMETROS!$F$6,(H68+2*I68+3*J68-(C68-D68)/PARÂMETROS!$C$11)/(N68+2*O68+3*P68+(C68-D68)/PARÂMETROS!$C$14),(N68+2*O68+3*P68+(C68-D68)/PARÂMETROS!$C$14)/(H68+2*I68+3*J68-(C68-D68)/PARÂMETROS!$C$11)) -> 2.62E+00 | Z68: =Q68*PARÂMETROS!$C$11*PARÂMETROS!$D$11/PARÂMETROS!$C$14 -> -150.22 | AA68: =R68*PARÂMETROS!$C$11*PARÂMETROS!$D$11/PARÂMETROS!$C$14 -> 73.01 | AB68: =S68*PARÂMETROS!$C$11*PARÂMETROS!$D$11/PARÂMETROS!$C$14 -> 29.37 | AC68: =T68*PARÂMETROS!$C$11*PARÂMETROS!$D$11/PARÂMETROS!$C$14 -> -211.38 | AD68: =U68*PARÂMETROS!$C$11*PARÂMETROS!$D$11/PARÂMETROS!$C$14 -> 102.73 | AE68: =V68*PARÂMETROS!$C$11*PARÂMETROS!$D$11/PARÂMETROS!$C$14 -> 41.32 | AF68: =W68*PARÂMETROS!$C$11*PARÂMETROS!$D$11/PARÂMETROS!$C$14 -> -268.17 | AG68: =X68*PARÂMETROS!$C$11*PARÂMETROS!$D$11/PARÂMETROS!$C$14 -> 130.33 | AH68: =Y68*PARÂMETROS!$C$11*PARÂMETROS!$D$11/PARÂMETROS!$C$14 -> 52.42 | AI68: =AND(B68+PARÂMETROS!$C$8>=PARÂMETROS!$C$5,B68+PARÂMETROS!$C$8<=PARÂMETROS!$D$5) -> FALSE | AJ68: 0 | AK68: =VLOOKUP('BANCO DE DADOS COMPLETA'!$N$8,'BANCO DE DADOS COMPLETA'!$A$7:$L$249,3)*-1 -> 3 | AL68: 7 | AM68: =VLOOKUP('BANCO DE DADOS COMPLETA'!$N$10,'BANCO DE DADOS COMPLETA'!$A$7:$L$249,3)*-1 -> 1 | AN68: 11 | AO68: 77 | AP68: -268.17 | AQ68: LIMITE | AR68: LIMITE | AS68: LIMITE | AT68: LIMITE | AU68: NADA | AV68: NADA | AW68: 0
B69: =B68+PARÂMETROS!$C$8 -> 13.66 | C69: 2.17E-14 | D69: =PARÂMETROS!$Q$4/C69 -> 4.62E-01 | E69: =PARÂMETROS!$F$6/($C69+PARÂMETROS!$F$6) -> 1.00E+00 | F69: =$C69*PARÂMETROS!$F$6/($C69^2+$C69*PARÂMETROS!$F$6+PARÂMETROS!$F$6*PARÂMETROS!$G$6) -> 3.42E-07 | G69: =PARÂMETROS!$F$6*PARÂMETROS!$G$6/($C69^2+$C69*PARÂMETROS!$F$6+PARÂMETROS!$F$6*PARÂMETROS!$G$6) -> 1.00E+00 | H69: =(PARÂMETROS!$F$6*$C69^2)/($C69^3+PARÂMETROS!$F$6*$C69^2+PARÂMETROS!$F$6*PARÂMETROS!$G$6*$C69+PARÂMETROS!$F$6*PARÂMETROS!$G$6*PARÂMETROS!$H$6) -> 1.58E-08 | I69: =(PARÂMETROS!$F$6*PARÂMETROS!$G$6*$C69)/($C69^3+PARÂMETROS!$F$6*$C69^2+PARÂMETROS!$F$6*PARÂMETROS!$G$6*$C69+PARÂMETROS!$F$6*PARÂMETROS!$G$6*PARÂMETROS!$H$6) -> 4.62E-02 | J69: =(PARÂMETROS!$F$6*PARÂMETROS!$G$6*PARÂMETROS!$H$6)/($C69^3+PARÂMETROS!$F$6*$C69^2+PARÂMETROS!$F$6*PARÂMETROS!$G$6*$C69+PARÂMETROS!$F$6*PARÂMETROS!$G$6*PARÂMETROS!$H$6) -> 9.54E-01 | K69: =$C69/($C69+PARÂMETROS!$J$6) -> 1.78E-01 | L69: =$C69*PARÂMETROS!$J$6/($C69^2+$C69*PARÂMETROS!$J$6+PARÂMETROS!$J$6*PARÂMETROS!$K$6) -> 8.22E-01 | M69: =$C69^2/($C69^2+$C69*PARÂMETROS!$J$6+PARÂMETROS!$J$6*PARÂMETROS!$K$6) -> 1.78E-01 | N69: =(PARÂMETROS!$K$6*PARÂMETROS!$J$6*$C69)/($C69^3+PARÂMETROS!$J$6*$C69^2+PARÂMETROS!$J$6*PARÂMETROS!$K$6*$C69+PARÂMETROS!$J$6*PARÂMETROS!$K$6*PARÂMETROS!$L$6) -> 0.00E+00 | O69: =(PARÂMETROS!$J$6*$C69^2)/($C69^3+PARÂMETROS!$J$6*$C69^2+PARÂMETROS!$J$6*PARÂMETROS!$K$6*$C69+PARÂMETROS!$J$6*PARÂMETROS!$K$6*PARÂMETROS!$L$6) -> 8.22E-01 | P69: =($C69^3)/($C69^3+PARÂMETROS!$J$6*$C69^2+PARÂMETROS!$J$6*PARÂMETROS!$K$6*$C69+PARÂMETROS!$J$6*PARÂMETROS!$K$6*PARÂMETROS!$L$6) -> 1.78E-01 | Q69: =IF(PARÂMETROS!$J$6<PARÂMETROS!$F$6,(E69-(C69-D69)/PARÂMETROS!$C$11)/(K69+(C69-D69)/PARÂMETROS!$C$14),(K69+(C69-D69)/PARÂMETROS!$C$14)/(E69-(C69-D69)/PARÂMETROS!$C$11)) -> -4.44E+00 | R69: =IF(PARÂMETROS!$J$6<PARÂMETROS!$F$6,(E69-(C69-D69)/PARÂMETROS!$C$11)/(L69+2*M69+(C69-D69)/PARÂMETROS!$C$14),(L69+2*M69+(C69-D69)/PARÂMETROS!$C$14)/(E69-(C69-D69)/PARÂMETROS!$C$11)) -> 1.30E+01 | S69: =IF(PARÂMETROS!$J$6<PARÂMETROS!$F$6, (E69-(C69-D69)/PARÂMETROS!$C$11)/(N69+2*O69+3*P69+(C69-D69)/PARÂMETROS!$C$14),(N69+2*O69+3*P69+(C69-D69)/PARÂMETROS!$C$14)/ (E69-(C69-D69)/PARÂMETROS!$C$11)) -> 2.64E+00 | T69: =IF(PARÂMETROS!$J$6<PARÂMETROS!$F$6,(F69+2*G69-(C69-D69)/PARÂMETROS!$C$11)/(K69+(C69-D69)/PARÂMETROS!$C$14),(K69+(C69-D69)/PARÂMETROS!$C$14)/(F69+2*G69-(C69-D69)/PARÂMETROS!$C$11)) -> -5.78E+00 | U69: =IF(PARÂMETROS!$J$6<PARÂMETROS!$F$6,(F69+2*G69-(C69-D69)/PARÂMETROS!$C$11)/(L69+2*M69+(C69-D69)/PARÂMETROS!$C$14),(L69+2*M69+(C69-D69)/PARÂMETROS!$C$14)/(F69+2*G69-(C69-D69)/PARÂMETROS!$C$11)) -> 1.69E+01 | V69: =IF(PARÂMETROS!$J$6<PARÂMETROS!$F$6,(F69+2*G69-(C69-D69)/PARÂMETROS!$C$11)/(N69+2*O69+3*P69+(C69-D69)/PARÂMETROS!$C$14),(N69+2*O69+3*P69+(C69-D69)/PARÂMETROS!$C$14)/(F69+2*G69-(C69-D69)/PARÂMETROS!$C$11)) -> 3.43E+00 | W69: =IF(PARÂMETROS!$J$6<PARÂMETROS!$F$6,(H69+2*I69+3*J69-(C69-D69)/PARÂMETROS!$C$11)/(K69+(C69-D69)/PARÂMETROS!$C$14),(K69+(C69-D69)/PARÂMETROS!$C$14)/(H69+2*I69+3*J69-(C69-D69)/PARÂMETROS!$C$11)) -> -7.06E+00 | X69: =IF(PARÂMETROS!$J$6<PARÂMETROS!$F$6,(H69+2*I69+3*J69-(C69-D69)/PARÂMETROS!$C$11)/(L69+2*M69+(C69-D69)/PARÂMETROS!$C$14),(L69+2*M69+(C69-D69)/PARÂMETROS!$C$14)/(H69+2*I69+3*J69-(C69-D69)/PARÂMETROS!$C$11)) -> 2.07E+01 | Y69: =IF(PARÂMETROS!$J$6<PARÂMETROS!$F$6,(H69+2*I69+3*J69-(C69-D69)/PARÂMETROS!$C$11)/(N69+2*O69+3*P69+(C69-D69)/PARÂMETROS!$C$14),(N69+2*O69+3*P69+(C69-D69)/PARÂMETROS!$C$14)/(H69+2*I69+3*J69-(C69-D69)/PARÂMETROS!$C$11)) -> 4.19E+00 | Z69: =Q69*PARÂMETROS!$C$11*PARÂMETROS!$D$11/PARÂMETROS!$C$14 -> -88.78 | AA69: =R69*PARÂMETROS!$C$11*PARÂMETROS!$D$11/PARÂMETROS!$C$14 -> 259.82 | AB69: =S69*PARÂMETROS!$C$11*PARÂMETROS!$D$11/PARÂMETROS!$C$14 -> 52.74 | AC69: =T69*PARÂMETROS!$C$11*PARÂMETROS!$D$11/PARÂMETROS!$C$14 -> -115.61 | AD69: =U69*PARÂMETROS!$C$11*PARÂMETROS!$D$11/PARÂMETROS!$C$14 -> 338.35 | AE69: =V69*PARÂMETROS!$C$11*PARÂMETROS!$D$11/PARÂMETROS!$C$14 -> 68.68 | AF69: =W69*PARÂMETROS!$C$11*PARÂMETROS!$D$11/PARÂMETROS!$C$14 -> -141.20 | AG69: =X69*PARÂMETROS!$C$11*PARÂMETROS!$D$11/PARÂMETROS!$C$14 -> 413.25 | AH69: =Y69*PARÂMETROS!$C$11*PARÂMETROS!$D$11/PARÂMETROS!$C$14 -> 83.88 | AI69: =AND(B69+PARÂMETROS!$C$8>=PARÂMETROS!$C$5,B69+PARÂMETROS!$C$8<=PARÂMETROS!$D$5) -> FALSE | AJ69: 0 | AK69: =VLOOKUP('BANCO DE DADOS COMPLETA'!$N$8,'BANCO DE DADOS COMPLETA'!$A$7:$L$249,3)*-1 -> 3 | AL69: 7 | AM69: =VLOOKUP('BANCO DE DADOS COMPLETA'!$N$10,'BANCO DE DADOS COMPLETA'!$A$7:$L$249,3)*-1 -> 1 | AN69: 11 | AO69: 77 | AP69: -141.20 | AQ69: LIMITE | AR69: LIMITE | AS69: LIMITE | AT69: LIMITE | AU69: NADA | AV69: NADA | AW69: 0
B70: =B69+PARÂMETROS!$C$8 -> 13.86 | C70: 1.37E-14 | D70: =PARÂMETROS!$Q$4/C70 -> 7.32E-01 | E70: =PARÂMETROS!$F$6/($C70+PARÂMETROS!$F$6) -> 1.00E+00 | F70: =$C70*PARÂMETROS!$F$6/($C70^2+$C70*PARÂMETROS!$F$6+PARÂMETROS!$F$6*PARÂMETROS!$G$6) -> 2.16E-07 | G70: =PARÂMETROS!$F$6*PARÂMETROS!$G$6/($C70^2+$C70*PARÂMETROS!$F$6+PARÂMETROS!$F$6*PARÂMETROS!$G$6) -> 1.00E+00 | H70: =(PARÂMETROS!$F$6*$C70^2)/($C70^3+PARÂMETROS!$F$6*$C70^2+PARÂMETROS!$F$6*PARÂMETROS!$G$6*$C70+PARÂMETROS!$F$6*PARÂMETROS!$G$6*PARÂMETROS!$H$6) -> 6.42E-09 | I70: =(PARÂMETROS!$F$6*PARÂMETROS!$G$6*$C70)/($C70^3+PARÂMETROS!$F$6*$C70^2+PARÂMETROS!$F$6*PARÂMETROS!$G$6*$C70+PARÂMETROS!$F$6*PARÂMETROS!$G$6*PARÂMETROS!$H$6) -> 2.97E-02 | J70: =(PARÂMETROS!$F$6*PARÂMETROS!$G$6*PARÂMETROS!$H$6)/($C70^3+PARÂMETROS!$F$6*$C70^2+PARÂMETROS!$F$6*PARÂMETROS!$G$6*$C70+PARÂMETROS!$F$6*PARÂMETROS!$G$6*PARÂMETROS!$H$6) -> 9.70E-01 | K70: =$C70/($C70+PARÂMETROS!$J$6) -> 1.20E-01 | L70: =$C70*PARÂMETROS!$J$6/($C70^2+$C70*PARÂMETROS!$J$6+PARÂMETROS!$J$6*PARÂMETROS!$K$6) -> 8.80E-01 | M70: =$C70^2/($C70^2+$C70*PARÂMETROS!$J$6+PARÂMETROS!$J$6*PARÂMETROS!$K$6) -> 1.20E-01 | N70: =(PARÂMETROS!$K$6*PARÂMETROS!$J$6*$C70)/($C70^3+PARÂMETROS!$J$6*$C70^2+PARÂMETROS!$J$6*PARÂMETROS!$K$6*$C70+PARÂMETROS!$J$6*PARÂMETROS!$K$6*PARÂMETROS!$L$6) -> 0.00E+00 | O70: =(PARÂMETROS!$J$6*$C70^2)/($C70^3+PARÂMETROS!$J$6*$C70^2+PARÂMETROS!$J$6*PARÂMETROS!$K$6*$C70+PARÂMETROS!$J$6*PARÂMETROS!$K$6*PARÂMETROS!$L$6) -> 8.80E-01 | P70: =($C70^3)/($C70^3+PARÂMETROS!$J$6*$C70^2+PARÂMETROS!$J$6*PARÂMETROS!$K$6*$C70+PARÂMETROS!$J$6*PARÂMETROS!$K$6*PARÂMETROS!$L$6) -> 1.20E-01 | Q70: =IF(PARÂMETROS!$J$6<PARÂMETROS!$F$6,(E70-(C70-D70)/PARÂMETROS!$C$11)/(K70+(C70-D70)/PARÂMETROS!$C$14),(K70+(C70-D70)/PARÂMETROS!$C$14)/(E70-(C70-D70)/PARÂMETROS!$C$11)) -> -3.47E+00 | R70: =IF(PARÂMETROS!$J$6<PARÂMETROS!$F$6,(E70-(C70-D70)/PARÂMETROS!$C$11)/(L70+2*M70+(C70-D70)/PARÂMETROS!$C$14),(L70+2*M70+(C70-D70)/PARÂMETROS!$C$14)/(E70-(C70-D70)/PARÂMETROS!$C$11)) -> -1.36E+01 | S70: =IF(PARÂMETROS!$J$6<PARÂMETROS!$F$6, (E70-(C70-D70)/PARÂMETROS!$C$11)/(N70+2*O70+3*P70+(C70-D70)/PARÂMETROS!$C$14),(N70+2*O70+3*P70+(C70-D70)/PARÂMETROS!$C$14)/ (E70-(C70-D70)/PARÂMETROS!$C$11)) -> 7.09E+00 | T70: =IF(PARÂMETROS!$J$6<PARÂMETROS!$F$6,(F70+2*G70-(C70-D70)/PARÂMETROS!$C$11)/(K70+(C70-D70)/PARÂMETROS!$C$14),(K70+(C70-D70)/PARÂMETROS!$C$14)/(F70+2*G70-(C70-D70)/PARÂMETROS!$C$11)) -> -4.21E+00 | U70: =IF(PARÂMETROS!$J$6<PARÂMETROS!$F$6,(F70+2*G70-(C70-D70)/PARÂMETROS!$C$11)/(L70+2*M70+(C70-D70)/PARÂMETROS!$C$14),(L70+2*M70+(C70-D70)/PARÂMETROS!$C$14)/(F70+2*G70-(C70-D70)/PARÂMETROS!$C$11)) -> -1.65E+01 | V70: =IF(PARÂMETROS!$J$6<PARÂMETROS!$F$6,(F70+2*G70-(C70-D70)/PARÂMETROS!$C$11)/(N70+2*O70+3*P70+(C70-D70)/PARÂMETROS!$C$14),(N70+2*O70+3*P70+(C70-D70)/PARÂMETROS!$C$14)/(F70+2*G70-(C70-D70)/PARÂMETROS!$C$11)) -> 8.62E+00 | W70: =IF(PARÂMETROS!$J$6<PARÂMETROS!$F$6,(H70+2*I70+3*J70-(C70-D70)/PARÂMETROS!$C$11)/(K70+(C70-D70)/PARÂMETROS!$C$14),(K70+(C70-D70)/PARÂMETROS!$C$14)/(H70+2*I70+3*J70-(C70-D70)/PARÂMETROS!$C$11)) -> -4.94E+00 | X70: =IF(PARÂMETROS!$J$6<PARÂMETROS!$F$6,(H70+2*I70+3*J70-(C70-D70)/PARÂMETROS!$C$11)/(L70+2*M70+(C70-D70)/PARÂMETROS!$C$14),(L70+2*M70+(C70-D70)/PARÂMETROS!$C$14)/(H70+2*I70+3*J70-(C70-D70)/PARÂMETROS!$C$11)) -> -1.93E+01 | Y70: =IF(PARÂMETROS!$J$6<PARÂMETROS!$F$6,(H70+2*I70+3*J70-(C70-D70)/PARÂMETROS!$C$11)/(N70+2*O70+3*P70+(C70-D70)/PARÂMETROS!$C$14),(N70+2*O70+3*P70+(C70-D70)/PARÂMETROS!$C$14)/(H70+2*I70+3*J70-(C70-D70)/PARÂMETROS!$C$11)) -> 1.01E+01 | Z70: =Q70*PARÂMETROS!$C$11*PARÂMETROS!$D$11/PARÂMETROS!$C$14 -> -69.37 | AA70: =R70*PARÂMETROS!$C$11*PARÂMETROS!$D$11/PARÂMETROS!$C$14 -> -271.48 | AB70: =S70*PARÂMETROS!$C$11*PARÂMETROS!$D$11/PARÂMETROS!$C$14 -> 141.86 | AC70: =T70*PARÂMETROS!$C$11*PARÂMETROS!$D$11/PARÂMETROS!$C$14 -> -84.26 | AD70: =U70*PARÂMETROS!$C$11*PARÂMETROS!$D$11/PARÂMETROS!$C$14 -> -329.75 | AE70: =V70*PARÂMETROS!$C$11*PARÂMETROS!$D$11/PARÂMETROS!$C$14 -> 172.31 | AF70: =W70*PARÂMETROS!$C$11*PARÂMETROS!$D$11/PARÂMETROS!$C$14 -> -98.70 | AG70: =X70*PARÂMETROS!$C$11*PARÂMETROS!$D$11/PARÂMETROS!$C$14 -> -386.30 | AH70: =Y70*PARÂMETROS!$C$11*PARÂMETROS!$D$11/PARÂMETROS!$C$14 -> 201.86 | AI70: =AND(B70+PARÂMETROS!$C$8>=PARÂMETROS!$C$5,B70+PARÂMETROS!$C$8<=PARÂMETROS!$D$5) -> FALSE | AJ70: 0 | AK70: =VLOOKUP('BANCO DE DADOS COMPLETA'!$N$8,'BANCO DE DADOS COMPLETA'!$A$7:$L$249,3)*-1 -> 3 | AL70: 7 | AM70: =VLOOKUP('BANCO DE DADOS COMPLETA'!$N$10,'BANCO DE DADOS COMPLETA'!$A$7:$L$249,3)*-1 -> 1 | AN70: 11 | AO70: 77 | AP70: -98.70 | AQ70: LIMITE | AR70: LIMITE | AS70: LIMITE | AT70: LIMITE | AU70: NADA | AV70: NADA | AW70: 0
